Workbook

Sheet Dati Generali CER 1 Sem. 2019
A1: Scheda n. 1 - Produzione di Rifiuti Urbani e Raccolta Differenziata 1° Semestre 2019.
A2: =COUNTA(E3:E110) -> 108 | B2: ID COMUNE | C2: COMUNE | D2: ABITANTI al 30/11/2019 | E2: R.S.U. + R.S.A. (Kg/1°Sem.) 200301 | F2: Toner per stampa esauriti, contenenti sostanze pericolose 080317* | G2: Altri oli per motori, ingranaggi e lubrificazione 130208* | H2: Legno da demolizione 170201 | I2: Miscele bituminose (diverse da quelle 170301*) 170302 | J2: Alluminio 170402 | K2: Ferro e acciaio 170405 | L2: Materiali da costruzione contenenti amianto 170605* | M2: Percolato di discarica,(diverso dalla voce 190702) 190703 | N2: Residui di vagliatura 190801 | O2: FANGHI DI DEPURAZIONE (Kg/anno) prodotti dal trattamento delle acque reflue urbane 190805 | P2: altri rifiuti (compresi materiali misti) prodotti dal trattamento meccanico dei rifiuti,(diversi dalla voce 191211) 191212 | Q2: Rifiuti della pulizia delle fognature 200306 | R2: Residui della pulizia stradale 200303 Smaltimento | S2: Ingombranti - 200307 Smaltimento | T2: Rifiuti urbani non specificati altrimenti 200399 | U2: RACCOL. DIFFEREN. (Kg/1°Sem.) | V2: R.S.U. + R.S.A. + RACC. DIFF. (Kg/1°Sem.) | W2: % RACC. DIFF. (1°Sem.) | X2: Compostaggio Domestico | Y2: Toner per stampa esauriti,(diversi dalla voce 080317) 080318 | Z2: Imballaggi Carta e Cartone (Raccolta Selettiva) 150101 | AA2: Imballaggi in Plastica 150102 | AB2: Imballaggi in Legno 150103 | AC2: Imballaaggi in metallo 150104 | AD2: Imball. in materiali misti 150106 | AE2: Imballaggi in Vetro 150107 | AF2: Imballaggi contenenti residui di sostanze pericolose o contaminati da tali sostanze 150110* | AG2: Imballaggi metallici contenenti matrici solide porose pericolose (ad esempio amianto) 150111* | AH2: Pneumatici usati 160103 | AI2: Filtri dell'olio 160107* | AJ2: Apparecchiature fuori uso, contenenti clorofluorocarburi, HCFC, HFC 160211* | AK2: Componenti rimossi da apparecchiature fuori uso,(diversi dalla voce 160215) 160216 | AL2: Miscugli o frazioni separate di cemento, mattoni, mattonelle e ceramiche(diverse dalla voce 170106) 170107 | AM2: Rifiuti misti dell'attività di costruzione e demolizione, (diversi dalle voci 170901, 170902 e 170903) 170904 | AN2: Carta e Cartone (Raccolta Congiunta) 200101 | AO2: Vetro 200102 | AP2: Rifiuti biodegradabili di cucine e mense 200108 | AQ2: Abbigliamento 200110 | AR2: Prodotti tessili 200111 | AS2: Tubi fluorescenti ed altri rifiuti contenenti Mercurio 200121* | AT2: Apparec. Fuori uso conten. CFC e mat. peric. 200123* | AU2: Oli e Grassi commestibili 200125 | AV2: Oli e grassi (diversi dalla voce 200125) 200126* | AW2: Medicinali citotossici e citostatici 200131* | AX2: Medicinali (diversi dlla voce 200131*) 200132 | AY2: Batterie ed Accumulatori (diversi dalle voci 160601, 160602 e 160603) 200133* | AZ2: Batterie ed accumulatori (diversi dlla voce 200133*) 200134 | BA2: Apparecc. elettr. ed elettroniche fuori uso contenenti Mat. Peric. 200135* | BB2: Apparecc. eletr. ed elettroniche fuori uso(diverse da 200121, 200123 e 200135 200136 | BC2: Legno 200138 | BD2: Plastica 200139 | BE2: Metallo 200140 | BF2: Rifiuti biodegradabili 200201 | BG2: Residui della pulizia stradale - 200303 Recupero | BH2: Ingombranti - 200307 Recupero | BI2: TOTALE RD (Kg/1°Sem.) | BJ2: R.S.U. + R.S.A.+ R.D. - (R.T. Kg. pro capite/g) | BK2: R.S.U. + R.S.A. 200301 - (R.I. Kg. pro capite/g) | BL2: R.D. - (Kg. pro capite/g)
A3: 1 | B3: M211 | C3: ACQUEDOLCI | D3: 5560 | E3: 205660 | U3: =IF(BI3=0,"",BI3) -> 513920 | V3: =IF(E3=0,"",SUM(U3,E3,R3,S3,T3)) -> 719580 | W3: =IFERROR(IF(E3<>0,IF(U3=0,0,(U3/V3*100)/100),IF(U3=0,"","")),0) -> 0.7141943912 | AA3: 82190 | AE3: 91630 | AN3: 93920 | AP3: 232810 | BH3: 13370 | BI3: =IF(SUM(X3:BH3)=0,"",SUM(X3:BH3)) -> 513920 | BJ3: =IF(SUM(E3)=0,"",V3/D3/181) -> 0.715032394 | BK3: =IF(E3=0,"",E3/D3/181) -> 0.2043602687 | BL3: =IF(SUM(Y3:BH3)=0,"",BI3/D3/181) -> 0.5106721253 | BN3: 2019-07-16T09:58:34
A4: 2 | B4: A177 | C4: ALCARA LI FUSI | D4: 1822 | E4: 63600 | U4: =IF(BI4=0,"",BI4) -> 147090 | V4: 210690 | W4: 0.6981347003 | Z4: 3040 | AA4: 14810 | AE4: 26660 | AN4: 17100 | AP4: 63660 | AQ4: 770 | AT4: 410 | BA4: 1060 | BB4: 810 | BE4: 17040 | BH4: 1730 | BI4: =IF(SUM(X4:BH4)=0,"",SUM(X4:BH4)) -> 147090 | BJ4: 0.6388765912 | BK4: =IF(E4=0,"",E4/D4/181) -> 0.1928546737 | BL4: 0.4460219175 | BN4: 2019-10-09T12:26:14
A5: 3 | B5: A194 | C5: ALI' | D5: 717 | E5: 31150 | U5: 72380 | V5: 103530 | W5: 0.6991210277 | AD5: 19330 | AE5: 7840 | AN5: 10010 | AP5: 34310 | BH5: 890 | BI5: 72380 | BJ5: 0.7977530687 | BK5: 0.2400271235 | BL5: 0.5577259453 | BN5: 2019-10-09T12:28:42
A6: 4 | B6: A201 | C6: ALI' TERME | D6: 2426 | E6: 138840 | U6: 281055 | V6: 419895 | W6: 0.6693459079 | Z6: 12750 | AD6: 38320 | AE6: 28940 | AN6: 41510 | AP6: 138080 | AX6: 95 | BF6: 2640 | BH6: 18720 | BI6: 281055 | BJ6: 0.9562497438 | BK6: 0.3161878909 | BL6: 0.6400618529 | BN6: 2019-07-30T10:12:43
A7: 5 | B7: A313 | C7: ANTILLO | D7: 853 | E7: 20240 | U7: 51700 | V7: 71940 | W7: 0.7186544343 | AD7: 8830 | AE7: 5640 | AN7: 6160 | AP7: 25240 | AS7: 60 | AT7: 90 | BB7: 2510 | BC7: 1280 | BH7: 1890 | BI7: 51700 | BJ7: 0.4659537673 | BK7: 0.1310940263 | BL7: 0.3348597411 | BN7: 2019-11-26T13:05:43
A8: 6 | B8: A638 | C8: BARCELLONA P.G. | D8: 41155 | E8: 5983700 | U8: 2585893 | V8: 8569593 | W8: 0.3017521369 | X8: 267310 | Z8: 203170 | AA8: 338700 | AC8: 16560 | AE8: 311380 | AF8: 40 | AG8: 540 | AH8: 12360 | AK8: 540 | AM8: 143680 | AN8: 435230 | AO8: 7900 | AP8: 301780 | AQ8: 25000 | AS8: 650 | AT8: 14140 | AU8: 1540 | AX8: 2010 | AY8: 3280 | AZ8: 500 | BA8: 27520 | BB8: 43511 | BC8: 98200 | BD8: 7410 | BE8: 30400 | BF8: 147980 | BH8: 144562 | BI8: 2585893 | BJ8: 1.150426866 | BK8: 0.803283101 | BL8: 0.3471437652 | BN8: 2019-07-23T09:25:55
A9: 7 | B9: A698 | C9: BASICO' | D9: 580 | E9: 48080 | U9: 57008 | V9: 105088 | W9: 0.5424786845 | X9: 10848 | AA9: 8770 | AE9: 9030 | AN9: 8750 | AP9: 19610 | BI9: 57008 | BJ9: 1.001028767 | BK9: 0.4579919985 | BL9: 0.5430367689 | BN9: 2019-09-30T15:21:40
A10: 8 | B10: B198 | C10: BROLO | D10: 5789 | E10: 378360 | K10: 70 | R10: 34900 | U10: 835720 | V10: 1248980 | W10: 0.6691220036 | X10: 45570 | Z10: 106060 | AA10: 86130 | AE10: 87640 | AH10: 130 | AK10: 360 | AN10: 57960 | AP10: 317680 | AQ10: 6800 | AT10: 6040 | AX10: 220 | BA10: 6640 | BB10: 13930 | BC10: 12580 | BE10: 10330 | BF10: 63460 | BH10: 14190 | BI10: 835720 | BJ10: 1.191992052 | BK10: 0.3610963448 | BL10: 0.79758811 | BN10: 2019-07-16T10:01:32
A11: 9 | B11: B660 | C11: CAPIZZI | D11: 2990 | E11: 150380 | U11: 247990 | V11: 398370 | W11: 0.6225117353 | X11: 62500 | AE11: 32950 | AN11: 27900 | AP11: 101740 | AQ11: 1800 | BB11: 500 | BD11: 20600 | BI11: 247990 | BJ11: 0.7361000758 | BK11: 0.2778691402 | BL11: 0.4582309355 | BN11: 2019-07-18T07:53:30
A12: 10 | B12: B666 | C12: CAPO D'ORLANDO | D12: 13286 | E12: 1493860 | K12: 532 | U12: 1693582 | V12: 3187442 | W12: 0.5313295113 | Z12: 130020 | AA12: 170120 | AB12: 9490 | AE12: 303800 | AF12: 33 | AN12: 297600 | AP12: 537009 | AS12: 160 | AT12: 10000 | BA12: 9930 | BB12: 12440 | BF12: 82440 | BH12: 130540 | BI12: 1693582 | BJ12: 1.325468673 | BK12: 0.621208051 | BL12: 0.7042606224 | BN12: 2019-07-16T10:06:42
A13: 11 | B13: B695 | C13: CAPRILEONE | D13: 4391 | E13: 255120 | U13: 422790 | V13: 677910 | W13: 0.6236668584 | Z13: 13650 | AA13: 51290 | AE13: 79790 | AN13: 68550 | AP13: 192800 | BH13: 16710 | BI13: 422790 | BJ13: 0.8529626773 | BK13: 0.320998124 | BL13: 0.5319645533 | BN13: 2019-08-08T09:52:55
A14: 12 | B14: B804 | C14: CARONIA | D14: 3147 | E14: 211860 | U14: 390840 | V14: 602700 | W14: 0.6484818318 | Z14: 23810 | AA14: 15530 | AD14: 68540 | AE14: 46240 | AP14: 207920 | AQ14: 1340 | AU14: 120 | BH14: 27340 | BI14: 390840 | BJ14: 1.058097952 | BK14: 0.3719406538 | BL14: 0.6861572979 | BN14: 2019-10-22T13:55:13
A15: 13 | B15: B918 | C15: CASALVECCHIO SICULO | D15: 761 | E15: 48720 | U15: 23600 | V15: 72320 | W15: 0.3263274336 | AA15: 50 | AD15: 7820 | AE15: 6130 | AN15: 4030 | AQ15: 680 | AT15: 40 | BE15: 4350 | BH15: 500 | BI15: 23600 | BJ15: 0.5250433785 | BK15: 0.3537073203 | BL15: 0.1713360583 | BN15: 2019-08-01T08:38:04
A16: 14 | B16: C094 | C16: CASTEL DI LUCIO | D16: 1252 | E16: 24280 | U16: 116060 | V16: 140340 | W16: 0.8269915918 | Y16: 20 | Z16: 2190 | AA16: 16470 | AE16: 19270 | AN16: 13310 | AP16: 63960 | AQ16: 800 | AX16: 30 | AZ16: 10 | BI16: 116060 | BJ16: 0.6192964185 | BK16: 0.1071434875 | BL16: 0.512152931 | BN16: 2019-09-30T15:24:49
A17: 15 | B17: C051 | C17: CASTELL'UMBERTO | D17: 2966 | E17: 241720 | U17: 166060 | V17: 407780 | W17: 0.4072293884 | AA17: 22000 | AE17: 37710 | AN17: 16530 | AP17: 76060 | AQ17: 1040 | AT17: 1880 | BA17: 1380 | BB17: 3380 | BH17: 6080 | BI17: 166060 | BJ17: 0.7595846854 | BK17: 0.4502594785 | BL17: 0.3093252069 | BN17: 2019-07-10T11:49:39
A18: 16 | B18: C210 | C18: CASTELMOLA | D18: 1102 | E18: 117918 | U18: 16290 | V18: 134208 | W18: 0.1213787554 | AD18: 3680 | AE18: 4990 | AN18: 4580 | AP18: 2490 | BH18: 550 | BI18: 16290 | BJ18: 0.6728499664 | BK18: 0.5911802749 | BL18: 0.08166969147 | BN18: 2019-08-13T08:04:08
A19: 17 | B19: C347 | C19: CASTROREALE | D19: 2342 | E19: 84960 | U19: 147813 | V19: 232773 | W19: 0.635009215 | Z19: 10290 | AA19: 27290 | AE19: 24920 | AN19: 12570 | AP19: 67203 | AQ19: 1100 | AT19: 1280 | BA19: 260 | BB19: 510 | BH19: 2390 | BI19: 147813 | BJ19: 0.5491198437 | BK19: 0.2004236828 | BL19: 0.3486961609 | BN19: 2019-09-30T15:46:42
A20: 18 | B20: C568 | C20: CESARO' | D20: 2274 | E20: 141846 | U20: 147920 | V20: 289766 | W20: 0.5104808708 | Z20: 31520 | AA20: 15760 | AE20: 19280 | AQ20: 1460 | BF20: 79900 | BI20: 147920 | BJ20: 0.7040092907 | BK20: 0.344626015 | BL20: 0.3593832758 | BN20: 2019-07-30T10:13:00
A21: 19 | B21: C956 | C21: CONDRO' | D21: 478 | E21: 46660 | U21: 23598 | V21: 70258 | W21: 0.3358763415 | AA21: 4980 | AE21: 2460 | AN21: 6200 | AQ21: 800 | AT21: 250 | AU21: 68 | BA21: 140 | BB21: 180 | BG21: 6760 | BH21: 1760 | BI21: 23598 | BJ21: 0.8120622298 | BK21: 0.539309739 | BL21: 0.2727524908 | BN21: 2019-07-24T12:37:00
A22: 20 | B22: D474 | C22: FALCONE | D22: 2748 | E22: 394860 | U22: 112795 | V22: 507655 | W22: 0.2221882972 | AA22: 22760 | AE22: 27160 | AN22: 36580 | AQ22: 3430 | AT22: 1000 | AU22: 425 | BH22: 21440 | BI22: 112795 | BJ22: 1.020641833 | BK22: 0.7938671621 | BL22: 0.2267746709 | BN22: 2019-08-01T08:42:52
A23: 21 | B23: D569 | C23: FICARRA | D23: 1375 | E23: 80240 | U23: 98715 | V23: 178955 | W23: 0.5516191221 | Z23: 1790 | AA23: 13460 | AE23: 21760 | AN23: 13360 | AP23: 43110 | AQ23: 1300 | AU23: 165 | BH23: 3770 | BI23: 98715 | BJ23: 0.7190557509 | BK23: 0.3224108488 | BL23: 0.3966449021 | BN23: 2019-07-11T11:18:30
A24: 22 | B24: D622 | C24: FIUMEDINISI | D24: 1340 | E24: 41260 | U24: 114647 | V24: 155907 | W24: 0.7353550514 | AD24: 20270 | AE24: 13157 | AN24: 20150 | AP24: 56870 | AX24: 140 | BH24: 4060 | BI24: 114647 | BJ24: 0.6428094335 | BK24: 0.1701162695 | BL24: 0.472693164 | BN24: 2019-10-24T12:07:37
A25: 23 | B25: D635 | C25: FLORESTA | D25: 456 | E25: 65580 | U25: 19500 | V25: 85080 | W25: 0.2291960508 | Z25: 5860 | AA25: 5480 | AE25: 7080 | BB25: 1080 | BI25: 19500 | BJ25: 1.030822914 | BK25: 0.7945623728 | BL25: 0.2362605409 | BN25: 2019-10-14T09:30:13
A26: 24 | B26: D661 | C26: FONDACHELLI FANTINA | D26: 1048 | E26: 93640 | U26: 29540 | V26: 123180 | W26: 0.2398116577 | X26: 24500 | AA26: 5040 | BI26: 29540 | BJ26: 0.6493821433 | BK26: 0.493652735 | BL26: 0.1557294083 | BN26: 2019-08-01T08:45:39
A27: 25 | B27: D733 | C27: FORZA D'AGRO' | D27: 887 | E27: 150220 | U27: 53220 | V27: 203440 | W27: 0.2616004719 | Z27: 1040 | AD27: 11250 | AE27: 16030 | AN27: 12770 | AP27: 11290 | AT27: 90 | BC27: 490 | BH27: 260 | BI27: 53220 | BJ27: 1.26716787 | BK27: 0.9356761571 | BL27: 0.3314917127 | BN27: 2019-07-24T09:46:52
A28: 26 | B28: D765 | C28: FRANCAVILLA DI SICILIA | D28: 3744 | E28: 245280 | U28: 373450 | V28: 618730 | W28: 0.6035750651 | X28: 29700 | Z28: 1550 | AD28: 69280 | AE28: 42480 | AM28: 29800 | AN28: 49920 | AP28: 134100 | AQ28: 980 | BH28: 15640 | BI28: 373450 | BJ28: 0.9130335978 | BK28: 0.3619492846 | BL28: 0.5510843132 | BN28: 2019-07-23T09:38:48
A29: 27 | B29: D793 | C29: FRAZZANO' | D29: 628 | E29: 38240 | U29: 35910 | V29: 74150 | W29: 0.4842886042 | Z29: 4760 | AA29: 2670 | AE29: 10410 | AP29: 15520 | BH29: 2550 | BI29: 35910 | BJ29: 0.652338389 | BK29: 0.3364183411 | BL29: 0.3159200479 | BN29: 2019-07-16T10:13:53
A30: 28 | B30: D824 | C30: FURCI SICULO | D30: 3242 | E30: 150520 | U30: 402171 | V30: 552691 | W30: 0.7276597593 | Z30: 7750 | AD30: 52740 | AE30: 41590 | AN30: 55420 | AP30: 195690 | AX30: 1000 | BD30: 3511 | BF30: 15660 | BH30: 28810 | BI30: 402171 | BJ30: 0.9418696596 | BK30: 0.2565090099 | BL30: 0.6853606498 | BN30: 2020-02-17T13:10:04
A31: 29 | B31: D825 | C31: FURNARI | D31: 3842 | E31: 260600 | U31: 480240 | V31: 740840 | W31: 0.6482371362 | AA31: 42290 | AE31: 53020 | AN31: 60380 | AP31: 194940 | AQ31: 800 | BB31: 15530 | BC31: 8610 | BF31: 79990 | BH31: 24680 | BI31: 480240 | BJ31: 1.065340623 | BK31: 0.3747472685 | BL31: 0.6905933546 | BN31: 2019-10-16T09:55:19
A32: 30 | B32: D844 | C32: GAGGI | D32: 3182 | E32: 341284 | U32: 143810 | V32: 485094 | W32: 0.2964580061 | Z32: 12500 | AD32: 27120 | AE32: 29350 | AN32: 28600 | AP32: 36010 | AT32: 120 | BA32: 250 | BB32: 260 | BF32: 4320 | BH32: 5280 | BI32: 143810 | BJ32: 0.8422618944 | BK32: 0.5925666126 | BL32: 0.2496952818 | BN32: 2019-11-27T12:42:56
A33: 31 | B33: D861 | C33: GALATI MAMERTINO | D33: 2419 | E33: 198420 | U33: 142910 | V33: 341330 | W33: 0.4186857294 | Z33: 19500 | AA33: 16780 | AE33: 28200 | AP33: 74640 | BC33: 880 | BH33: 2910 | BI33: 142910 | BJ33: 0.7795787949 | BK33: 0.4531802786 | BL33: 0.3263985163 | BN33: 2019-07-16T10:19:58
A34: 32 | B34: D885 | C34: GALLODORO | D34: 335 | E34: 45530 | U34: 9323 | V34: 54853 | W34: 0.1699633566 | AD34: 3870 | AE34: 3910 | AH34: 60 | AN34: 553 | AT34: 30 | BB34: 210 | BC34: 200 | BH34: 490 | BI34: 9323 | BJ34: 0.9046425332 | BK34: 0.7508864517 | BL34: 0.1537560815 | BN34: 2019-10-10T11:29:28
A35: 33 | B35: E014 | C35: GIARDINI NAXOS | D35: 9166 | E35: 1264220 | R35: 3880 | U35: 1460970 | V35: =IF(E35=0,"",SUM(U35,E35,R35,S35,T35)) -> 2729070 | W35: =IFERROR(IF(E35<>0,IF(U35=0,0,(U35/V35*100)/100),IF(U35=0,"","")),0) -> 0.5353362134 | Z35: 101750 | AA35: 166620 | AE35: 239040 | AM35: 6340 | AN35: 150340 | AP35: 544960 | AT35: 10260 | BA35: 5740 | BB35: 540 | BF35: 40300 | BH35: 195080 | BI35: 1460970 | BJ35: =IF(SUM(E35)=0,"",V35/D35/181) -> 1.644963431 | BK35: 0.7620162431 | BL35: =IF(SUM(Y35:BH35)=0,"",BI35/D35/181) -> 0.8806084943 | BN35: 2019-08-06T08:25:15
A36: 34 | B36: E043 | C36: GIOIOSA MAREA | D36: 6859 | E36: 1162500 | U36: 253082 | V36: 1415582 | W36: 0.1787830023 | Y36: 127 | Z36: 50367 | AA36: 24610 | AB36: 1160 | AC36: 1188 | AE36: 50974 | AH36: 220 | AM36: 1578 | AN36: 35982 | AO36: 283 | AQ36: 1910 | AS36: 80 | AT36: 6550 | AU36: 340 | AY36: 310 | BA36: 5960 | BB36: 7550 | BC36: 4998 | BD36: 248 | BE36: 6256 | BF36: 50231 | BH36: 2160 | BI36: 253082 | BJ36: 1.140238377 | BK36: 0.9363831366 | BL36: 0.2038552404 | BN36: 2019-09-30T16:19:58
A37: 35 | B37: E142 | C37: GRANITI | D37: 1455 | E37: 151528 | U37: 62090 | V37: 213618 | W37: 0.2906590269 | AD37: 16610 | AE37: 16350 | AN37: 14400 | AP37: 13620 | BB37: 140 | BH37: 970 | BI37: 62090 | BJ37: 0.8111408555 | BK37: 0.5753754438 | BL37: 0.2357654117 | BN37: 2019-08-01T08:48:00
A38: 36 | B38: E233 | C38: GUALTIERI SICAMINO | D38: 1669 | E38: 37440 | U38: 164490 | V38: 201930 | W38: 0.8145892141 | X38: 50790 | AA38: 3560 | AD38: 13520 | AE38: 26280 | AN38: 19580 | AP38: 43200 | AQ38: 720 | AT38: 980 | BC38: 1940 | BE38: 1340 | BH38: 2580 | BI38: 164490 | BJ38: 0.6684453919 | BK38: 0.1239369855 | BL38: 0.5445084065 | BN38: 2019-09-30T16:27:26
A39: 37 | B39: E374 | C39: ITALA | D39: 1504 | E39: 94730 | U39: 56180 | V39: 150910 | W39: 0.3722748658 | Z39: 11580 | AD39: 18340 | AE39: 19570 | AN39: 5480 | BB39: 560 | BH39: 650 | BI39: 56180 | BJ39: 0.554359645 | BK39: 0.3479854825 | BL39: 0.2063741625 | BN39: 2019-10-09T12:30:20
A40: 38 | B40: E523 | C40: LENI | D40: 716 | E40: 72080 | U40: 32540 | V40: 104620 | W40: 0.3110303957 | Z40: 9260 | AA40: 4100 | AE40: 11800 | BC40: 2500 | BE40: 2480 | BH40: 2400 | BI40: 32540 | BJ40: 0.8072780024 | BK40: 0.5561900059 | BL40: 0.2510879965 | BN40: 2019-07-30T10:13:43
A41: 39 | B41: E555 | C41: LETOJANNI | D41: 2802 | E41: 1063120 | U41: 97020 | V41: 1160140 | W41: 0.08362783802 | Z41: 12150 | AD41: 5400 | AE41: 37840 | AH41: 360 | AN41: 1700 | AP41: 380 | AT41: 1020 | BA41: 80 | BB41: 1490 | BC41: 2020 | BD41: 510 | BF41: 18750 | BH41: 15320 | BI41: 97020 | BJ41: 2.287513654 | BK41: 2.096213833 | BL41: 0.1912998214 | BN41: 2019-09-30T16:46:46
A42: 40 | B42: E571 | C42: LIBRIZZI | D42: 1610 | E42: 73960 | U42: 162076 | V42: 236036 | W42: 0.6866579674 | X42: 39046 | Z42: 19880 | AA42: 20700 | AE42: 21470 | AP42: 57780 | AQ42: 800 | BH42: 2400 | BI42: 162076 | BJ42: 0.8099790673 | BK42: 0.2538004873 | BL42: 0.55617858 | BN42: 2019-07-16T10:26:10
A43: 41 | B43: E594 | C43: LIMINA | D43: 733 | E43: 24920 | U43: 54960 | V43: 79880 | W43: 0.6880320481 | AA43: 8860 | AE43: 8890 | AN43: 5530 | AP43: 30540 | AQ43: 1140 | BI43: 54960 | BJ43: 0.6020818102 | BK43: 0.1878302292 | BL43: 0.414251581 | BN43: 2019-08-27T08:28:44
A44: 42 | B44: E606 | C44: LIPARI | D44: 12815 | E44: 3107080 | U44: 891950 | V44: 3999030 | W44: 0.2230415876 | Z44: 244260 | AA44: 78200 | AE44: 178920 | AH44: 6080 | AT44: 23020 | BA44: 10700 | BB44: 33320 | BC44: 109270 | BE44: 71660 | BF44: 98800 | BH44: 37720 | BI44: 891950 | BJ44: 1.72408025 | BK44: 1.339538654 | BL44: 0.384541596 | BN44: 2019-09-16T10:02:16
A45: 43 | B45: E674 | C45: LONGI | D45: 1381 | E45: 19260 | U45: 175350 | V45: 194610 | W45: 0.9010328349 | AA45: 17390 | AE45: 34660 | AN45: 21280 | AP45: 68900 | AQ45: 4890 | AX45: 140 | BB45: 3520 | BE45: 19190 | BH45: 5380 | BI45: 175350 | BJ45: 0.7785614556 | BK45: 0.07705202012 | BL45: 0.7015094355 | BN45: 2019-10-01T08:22:00
A46: 44 | B46: E855 | C46: MALFA | D46: 1007 | E46: 85000 | U46: 122940 | V46: 207940 | W46: 0.5912282389 | Z46: 21940 | AA46: 11920 | AE46: 50740 | AP46: 22160 | BA46: 1880 | BB46: 2560 | BC46: 4940 | BE46: 6800 | BI46: 122940 | BJ46: 1.140853802 | BK46: 0.4663488179 | BL46: 0.6745049844 | BN46: 2019-08-01T08:50:39
A47: 45 | B47: E869 | C47: MALVAGNA | D47: 662 | E47: 36168 | U47: 33280 | V47: 69448 | W47: 0.4792074646 | AA47: 3120 | AD47: 1920 | AE47: 4070 | AN47: 4160 | AP47: 19000 | BH47: 1010 | BI47: 33280 | BJ47: 0.579593063 | BK47: 0.3018477408 | BL47: 0.2777453222 | BN47: 2019-11-21T16:40:25
A48: 46 | B48: E876 | C48: MANDANICI | D48: 567 | E48: 55640 | U48: 15610 | V48: 71250 | W48: 0.2190877193 | AD48: 3070 | AE48: 4250 | AN48: 610 | AP48: 4600 | AT48: 90 | BB48: 30 | BC48: 410 | BH48: 2550 | BI48: 15610 | BJ48: 0.694261744 | BK48: 0.5421575219 | BL48: 0.1521042221 | BN48: 2019-10-04T15:09:24
A49: 47 | B49: F066 | C49: MAZZARRA' S. ANDREA | D49: 1475 | E49: 48400 | U49: 127638 | V49: 176038 | W49: 0.7250593622 | Z49: 16240 | AA49: 17380 | AE49: 14900 | AP49: 76348 | BB49: 1590 | BH49: 1180 | BI49: 127638 | BJ49: 0.6593800918 | BK49: 0.181290383 | BL49: 0.4780897088 | BN49: 2019-07-25T11:34:53
A50: 48 | B50: F147 | C50: MERI' | D50: 2354 | E50: 185430 | U50: 103020 | V50: 288450 | W50: 0.357150286 | AA50: 23120 | AE50: 27660 | AN50: 33600 | AQ50: 2980 | BA50: 80 | BB50: 570 | BG50: 13520 | BH50: 1490 | BI50: 103020 | BJ50: 0.676995076 | BK50: 0.435206091 | BL50: 0.241788985 | BN50: 2019-10-21T11:38:32
A51: 49 | B51: F158 | C51: MESSINA | D51: 230282 | E51: 44327045 | L51: 1380 | U51: 11419123 | V51: 55746168 | W51: 0.2048413982 | X51: 512000 | Y51: 269 | Z51: 1777428 | AA51: 543176 | AC51: 14244 | AE51: 1124394 | AH51: 4360 | AM51: 105140 | AN51: 1054484 | AP51: 2131475 | AQ51: 193196 | AS51: 525 | AT51: 102401 | AU51: 10252 | AV51: 220 | AX51: 7594 | AY51: 2402 | AZ51: 307 | BA51: 46721 | BB51: 150943 | BC51: 990131 | BE51: 63880 | BF51: 1359712 | BH51: 1223869 | BI51: 11419123 | BJ51: 1.337446602 | BK51: 1.06348217 | BL51: 0.2739644321 | BN51: 2019-08-06T08:34:34
A52: 50 | B52: F206 | C52: MILAZZO | D52: 30862 | E52: 6430040 | R52: 13580 | U52: 1239090 | V52: 7682710 | W52: 0.1612829327 | Z52: 126330 | AA52: 217020 | AE52: 155320 | AN52: 161360 | AP52: 373980 | AT52: 3060 | AX52: 460 | BA52: 420 | BC52: 8390 | BF52: 161350 | BH52: 31400 | BI52: 1239090 | BJ52: 1.375345461 | BK52: 1.151094643 | BL52: 0.2218197494 | BN52: 2019-07-17T10:13:59
A53: 51 | B53: F210 | C53: MILITELLO ROSMARINO | D53: 1239 | E53: 133660 | S53: 1296 | U53: 50184 | V53: 185140 | W53: 0.2710597386 | Z53: 4840 | AA53: 6430 | AE53: 11830 | AN53: 1940 | AP53: 23400 | AT53: 690 | BA53: 190 | BH53: 864 | BI53: 50184 | BJ53: 0.8255632996 | BK53: 0.5960072951 | BL53: 0.2237769722 | BN53: 2019-08-01T08:53:57
A54: 52 | B54: F242 | C54: MIRTO | D54: 937 | E54: 88260 | U54: 76470 | V54: 164730 | W54: 0.4642141686 | Z54: 8520 | AA54: 7310 | AE54: 16740 | AN54: 3040 | AP54: 36570 | BH54: 4290 | BI54: 76470 | BJ54: 0.9713025584 | BK54: 0.5204101488 | BL54: 0.4508924097 | BN54: 2019-07-17T10:17:17
A55: 53 | B55: F251 | C55: MISTRETTA | D55: 4559 | E55: 466080 | U55: 320560 | V55: 786640 | W55: 0.4075053392 | Z55: 26160 | AA55: 31530 | AE55: 67510 | AN55: 35390 | AP55: 137470 | AU55: 150 | BB55: 5660 | BH55: 16690 | BI55: 320560 | BJ55: 0.9532961939 | BK55: 0.5648229051 | BL55: 0.3884732888 | BN55: 2019-07-30T10:14:27
A56: 54 | B56: F277 | C56: MOJO ALCANTARA | D56: 696 | E56: 73588 | U56: 34170 | V56: 107758 | W56: 0.3170994265 | AA56: 3460 | AD56: 3230 | AE56: 6070 | AN56: 4420 | AP56: 16310 | AT56: 80 | BA56: 100 | BH56: 500 | BI56: 34170 | BJ56: 0.8553851527 | BK56: 0.5841430114 | BL56: 0.2712421414 | BN56: 2019-11-06T12:59:48
A57: 55 | B57: F359 | C57: MONFORTE S. GIORGIO | D57: 2636 | E57: 327000 | R57: 7260 | U57: 178690 | V57: 512950 | W57: 0.3483575397 | X57: 76260 | Y57: 30 | AA57: 28740 | AE57: 30070 | AN57: 37880 | AT57: 920 | BA57: 1560 | BB57: 870 | BH57: 2360 | BI57: 178690 | BJ57: 1.075105425 | BK57: 0.6853679189 | BL57: 0.3745210808 | BN57: 2019-07-23T10:09:19
A58: 56 | B58: F368 | C58: MONGIUFFI MELIA | D58: 567 | E58: 54850 | U58: 14130 | V58: 68980 | W58: 0.2048419832 | Z58: 70 | AD58: 3190 | AE58: 5190 | AN58: 2500 | AP58: 1940 | AT58: 70 | BB58: 150 | BC58: 480 | BH58: 540 | BI58: 14130 | BJ58: 0.6721428084 | BK58: 0.5344597426 | BL58: 0.1376830659 | BN58: 2019-07-23T10:41:10
A59: 57 | B59: F395 | C59: MONTAGNAREALE | D59: 1496 | E59: 158640 | U59: 61320 | V59: 219960 | W59: 0.2787779596 | Z59: 3980 | AA59: 15540 | AE59: 18510 | AN59: 11010 | BB59: 5140 | BC59: 5750 | BH59: 1390 | BI59: 61320 | BJ59: 0.8123319644 | BK59: 0.5858717168 | BL59: 0.2264602476 | BN59: 2019-10-02T09:15:33
A60: 58 | B60: F400 | C60: MONTALBANO ELICONA | D60: 2128 | E60: 110240 | U60: 163000 | V60: 273240 | W60: 0.5965451618 | Z60: 2660 | AA60: 22260 | AE60: 21730 | AN60: 14010 | AP60: 94400 | AT60: 1150 | BA60: 1730 | BB60: 500 | BH60: 4560 | BI60: 163000 | BJ60: 0.7094047273 | BK60: 0.2862127695 | BL60: 0.4231919578 | BN60: 2019-08-01T08:56:44
A61: 59 | B61: F772 | C61: MOTTA CAMASTRA | D61: 817 | E61: 87178 | U61: 32760 | V61: 119938 | W61: 0.2731411229 | AE61: 10750 | AN61: 9880 | AP61: 8300 | BB61: 80 | BH61: 3750 | BI61: 32760 | BJ61: 0.8110659535 | BK61: 0.5895304882 | BL61: 0.2215354653 | BN61: 2019-10-14T09:31:16
A62: 60 | B62: F773 | C62: MOTTA D'AFFERMO | D62: 680 | E62: 33680 | U62: 56944 | V62: 90624 | W62: 0.6283545198 | Y62: 4 | AA62: 6020 | AE62: 5480 | AN62: 6100 | AP62: 37180 | AX62: 10 | AZ62: 10 | BH62: 2140 | BI62: 56944 | BJ62: 0.7363015925 | BK62: 0.2736431589 | BL62: 0.4626584335 | BN62: 2019-10-02T09:13:45
A63: 61 | B63: F848 | C63: NASO | D63: 3605 | E63: 156800 | U63: 333946 | V63: 490746 | W63: 0.6804864431 | X63: 31236 | AA63: 46780 | AE63: 49450 | AN63: 50300 | AP63: 143160 | AT63: 1120 | BE63: 4300 | BH63: 7600 | BI63: 333946 | BJ63: 0.7520953862 | BK63: 0.240304672 | BL63: 0.5117907142 | BN63: 2019-09-30T16:52:08
A64: 62 | B64: F901 | C64: NIZZA DI SICILIA | D64: 3624 | E64: 130990 | U64: 341265 | V64: 472255 | W64: 0.7226286646 | Z64: 3610 | AD64: 42690 | AE64: 43640 | AN64: 47330 | AP64: 186640 | AX64: 205 | BF64: 3440 | BH64: 13710 | BI64: 341265 | BJ64: 0.7199623748 | BK64: 0.1996969253 | BL64: 0.5202654495 | BN64: 2019-10-17T15:31:57
A65: 63 | B65: F951 | C65: NOVARA DI SICILIA | D65: 1255 | E65: 91740 | U65: 110510 | V65: 202250 | W65: 0.5464029666 | Z65: 8330 | AA65: 12100 | AE65: 21180 | AN65: 2420 | AP65: 51920 | BB65: 3580 | BC65: 2850 | BH65: 8130 | BI65: 110510 | BJ65: 0.8903612071 | BK65: 0.4038652022 | BL65: 0.4864960049 | BN65: 2019-10-14T09:49:21
A66: 64 | B66: G036 | C66: OLIVERI | D66: 2115 | E66: 181340 | U66: 268230 | V66: 449570 | W66: 0.5966367863 | X66: 10230 | Z66: 42170 | AA66: 38490 | AB66: 13900 | AE66: 38940 | AP66: 107680 | BB66: 4940 | BC66: 2010 | BH66: 9870 | BI66: 268230 | BJ66: 1.174379269 | BK66: 0.4737013962 | BL66: 0.7006778731 | BN66: 2019-10-21T12:52:40
A67: 65 | B67: G209 | C67: PACE DEL MELA | D67: 6230 | E67: 414220 | S67: 2560 | U67: 750535 | V67: =IF(E67=0,"",SUM(U67,E67,R67,S67,T67)) -> 1167315 | W67: =IFERROR(IF(E67<>0,IF(U67=0,0,(U67/V67*100)/100),IF(U67=0,"","")),0) -> 0.6429584131 | AA67: 640 | AD67: 99200 | AE67: 65700 | AN67: 132360 | AP67: 396500 | AQ67: 7470 | AT67: 2320 | AU67: 865 | BA67: 5680 | BB67: 2100 | BC67: 2060 | BE67: 940 | BF67: 34700 | BI67: 750535 | BJ67: =IF(SUM(E67)=0,"",V67/D67/181) -> 1.035193281 | BK67: 0.3673368037 | BL67: =IF(SUM(Y67:BH67)=0,"",BI67/D67/181) -> 0.6655862295 | BN67: 2019-10-16T14:30:57
A68: 66 | B68: G234 | C68: PAGLIARA | D68: 1123 | E68: 218160 | U68: =IF(BI68=0,"",BI68) -> 1560 | V68: 219720 | W68: 0.007099945385 | AE68: 290 | AH68: 30 | AN68: 170 | AT68: 80 | BC68: 160 | BH68: 830 | BI68: =IF(SUM(X68:BH68)=0,"",SUM(X68:BH68)) -> 1560 | BJ68: 1.080964071 | BK68: =IF(E68=0,"",E68/D68/181) -> 1.073289285 | BL68: 0.007674785869 | BN68: 2019-07-24T12:51:09
A69: 67 | B69: G377 | C69: PATTI | D69: 13121 | E69: 980960 | U69: 1702470 | V69: 2683430 | W69: 0.634438014 | Z69: 134970 | AB69: 12300 | AD69: 230210 | AE69: 193410 | AN69: 226510 | AP69: 817630 | BB69: 15790 | BC69: 23190 | BF69: 26100 | BH69: 22360 | BI69: 1702470 | BJ69: 1.129912363 | BK69: 0.4130530073 | BL69: 0.7168593554 | BN69: 2020-02-24T10:58:53
A70: 68 | B70: G522 | C70: PETTINEO | D70: 1257 | E70: 50080 | U70: 106860 | V70: 156940 | W70: 0.6808971581 | Y70: 10 | Z70: 12080 | AA70: 14360 | AE70: 15480 | AP70: 62760 | AX70: 10 | AZ70: 20 | BH70: 2140 | BI70: 106860 | BJ70: 0.6897946088 | BK70: 0.2201154199 | BL70: 0.4696791888 | BN70: 2019-09-30T16:55:03
A71: 69 | B71: G699 | C71: PIRAINO | D71: 3875 | E71: 398880 | U71: 276990 | V71: 675870 | W71: 0.4098273337 | Z71: 21320 | AA71: 45980 | AE71: 54940 | AN71: 32290 | AP71: 84120 | AQ71: 2440 | AT71: 4300 | AU71: 420 | AX71: 150 | AZ71: 40 | BA71: 5280 | BB71: 1350 | BH71: 24360 | BI71: 276990 | BJ71: 0.9636357156 | BK71: 0.5687114596 | BL71: 0.3949242559 | BN71: 2019-10-01T08:44:40
A72: 70 | B72: H151 | C72: RACCUJA | D72: 934 | E72: 67640 | U72: 60480 | V72: 128120 | W72: 0.4720574461 | Z72: 6200 | AA72: 6120 | AE72: 12640 | AP72: 34740 | BB72: 780 | BI72: 60480 | BJ72: 0.757864351 | BK72: 0.400108841 | BL72: 0.3577555101 | BN72: 2019-10-09T08:38:28
A73: 71 | B73: H228 | C73: REITANO | D73: 760 | E73: 63200 | U73: 127020 | V73: 190220 | W73: 0.667753128 | Z73: 11860 | AA73: 2870 | AD73: 35460 | AE73: 7380 | AP73: 52920 | AT73: 1170 | BA73: 1360 | BH73: 14000 | BI73: 127020 | BJ73: 1.382814772 | BK73: 0.4594358825 | BL73: 0.9233788892 | BN73: 2019-10-10T15:42:40
A74: 72 | B74: H405 | C74: ROCCAFIORITA | D74: 189 | E74: 4850 | U74: 8570 | V74: 13420 | W74: 0.6385991058 | AA74: 2360 | AE74: 1280 | AN74: 1730 | AP74: 2600 | AQ74: 600 | BI74: 8570 | BJ74: 0.3922944254 | BK74: 0.1417755561 | BL74: 0.2505188693 | BN74: 2019-12-12T10:30:35
A75: 73 | B75: H418 | C75: ROCCALUMERA | D75: 4124 | E75: 202420 | U75: 484400 | V75: 686820 | W75: 0.7052794036 | Z75: 18790 | AD75: 70760 | AE75: 63750 | AM75: 5800 | AN75: 67330 | AP75: 213030 | AQ75: 350 | AT75: 1480 | AV75: 260 | BA75: 1280 | BB75: 800 | BF75: 2820 | BH75: 37950 | BI75: 484400 | BJ75: 0.920122608 | BK75: 0.2711790838 | BL75: 0.6489435242 | BN75: 2019-10-01T08:28:04
A76: 74 | B76: H380 | C76: ROCCAVALDINA | D76: 1052 | E76: 68020 | U76: 103320 | V76: 171340 | W76: 0.603011556 | Z76: 80 | AA76: 10670 | AE76: 10180 | AN76: 10000 | AP76: 70190 | BH76: 2200 | BI76: 103320 | BJ76: 0.8998382455 | BK76: 0.357225385 | BL76: 0.5426128605 | BN76: 2019-07-17T07:57:08
A77: 75 | B77: H455 | C77: ROCCELLA VALDEMONE | D77: 600 | E77: 60058 | U77: 22280 | V77: 82338 | W77: 0.2705919503 | AD77: 5670 | AE77: 6850 | AN77: 3820 | AP77: 4650 | BA77: 20 | BH77: 1270 | BI77: 22280 | BJ77: 0.7581767956 | BK77: 0.5530202578 | BL77: 0.2051565378 | BN77: 2019-10-14T11:10:24
A78: 76 | B78: H479 | C78: RODI' MILICI | D78: 1994 | E78: 81860 | U78: 222082 | V78: 303942 | W78: 0.7306722993 | X78: 42780 | Z78: 5580 | AA78: 27880 | AE78: 30040 | AN78: 25270 | AP78: 77460 | AT78: 70 | AX78: 70 | BA78: 4390 | BB78: 4850 | BC78: 2440 | BD78: 2 | BH78: 1250 | BI78: 222082 | BJ78: 0.8421452202 | BK78: 0.2268130358 | BL78: 0.6153321844 | BN78: 2019-07-16T10:28:48
A79: 77 | B79: H519 | C79: ROMETTA | D79: 6546 | E79: 146220 | U79: 1031349 | V79: 1177569 | W79: 0.8758289323 | X79: 280200 | Z79: 30580 | AA79: 98010 | AE79: 102930 | AN79: 153340 | AP79: 303140 | AQ79: 7310 | AT79: 1540 | AU79: 659 | AW79: 60 | AZ79: 100 | BF79: 21440 | BH79: 32040 | BI79: 1031349 | BJ79: 0.99387505 | BK79: 0.1234105261 | BL79: 0.8704645239 | BN79: 2019-07-10T11:52:33
A80: 78 | B80: I184 | C80: S. DOMENICA VITTORIA | D80: 901 | E80: 115198 | U80: 43810 | V80: 159008 | W80: 0.2755207285 | AD80: 11070 | AE80: 11570 | AN80: 8870 | AP80: 10590 | BA80: 140 | BB80: 150 | BH80: 1420 | BI80: 43810 | BJ80: 0.975024681 | BK80: 0.7063851706 | BL80: 0.2686395104 | BN80: 2019-08-14T11:03:17
A81: 79 | B81: I370 | C81: S. STEF. DI CAMASTRA | D81: 4586 | E81: 352660 | U81: 667712 | V81: 1020372 | W81: 0.6543809513 | Y81: 82 | Z81: 78360 | AA81: 28320 | AD81: 79960 | AE81: 69380 | AM81: 47400 | AN81: 13460 | AP81: 278200 | AQ81: 960 | AT81: 1100 | AU81: 560 | BA81: 1290 | BF81: 34400 | BH81: 34240 | BI81: 667712 | BJ81: 1.229266107 | BK81: 0.4248577824 | BL81: 0.8044083242 | BN81: 2020-02-24T11:34:01
A82: 80 | B82: I199 | C82: S. AGATA DI MILITELLO | D82: 12312 | E82: 1366340 | U82: 1159432 | V82: 2525772 | W82: 0.4590406418 | Z82: 39140 | AA82: 96180 | AB82: 10140 | AE82: 195260 | AN82: 176130 | AP82: 472920 | AQ82: 4492 | AT82: 11820 | AU82: 1750 | BA82: 10720 | BB82: 8280 | BF82: 28230 | BH82: 104370 | BI82: 1159432 | BJ82: 1.133409798 | BK82: 0.613128637 | BL82: 0.5202811613 | BN82: 2019-07-23T10:14:07
A83: 81 | B83: I220 | C83: SANTA LUCIA DEL MELA | D83: 4544 | E83: 461200 | R83: 7400 | U83: 363736 | V83: 832336 | W83: 0.437006209 | X83: 198396 | Z83: 29310 | AA83: 62950 | AE83: 41280 | AN83: 22480 | AT83: 430 | AX83: 110 | BA83: 610 | BB83: 3670 | BH83: 4500 | BI83: 363736 | BJ83: 1.012002957 | BK83: 0.5607540269 | BL83: 0.4422515758 | BN83: 2019-10-15T11:59:10
A84: 82 | B84: I311 | C84: S. TERESA DI RIVA | D84: 9445 | E84: 365700 | U84: 1270980 | V84: 1636680 | W84: 0.7765598651 | Y84: 560 | Z84: 97240 | AD84: 163700 | AE84: 104280 | AH84: 960 | AM84: 6980 | AN84: 145280 | AP84: 614510 | AQ84: 9240 | AT84: 1860 | AU84: 570 | AX84: 200 | BA84: 2820 | BB84: 2760 | BC84: 3960 | BD84: 5340 | BE84: 3960 | BF84: 51040 | BH84: 55720 | BI84: 1270980 | BJ84: 0.9573775478 | BK84: 0.2139165684 | BL84: 0.7434609794 | BN84: 2019-10-04T15:09:53
A85: 83 | B85: H842 | C85: S. FILIPPO DEL MELA | D85: 6918 | E85: 899640 | U85: 522524 | V85: 1422164 | W85: 0.3674147285 | Y85: 30 | Z85: 39730 | AA85: 98410 | AE85: 58720 | AF85: 295 | AI85: 79 | AM85: 180580 | AN85: 116620 | AQ85: 3040 | AS85: 4150 | AT85: 1140 | AU85: 380 | BA85: 1830 | BB85: 500 | BG85: 14900 | BH85: 2120 | BI85: 522524 | BJ85: 1.135770406 | BK85: 0.7184716306 | BL85: 0.4172987754 | BN85: 2020-03-18T11:49:13
A86: 84 | B86: H850 | C86: SAN FRATELLO | D86: 3453 | E86: 258440 | U86: 175020 | V86: 433460 | W86: 0.4037742814 | Z86: 26400 | AA86: 20170 | AE86: 29380 | AP86: 93320 | BB86: 2970 | BH86: 2780 | BI86: 175020 | BJ86: 0.6935437677 | BK86: 0.4135086313 | BL86: 0.2800351364 | BN86: 2019-10-04T09:41:19
A87: 85 | B87: H982 | C87: SAN MARCO D'ALUNZIO | D87: 1858 | E87: 87820 | K87: 4440 | O87: 7320 | U87: 187195 | V87: 275015 | W87: 0.6806719633 | Z87: 19100 | AA87: 23180 | AB87: 650 | AE87: 30350 | AN87: 14640 | AP87: 73890 | AQ87: 2770 | AU87: 325 | BA87: 4460 | BB87: 4750 | BE87: 8480 | BH87: 4600 | BI87: 187195 | BJ87: 0.8177717382 | BK87: 0.2611374436 | BL87: 0.5566342946 | BN87: 2019-08-08T10:12:14
A88: 86 | B88: I084 | C88: SAN PIER NICETO | D88: 2711 | E88: 225660 | R88: 18200 | U88: 337133 | V88: 580993 | W88: 0.5802703303 | X88: 248004 | AA88: 23700 | AE88: 24860 | AK88: 220 | AN88: 24720 | AQ88: 7530 | AT88: 590 | AU88: 859 | BA88: 1400 | BB88: 1790 | BH88: 3460 | BI88: 337133 | BJ88: 1.184030276 | BK88: 0.4598820847 | BL88: 0.6870576391 | BN88: 2019-07-23T10:17:54
A89: 87 | B89: I086 | C89: SAN PIERO PATTI | D89: 2722 | E89: 225600 | U89: 236750 | V89: 462350 | W89: 0.5120579647 | X89: 84930 | AA89: 25800 | AE89: 35440 | AN89: 30880 | AP89: 57780 | BC89: 1920 | BI89: 236750 | BJ89: 0.9384349337 | BK89: 0.4579018515 | BL89: 0.4805330822 | BN89: 2019-07-16T10:33:50
A90: 88 | B90: I147 | C90: S. SALVAT. DI FITALIA | D90: 1219 | E90: 85940 | K90: 13780 | U90: 53570 | V90: 139510 | W90: 0.383986811 | AA90: 9470 | AE90: 14390 | AN90: 10150 | AP90: 19560 | BI90: 53570 | BJ90: 0.6322998201 | BK90: 0.3895050286 | BL90: 0.2427947915 | BN90: 2019-07-17T09:19:41
A91: 89 | B91: I328 | C91: SAN TEODORO | D91: 1326 | E91: 123140 | U91: 56110 | V91: 179250 | W91: 0.3130264993 | AA91: 10140 | AC91: 9470 | AE91: 16320 | AN91: 19380 | AQ91: 800 | BI91: 56110 | BJ91: 0.7468563286 | BK91: 0.5130705066 | BL91: 0.233785822 | BN91: 2019-07-18T08:04:19
A92: 90 | B92: I283 | C92: S. ANGELO DI BROLO | D92: 2917 | E92: 410460 | U92: 144710 | V92: 555170 | W92: 0.2606588973 | Z92: 7650 | AA92: 9980 | AE92: 30020 | AN92: 22520 | AP92: 49530 | BB92: 1520 | BC92: 11850 | BH92: 11640 | BI92: 144710 | BJ92: 1.051504137 | BK92: 0.7774202285 | BL92: 0.274083909 | BN92: 2019-08-01T08:59:27
A93: 91 | B93: I215 | C93: S. ALESSIO SICULO | D93: 1510 | E93: 286010 | U93: 82420 | V93: 368430 | W93: 0.2237059957 | Z93: 740 | AD93: 17940 | AE93: 19710 | AN93: 21010 | AP93: 18870 | AT93: 320 | AW93: 250 | BA93: 40 | BC93: 620 | BF93: 660 | BH93: 2260 | BI93: 82420 | BJ93: 1.34802971 | BK93: 1.046467381 | BL93: 0.3015623285 | BN93: 2019-11-05T09:42:51
A94: 92 | B94: I254 | C94: SANTA MARINA SALINA | D94: 885 | E94: 110820 | U94: 68760 | V94: 179580 | W94: 0.382893418 | Z94: 14380 | AA94: 6500 | AE94: 26240 | AN94: 5840 | BA94: 900 | BB94: 2280 | BC94: 5020 | BE94: 4580 | BH94: 3020 | BI94: 68760 | BJ94: 1.121078753 | BK94: 0.6918250773 | BL94: 0.4292536754 | BN94: 2019-08-06T09:17:48
A95: 93 | B95: I420 | C95: SAPONARA | D95: 3829 | E95: 277840 | U95: 328945 | V95: 606785 | W95: 0.5421112915 | Z95: 70730 | AA95: 45180 | AE95: 39560 | AP95: 116040 | AQ95: 4520 | AT95: 1120 | AU95: 535 | AX95: 100 | BA95: 1110 | BC95: 11490 | BF95: 36740 | BH95: 1820 | BI95: 328945 | BJ95: 0.8755297244 | BK95: 0.4008951748 | BL95: 0.4746345496 | BN95: 2019-10-17T11:11:42
A96: 94 | B96: I477 | C96: SAVOCA | D96: 1746 | E96: 137050 | U96: 97720 | V96: 234770 | W96: 0.4162371683 | AD96: 17930 | AE96: 19690 | AN96: 15180 | AP96: 40580 | AT96: 160 | BB96: 460 | BC96: 760 | BF96: 810 | BH96: 2150 | BI96: 97720 | BJ96: 0.7428819148 | BK96: 0.4336668502 | BL96: 0.3092150646 | BN96: 2019-07-17T07:54:40
A97: 95 | B97: I492 | C97: SCALETTA ZANCLEA | D97: 1956 | E97: 184940 | U97: 90920 | V97: 275860 | W97: 0.3295874719 | Z97: 1630 | AD97: 18540 | AE97: 18170 | AN97: 23700 | AP97: 22920 | AT97: 120 | BA97: 190 | BB97: 980 | BC97: 3310 | BH97: 1360 | BI97: 90920 | BJ97: 0.7791862974 | BK97: 0.5223762555 | BL97: 0.2568100419 | BN97: 2019-07-24T08:22:01
A98: 96 | B98: I747 | C98: SINAGRA | D98: 2598 | E98: 129880 | U98: 281505 | V98: 411385 | W98: 0.6842860095 | Z98: 35880 | AA98: 23760 | AB98: 7820 | AE98: 49020 | AP98: 133910 | AQ98: 5120 | AX98: 15 | BB98: 15940 | BE98: 10040 | BI98: 281505 | BJ98: 0.8748442278 | BK98: 0.2762005623 | BL98: 0.5986436655 | BN98: 2019-07-17T10:19:43
A99: 97 | B99: I881 | C99: SPADAFORA | D99: 4862 | E99: 498328 | S99: 1808 | U99: 348472 | V99: =IF(E99=0,"",SUM(U99,E99,R99,S99,T99)) -> 848608 | W99: =IFERROR(IF(E99<>0,IF(U99=0,0,(U99/V99*100)/100),IF(U99=0,"","")),0) -> 0.4106395415 | Z99: 7350 | AA99: 60430 | AE99: 59350 | AN99: 106920 | AP99: 97080 | AQ99: 3390 | BC99: 4460 | BH99: 9492 | BI99: 348472 | BJ99: =IF(SUM(E99)=0,"",V99/D99/181) -> 0.9643031651 | BK99: 0.5662676615 | BL99: =IF(SUM(Y99:BH99)=0,"",BI99/D99/181) -> 0.3959810096 | BN99: 2019-09-23T13:57:35
A100: 98 | B100: L042 | C100: TAORMINA | D100: 10815 | E100: 1543320 | U100: 2057898 | V100: 3601218 | W100: 0.5714449944 | Z100: 97878 | AD100: 255700 | AE100: 436780 | AN100: 269540 | AP100: 926240 | AT100: 3000 | BB100: 3860 | BC100: 18880 | BF100: 21260 | BH100: 24760 | BI100: 2057898 | BJ100: 1.839688585 | BK100: 0.7884077517 | BL100: 1.051280833 | BN100: 2019-10-21T12:08:43
A101: 99 | B101: M210 | C101: TERME VIGLIATORE | D101: 7364 | E101: 360840 | R101: 36840 | U101: 875850 | V101: 1273530 | W101: 0.6877340934 | X101: 77980 | Z101: 82170 | AA101: 111610 | AE101: 80450 | AK101: 10 | AN101: 57690 | AP101: 405790 | AT101: 5080 | AX101: 170 | BA101: 4800 | BB101: 1400 | BC101: 13580 | BF101: 29000 | BH101: 6120 | BI101: 875850 | BJ101: 0.9554694932 | BK101: 0.2707212331 | BL101: 0.6571089457 | BN101: 2019-07-11T11:24:23
A102: 100 | B102: L271 | C102: TORREGROTTA | D102: 7356 | E102: 401080 | R102: 17440 | S102: 1325 | U102: 1052647 | V102: 1472492 | W102: 0.7148745121 | X102: 301993 | AA102: 88600 | AE102: 96220 | AN102: 130120 | AP102: 386960 | AQ102: 16010 | AT102: 2120 | AU102: 1349 | BA102: 5830 | BB102: 4120 | BF102: 1520 | BH102: 17805 | BI102: 1052647 | BJ102: 1.105942757 | BK102: 0.3012386626 | BL102: 0.7906102884 | BN102: 2019-08-06T09:09:59
A103: 101 | B103: M286 | C103: TORRENOVA | D103: 4486 | E103: 246260 | U103: 555960 | V103: 802220 | W103: 0.6930268505 | Z103: 60700 | AA103: 82760 | AE103: 72120 | AN103: 80270 | AP103: 240650 | BF103: 5040 | BH103: 14420 | BI103: 555960 | BJ103: 0.9879970344 | BK103: 0.3032885613 | BL103: 0.684708473 | BN103: 2019-10-15T11:57:07
A104: 102 | B104: L308 | C104: TORTORICI | D104: 6064 | E104: 318940 | U104: 277090 | V104: 596030 | W104: 0.4648927067 | Z104: 2160 | AA104: 47800 | AE104: 76990 | AN104: 47870 | AP104: 99080 | AQ104: 1000 | AX104: 100 | AZ104: 70 | BB104: 640 | BH104: 1380 | BI104: 277090 | BJ104: 0.5430381638 | BK104: 0.290583682 | BL104: 0.2524544818 | BN104: 2019-10-09T15:04:39
A105: 103 | B105: L431 | C105: TRIPI | D105: 825 | E105: 56020 | U105: 83578 | V105: 139598 | W105: 0.5987048525 | Z105: 1890 | AA105: 7790 | AE105: 5670 | AN105: 5030 | AP105: 60168 | AQ105: 610 | BH105: 2420 | BI105: 83578 | BJ105: 0.9348602043 | BK105: 0.3751548636 | BL105: 0.5597053407 | BN105: 2019-10-17T11:12:00
A106: 104 | B106: L478 | C106: TUSA | D106: 2720 | E106: 143140 | U106: 282230 | V106: 425370 | W106: 0.6634929591 | AA106: 22300 | AE106: 47760 | AN106: 34210 | AP106: 153360 | BH106: 24600 | BI106: 282230 | BJ106: 0.8640112122 | BK106: 0.2907458564 | BL106: 0.5732653559 | BN106: 2019-08-06T09:02:54
A107: 105 | B107: L482 | C107: UCRIA | D107: 985 | E107: 57800 | U107: 75373 | V107: 133173 | W107: 0.5659780887 | X107: 5913 | Z107: 680 | AA107: 8220 | AE107: 15520 | AN107: 6460 | AP107: 29940 | AQ107: 560 | BB107: 1380 | BC107: 1520 | BE107: 600 | BH107: 4580 | BI107: 75373 | BJ107: 0.746966935 | BK107: 0.3242000168 | BL107: 0.4227669181 | BN107: 2019-07-30T09:56:31
A108: 106 | B108: L561 | C108: VALDINA | D108: 1315 | E108: 62560 | U108: 150404 | V108: 212964 | W108: 0.7062414305 | Z108: 5140 | AA108: 19630 | AE108: 14720 | AN108: 19340 | AP108: 76790 | AQ108: 1440 | AU108: 184 | BG108: 7580 | BH108: 5580 | BI108: 150404 | BJ108: 0.8947503309 | BK108: 0.2628405773 | BL108: 0.6319097536 | BN108: 2019-10-03T12:29:01
A109: 107 | B109: L735 | C109: VENETICO | D109: 4019 | E109: 230320 | R109: 13140 | U109: 433540 | V109: 677000 | W109: 0.6403840473 | Z109: 11920 | AA109: 55600 | AE109: 37940 | AM109: 27870 | AN109: 67460 | AP109: 217890 | AT109: 600 | BA109: 580 | BB109: 740 | BC109: 1960 | BF109: 4740 | BH109: 6240 | BI109: 433540 | BJ109: 0.9306622273 | BK109: 0.3166176133 | BL109: 0.5959812438 | BN109: 2019-10-15T15:28:23
A110: 108 | B110: L950 | C110: VILLAFRANCA TIRRENA | D110: 8277 | E110: 317260 | U110: 926813 | V110: 1244073 | W110: 0.7449828105 | X110: 21858 | Z110: 51990 | AA110: 90493 | AE110: 99080 | AN110: 106670 | AP110: 447620 | AQ110: 27102 | AT110: 4100 | AU110: 3017 | AX110: 140 | BA110: 5180 | BB110: 1220 | BC110: 27640 | BF110: 16460 | BH110: 24243 | BI110: 926813 | BJ110: 0.8304133734 | BK110: 0.2117696846 | BL110: 0.6186436888 | BN110: 2019-07-11T11:34:40
C111: T O T A L I | D111: =SUM(D3:D110) -> 621739 | E111: =SUM(E3:E110) -> 85222009 | F111: 0 | G111: 0 | H111: 0 | I111: 0 | J111: 0 | K111: 18822 | L111: 1380 | M111: =SUM(M3:M110) -> 0 | N111: 0 | O111: 7320 | P111: =SUM(P3:P110) -> 0 | Q111: =SUM(Q3:Q110) -> 0 | R111: =SUM(R3:R110) -> 152640 | S111: =SUM(S3:S110) -> 6989 | T111: =SUM(T3:T110) -> 0 | U111: 46657851 | V111: =SUM(U111,E111) -> 131879860 | W111: =IF(BI111=0,"",(U111/V111*100)/100) -> 0.3537905712 | X111: =SUM(X3:X110) -> 2422044 | Y111: =SUM(Y3:Y110) -> 1132 | Z111: 4106403 | AA111: 3608869 | AB111: 55460 | AC111: 41462 | AD111: 1445160 | AE111: 6255775 | AF111: 368 | AG111: 540 | AH111: =SUM(AH3:AH110) -> 24560 | AI111: 79 | AJ111: 0 | AK111: 1130 | AL111: =SUM(AL3:AL110) -> 0 | AM111: =SUM(AM3:AM110) -> 555168 | AN111: 5389629 | AO111: 8183 | AP111: 14640363 | AQ111: 360490 | AR111: 0 | AS111: 5625 | AT111: 231301 | AU111: 24533 | AV111: 480 | AW111: 310 | AX111: 12969 | AY111: 5992 | AZ111: 1057 | BA111: 182251 | BB111: 403664 | BC111: 1392749 | BD111: 37621 | BE111: 266626 | BF111: =SUM(BF3:BF110) -> 2523933 | BG111: =SUM(BG3:BG110) -> 42760 | BH111: 2609165 | BI111: =SUM(BI3:BI110) -> 46657851

Sheet Riep. Dati RSU e RD 1 Sem. 2019
B3: CITTA' METROPOLITANA DI MESSINA
B4: DATI RIFIUTI SOLIDI URBANI E RACCOLTA DIFFERENZIATA
B5: PRIMO SEMESTRE ANNO 2019
A6: ='Dati Generali CER 1 Sem. 2019'!A2 -> 108 | B6: COMUNE | C6: QUANTITA' (KG) | D6: QUANTITA' (KG) | E6: PERCENTUALE | F6: RSU+RSA+RD | G6: RSU+RSA | H6: R.D. | I6: ='Dati Generali CER 1 Sem. 2019'!D2 -> ABITANTI al 30/11/2019
C7: R.S.U. (Cod.200301) | D7: RACCOLTA | E7: RACCOLTA | F7: R.T. (Kg.) | G7: 200301 (kg.) | H7: (Kg.)
C8: PRODOTTI | D8: DIFFERENZIATA | E8: DIFFERENZIATA | F8: Pro Capite/g | G8: RI Pro Capite/g | H8: Pro Capite/g
B9: CTRL + "x" per ordinare in % | D9: CTRL + "h" per Alfabetico
A10: 1 | B10: ='Dati Generali CER 1 Sem. 2019'!C3 -> ACQUEDOLCI | C10: =IF('Dati Generali CER 1 Sem. 2019'!E3="","",'Dati Generali CER 1 Sem. 2019'!E3) -> 205660 | D10: =IF(C10="","",'Dati Generali CER 1 Sem. 2019'!BI3) -> 513920 | E10: ='Dati Generali CER 1 Sem. 2019'!W3 -> 0.7141943912 | F10: =IF('Dati Generali CER 1 Sem. 2019'!BJ3="","",'Dati Generali CER 1 Sem. 2019'!BJ3) -> 0.715032394 | G10: =IF('Dati Generali CER 1 Sem. 2019'!BK3="","",'Dati Generali CER 1 Sem. 2019'!BK3) -> 0.2043602687 | H10: =IF('Dati Generali CER 1 Sem. 2019'!BL3="","",'Dati Generali CER 1 Sem. 2019'!BL3) -> 0.5106721253 | I10: ='Dati Generali CER 1 Sem. 2019'!D3 -> 5560 | J10: =IF('Dati Generali CER 1 Sem. 2019'!BN3="","",'Dati Generali CER 1 Sem. 2019'!BN3) -> 2019-07-16T09:58:34
A11: 2 | B11: ='Dati Generali CER 1 Sem. 2019'!C4 -> ALCARA LI FUSI | C11: =IF('Dati Generali CER 1 Sem. 2019'!E4="","",'Dati Generali CER 1 Sem. 2019'!E4) -> 63600 | D11: =IF(C11="","",'Dati Generali CER 1 Sem. 2019'!BI4) -> 147090 | E11: ='Dati Generali CER 1 Sem. 2019'!W4 -> 0.6981347003 | F11: =IF('Dati Generali CER 1 Sem. 2019'!BJ4="","",'Dati Generali CER 1 Sem. 2019'!BJ4) -> 0.6388765912 | G11: =IF('Dati Generali CER 1 Sem. 2019'!BK4="","",'Dati Generali CER 1 Sem. 2019'!BK4) -> 0.1928546737 | H11: =IF('Dati Generali CER 1 Sem. 2019'!BL4="","",'Dati Generali CER 1 Sem. 2019'!BL4) -> 0.4460219175 | I11: ='Dati Generali CER 1 Sem. 2019'!D4 -> 1822 | J11: =IF('Dati Generali CER 1 Sem. 2019'!BN4="","",'Dati Generali CER 1 Sem. 2019'!BN4) -> 2019-10-09T12:26:14
A12: 3 | B12: ='Dati Generali CER 1 Sem. 2019'!C5 -> ALI' | C12: =IF('Dati Generali CER 1 Sem. 2019'!E5="","",'Dati Generali CER 1 Sem. 2019'!E5) -> 31150 | D12: =IF(C12="","",'Dati Generali CER 1 Sem. 2019'!BI5) -> 72380 | E12: ='Dati Generali CER 1 Sem. 2019'!W5 -> 0.6991210277 | F12: =IF('Dati Generali CER 1 Sem. 2019'!BJ5="","",'Dati Generali CER 1 Sem. 2019'!BJ5) -> 0.7977530687 | G12: =IF('Dati Generali CER 1 Sem. 2019'!BK5="","",'Dati Generali CER 1 Sem. 2019'!BK5) -> 0.2400271235 | H12: =IF('Dati Generali CER 1 Sem. 2019'!BL5="","",'Dati Generali CER 1 Sem. 2019'!BL5) -> 0.5577259453 | I12: ='Dati Generali CER 1 Sem. 2019'!D5 -> 717 | J12: =IF('Dati Generali CER 1 Sem. 2019'!BN5="","",'Dati Generali CER 1 Sem. 2019'!BN5) -> 2019-10-09T12:28:42
A13: 4 | B13: ='Dati Generali CER 1 Sem. 2019'!C6 -> ALI' TERME | C13: =IF('Dati Generali CER 1 Sem. 2019'!E6="","",'Dati Generali CER 1 Sem. 2019'!E6) -> 138840 | D13: =IF(C13="","",'Dati Generali CER 1 Sem. 2019'!BI6) -> 281055 | E13: ='Dati Generali CER 1 Sem. 2019'!W6 -> 0.6693459079 | F13: =IF('Dati Generali CER 1 Sem. 2019'!BJ6="","",'Dati Generali CER 1 Sem. 2019'!BJ6) -> 0.9562497438 | G13: =IF('Dati Generali CER 1 Sem. 2019'!BK6="","",'Dati Generali CER 1 Sem. 2019'!BK6) -> 0.3161878909 | H13: =IF('Dati Generali CER 1 Sem. 2019'!BL6="","",'Dati Generali CER 1 Sem. 2019'!BL6) -> 0.6400618529 | I13: ='Dati Generali CER 1 Sem. 2019'!D6 -> 2426 | J13: =IF('Dati Generali CER 1 Sem. 2019'!BN6="","",'Dati Generali CER 1 Sem. 2019'!BN6) -> 2019-07-30T10:12:43
A14: 5 | B14: ='Dati Generali CER 1 Sem. 2019'!C7 -> ANTILLO | C14: =IF('Dati Generali CER 1 Sem. 2019'!E7="","",'Dati Generali CER 1 Sem. 2019'!E7) -> 20240 | D14: =IF(C14="","",'Dati Generali CER 1 Sem. 2019'!BI7) -> 51700 | E14: ='Dati Generali CER 1 Sem. 2019'!W7 -> 0.7186544343 | F14: =IF('Dati Generali CER 1 Sem. 2019'!BJ7="","",'Dati Generali CER 1 Sem. 2019'!BJ7) -> 0.4659537673 | G14: =IF('Dati Generali CER 1 Sem. 2019'!BK7="","",'Dati Generali CER 1 Sem. 2019'!BK7) -> 0.1310940263 | H14: =IF('Dati Generali CER 1 Sem. 2019'!BL7="","",'Dati Generali CER 1 Sem. 2019'!BL7) -> 0.3348597411 | I14: ='Dati Generali CER 1 Sem. 2019'!D7 -> 853 | J14: =IF('Dati Generali CER 1 Sem. 2019'!BN7="","",'Dati Generali CER 1 Sem. 2019'!BN7) -> 2019-11-26T13:05:43
A15: 6 | B15: ='Dati Generali CER 1 Sem. 2019'!C8 -> BARCELLONA P.G. | C15: =IF('Dati Generali CER 1 Sem. 2019'!E8="","",'Dati Generali CER 1 Sem. 2019'!E8) -> 5983700 | D15: =IF(C15="","",'Dati Generali CER 1 Sem. 2019'!BI8) -> 2585893 | E15: ='Dati Generali CER 1 Sem. 2019'!W8 -> 0.3017521369 | F15: =IF('Dati Generali CER 1 Sem. 2019'!BJ8="","",'Dati Generali CER 1 Sem. 2019'!BJ8) -> 1.150426866 | G15: =IF('Dati Generali CER 1 Sem. 2019'!BK8="","",'Dati Generali CER 1 Sem. 2019'!BK8) -> 0.803283101 | H15: =IF('Dati Generali CER 1 Sem. 2019'!BL8="","",'Dati Generali CER 1 Sem. 2019'!BL8) -> 0.3471437652 | I15: ='Dati Generali CER 1 Sem. 2019'!D8 -> 41155 | J15: =IF('Dati Generali CER 1 Sem. 2019'!BN8="","",'Dati Generali CER 1 Sem. 2019'!BN8) -> 2019-07-23T09:25:55
A16: 7 | B16: ='Dati Generali CER 1 Sem. 2019'!C9 -> BASICO' | C16: =IF('Dati Generali CER 1 Sem. 2019'!E9="","",'Dati Generali CER 1 Sem. 2019'!E9) -> 48080 | D16: =IF(C16="","",'Dati Generali CER 1 Sem. 2019'!BI9) -> 57008 | E16: ='Dati Generali CER 1 Sem. 2019'!W9 -> 0.5424786845 | F16: =IF('Dati Generali CER 1 Sem. 2019'!BJ9="","",'Dati Generali CER 1 Sem. 2019'!BJ9) -> 1.001028767 | G16: =IF('Dati Generali CER 1 Sem. 2019'!BK9="","",'Dati Generali CER 1 Sem. 2019'!BK9) -> 0.4579919985 | H16: =IF('Dati Generali CER 1 Sem. 2019'!BL9="","",'Dati Generali CER 1 Sem. 2019'!BL9) -> 0.5430367689 | I16: ='Dati Generali CER 1 Sem. 2019'!D9 -> 580 | J16: =IF('Dati Generali CER 1 Sem. 2019'!BN9="","",'Dati Generali CER 1 Sem. 2019'!BN9) -> 2019-09-30T15:21:40
A17: 8 | B17: ='Dati Generali CER 1 Sem. 2019'!C10 -> BROLO | C17: =IF('Dati Generali CER 1 Sem. 2019'!E10="","",'Dati Generali CER 1 Sem. 2019'!E10) -> 378360 | D17: =IF(C17="","",'Dati Generali CER 1 Sem. 2019'!BI10) -> 835720 | E17: ='Dati Generali CER 1 Sem. 2019'!W10 -> 0.6691220036 | F17: =IF('Dati Generali CER 1 Sem. 2019'!BJ10="","",'Dati Generali CER 1 Sem. 2019'!BJ10) -> 1.191992052 | G17: =IF('Dati Generali CER 1 Sem. 2019'!BK10="","",'Dati Generali CER 1 Sem. 2019'!BK10) -> 0.3610963448 | H17: =IF('Dati Generali CER 1 Sem. 2019'!BL10="","",'Dati Generali CER 1 Sem. 2019'!BL10) -> 0.79758811 | I17: ='Dati Generali CER 1 Sem. 2019'!D10 -> 5789 | J17: =IF('Dati Generali CER 1 Sem. 2019'!BN10="","",'Dati Generali CER 1 Sem. 2019'!BN10) -> 2019-07-16T10:01:32
A18: 9 | B18: ='Dati Generali CER 1 Sem. 2019'!C11 -> CAPIZZI | C18: =IF('Dati Generali CER 1 Sem. 2019'!E11="","",'Dati Generali CER 1 Sem. 2019'!E11) -> 150380 | D18: =IF(C18="","",'Dati Generali CER 1 Sem. 2019'!BI11) -> 247990 | E18: ='Dati Generali CER 1 Sem. 2019'!W11 -> 0.6225117353 | F18: =IF('Dati Generali CER 1 Sem. 2019'!BJ11="","",'Dati Generali CER 1 Sem. 2019'!BJ11) -> 0.7361000758 | G18: =IF('Dati Generali CER 1 Sem. 2019'!BK11="","",'Dati Generali CER 1 Sem. 2019'!BK11) -> 0.2778691402 | H18: =IF('Dati Generali CER 1 Sem. 2019'!BL11="","",'Dati Generali CER 1 Sem. 2019'!BL11) -> 0.4582309355 | I18: ='Dati Generali CER 1 Sem. 2019'!D11 -> 2990 | J18: =IF('Dati Generali CER 1 Sem. 2019'!BN11="","",'Dati Generali CER 1 Sem. 2019'!BN11) -> 2019-07-18T07:53:30
A19: 10 | B19: ='Dati Generali CER 1 Sem. 2019'!C12 -> CAPO D'ORLANDO | C19: =IF('Dati Generali CER 1 Sem. 2019'!E12="","",'Dati Generali CER 1 Sem. 2019'!E12) -> 1493860 | D19: =IF(C19="","",'Dati Generali CER 1 Sem. 2019'!BI12) -> 1693582 | E19: ='Dati Generali CER 1 Sem. 2019'!W12 -> 0.5313295113 | F19: =IF('Dati Generali CER 1 Sem. 2019'!BJ12="","",'Dati Generali CER 1 Sem. 2019'!BJ12) -> 1.325468673 | G19: =IF('Dati Generali CER 1 Sem. 2019'!BK12="","",'Dati Generali CER 1 Sem. 2019'!BK12) -> 0.621208051 | H19: =IF('Dati Generali CER 1 Sem. 2019'!BL12="","",'Dati Generali CER 1 Sem. 2019'!BL12) -> 0.7042606224 | I19: ='Dati Generali CER 1 Sem. 2019'!D12 -> 13286 | J19: =IF('Dati Generali CER 1 Sem. 2019'!BN12="","",'Dati Generali CER 1 Sem. 2019'!BN12) -> 2019-07-16T10:06:42
A20: 11 | B20: ='Dati Generali CER 1 Sem. 2019'!C13 -> CAPRILEONE | C20: =IF('Dati Generali CER 1 Sem. 2019'!E13="","",'Dati Generali CER 1 Sem. 2019'!E13) -> 255120 | D20: =IF(C20="","",'Dati Generali CER 1 Sem. 2019'!BI13) -> 422790 | E20: ='Dati Generali CER 1 Sem. 2019'!W13 -> 0.6236668584 | F20: =IF('Dati Generali CER 1 Sem. 2019'!BJ13="","",'Dati Generali CER 1 Sem. 2019'!BJ13) -> 0.8529626773 | G20: =IF('Dati Generali CER 1 Sem. 2019'!BK13="","",'Dati Generali CER 1 Sem. 2019'!BK13) -> 0.320998124 | H20: =IF('Dati Generali CER 1 Sem. 2019'!BL13="","",'Dati Generali CER 1 Sem. 2019'!BL13) -> 0.5319645533 | I20: ='Dati Generali CER 1 Sem. 2019'!D13 -> 4391 | J20: =IF('Dati Generali CER 1 Sem. 2019'!BN13="","",'Dati Generali CER 1 Sem. 2019'!BN13) -> 2019-08-08T09:52:55
A21: 12 | B21: ='Dati Generali CER 1 Sem. 2019'!C14 -> CARONIA | C21: =IF('Dati Generali CER 1 Sem. 2019'!E14="","",'Dati Generali CER 1 Sem. 2019'!E14) -> 211860 | D21: =IF(C21="","",'Dati Generali CER 1 Sem. 2019'!BI14) -> 390840 | E21: ='Dati Generali CER 1 Sem. 2019'!W14 -> 0.6484818318 | F21: =IF('Dati Generali CER 1 Sem. 2019'!BJ14="","",'Dati Generali CER 1 Sem. 2019'!BJ14) -> 1.058097952 | G21: =IF('Dati Generali CER 1 Sem. 2019'!BK14="","",'Dati Generali CER 1 Sem. 2019'!BK14) -> 0.3719406538 | H21: =IF('Dati Generali CER 1 Sem. 2019'!BL14="","",'Dati Generali CER 1 Sem. 2019'!BL14) -> 0.6861572979 | I21: ='Dati Generali CER 1 Sem. 2019'!D14 -> 3147 | J21: =IF('Dati Generali CER 1 Sem. 2019'!BN14="","",'Dati Generali CER 1 Sem. 2019'!BN14) -> 2019-10-22T13:55:13
A22: 13 | B22: ='Dati Generali CER 1 Sem. 2019'!C15 -> CASALVECCHIO SICULO | C22: =IF('Dati Generali CER 1 Sem. 2019'!E15="","",'Dati Generali CER 1 Sem. 2019'!E15) -> 48720 | D22: =IF(C22="","",'Dati Generali CER 1 Sem. 2019'!BI15) -> 23600 | E22: ='Dati Generali CER 1 Sem. 2019'!W15 -> 0.3263274336 | F22: =IF('Dati Generali CER 1 Sem. 2019'!BJ15="","",'Dati Generali CER 1 Sem. 2019'!BJ15) -> 0.5250433785 | G22: =IF('Dati Generali CER 1 Sem. 2019'!BK15="","",'Dati Generali CER 1 Sem. 2019'!BK15) -> 0.3537073203 | H22: =IF('Dati Generali CER 1 Sem. 2019'!BL15="","",'Dati Generali CER 1 Sem. 2019'!BL15) -> 0.1713360583 | I22: ='Dati Generali CER 1 Sem. 2019'!D15 -> 761 | J22: =IF('Dati Generali CER 1 Sem. 2019'!BN15="","",'Dati Generali CER 1 Sem. 2019'!BN15) -> 2019-08-01T08:38:04
A23: 14 | B23: ='Dati Generali CER 1 Sem. 2019'!C16 -> CASTEL DI LUCIO | C23: =IF('Dati Generali CER 1 Sem. 2019'!E16="","",'Dati Generali CER 1 Sem. 2019'!E16) -> 24280 | D23: =IF(C23="","",'Dati Generali CER 1 Sem. 2019'!BI16) -> 116060 | E23: ='Dati Generali CER 1 Sem. 2019'!W16 -> 0.8269915918 | F23: =IF('Dati Generali CER 1 Sem. 2019'!BJ16="","",'Dati Generali CER 1 Sem. 2019'!BJ16) -> 0.6192964185 | G23: =IF('Dati Generali CER 1 Sem. 2019'!BK16="","",'Dati Generali CER 1 Sem. 2019'!BK16) -> 0.1071434875 | H23: =IF('Dati Generali CER 1 Sem. 2019'!BL16="","",'Dati Generali CER 1 Sem. 2019'!BL16) -> 0.512152931 | I23: ='Dati Generali CER 1 Sem. 2019'!D16 -> 1252 | J23: =IF('Dati Generali CER 1 Sem. 2019'!BN16="","",'Dati Generali CER 1 Sem. 2019'!BN16) -> 2019-09-30T15:24:49
A24: 15 | B24: ='Dati Generali CER 1 Sem. 2019'!C17 -> CASTELL'UMBERTO | C24: =IF('Dati Generali CER 1 Sem. 2019'!E17="","",'Dati Generali CER 1 Sem. 2019'!E17) -> 241720 | D24: =IF(C24="","",'Dati Generali CER 1 Sem. 2019'!BI17) -> 166060 | E24: ='Dati Generali CER 1 Sem. 2019'!W17 -> 0.4072293884 | F24: =IF('Dati Generali CER 1 Sem. 2019'!BJ17="","",'Dati Generali CER 1 Sem. 2019'!BJ17) -> 0.7595846854 | G24: =IF('Dati Generali CER 1 Sem. 2019'!BK17="","",'Dati Generali CER 1 Sem. 2019'!BK17) -> 0.4502594785 | H24: =IF('Dati Generali CER 1 Sem. 2019'!BL17="","",'Dati Generali CER 1 Sem. 2019'!BL17) -> 0.3093252069 | I24: ='Dati Generali CER 1 Sem. 2019'!D17 -> 2966 | J24: =IF('Dati Generali CER 1 Sem. 2019'!BN17="","",'Dati Generali CER 1 Sem. 2019'!BN17) -> 2019-07-10T11:49:39
A25: 16 | B25: ='Dati Generali CER 1 Sem. 2019'!C18 -> CASTELMOLA | C25: =IF('Dati Generali CER 1 Sem. 2019'!E18="","",'Dati Generali CER 1 Sem. 2019'!E18) -> 117918 | D25: =IF(C25="","",'Dati Generali CER 1 Sem. 2019'!BI18) -> 16290 | E25: ='Dati Generali CER 1 Sem. 2019'!W18 -> 0.1213787554 | F25: =IF('Dati Generali CER 1 Sem. 2019'!BJ18="","",'Dati Generali CER 1 Sem. 2019'!BJ18) -> 0.6728499664 | G25: =IF('Dati Generali CER 1 Sem. 2019'!BK18="","",'Dati Generali CER 1 Sem. 2019'!BK18) -> 0.5911802749 | H25: =IF('Dati Generali CER 1 Sem. 2019'!BL18="","",'Dati Generali CER 1 Sem. 2019'!BL18) -> 0.08166969147 | I25: ='Dati Generali CER 1 Sem. 2019'!D18 -> 1102 | J25: =IF('Dati Generali CER 1 Sem. 2019'!BN18="","",'Dati Generali CER 1 Sem. 2019'!BN18) -> 2019-08-13T08:04:08
A26: 17 | B26: ='Dati Generali CER 1 Sem. 2019'!C19 -> CASTROREALE | C26: =IF('Dati Generali CER 1 Sem. 2019'!E19="","",'Dati Generali CER 1 Sem. 2019'!E19) -> 84960 | D26: =IF(C26="","",'Dati Generali CER 1 Sem. 2019'!BI19) -> 147813 | E26: ='Dati Generali CER 1 Sem. 2019'!W19 -> 0.635009215 | F26: =IF('Dati Generali CER 1 Sem. 2019'!BJ19="","",'Dati Generali CER 1 Sem. 2019'!BJ19) -> 0.5491198437 | G26: =IF('Dati Generali CER 1 Sem. 2019'!BK19="","",'Dati Generali CER 1 Sem. 2019'!BK19) -> 0.2004236828 | H26: =IF('Dati Generali CER 1 Sem. 2019'!BL19="","",'Dati Generali CER 1 Sem. 2019'!BL19) -> 0.3486961609 | I26: ='Dati Generali CER 1 Sem. 2019'!D19 -> 2342 | J26: =IF('Dati Generali CER 1 Sem. 2019'!BN19="","",'Dati Generali CER 1 Sem. 2019'!BN19) -> 2019-09-30T15:46:42
A27: 18 | B27: ='Dati Generali CER 1 Sem. 2019'!C20 -> CESARO' | C27: =IF('Dati Generali CER 1 Sem. 2019'!E20="","",'Dati Generali CER 1 Sem. 2019'!E20) -> 141846 | D27: =IF(C27="","",'Dati Generali CER 1 Sem. 2019'!BI20) -> 147920 | E27: ='Dati Generali CER 1 Sem. 2019'!W20 -> 0.5104808708 | F27: =IF('Dati Generali CER 1 Sem. 2019'!BJ20="","",'Dati Generali CER 1 Sem. 2019'!BJ20) -> 0.7040092907 | G27: =IF('Dati Generali CER 1 Sem. 2019'!BK20="","",'Dati Generali CER 1 Sem. 2019'!BK20) -> 0.344626015 | H27: =IF('Dati Generali CER 1 Sem. 2019'!BL20="","",'Dati Generali CER 1 Sem. 2019'!BL20) -> 0.3593832758 | I27: ='Dati Generali CER 1 Sem. 2019'!D20 -> 2274 | J27: =IF('Dati Generali CER 1 Sem. 2019'!BN20="","",'Dati Generali CER 1 Sem. 2019'!BN20) -> 2019-07-30T10:13:00
A28: 19 | B28: ='Dati Generali CER 1 Sem. 2019'!C21 -> CONDRO' | C28: =IF('Dati Generali CER 1 Sem. 2019'!E21="","",'Dati Generali CER 1 Sem. 2019'!E21) -> 46660 | D28: =IF(C28="","",'Dati Generali CER 1 Sem. 2019'!BI21) -> 23598 | E28: ='Dati Generali CER 1 Sem. 2019'!W21 -> 0.3358763415 | F28: =IF('Dati Generali CER 1 Sem. 2019'!BJ21="","",'Dati Generali CER 1 Sem. 2019'!BJ21) -> 0.8120622298 | G28: =IF('Dati Generali CER 1 Sem. 2019'!BK21="","",'Dati Generali CER 1 Sem. 2019'!BK21) -> 0.539309739 | H28: =IF('Dati Generali CER 1 Sem. 2019'!BL21="","",'Dati Generali CER 1 Sem. 2019'!BL21) -> 0.2727524908 | I28: ='Dati Generali CER 1 Sem. 2019'!D21 -> 478 | J28: =IF('Dati Generali CER 1 Sem. 2019'!BN21="","",'Dati Generali CER 1 Sem. 2019'!BN21) -> 2019-07-24T12:37:00
A29: 20 | B29: ='Dati Generali CER 1 Sem. 2019'!C22 -> FALCONE | C29: =IF('Dati Generali CER 1 Sem. 2019'!E22="","",'Dati Generali CER 1 Sem. 2019'!E22) -> 394860 | D29: =IF(C29="","",'Dati Generali CER 1 Sem. 2019'!BI22) -> 112795 | E29: ='Dati Generali CER 1 Sem. 2019'!W22 -> 0.2221882972 | F29: =IF('Dati Generali CER 1 Sem. 2019'!BJ22="","",'Dati Generali CER 1 Sem. 2019'!BJ22) -> 1.020641833 | G29: =IF('Dati Generali CER 1 Sem. 2019'!BK22="","",'Dati Generali CER 1 Sem. 2019'!BK22) -> 0.7938671621 | H29: =IF('Dati Generali CER 1 Sem. 2019'!BL22="","",'Dati Generali CER 1 Sem. 2019'!BL22) -> 0.2267746709 | I29: ='Dati Generali CER 1 Sem. 2019'!D22 -> 2748 | J29: =IF('Dati Generali CER 1 Sem. 2019'!BN22="","",'Dati Generali CER 1 Sem. 2019'!BN22) -> 2019-08-01T08:42:52
A30: 21 | B30: ='Dati Generali CER 1 Sem. 2019'!C23 -> FICARRA | C30: =IF('Dati Generali CER 1 Sem. 2019'!E23="","",'Dati Generali CER 1 Sem. 2019'!E23) -> 80240 | D30: =IF(C30="","",'Dati Generali CER 1 Sem. 2019'!BI23) -> 98715 | E30: ='Dati Generali CER 1 Sem. 2019'!W23 -> 0.5516191221 | F30: =IF('Dati Generali CER 1 Sem. 2019'!BJ23="","",'Dati Generali CER 1 Sem. 2019'!BJ23) -> 0.7190557509 | G30: =IF('Dati Generali CER 1 Sem. 2019'!BK23="","",'Dati Generali CER 1 Sem. 2019'!BK23) -> 0.3224108488 | H30: =IF('Dati Generali CER 1 Sem. 2019'!BL23="","",'Dati Generali CER 1 Sem. 2019'!BL23) -> 0.3966449021 | I30: ='Dati Generali CER 1 Sem. 2019'!D23 -> 1375 | J30: =IF('Dati Generali CER 1 Sem. 2019'!BN23="","",'Dati Generali CER 1 Sem. 2019'!BN23) -> 2019-07-11T11:18:30
A31: 22 | B31: ='Dati Generali CER 1 Sem. 2019'!C24 -> FIUMEDINISI | C31: =IF('Dati Generali CER 1 Sem. 2019'!E24="","",'Dati Generali CER 1 Sem. 2019'!E24) -> 41260 | D31: =IF(C31="","",'Dati Generali CER 1 Sem. 2019'!BI24) -> 114647 | E31: ='Dati Generali CER 1 Sem. 2019'!W24 -> 0.7353550514 | F31: =IF('Dati Generali CER 1 Sem. 2019'!BJ24="","",'Dati Generali CER 1 Sem. 2019'!BJ24) -> 0.6428094335 | G31: =IF('Dati Generali CER 1 Sem. 2019'!BK24="","",'Dati Generali CER 1 Sem. 2019'!BK24) -> 0.1701162695 | H31: =IF('Dati Generali CER 1 Sem. 2019'!BL24="","",'Dati Generali CER 1 Sem. 2019'!BL24) -> 0.472693164 | I31: ='Dati Generali CER 1 Sem. 2019'!D24 -> 1340 | J31: =IF('Dati Generali CER 1 Sem. 2019'!BN24="","",'Dati Generali CER 1 Sem. 2019'!BN24) -> 2019-10-24T12:07:37
A32: 23 | B32: ='Dati Generali CER 1 Sem. 2019'!C25 -> FLORESTA | C32: =IF('Dati Generali CER 1 Sem. 2019'!E25="","",'Dati Generali CER 1 Sem. 2019'!E25) -> 65580 | D32: =IF(C32="","",'Dati Generali CER 1 Sem. 2019'!BI25) -> 19500 | E32: ='Dati Generali CER 1 Sem. 2019'!W25 -> 0.2291960508 | F32: =IF('Dati Generali CER 1 Sem. 2019'!BJ25="","",'Dati Generali CER 1 Sem. 2019'!BJ25) -> 1.030822914 | G32: =IF('Dati Generali CER 1 Sem. 2019'!BK25="","",'Dati Generali CER 1 Sem. 2019'!BK25) -> 0.7945623728 | H32: =IF('Dati Generali CER 1 Sem. 2019'!BL25="","",'Dati Generali CER 1 Sem. 2019'!BL25) -> 0.2362605409 | I32: ='Dati Generali CER 1 Sem. 2019'!D25 -> 456 | J32: =IF('Dati Generali CER 1 Sem. 2019'!BN25="","",'Dati Generali CER 1 Sem. 2019'!BN25) -> 2019-10-14T09:30:13
A33: 24 | B33: ='Dati Generali CER 1 Sem. 2019'!C26 -> FONDACHELLI FANTINA | C33: =IF('Dati Generali CER 1 Sem. 2019'!E26="","",'Dati Generali CER 1 Sem. 2019'!E26) -> 93640 | D33: =IF(C33="","",'Dati Generali CER 1 Sem. 2019'!BI26) -> 29540 | E33: ='Dati Generali CER 1 Sem. 2019'!W26 -> 0.2398116577 | F33: =IF('Dati Generali CER 1 Sem. 2019'!BJ26="","",'Dati Generali CER 1 Sem. 2019'!BJ26) -> 0.6493821433 | G33: =IF('Dati Generali CER 1 Sem. 2019'!BK26="","",'Dati Generali CER 1 Sem. 2019'!BK26) -> 0.493652735 | H33: =IF('Dati Generali CER 1 Sem. 2019'!BL26="","",'Dati Generali CER 1 Sem. 2019'!BL26) -> 0.1557294083 | I33: ='Dati Generali CER 1 Sem. 2019'!D26 -> 1048 | J33: =IF('Dati Generali CER 1 Sem. 2019'!BN26="","",'Dati Generali CER 1 Sem. 2019'!BN26) -> 2019-08-01T08:45:39
A34: 25 | B34: ='Dati Generali CER 1 Sem. 2019'!C27 -> FORZA D'AGRO' | C34: =IF('Dati Generali CER 1 Sem. 2019'!E27="","",'Dati Generali CER 1 Sem. 2019'!E27) -> 150220 | D34: =IF(C34="","",'Dati Generali CER 1 Sem. 2019'!BI27) -> 53220 | E34: ='Dati Generali CER 1 Sem. 2019'!W27 -> 0.2616004719 | F34: =IF('Dati Generali CER 1 Sem. 2019'!BJ27="","",'Dati Generali CER 1 Sem. 2019'!BJ27) -> 1.26716787 | G34: =IF('Dati Generali CER 1 Sem. 2019'!BK27="","",'Dati Generali CER 1 Sem. 2019'!BK27) -> 0.9356761571 | H34: =IF('Dati Generali CER 1 Sem. 2019'!BL27="","",'Dati Generali CER 1 Sem. 2019'!BL27) -> 0.3314917127 | I34: ='Dati Generali CER 1 Sem. 2019'!D27 -> 887 | J34: =IF('Dati Generali CER 1 Sem. 2019'!BN27="","",'Dati Generali CER 1 Sem. 2019'!BN27) -> 2019-07-24T09:46:52
A35: 26 | B35: ='Dati Generali CER 1 Sem. 2019'!C28 -> FRANCAVILLA DI SICILIA | C35: =IF('Dati Generali CER 1 Sem. 2019'!E28="","",'Dati Generali CER 1 Sem. 2019'!E28) -> 245280 | D35: =IF(C35="","",'Dati Generali CER 1 Sem. 2019'!BI28) -> 373450 | E35: ='Dati Generali CER 1 Sem. 2019'!W28 -> 0.6035750651 | F35: =IF('Dati Generali CER 1 Sem. 2019'!BJ28="","",'Dati Generali CER 1 Sem. 2019'!BJ28) -> 0.9130335978 | G35: =IF('Dati Generali CER 1 Sem. 2019'!BK28="","",'Dati Generali CER 1 Sem. 2019'!BK28) -> 0.3619492846 | H35: =IF('Dati Generali CER 1 Sem. 2019'!BL28="","",'Dati Generali CER 1 Sem. 2019'!BL28) -> 0.5510843132 | I35: ='Dati Generali CER 1 Sem. 2019'!D28 -> 3744 | J35: =IF('Dati Generali CER 1 Sem. 2019'!BN28="","",'Dati Generali CER 1 Sem. 2019'!BN28) -> 2019-07-23T09:38:48
A36: 27 | B36: ='Dati Generali CER 1 Sem. 2019'!C29 -> FRAZZANO' | C36: =IF('Dati Generali CER 1 Sem. 2019'!E29="","",'Dati Generali CER 1 Sem. 2019'!E29) -> 38240 | D36: =IF(C36="","",'Dati Generali CER 1 Sem. 2019'!BI29) -> 35910 | E36: ='Dati Generali CER 1 Sem. 2019'!W29 -> 0.4842886042 | F36: =IF('Dati Generali CER 1 Sem. 2019'!BJ29="","",'Dati Generali CER 1 Sem. 2019'!BJ29) -> 0.652338389 | G36: =IF('Dati Generali CER 1 Sem. 2019'!BK29="","",'Dati Generali CER 1 Sem. 2019'!BK29) -> 0.3364183411 | H36: =IF('Dati Generali CER 1 Sem. 2019'!BL29="","",'Dati Generali CER 1 Sem. 2019'!BL29) -> 0.3159200479 | I36: ='Dati Generali CER 1 Sem. 2019'!D29 -> 628 | J36: =IF('Dati Generali CER 1 Sem. 2019'!BN29="","",'Dati Generali CER 1 Sem. 2019'!BN29) -> 2019-07-16T10:13:53
A37: 28 | B37: ='Dati Generali CER 1 Sem. 2019'!C30 -> FURCI SICULO | C37: =IF('Dati Generali CER 1 Sem. 2019'!E30="","",'Dati Generali CER 1 Sem. 2019'!E30) -> 150520 | D37: =IF(C37="","",'Dati Generali CER 1 Sem. 2019'!BI30) -> 402171 | E37: ='Dati Generali CER 1 Sem. 2019'!W30 -> 0.7276597593 | F37: =IF('Dati Generali CER 1 Sem. 2019'!BJ30="","",'Dati Generali CER 1 Sem. 2019'!BJ30) -> 0.9418696596 | G37: =IF('Dati Generali CER 1 Sem. 2019'!BK30="","",'Dati Generali CER 1 Sem. 2019'!BK30) -> 0.2565090099 | H37: =IF('Dati Generali CER 1 Sem. 2019'!BL30="","",'Dati Generali CER 1 Sem. 2019'!BL30) -> 0.6853606498 | I37: ='Dati Generali CER 1 Sem. 2019'!D30 -> 3242 | J37: =IF('Dati Generali CER 1 Sem. 2019'!BN30="","",'Dati Generali CER 1 Sem. 2019'!BN30) -> 2020-02-17T13:10:04
A38: 29 | B38: ='Dati Generali CER 1 Sem. 2019'!C31 -> FURNARI | C38: =IF('Dati Generali CER 1 Sem. 2019'!E31="","",'Dati Generali CER 1 Sem. 2019'!E31) -> 260600 | D38: =IF(C38="","",'Dati Generali CER 1 Sem. 2019'!BI31) -> 480240 | E38: ='Dati Generali CER 1 Sem. 2019'!W31 -> 0.6482371362 | F38: =IF('Dati Generali CER 1 Sem. 2019'!BJ31="","",'Dati Generali CER 1 Sem. 2019'!BJ31) -> 1.065340623 | G38: =IF('Dati Generali CER 1 Sem. 2019'!BK31="","",'Dati Generali CER 1 Sem. 2019'!BK31) -> 0.3747472685 | H38: =IF('Dati Generali CER 1 Sem. 2019'!BL31="","",'Dati Generali CER 1 Sem. 2019'!BL31) -> 0.6905933546 | I38: ='Dati Generali CER 1 Sem. 2019'!D31 -> 3842 | J38: =IF('Dati Generali CER 1 Sem. 2019'!BN31="","",'Dati Generali CER 1 Sem. 2019'!BN31) -> 2019-10-16T09:55:19
A39: 30 | B39: ='Dati Generali CER 1 Sem. 2019'!C32 -> GAGGI | C39: =IF('Dati Generali CER 1 Sem. 2019'!E32="","",'Dati Generali CER 1 Sem. 2019'!E32) -> 341284 | D39: =IF(C39="","",'Dati Generali CER 1 Sem. 2019'!BI32) -> 143810 | E39: ='Dati Generali CER 1 Sem. 2019'!W32 -> 0.2964580061 | F39: =IF('Dati Generali CER 1 Sem. 2019'!BJ32="","",'Dati Generali CER 1 Sem. 2019'!BJ32) -> 0.8422618944 | G39: =IF('Dati Generali CER 1 Sem. 2019'!BK32="","",'Dati Generali CER 1 Sem. 2019'!BK32) -> 0.5925666126 | H39: =IF('Dati Generali CER 1 Sem. 2019'!BL32="","",'Dati Generali CER 1 Sem. 2019'!BL32) -> 0.2496952818 | I39: ='Dati Generali CER 1 Sem. 2019'!D32 -> 3182 | J39: =IF('Dati Generali CER 1 Sem. 2019'!BN32="","",'Dati Generali CER 1 Sem. 2019'!BN32) -> 2019-11-27T12:42:56
A40: 31 | B40: ='Dati Generali CER 1 Sem. 2019'!C33 -> GALATI MAMERTINO | C40: =IF('Dati Generali CER 1 Sem. 2019'!E33="","",'Dati Generali CER 1 Sem. 2019'!E33) -> 198420 | D40: =IF(C40="","",'Dati Generali CER 1 Sem. 2019'!BI33) -> 142910 | E40: ='Dati Generali CER 1 Sem. 2019'!W33 -> 0.4186857294 | F40: =IF('Dati Generali CER 1 Sem. 2019'!BJ33="","",'Dati Generali CER 1 Sem. 2019'!BJ33) -> 0.7795787949 | G40: =IF('Dati Generali CER 1 Sem. 2019'!BK33="","",'Dati Generali CER 1 Sem. 2019'!BK33) -> 0.4531802786 | H40: =IF('Dati Generali CER 1 Sem. 2019'!BL33="","",'Dati Generali CER 1 Sem. 2019'!BL33) -> 0.3263985163 | I40: ='Dati Generali CER 1 Sem. 2019'!D33 -> 2419 | J40: =IF('Dati Generali CER 1 Sem. 2019'!BN33="","",'Dati Generali CER 1 Sem. 2019'!BN33) -> 2019-07-16T10:19:58
A41: 32 | B41: ='Dati Generali CER 1 Sem. 2019'!C34 -> GALLODORO | C41: =IF('Dati Generali CER 1 Sem. 2019'!E34="","",'Dati Generali CER 1 Sem. 2019'!E34) -> 45530 | D41: =IF(C41="","",'Dati Generali CER 1 Sem. 2019'!BI34) -> 9323 | E41: ='Dati Generali CER 1 Sem. 2019'!W34 -> 0.1699633566 | F41: =IF('Dati Generali CER 1 Sem. 2019'!BJ34="","",'Dati Generali CER 1 Sem. 2019'!BJ34) -> 0.9046425332 | G41: =IF('Dati Generali CER 1 Sem. 2019'!BK34="","",'Dati Generali CER 1 Sem. 2019'!BK34) -> 0.7508864517 | H41: =IF('Dati Generali CER 1 Sem. 2019'!BL34="","",'Dati Generali CER 1 Sem. 2019'!BL34) -> 0.1537560815 | I41: ='Dati Generali CER 1 Sem. 2019'!D34 -> 335 | J41: =IF('Dati Generali CER 1 Sem. 2019'!BN34="","",'Dati Generali CER 1 Sem. 2019'!BN34) -> 2019-10-10T11:29:28
A42: 33 | B42: ='Dati Generali CER 1 Sem. 2019'!C35 -> GIARDINI NAXOS | C42: =IF('Dati Generali CER 1 Sem. 2019'!E35="","",'Dati Generali CER 1 Sem. 2019'!E35) -> 1264220 | D42: =IF(C42="","",'Dati Generali CER 1 Sem. 2019'!BI35) -> 1460970 | E42: ='Dati Generali CER 1 Sem. 2019'!W35 -> 0.5353362134 | F42: =IF('Dati Generali CER 1 Sem. 2019'!BJ35="","",'Dati Generali CER 1 Sem. 2019'!BJ35) -> 1.644963431 | G42: =IF('Dati Generali CER 1 Sem. 2019'!BK35="","",'Dati Generali CER 1 Sem. 2019'!BK35) -> 0.7620162431 | H42: =IF('Dati Generali CER 1 Sem. 2019'!BL35="","",'Dati Generali CER 1 Sem. 2019'!BL35) -> 0.8806084943 | I42: ='Dati Generali CER 1 Sem. 2019'!D35 -> 9166 | J42: =IF('Dati Generali CER 1 Sem. 2019'!BN35="","",'Dati Generali CER 1 Sem. 2019'!BN35) -> 2019-08-06T08:25:15
A43: 34 | B43: ='Dati Generali CER 1 Sem. 2019'!C36 -> GIOIOSA MAREA | C43: =IF('Dati Generali CER 1 Sem. 2019'!E36="","",'Dati Generali CER 1 Sem. 2019'!E36) -> 1162500 | D43: =IF(C43="","",'Dati Generali CER 1 Sem. 2019'!BI36) -> 253082 | E43: ='Dati Generali CER 1 Sem. 2019'!W36 -> 0.1787830023 | F43: =IF('Dati Generali CER 1 Sem. 2019'!BJ36="","",'Dati Generali CER 1 Sem. 2019'!BJ36) -> 1.140238377 | G43: =IF('Dati Generali CER 1 Sem. 2019'!BK36="","",'Dati Generali CER 1 Sem. 2019'!BK36) -> 0.9363831366 | H43: =IF('Dati Generali CER 1 Sem. 2019'!BL36="","",'Dati Generali CER 1 Sem. 2019'!BL36) -> 0.2038552404 | I43: ='Dati Generali CER 1 Sem. 2019'!D36 -> 6859 | J43: =IF('Dati Generali CER 1 Sem. 2019'!BN36="","",'Dati Generali CER 1 Sem. 2019'!BN36) -> 2019-09-30T16:19:58
A44: 35 | B44: ='Dati Generali CER 1 Sem. 2019'!C37 -> GRANITI | C44: =IF('Dati Generali CER 1 Sem. 2019'!E37="","",'Dati Generali CER 1 Sem. 2019'!E37) -> 151528 | D44: =IF(C44="","",'Dati Generali CER 1 Sem. 2019'!BI37) -> 62090 | E44: ='Dati Generali CER 1 Sem. 2019'!W37 -> 0.2906590269 | F44: =IF('Dati Generali CER 1 Sem. 2019'!BJ37="","",'Dati Generali CER 1 Sem. 2019'!BJ37) -> 0.8111408555 | G44: =IF('Dati Generali CER 1 Sem. 2019'!BK37="","",'Dati Generali CER 1 Sem. 2019'!BK37) -> 0.5753754438 | H44: =IF('Dati Generali CER 1 Sem. 2019'!BL37="","",'Dati Generali CER 1 Sem. 2019'!BL37) -> 0.2357654117 | I44: ='Dati Generali CER 1 Sem. 2019'!D37 -> 1455 | J44: =IF('Dati Generali CER 1 Sem. 2019'!BN37="","",'Dati Generali CER 1 Sem. 2019'!BN37) -> 2019-08-01T08:48:00
A45: 36 | B45: ='Dati Generali CER 1 Sem. 2019'!C38 -> GUALTIERI SICAMINO | C45: =IF('Dati Generali CER 1 Sem. 2019'!E38="","",'Dati Generali CER 1 Sem. 2019'!E38) -> 37440 | D45: =IF(C45="","",'Dati Generali CER 1 Sem. 2019'!BI38) -> 164490 | E45: ='Dati Generali CER 1 Sem. 2019'!W38 -> 0.8145892141 | F45: =IF('Dati Generali CER 1 Sem. 2019'!BJ38="","",'Dati Generali CER 1 Sem. 2019'!BJ38) -> 0.6684453919 | G45: =IF('Dati Generali CER 1 Sem. 2019'!BK38="","",'Dati Generali CER 1 Sem. 2019'!BK38) -> 0.1239369855 | H45: =IF('Dati Generali CER 1 Sem. 2019'!BL38="","",'Dati Generali CER 1 Sem. 2019'!BL38) -> 0.5445084065 | I45: ='Dati Generali CER 1 Sem. 2019'!D38 -> 1669 | J45: =IF('Dati Generali CER 1 Sem. 2019'!BN38="","",'Dati Generali CER 1 Sem. 2019'!BN38) -> 2019-09-30T16:27:26
A46: 37 | B46: ='Dati Generali CER 1 Sem. 2019'!C39 -> ITALA | C46: =IF('Dati Generali CER 1 Sem. 2019'!E39="","",'Dati Generali CER 1 Sem. 2019'!E39) -> 94730 | D46: =IF(C46="","",'Dati Generali CER 1 Sem. 2019'!BI39) -> 56180 | E46: ='Dati Generali CER 1 Sem. 2019'!W39 -> 0.3722748658 | F46: =IF('Dati Generali CER 1 Sem. 2019'!BJ39="","",'Dati Generali CER 1 Sem. 2019'!BJ39) -> 0.554359645 | G46: =IF('Dati Generali CER 1 Sem. 2019'!BK39="","",'Dati Generali CER 1 Sem. 2019'!BK39) -> 0.3479854825 | H46: =IF('Dati Generali CER 1 Sem. 2019'!BL39="","",'Dati Generali CER 1 Sem. 2019'!BL39) -> 0.2063741625 | I46: ='Dati Generali CER 1 Sem. 2019'!D39 -> 1504 | J46: =IF('Dati Generali CER 1 Sem. 2019'!BN39="","",'Dati Generali CER 1 Sem. 2019'!BN39) -> 2019-10-09T12:30:20
A47: 38 | B47: ='Dati Generali CER 1 Sem. 2019'!C40 -> LENI | C47: =IF('Dati Generali CER 1 Sem. 2019'!E40="","",'Dati Generali CER 1 Sem. 2019'!E40) -> 72080 | D47: =IF(C47="","",'Dati Generali CER 1 Sem. 2019'!BI40) -> 32540 | E47: ='Dati Generali CER 1 Sem. 2019'!W40 -> 0.3110303957 | F47: =IF('Dati Generali CER 1 Sem. 2019'!BJ40="","",'Dati Generali CER 1 Sem. 2019'!BJ40) -> 0.8072780024 | G47: =IF('Dati Generali CER 1 Sem. 2019'!BK40="","",'Dati Generali CER 1 Sem. 2019'!BK40) -> 0.5561900059 | H47: =IF('Dati Generali CER 1 Sem. 2019'!BL40="","",'Dati Generali CER 1 Sem. 2019'!BL40) -> 0.2510879965 | I47: ='Dati Generali CER 1 Sem. 2019'!D40 -> 716 | J47: =IF('Dati Generali CER 1 Sem. 2019'!BN40="","",'Dati Generali CER 1 Sem. 2019'!BN40) -> 2019-07-30T10:13:43
A48: 39 | B48: ='Dati Generali CER 1 Sem. 2019'!C41 -> LETOJANNI | C48: =IF('Dati Generali CER 1 Sem. 2019'!E41="","",'Dati Generali CER 1 Sem. 2019'!E41) -> 1063120 | D48: =IF(C48="","",'Dati Generali CER 1 Sem. 2019'!BI41) -> 97020 | E48: ='Dati Generali CER 1 Sem. 2019'!W41 -> 0.08362783802 | F48: =IF('Dati Generali CER 1 Sem. 2019'!BJ41="","",'Dati Generali CER 1 Sem. 2019'!BJ41) -> 2.287513654 | G48: =IF('Dati Generali CER 1 Sem. 2019'!BK41="","",'Dati Generali CER 1 Sem. 2019'!BK41) -> 2.096213833 | H48: =IF('Dati Generali CER 1 Sem. 2019'!BL41="","",'Dati Generali CER 1 Sem. 2019'!BL41) -> 0.1912998214 | I48: ='Dati Generali CER 1 Sem. 2019'!D41 -> 2802 | J48: =IF('Dati Generali CER 1 Sem. 2019'!BN41="","",'Dati Generali CER 1 Sem. 2019'!BN41) -> 2019-09-30T16:46:46
A49: 40 | B49: ='Dati Generali CER 1 Sem. 2019'!C42 -> LIBRIZZI | C49: =IF('Dati Generali CER 1 Sem. 2019'!E42="","",'Dati Generali CER 1 Sem. 2019'!E42) -> 73960 | D49: =IF(C49="","",'Dati Generali CER 1 Sem. 2019'!BI42) -> 162076 | E49: ='Dati Generali CER 1 Sem. 2019'!W42 -> 0.6866579674 | F49: =IF('Dati Generali CER 1 Sem. 2019'!BJ42="","",'Dati Generali CER 1 Sem. 2019'!BJ42) -> 0.8099790673 | G49: =IF('Dati Generali CER 1 Sem. 2019'!BK42="","",'Dati Generali CER 1 Sem. 2019'!BK42) -> 0.2538004873 | H49: =IF('Dati Generali CER 1 Sem. 2019'!BL42="","",'Dati Generali CER 1 Sem. 2019'!BL42) -> 0.55617858 | I49: ='Dati Generali CER 1 Sem. 2019'!D42 -> 1610 | J49: =IF('Dati Generali CER 1 Sem. 2019'!BN42="","",'Dati Generali CER 1 Sem. 2019'!BN42) -> 2019-07-16T10:26:10
A50: 41 | B50: ='Dati Generali CER 1 Sem. 2019'!C43 -> LIMINA | C50: =IF('Dati Generali CER 1 Sem. 2019'!E43="","",'Dati Generali CER 1 Sem. 2019'!E43) -> 24920 | D50: =IF(C50="","",'Dati Generali CER 1 Sem. 2019'!BI43) -> 54960 | E50: ='Dati Generali CER 1 Sem. 2019'!W43 -> 0.6880320481 | F50: =IF('Dati Generali CER 1 Sem. 2019'!BJ43="","",'Dati Generali CER 1 Sem. 2019'!BJ43) -> 0.6020818102 | G50: =IF('Dati Generali CER 1 Sem. 2019'!BK43="","",'Dati Generali CER 1 Sem. 2019'!BK43) -> 0.1878302292 | H50: =IF('Dati Generali CER 1 Sem. 2019'!BL43="","",'Dati Generali CER 1 Sem. 2019'!BL43) -> 0.414251581 | I50: ='Dati Generali CER 1 Sem. 2019'!D43 -> 733 | J50: =IF('Dati Generali CER 1 Sem. 2019'!BN43="","",'Dati Generali CER 1 Sem. 2019'!BN43) -> 2019-08-27T08:28:44
A51: 42 | B51: ='Dati Generali CER 1 Sem. 2019'!C44 -> LIPARI | C51: =IF('Dati Generali CER 1 Sem. 2019'!E44="","",'Dati Generali CER 1 Sem. 2019'!E44) -> 3107080 | D51: =IF(C51="","",'Dati Generali CER 1 Sem. 2019'!BI44) -> 891950 | E51: ='Dati Generali CER 1 Sem. 2019'!W44 -> 0.2230415876 | F51: =IF('Dati Generali CER 1 Sem. 2019'!BJ44="","",'Dati Generali CER 1 Sem. 2019'!BJ44) -> 1.72408025 | G51: =IF('Dati Generali CER 1 Sem. 2019'!BK44="","",'Dati Generali CER 1 Sem. 2019'!BK44) -> 1.339538654 | H51: =IF('Dati Generali CER 1 Sem. 2019'!BL44="","",'Dati Generali CER 1 Sem. 2019'!BL44) -> 0.384541596 | I51: ='Dati Generali CER 1 Sem. 2019'!D44 -> 12815 | J51: =IF('Dati Generali CER 1 Sem. 2019'!BN44="","",'Dati Generali CER 1 Sem. 2019'!BN44) -> 2019-09-16T10:02:16
A52: 43 | B52: ='Dati Generali CER 1 Sem. 2019'!C45 -> LONGI | C52: =IF('Dati Generali CER 1 Sem. 2019'!E45="","",'Dati Generali CER 1 Sem. 2019'!E45) -> 19260 | D52: =IF(C52="","",'Dati Generali CER 1 Sem. 2019'!BI45) -> 175350 | E52: ='Dati Generali CER 1 Sem. 2019'!W45 -> 0.9010328349 | F52: =IF('Dati Generali CER 1 Sem. 2019'!BJ45="","",'Dati Generali CER 1 Sem. 2019'!BJ45) -> 0.7785614556 | G52: =IF('Dati Generali CER 1 Sem. 2019'!BK45="","",'Dati Generali CER 1 Sem. 2019'!BK45) -> 0.07705202012 | H52: =IF('Dati Generali CER 1 Sem. 2019'!BL45="","",'Dati Generali CER 1 Sem. 2019'!BL45) -> 0.7015094355 | I52: ='Dati Generali CER 1 Sem. 2019'!D45 -> 1381 | J52: =IF('Dati Generali CER 1 Sem. 2019'!BN45="","",'Dati Generali CER 1 Sem. 2019'!BN45) -> 2019-10-01T08:22:00
A53: 44 | B53: ='Dati Generali CER 1 Sem. 2019'!C46 -> MALFA | C53: =IF('Dati Generali CER 1 Sem. 2019'!E46="","",'Dati Generali CER 1 Sem. 2019'!E46) -> 85000 | D53: =IF(C53="","",'Dati Generali CER 1 Sem. 2019'!BI46) -> 122940 | E53: ='Dati Generali CER 1 Sem. 2019'!W46 -> 0.5912282389 | F53: =IF('Dati Generali CER 1 Sem. 2019'!BJ46="","",'Dati Generali CER 1 Sem. 2019'!BJ46) -> 1.140853802 | G53: =IF('Dati Generali CER 1 Sem. 2019'!BK46="","",'Dati Generali CER 1 Sem. 2019'!BK46) -> 0.4663488179 | H53: =IF('Dati Generali CER 1 Sem. 2019'!BL46="","",'Dati Generali CER 1 Sem. 2019'!BL46) -> 0.6745049844 | I53: ='Dati Generali CER 1 Sem. 2019'!D46 -> 1007 | J53: =IF('Dati Generali CER 1 Sem. 2019'!BN46="","",'Dati Generali CER 1 Sem. 2019'!BN46) -> 2019-08-01T08:50:39
A54: 45 | B54: ='Dati Generali CER 1 Sem. 2019'!C47 -> MALVAGNA | C54: =IF('Dati Generali CER 1 Sem. 2019'!E47="","",'Dati Generali CER 1 Sem. 2019'!E47) -> 36168 | D54: =IF(C54="","",'Dati Generali CER 1 Sem. 2019'!BI47) -> 33280 | E54: ='Dati Generali CER 1 Sem. 2019'!W47 -> 0.4792074646 | F54: =IF('Dati Generali CER 1 Sem. 2019'!BJ47="","",'Dati Generali CER 1 Sem. 2019'!BJ47) -> 0.579593063 | G54: =IF('Dati Generali CER 1 Sem. 2019'!BK47="","",'Dati Generali CER 1 Sem. 2019'!BK47) -> 0.3018477408 | H54: =IF('Dati Generali CER 1 Sem. 2019'!BL47="","",'Dati Generali CER 1 Sem. 2019'!BL47) -> 0.2777453222 | I54: ='Dati Generali CER 1 Sem. 2019'!D47 -> 662 | J54: =IF('Dati Generali CER 1 Sem. 2019'!BN47="","",'Dati Generali CER 1 Sem. 2019'!BN47) -> 2019-11-21T16:40:25
A55: 46 | B55: ='Dati Generali CER 1 Sem. 2019'!C48 -> MANDANICI | C55: =IF('Dati Generali CER 1 Sem. 2019'!E48="","",'Dati Generali CER 1 Sem. 2019'!E48) -> 55640 | D55: =IF(C55="","",'Dati Generali CER 1 Sem. 2019'!BI48) -> 15610 | E55: ='Dati Generali CER 1 Sem. 2019'!W48 -> 0.2190877193 | F55: =IF('Dati Generali CER 1 Sem. 2019'!BJ48="","",'Dati Generali CER 1 Sem. 2019'!BJ48) -> 0.694261744 | G55: =IF('Dati Generali CER 1 Sem. 2019'!BK48="","",'Dati Generali CER 1 Sem. 2019'!BK48) -> 0.5421575219 | H55: =IF('Dati Generali CER 1 Sem. 2019'!BL48="","",'Dati Generali CER 1 Sem. 2019'!BL48) -> 0.1521042221 | I55: ='Dati Generali CER 1 Sem. 2019'!D48 -> 567 | J55: =IF('Dati Generali CER 1 Sem. 2019'!BN48="","",'Dati Generali CER 1 Sem. 2019'!BN48) -> 2019-10-04T15:09:24
A56: 47 | B56: ='Dati Generali CER 1 Sem. 2019'!C49 -> MAZZARRA' S. ANDREA | C56: =IF('Dati Generali CER 1 Sem. 2019'!E49="","",'Dati Generali CER 1 Sem. 2019'!E49) -> 48400 | D56: =IF(C56="","",'Dati Generali CER 1 Sem. 2019'!BI49) -> 127638 | E56: ='Dati Generali CER 1 Sem. 2019'!W49 -> 0.7250593622 | F56: =IF('Dati Generali CER 1 Sem. 2019'!BJ49="","",'Dati Generali CER 1 Sem. 2019'!BJ49) -> 0.6593800918 | G56: =IF('Dati Generali CER 1 Sem. 2019'!BK49="","",'Dati Generali CER 1 Sem. 2019'!BK49) -> 0.181290383 | H56: =IF('Dati Generali CER 1 Sem. 2019'!BL49="","",'Dati Generali CER 1 Sem. 2019'!BL49) -> 0.4780897088 | I56: ='Dati Generali CER 1 Sem. 2019'!D49 -> 1475 | J56: =IF('Dati Generali CER 1 Sem. 2019'!BN49="","",'Dati Generali CER 1 Sem. 2019'!BN49) -> 2019-07-25T11:34:53
A57: 48 | B57: ='Dati Generali CER 1 Sem. 2019'!C50 -> MERI' | C57: =IF('Dati Generali CER 1 Sem. 2019'!E50="","",'Dati Generali CER 1 Sem. 2019'!E50) -> 185430 | D57: =IF(C57="","",'Dati Generali CER 1 Sem. 2019'!BI50) -> 103020 | E57: ='Dati Generali CER 1 Sem. 2019'!W50 -> 0.357150286 | F57: =IF('Dati Generali CER 1 Sem. 2019'!BJ50="","",'Dati Generali CER 1 Sem. 2019'!BJ50) -> 0.676995076 | G57: =IF('Dati Generali CER 1 Sem. 2019'!BK50="","",'Dati Generali CER 1 Sem. 2019'!BK50) -> 0.435206091 | H57: =IF('Dati Generali CER 1 Sem. 2019'!BL50="","",'Dati Generali CER 1 Sem. 2019'!BL50) -> 0.241788985 | I57: ='Dati Generali CER 1 Sem. 2019'!D50 -> 2354 | J57: =IF('Dati Generali CER 1 Sem. 2019'!BN50="","",'Dati Generali CER 1 Sem. 2019'!BN50) -> 2019-10-21T11:38:32
A58: 49 | B58: ='Dati Generali CER 1 Sem. 2019'!C51 -> MESSINA | C58: =IF('Dati Generali CER 1 Sem. 2019'!E51="","",'Dati Generali CER 1 Sem. 2019'!E51) -> 44327045 | D58: =IF(C58="","",'Dati Generali CER 1 Sem. 2019'!BI51) -> 11419123 | E58: ='Dati Generali CER 1 Sem. 2019'!W51 -> 0.2048413982 | F58: =IF('Dati Generali CER 1 Sem. 2019'!BJ51="","",'Dati Generali CER 1 Sem. 2019'!BJ51) -> 1.337446602 | G58: =IF('Dati Generali CER 1 Sem. 2019'!BK51="","",'Dati Generali CER 1 Sem. 2019'!BK51) -> 1.06348217 | H58: =IF('Dati Generali CER 1 Sem. 2019'!BL51="","",'Dati Generali CER 1 Sem. 2019'!BL51) -> 0.2739644321 | I58: ='Dati Generali CER 1 Sem. 2019'!D51 -> 230282 | J58: =IF('Dati Generali CER 1 Sem. 2019'!BN51="","",'Dati Generali CER 1 Sem. 2019'!BN51) -> 2019-08-06T08:34:34
A59: 50 | B59: ='Dati Generali CER 1 Sem. 2019'!C52 -> MILAZZO | C59: =IF('Dati Generali CER 1 Sem. 2019'!E52="","",'Dati Generali CER 1 Sem. 2019'!E52) -> 6430040 | D59: =IF(C59="","",'Dati Generali CER 1 Sem. 2019'!BI52) -> 1239090 | E59: ='Dati Generali CER 1 Sem. 2019'!W52 -> 0.1612829327 | F59: =IF('Dati Generali CER 1 Sem. 2019'!BJ52="","",'Dati Generali CER 1 Sem. 2019'!BJ52) -> 1.375345461 | G59: =IF('Dati Generali CER 1 Sem. 2019'!BK52="","",'Dati Generali CER 1 Sem. 2019'!BK52) -> 1.151094643 | H59: =IF('Dati Generali CER 1 Sem. 2019'!BL52="","",'Dati Generali CER 1 Sem. 2019'!BL52) -> 0.2218197494 | I59: ='Dati Generali CER 1 Sem. 2019'!D52 -> 30862 | J59: =IF('Dati Generali CER 1 Sem. 2019'!BN52="","",'Dati Generali CER 1 Sem. 2019'!BN52) -> 2019-07-17T10:13:59
A60: 51 | B60: ='Dati Generali CER 1 Sem. 2019'!C53 -> MILITELLO ROSMARINO | C60: =IF('Dati Generali CER 1 Sem. 2019'!E53="","",'Dati Generali CER 1 Sem. 2019'!E53) -> 133660 | D60: =IF(C60="","",'Dati Generali CER 1 Sem. 2019'!BI53) -> 50184 | E60: ='Dati Generali CER 1 Sem. 2019'!W53 -> 0.2710597386 | F60: =IF('Dati Generali CER 1 Sem. 2019'!BJ53="","",'Dati Generali CER 1 Sem. 2019'!BJ53) -> 0.8255632996 | G60: =IF('Dati Generali CER 1 Sem. 2019'!BK53="","",'Dati Generali CER 1 Sem. 2019'!BK53) -> 0.5960072951 | H60: =IF('Dati Generali CER 1 Sem. 2019'!BL53="","",'Dati Generali CER 1 Sem. 2019'!BL53) -> 0.2237769722 | I60: ='Dati Generali CER 1 Sem. 2019'!D53 -> 1239 | J60: =IF('Dati Generali CER 1 Sem. 2019'!BN53="","",'Dati Generali CER 1 Sem. 2019'!BN53) -> 2019-08-01T08:53:57
A61: 52 | B61: ='Dati Generali CER 1 Sem. 2019'!C54 -> MIRTO | C61: =IF('Dati Generali CER 1 Sem. 2019'!E54="","",'Dati Generali CER 1 Sem. 2019'!E54) -> 88260 | D61: =IF(C61="","",'Dati Generali CER 1 Sem. 2019'!BI54) -> 76470 | E61: ='Dati Generali CER 1 Sem. 2019'!W54 -> 0.4642141686 | F61: =IF('Dati Generali CER 1 Sem. 2019'!BJ54="","",'Dati Generali CER 1 Sem. 2019'!BJ54) -> 0.9713025584 | G61: =IF('Dati Generali CER 1 Sem. 2019'!BK54="","",'Dati Generali CER 1 Sem. 2019'!BK54) -> 0.5204101488 | H61: =IF('Dati Generali CER 1 Sem. 2019'!BL54="","",'Dati Generali CER 1 Sem. 2019'!BL54) -> 0.4508924097 | I61: ='Dati Generali CER 1 Sem. 2019'!D54 -> 937 | J61: =IF('Dati Generali CER 1 Sem. 2019'!BN54="","",'Dati Generali CER 1 Sem. 2019'!BN54) -> 2019-07-17T10:17:17
A62: 53 | B62: ='Dati Generali CER 1 Sem. 2019'!C55 -> MISTRETTA | C62: =IF('Dati Generali CER 1 Sem. 2019'!E55="","",'Dati Generali CER 1 Sem. 2019'!E55) -> 466080 | D62: =IF(C62="","",'Dati Generali CER 1 Sem. 2019'!BI55) -> 320560 | E62: ='Dati Generali CER 1 Sem. 2019'!W55 -> 0.4075053392 | F62: =IF('Dati Generali CER 1 Sem. 2019'!BJ55="","",'Dati Generali CER 1 Sem. 2019'!BJ55) -> 0.9532961939 | G62: =IF('Dati Generali CER 1 Sem. 2019'!BK55="","",'Dati Generali CER 1 Sem. 2019'!BK55) -> 0.5648229051 | H62: =IF('Dati Generali CER 1 Sem. 2019'!BL55="","",'Dati Generali CER 1 Sem. 2019'!BL55) -> 0.3884732888 | I62: ='Dati Generali CER 1 Sem. 2019'!D55 -> 4559 | J62: =IF('Dati Generali CER 1 Sem. 2019'!BN55="","",'Dati Generali CER 1 Sem. 2019'!BN55) -> 2019-07-30T10:14:27
A63: 54 | B63: ='Dati Generali CER 1 Sem. 2019'!C56 -> MOJO ALCANTARA | C63: =IF('Dati Generali CER 1 Sem. 2019'!E56="","",'Dati Generali CER 1 Sem. 2019'!E56) -> 73588 | D63: =IF(C63="","",'Dati Generali CER 1 Sem. 2019'!BI56) -> 34170 | E63: ='Dati Generali CER 1 Sem. 2019'!W56 -> 0.3170994265 | F63: =IF('Dati Generali CER 1 Sem. 2019'!BJ56="","",'Dati Generali CER 1 Sem. 2019'!BJ56) -> 0.8553851527 | G63: =IF('Dati Generali CER 1 Sem. 2019'!BK56="","",'Dati Generali CER 1 Sem. 2019'!BK56) -> 0.5841430114 | H63: =IF('Dati Generali CER 1 Sem. 2019'!BL56="","",'Dati Generali CER 1 Sem. 2019'!BL56) -> 0.2712421414 | I63: ='Dati Generali CER 1 Sem. 2019'!D56 -> 696 | J63: =IF('Dati Generali CER 1 Sem. 2019'!BN56="","",'Dati Generali CER 1 Sem. 2019'!BN56) -> 2019-11-06T12:59:48
A64: 55 | B64: ='Dati Generali CER 1 Sem. 2019'!C57 -> MONFORTE S. GIORGIO | C64: =IF('Dati Generali CER 1 Sem. 2019'!E57="","",'Dati Generali CER 1 Sem. 2019'!E57) -> 327000 | D64: =IF(C64="","",'Dati Generali CER 1 Sem. 2019'!BI57) -> 178690 | E64: ='Dati Generali CER 1 Sem. 2019'!W57 -> 0.3483575397 | F64: =IF('Dati Generali CER 1 Sem. 2019'!BJ57="","",'Dati Generali CER 1 Sem. 2019'!BJ57) -> 1.075105425 | G64: =IF('Dati Generali CER 1 Sem. 2019'!BK57="","",'Dati Generali CER 1 Sem. 2019'!BK57) -> 0.6853679189 | H64: =IF('Dati Generali CER 1 Sem. 2019'!BL57="","",'Dati Generali CER 1 Sem. 2019'!BL57) -> 0.3745210808 | I64: ='Dati Generali CER 1 Sem. 2019'!D57 -> 2636 | J64: =IF('Dati Generali CER 1 Sem. 2019'!BN57="","",'Dati Generali CER 1 Sem. 2019'!BN57) -> 2019-07-23T10:09:19
A65: 56 | B65: ='Dati Generali CER 1 Sem. 2019'!C58 -> MONGIUFFI MELIA | C65: =IF('Dati Generali CER 1 Sem. 2019'!E58="","",'Dati Generali CER 1 Sem. 2019'!E58) -> 54850 | D65: =IF(C65="","",'Dati Generali CER 1 Sem. 2019'!BI58) -> 14130 | E65: ='Dati Generali CER 1 Sem. 2019'!W58 -> 0.2048419832 | F65: =IF('Dati Generali CER 1 Sem. 2019'!BJ58="","",'Dati Generali CER 1 Sem. 2019'!BJ58) -> 0.6721428084 | G65: =IF('Dati Generali CER 1 Sem. 2019'!BK58="","",'Dati Generali CER 1 Sem. 2019'!BK58) -> 0.5344597426 | H65: =IF('Dati Generali CER 1 Sem. 2019'!BL58="","",'Dati Generali CER 1 Sem. 2019'!BL58) -> 0.1376830659 | I65: ='Dati Generali CER 1 Sem. 2019'!D58 -> 567 | J65: =IF('Dati Generali CER 1 Sem. 2019'!BN58="","",'Dati Generali CER 1 Sem. 2019'!BN58) -> 2019-07-23T10:41:10
A66: 57 | B66: ='Dati Generali CER 1 Sem. 2019'!C59 -> MONTAGNAREALE | C66: =IF('Dati Generali CER 1 Sem. 2019'!E59="","",'Dati Generali CER 1 Sem. 2019'!E59) -> 158640 | D66: =IF(C66="","",'Dati Generali CER 1 Sem. 2019'!BI59) -> 61320 | E66: ='Dati Generali CER 1 Sem. 2019'!W59 -> 0.2787779596 | F66: =IF('Dati Generali CER 1 Sem. 2019'!BJ59="","",'Dati Generali CER 1 Sem. 2019'!BJ59) -> 0.8123319644 | G66: =IF('Dati Generali CER 1 Sem. 2019'!BK59="","",'Dati Generali CER 1 Sem. 2019'!BK59) -> 0.5858717168 | H66: =IF('Dati Generali CER 1 Sem. 2019'!BL59="","",'Dati Generali CER 1 Sem. 2019'!BL59) -> 0.2264602476 | I66: ='Dati Generali CER 1 Sem. 2019'!D59 -> 1496 | J66: =IF('Dati Generali CER 1 Sem. 2019'!BN59="","",'Dati Generali CER 1 Sem. 2019'!BN59) -> 2019-10-02T09:15:33
A67: 58 | B67: ='Dati Generali CER 1 Sem. 2019'!C60 -> MONTALBANO ELICONA | C67: =IF('Dati Generali CER 1 Sem. 2019'!E60="","",'Dati Generali CER 1 Sem. 2019'!E60) -> 110240 | D67: =IF(C67="","",'Dati Generali CER 1 Sem. 2019'!BI60) -> 163000 | E67: ='Dati Generali CER 1 Sem. 2019'!W60 -> 0.5965451618 | F67: =IF('Dati Generali CER 1 Sem. 2019'!BJ60="","",'Dati Generali CER 1 Sem. 2019'!BJ60) -> 0.7094047273 | G67: =IF('Dati Generali CER 1 Sem. 2019'!BK60="","",'Dati Generali CER 1 Sem. 2019'!BK60) -> 0.2862127695 | H67: =IF('Dati Generali CER 1 Sem. 2019'!BL60="","",'Dati Generali CER 1 Sem. 2019'!BL60) -> 0.4231919578 | I67: ='Dati Generali CER 1 Sem. 2019'!D60 -> 2128 | J67: =IF('Dati Generali CER 1 Sem. 2019'!BN60="","",'Dati Generali CER 1 Sem. 2019'!BN60) -> 2019-08-01T08:56:44
A68: 59 | B68: ='Dati Generali CER 1 Sem. 2019'!C61 -> MOTTA CAMASTRA | C68: =IF('Dati Generali CER 1 Sem. 2019'!E61="","",'Dati Generali CER 1 Sem. 2019'!E61) -> 87178 | D68: =IF(C68="","",'Dati Generali CER 1 Sem. 2019'!BI61) -> 32760 | E68: ='Dati Generali CER 1 Sem. 2019'!W61 -> 0.2731411229 | F68: =IF('Dati Generali CER 1 Sem. 2019'!BJ61="","",'Dati Generali CER 1 Sem. 2019'!BJ61) -> 0.8110659535 | G68: =IF('Dati Generali CER 1 Sem. 2019'!BK61="","",'Dati Generali CER 1 Sem. 2019'!BK61) -> 0.5895304882 | H68: =IF('Dati Generali CER 1 Sem. 2019'!BL61="","",'Dati Generali CER 1 Sem. 2019'!BL61) -> 0.2215354653 | I68: ='Dati Generali CER 1 Sem. 2019'!D61 -> 817 | J68: =IF('Dati Generali CER 1 Sem. 2019'!BN61="","",'Dati Generali CER 1 Sem. 2019'!BN61) -> 2019-10-14T09:31:16
A69: 60 | B69: ='Dati Generali CER 1 Sem. 2019'!C62 -> MOTTA D'AFFERMO | C69: =IF('Dati Generali CER 1 Sem. 2019'!E62="","",'Dati Generali CER 1 Sem. 2019'!E62) -> 33680 | D69: =IF(C69="","",'Dati Generali CER 1 Sem. 2019'!BI62) -> 56944 | E69: ='Dati Generali CER 1 Sem. 2019'!W62 -> 0.6283545198 | F69: =IF('Dati Generali CER 1 Sem. 2019'!BJ62="","",'Dati Generali CER 1 Sem. 2019'!BJ62) -> 0.7363015925 | G69: =IF('Dati Generali CER 1 Sem. 2019'!BK62="","",'Dati Generali CER 1 Sem. 2019'!BK62) -> 0.2736431589 | H69: =IF('Dati Generali CER 1 Sem. 2019'!BL62="","",'Dati Generali CER 1 Sem. 2019'!BL62) -> 0.4626584335 | I69: ='Dati Generali CER 1 Sem. 2019'!D62 -> 680 | J69: =IF('Dati Generali CER 1 Sem. 2019'!BN62="","",'Dati Generali CER 1 Sem. 2019'!BN62) -> 2019-10-02T09:13:45
A70: 61 | B70: ='Dati Generali CER 1 Sem. 2019'!C63 -> NASO | C70: =IF('Dati Generali CER 1 Sem. 2019'!E63="","",'Dati Generali CER 1 Sem. 2019'!E63) -> 156800 | D70: =IF(C70="","",'Dati Generali CER 1 Sem. 2019'!BI63) -> 333946 | E70: ='Dati Generali CER 1 Sem. 2019'!W63 -> 0.6804864431 | F70: =IF('Dati Generali CER 1 Sem. 2019'!BJ63="","",'Dati Generali CER 1 Sem. 2019'!BJ63) -> 0.7520953862 | G70: =IF('Dati Generali CER 1 Sem. 2019'!BK63="","",'Dati Generali CER 1 Sem. 2019'!BK63) -> 0.240304672 | H70: =IF('Dati Generali CER 1 Sem. 2019'!BL63="","",'Dati Generali CER 1 Sem. 2019'!BL63) -> 0.5117907142 | I70: ='Dati Generali CER 1 Sem. 2019'!D63 -> 3605 | J70: =IF('Dati Generali CER 1 Sem. 2019'!BN63="","",'Dati Generali CER 1 Sem. 2019'!BN63) -> 2019-09-30T16:52:08
A71: 62 | B71: ='Dati Generali CER 1 Sem. 2019'!C64 -> NIZZA DI SICILIA | C71: =IF('Dati Generali CER 1 Sem. 2019'!E64="","",'Dati Generali CER 1 Sem. 2019'!E64) -> 130990 | D71: =IF(C71="","",'Dati Generali CER 1 Sem. 2019'!BI64) -> 341265 | E71: ='Dati Generali CER 1 Sem. 2019'!W64 -> 0.7226286646 | F71: =IF('Dati Generali CER 1 Sem. 2019'!BJ64="","",'Dati Generali CER 1 Sem. 2019'!BJ64) -> 0.7199623748 | G71: =IF('Dati Generali CER 1 Sem. 2019'!BK64="","",'Dati Generali CER 1 Sem. 2019'!BK64) -> 0.1996969253 | H71: =IF('Dati Generali CER 1 Sem. 2019'!BL64="","",'Dati Generali CER 1 Sem. 2019'!BL64) -> 0.5202654495 | I71: ='Dati Generali CER 1 Sem. 2019'!D64 -> 3624 | J71: =IF('Dati Generali CER 1 Sem. 2019'!BN64="","",'Dati Generali CER 1 Sem. 2019'!BN64) -> 2019-10-17T15:31:57
A72: 63 | B72: ='Dati Generali CER 1 Sem. 2019'!C65 -> NOVARA DI SICILIA | C72: =IF('Dati Generali CER 1 Sem. 2019'!E65="","",'Dati Generali CER 1 Sem. 2019'!E65) -> 91740 | D72: =IF(C72="","",'Dati Generali CER 1 Sem. 2019'!BI65) -> 110510 | E72: ='Dati Generali CER 1 Sem. 2019'!W65 -> 0.5464029666 | F72: =IF('Dati Generali CER 1 Sem. 2019'!BJ65="","",'Dati Generali CER 1 Sem. 2019'!BJ65) -> 0.8903612071 | G72: =IF('Dati Generali CER 1 Sem. 2019'!BK65="","",'Dati Generali CER 1 Sem. 2019'!BK65) -> 0.4038652022 | H72: =IF('Dati Generali CER 1 Sem. 2019'!BL65="","",'Dati Generali CER 1 Sem. 2019'!BL65) -> 0.4864960049 | I72: ='Dati Generali CER 1 Sem. 2019'!D65 -> 1255 | J72: =IF('Dati Generali CER 1 Sem. 2019'!BN65="","",'Dati Generali CER 1 Sem. 2019'!BN65) -> 2019-10-14T09:49:21
A73: 64 | B73: ='Dati Generali CER 1 Sem. 2019'!C66 -> OLIVERI | C73: =IF('Dati Generali CER 1 Sem. 2019'!E66="","",'Dati Generali CER 1 Sem. 2019'!E66) -> 181340 | D73: =IF(C73="","",'Dati Generali CER 1 Sem. 2019'!BI66) -> 268230 | E73: ='Dati Generali CER 1 Sem. 2019'!W66 -> 0.5966367863 | F73: =IF('Dati Generali CER 1 Sem. 2019'!BJ66="","",'Dati Generali CER 1 Sem. 2019'!BJ66) -> 1.174379269 | G73: =IF('Dati Generali CER 1 Sem. 2019'!BK66="","",'Dati Generali CER 1 Sem. 2019'!BK66) -> 0.4737013962 | H73: =IF('Dati Generali CER 1 Sem. 2019'!BL66="","",'Dati Generali CER 1 Sem. 2019'!BL66) -> 0.7006778731 | I73: ='Dati Generali CER 1 Sem. 2019'!D66 -> 2115 | J73: =IF('Dati Generali CER 1 Sem. 2019'!BN66="","",'Dati Generali CER 1 Sem. 2019'!BN66) -> 2019-10-21T12:52:40
A74: 65 | B74: ='Dati Generali CER 1 Sem. 2019'!C67 -> PACE DEL MELA | C74: =IF('Dati Generali CER 1 Sem. 2019'!E67="","",'Dati Generali CER 1 Sem. 2019'!E67) -> 414220 | D74: =IF(C74="","",'Dati Generali CER 1 Sem. 2019'!BI67) -> 750535 | E74: ='Dati Generali CER 1 Sem. 2019'!W67 -> 0.6429584131 | F74: =IF('Dati Generali CER 1 Sem. 2019'!BJ67="","",'Dati Generali CER 1 Sem. 2019'!BJ67) -> 1.035193281 | G74: =IF('Dati Generali CER 1 Sem. 2019'!BK67="","",'Dati Generali CER 1 Sem. 2019'!BK67) -> 0.3673368037 | H74: =IF('Dati Generali CER 1 Sem. 2019'!BL67="","",'Dati Generali CER 1 Sem. 2019'!BL67) -> 0.6655862295 | I74: ='Dati Generali CER 1 Sem. 2019'!D67 -> 6230 | J74: =IF('Dati Generali CER 1 Sem. 2019'!BN67="","",'Dati Generali CER 1 Sem. 2019'!BN67) -> 2019-10-16T14:30:57
A75: 66 | B75: ='Dati Generali CER 1 Sem. 2019'!C68 -> PAGLIARA | C75: =IF('Dati Generali CER 1 Sem. 2019'!E68="","",'Dati Generali CER 1 Sem. 2019'!E68) -> 218160 | D75: =IF(C75="","",'Dati Generali CER 1 Sem. 2019'!BI68) -> 1560 | E75: ='Dati Generali CER 1 Sem. 2019'!W68 -> 0.007099945385 | F75: =IF('Dati Generali CER 1 Sem. 2019'!BJ68="","",'Dati Generali CER 1 Sem. 2019'!BJ68) -> 1.080964071 | G75: =IF('Dati Generali CER 1 Sem. 2019'!BK68="","",'Dati Generali CER 1 Sem. 2019'!BK68) -> 1.073289285 | H75: =IF('Dati Generali CER 1 Sem. 2019'!BL68="","",'Dati Generali CER 1 Sem. 2019'!BL68) -> 0.007674785869 | I75: ='Dati Generali CER 1 Sem. 2019'!D68 -> 1123 | J75: =IF('Dati Generali CER 1 Sem. 2019'!BN68="","",'Dati Generali CER 1 Sem. 2019'!BN68) -> 2019-07-24T12:51:09
A76: 67 | B76: ='Dati Generali CER 1 Sem. 2019'!C69 -> PATTI | C76: =IF('Dati Generali CER 1 Sem. 2019'!E69="","",'Dati Generali CER 1 Sem. 2019'!E69) -> 980960 | D76: =IF(C76="","",'Dati Generali CER 1 Sem. 2019'!BI69) -> 1702470 | E76: ='Dati Generali CER 1 Sem. 2019'!W69 -> 0.634438014 | F76: =IF('Dati Generali CER 1 Sem. 2019'!BJ69="","",'Dati Generali CER 1 Sem. 2019'!BJ69) -> 1.129912363 | G76: =IF('Dati Generali CER 1 Sem. 2019'!BK69="","",'Dati Generali CER 1 Sem. 2019'!BK69) -> 0.4130530073 | H76: =IF('Dati Generali CER 1 Sem. 2019'!BL69="","",'Dati Generali CER 1 Sem. 2019'!BL69) -> 0.7168593554 | I76: ='Dati Generali CER 1 Sem. 2019'!D69 -> 13121 | J76: =IF('Dati Generali CER 1 Sem. 2019'!BN69="","",'Dati Generali CER 1 Sem. 2019'!BN69) -> 2020-02-24T10:58:53
A77: 68 | B77: ='Dati Generali CER 1 Sem. 2019'!C70 -> PETTINEO | C77: =IF('Dati Generali CER 1 Sem. 2019'!E70="","",'Dati Generali CER 1 Sem. 2019'!E70) -> 50080 | D77: =IF(C77="","",'Dati Generali CER 1 Sem. 2019'!BI70) -> 106860 | E77: ='Dati Generali CER 1 Sem. 2019'!W70 -> 0.6808971581 | F77: =IF('Dati Generali CER 1 Sem. 2019'!BJ70="","",'Dati Generali CER 1 Sem. 2019'!BJ70) -> 0.6897946088 | G77: =IF('Dati Generali CER 1 Sem. 2019'!BK70="","",'Dati Generali CER 1 Sem. 2019'!BK70) -> 0.2201154199 | H77: =IF('Dati Generali CER 1 Sem. 2019'!BL70="","",'Dati Generali CER 1 Sem. 2019'!BL70) -> 0.4696791888 | I77: ='Dati Generali CER 1 Sem. 2019'!D70 -> 1257 | J77: =IF('Dati Generali CER 1 Sem. 2019'!BN70="","",'Dati Generali CER 1 Sem. 2019'!BN70) -> 2019-09-30T16:55:03
A78: 69 | B78: ='Dati Generali CER 1 Sem. 2019'!C71 -> PIRAINO | C78: =IF('Dati Generali CER 1 Sem. 2019'!E71="","",'Dati Generali CER 1 Sem. 2019'!E71) -> 398880 | D78: =IF(C78="","",'Dati Generali CER 1 Sem. 2019'!BI71) -> 276990 | E78: ='Dati Generali CER 1 Sem. 2019'!W71 -> 0.4098273337 | F78: =IF('Dati Generali CER 1 Sem. 2019'!BJ71="","",'Dati Generali CER 1 Sem. 2019'!BJ71) -> 0.9636357156 | G78: =IF('Dati Generali CER 1 Sem. 2019'!BK71="","",'Dati Generali CER 1 Sem. 2019'!BK71) -> 0.5687114596 | H78: =IF('Dati Generali CER 1 Sem. 2019'!BL71="","",'Dati Generali CER 1 Sem. 2019'!BL71) -> 0.3949242559 | I78: ='Dati Generali CER 1 Sem. 2019'!D71 -> 3875 | J78: =IF('Dati Generali CER 1 Sem. 2019'!BN71="","",'Dati Generali CER 1 Sem. 2019'!BN71) -> 2019-10-01T08:44:40
A79: 70 | B79: ='Dati Generali CER 1 Sem. 2019'!C72 -> RACCUJA | C79: =IF('Dati Generali CER 1 Sem. 2019'!E72="","",'Dati Generali CER 1 Sem. 2019'!E72) -> 67640 | D79: =IF(C79="","",'Dati Generali CER 1 Sem. 2019'!BI72) -> 60480 | E79: ='Dati Generali CER 1 Sem. 2019'!W72 -> 0.4720574461 | F79: =IF('Dati Generali CER 1 Sem. 2019'!BJ72="","",'Dati Generali CER 1 Sem. 2019'!BJ72) -> 0.757864351 | G79: =IF('Dati Generali CER 1 Sem. 2019'!BK72="","",'Dati Generali CER 1 Sem. 2019'!BK72) -> 0.400108841 | H79: =IF('Dati Generali CER 1 Sem. 2019'!BL72="","",'Dati Generali CER 1 Sem. 2019'!BL72) -> 0.3577555101 | I79: ='Dati Generali CER 1 Sem. 2019'!D72 -> 934 | J79: =IF('Dati Generali CER 1 Sem. 2019'!BN72="","",'Dati Generali CER 1 Sem. 2019'!BN72) -> 2019-10-09T08:38:28
A80: 71 | B80: ='Dati Generali CER 1 Sem. 2019'!C73 -> REITANO | C80: =IF('Dati Generali CER 1 Sem. 2019'!E73="","",'Dati Generali CER 1 Sem. 2019'!E73) -> 63200 | D80: =IF(C80="","",'Dati Generali CER 1 Sem. 2019'!BI73) -> 127020 | E80: ='Dati Generali CER 1 Sem. 2019'!W73 -> 0.667753128 | F80: =IF('Dati Generali CER 1 Sem. 2019'!BJ73="","",'Dati Generali CER 1 Sem. 2019'!BJ73) -> 1.382814772 | G80: =IF('Dati Generali CER 1 Sem. 2019'!BK73="","",'Dati Generali CER 1 Sem. 2019'!BK73) -> 0.4594358825 | H80: =IF('Dati Generali CER 1 Sem. 2019'!BL73="","",'Dati Generali CER 1 Sem. 2019'!BL73) -> 0.9233788892 | I80: ='Dati Generali CER 1 Sem. 2019'!D73 -> 760 | J80: =IF('Dati Generali CER 1 Sem. 2019'!BN73="","",'Dati Generali CER 1 Sem. 2019'!BN73) -> 2019-10-10T15:42:40
A81: 72 | B81: ='Dati Generali CER 1 Sem. 2019'!C74 -> ROCCAFIORITA | C81: =IF('Dati Generali CER 1 Sem. 2019'!E74="","",'Dati Generali CER 1 Sem. 2019'!E74) -> 4850 | D81: =IF(C81="","",'Dati Generali CER 1 Sem. 2019'!BI74) -> 8570 | E81: ='Dati Generali CER 1 Sem. 2019'!W74 -> 0.6385991058 | F81: =IF('Dati Generali CER 1 Sem. 2019'!BJ74="","",'Dati Generali CER 1 Sem. 2019'!BJ74) -> 0.3922944254 | G81: =IF('Dati Generali CER 1 Sem. 2019'!BK74="","",'Dati Generali CER 1 Sem. 2019'!BK74) -> 0.1417755561 | H81: =IF('Dati Generali CER 1 Sem. 2019'!BL74="","",'Dati Generali CER 1 Sem. 2019'!BL74) -> 0.2505188693 | I81: ='Dati Generali CER 1 Sem. 2019'!D74 -> 189 | J81: =IF('Dati Generali CER 1 Sem. 2019'!BN74="","",'Dati Generali CER 1 Sem. 2019'!BN74) -> 2019-12-12T10:30:35
A82: 73 | B82: ='Dati Generali CER 1 Sem. 2019'!C75 -> ROCCALUMERA | C82: =IF('Dati Generali CER 1 Sem. 2019'!E75="","",'Dati Generali CER 1 Sem. 2019'!E75) -> 202420 | D82: =IF(C82="","",'Dati Generali CER 1 Sem. 2019'!BI75) -> 484400 | E82: ='Dati Generali CER 1 Sem. 2019'!W75 -> 0.7052794036 | F82: =IF('Dati Generali CER 1 Sem. 2019'!BJ75="","",'Dati Generali CER 1 Sem. 2019'!BJ75) -> 0.920122608 | G82: =IF('Dati Generali CER 1 Sem. 2019'!BK75="","",'Dati Generali CER 1 Sem. 2019'!BK75) -> 0.2711790838 | H82: =IF('Dati Generali CER 1 Sem. 2019'!BL75="","",'Dati Generali CER 1 Sem. 2019'!BL75) -> 0.6489435242 | I82: ='Dati Generali CER 1 Sem. 2019'!D75 -> 4124 | J82: =IF('Dati Generali CER 1 Sem. 2019'!BN75="","",'Dati Generali CER 1 Sem. 2019'!BN75) -> 2019-10-01T08:28:04
A83: 74 | B83: ='Dati Generali CER 1 Sem. 2019'!C76 -> ROCCAVALDINA | C83: =IF('Dati Generali CER 1 Sem. 2019'!E76="","",'Dati Generali CER 1 Sem. 2019'!E76) -> 68020 | D83: =IF(C83="","",'Dati Generali CER 1 Sem. 2019'!BI76) -> 103320 | E83: ='Dati Generali CER 1 Sem. 2019'!W76 -> 0.603011556 | F83: =IF('Dati Generali CER 1 Sem. 2019'!BJ76="","",'Dati Generali CER 1 Sem. 2019'!BJ76) -> 0.8998382455 | G83: =IF('Dati Generali CER 1 Sem. 2019'!BK76="","",'Dati Generali CER 1 Sem. 2019'!BK76) -> 0.357225385 | H83: =IF('Dati Generali CER 1 Sem. 2019'!BL76="","",'Dati Generali CER 1 Sem. 2019'!BL76) -> 0.5426128605 | I83: ='Dati Generali CER 1 Sem. 2019'!D76 -> 1052 | J83: =IF('Dati Generali CER 1 Sem. 2019'!BN76="","",'Dati Generali CER 1 Sem. 2019'!BN76) -> 2019-07-17T07:57:08
A84: 75 | B84: ='Dati Generali CER 1 Sem. 2019'!C77 -> ROCCELLA VALDEMONE | C84: =IF('Dati Generali CER 1 Sem. 2019'!E77="","",'Dati Generali CER 1 Sem. 2019'!E77) -> 60058 | D84: =IF(C84="","",'Dati Generali CER 1 Sem. 2019'!BI77) -> 22280 | E84: ='Dati Generali CER 1 Sem. 2019'!W77 -> 0.2705919503 | F84: =IF('Dati Generali CER 1 Sem. 2019'!BJ77="","",'Dati Generali CER 1 Sem. 2019'!BJ77) -> 0.7581767956 | G84: =IF('Dati Generali CER 1 Sem. 2019'!BK77="","",'Dati Generali CER 1 Sem. 2019'!BK77) -> 0.5530202578 | H84: =IF('Dati Generali CER 1 Sem. 2019'!BL77="","",'Dati Generali CER 1 Sem. 2019'!BL77) -> 0.2051565378 | I84: ='Dati Generali CER 1 Sem. 2019'!D77 -> 600 | J84: =IF('Dati Generali CER 1 Sem. 2019'!BN77="","",'Dati Generali CER 1 Sem. 2019'!BN77) -> 2019-10-14T11:10:24
A85: 76 | B85: ='Dati Generali CER 1 Sem. 2019'!C78 -> RODI' MILICI | C85: =IF('Dati Generali CER 1 Sem. 2019'!E78="","",'Dati Generali CER 1 Sem. 2019'!E78) -> 81860 | D85: =IF(C85="","",'Dati Generali CER 1 Sem. 2019'!BI78) -> 222082 | E85: ='Dati Generali CER 1 Sem. 2019'!W78 -> 0.7306722993 | F85: =IF('Dati Generali CER 1 Sem. 2019'!BJ78="","",'Dati Generali CER 1 Sem. 2019'!BJ78) -> 0.8421452202 | G85: =IF('Dati Generali CER 1 Sem. 2019'!BK78="","",'Dati Generali CER 1 Sem. 2019'!BK78) -> 0.2268130358 | H85: =IF('Dati Generali CER 1 Sem. 2019'!BL78="","",'Dati Generali CER 1 Sem. 2019'!BL78) -> 0.6153321844 | I85: ='Dati Generali CER 1 Sem. 2019'!D78 -> 1994 | J85: =IF('Dati Generali CER 1 Sem. 2019'!BN78="","",'Dati Generali CER 1 Sem. 2019'!BN78) -> 2019-07-16T10:28:48
A86: 77 | B86: ='Dati Generali CER 1 Sem. 2019'!C79 -> ROMETTA | C86: =IF('Dati Generali CER 1 Sem. 2019'!E79="","",'Dati Generali CER 1 Sem. 2019'!E79) -> 146220 | D86: =IF(C86="","",'Dati Generali CER 1 Sem. 2019'!BI79) -> 1031349 | E86: ='Dati Generali CER 1 Sem. 2019'!W79 -> 0.8758289323 | F86: =IF('Dati Generali CER 1 Sem. 2019'!BJ79="","",'Dati Generali CER 1 Sem. 2019'!BJ79) -> 0.99387505 | G86: =IF('Dati Generali CER 1 Sem. 2019'!BK79="","",'Dati Generali CER 1 Sem. 2019'!BK79) -> 0.1234105261 | H86: =IF('Dati Generali CER 1 Sem. 2019'!BL79="","",'Dati Generali CER 1 Sem. 2019'!BL79) -> 0.8704645239 | I86: ='Dati Generali CER 1 Sem. 2019'!D79 -> 6546 | J86: =IF('Dati Generali CER 1 Sem. 2019'!BN79="","",'Dati Generali CER 1 Sem. 2019'!BN79) -> 2019-07-10T11:52:33
A87: 78 | B87: ='Dati Generali CER 1 Sem. 2019'!C82 -> S. AGATA DI MILITELLO | C87: =IF('Dati Generali CER 1 Sem. 2019'!E82="","",'Dati Generali CER 1 Sem. 2019'!E82) -> 1366340 | D87: =IF(C87="","",'Dati Generali CER 1 Sem. 2019'!BI82) -> 1159432 | E87: ='Dati Generali CER 1 Sem. 2019'!W82 -> 0.4590406418 | F87: =IF('Dati Generali CER 1 Sem. 2019'!BJ82="","",'Dati Generali CER 1 Sem. 2019'!BJ82) -> 1.133409798 | G87: =IF('Dati Generali CER 1 Sem. 2019'!BK82="","",'Dati Generali CER 1 Sem. 2019'!BK82) -> 0.613128637 | H87: =IF('Dati Generali CER 1 Sem. 2019'!BL82="","",'Dati Generali CER 1 Sem. 2019'!BL82) -> 0.5202811613 | I87: ='Dati Generali CER 1 Sem. 2019'!D82 -> 12312 | J87: =IF('Dati Generali CER 1 Sem. 2019'!BN82="","",'Dati Generali CER 1 Sem. 2019'!BN82) -> 2019-07-23T10:14:07
A88: 79 | B88: ='Dati Generali CER 1 Sem. 2019'!C93 -> S. ALESSIO SICULO | C88: =IF('Dati Generali CER 1 Sem. 2019'!E93="","",'Dati Generali CER 1 Sem. 2019'!E93) -> 286010 | D88: =IF(C88="","",'Dati Generali CER 1 Sem. 2019'!BI93) -> 82420 | E88: ='Dati Generali CER 1 Sem. 2019'!W93 -> 0.2237059957 | F88: =IF('Dati Generali CER 1 Sem. 2019'!BJ93="","",'Dati Generali CER 1 Sem. 2019'!BJ93) -> 1.34802971 | G88: =IF('Dati Generali CER 1 Sem. 2019'!BK93="","",'Dati Generali CER 1 Sem. 2019'!BK93) -> 1.046467381 | H88: =IF('Dati Generali CER 1 Sem. 2019'!BL93="","",'Dati Generali CER 1 Sem. 2019'!BL93) -> 0.3015623285 | I88: ='Dati Generali CER 1 Sem. 2019'!D93 -> 1510 | J88: =IF('Dati Generali CER 1 Sem. 2019'!BN93="","",'Dati Generali CER 1 Sem. 2019'!BN93) -> 2019-11-05T09:42:51
A89: 80 | B89: ='Dati Generali CER 1 Sem. 2019'!C92 -> S. ANGELO DI BROLO | C89: =IF('Dati Generali CER 1 Sem. 2019'!E92="","",'Dati Generali CER 1 Sem. 2019'!E92) -> 410460 | D89: =IF(C89="","",'Dati Generali CER 1 Sem. 2019'!BI92) -> 144710 | E89: ='Dati Generali CER 1 Sem. 2019'!W92 -> 0.2606588973 | F89: =IF('Dati Generali CER 1 Sem. 2019'!BJ92="","",'Dati Generali CER 1 Sem. 2019'!BJ92) -> 1.051504137 | G89: =IF('Dati Generali CER 1 Sem. 2019'!BK92="","",'Dati Generali CER 1 Sem. 2019'!BK92) -> 0.7774202285 | H89: =IF('Dati Generali CER 1 Sem. 2019'!BL92="","",'Dati Generali CER 1 Sem. 2019'!BL92) -> 0.274083909 | I89: ='Dati Generali CER 1 Sem. 2019'!D92 -> 2917 | J89: =IF('Dati Generali CER 1 Sem. 2019'!BN92="","",'Dati Generali CER 1 Sem. 2019'!BN92) -> 2019-08-01T08:59:27
A90: 81 | B90: ='Dati Generali CER 1 Sem. 2019'!C80 -> S. DOMENICA VITTORIA | C90: =IF('Dati Generali CER 1 Sem. 2019'!E80="","",'Dati Generali CER 1 Sem. 2019'!E80) -> 115198 | D90: =IF(C90="","",'Dati Generali CER 1 Sem. 2019'!BI80) -> 43810 | E90: ='Dati Generali CER 1 Sem. 2019'!W80 -> 0.2755207285 | F90: =IF('Dati Generali CER 1 Sem. 2019'!BJ80="","",'Dati Generali CER 1 Sem. 2019'!BJ80) -> 0.975024681 | G90: =IF('Dati Generali CER 1 Sem. 2019'!BK80="","",'Dati Generali CER 1 Sem. 2019'!BK80) -> 0.7063851706 | H90: =IF('Dati Generali CER 1 Sem. 2019'!BL80="","",'Dati Generali CER 1 Sem. 2019'!BL80) -> 0.2686395104 | I90: ='Dati Generali CER 1 Sem. 2019'!D80 -> 901 | J90: =IF('Dati Generali CER 1 Sem. 2019'!BN80="","",'Dati Generali CER 1 Sem. 2019'!BN80) -> 2019-08-14T11:03:17
A91: 82 | B91: ='Dati Generali CER 1 Sem. 2019'!C85 -> S. FILIPPO DEL MELA | C91: =IF('Dati Generali CER 1 Sem. 2019'!E85="","",'Dati Generali CER 1 Sem. 2019'!E85) -> 899640 | D91: =IF(C91="","",'Dati Generali CER 1 Sem. 2019'!BI85) -> 522524 | E91: ='Dati Generali CER 1 Sem. 2019'!W85 -> 0.3674147285 | F91: =IF('Dati Generali CER 1 Sem. 2019'!BJ85="","",'Dati Generali CER 1 Sem. 2019'!BJ85) -> 1.135770406 | G91: =IF('Dati Generali CER 1 Sem. 2019'!BK85="","",'Dati Generali CER 1 Sem. 2019'!BK85) -> 0.7184716306 | H91: =IF('Dati Generali CER 1 Sem. 2019'!BL85="","",'Dati Generali CER 1 Sem. 2019'!BL85) -> 0.4172987754 | I91: ='Dati Generali CER 1 Sem. 2019'!D85 -> 6918 | J91: =IF('Dati Generali CER 1 Sem. 2019'!BN85="","",'Dati Generali CER 1 Sem. 2019'!BN85) -> 2020-03-18T11:49:13
A92: 83 | B92: ='Dati Generali CER 1 Sem. 2019'!C90 -> S. SALVAT. DI FITALIA | C92: =IF('Dati Generali CER 1 Sem. 2019'!E90="","",'Dati Generali CER 1 Sem. 2019'!E90) -> 85940 | D92: =IF(C92="","",'Dati Generali CER 1 Sem. 2019'!BI90) -> 53570 | E92: ='Dati Generali CER 1 Sem. 2019'!W90 -> 0.383986811 | F92: =IF('Dati Generali CER 1 Sem. 2019'!BJ90="","",'Dati Generali CER 1 Sem. 2019'!BJ90) -> 0.6322998201 | G92: =IF('Dati Generali CER 1 Sem. 2019'!BK90="","",'Dati Generali CER 1 Sem. 2019'!BK90) -> 0.3895050286 | H92: =IF('Dati Generali CER 1 Sem. 2019'!BL90="","",'Dati Generali CER 1 Sem. 2019'!BL90) -> 0.2427947915 | I92: ='Dati Generali CER 1 Sem. 2019'!D90 -> 1219 | J92: =IF('Dati Generali CER 1 Sem. 2019'!BN90="","",'Dati Generali CER 1 Sem. 2019'!BN90) -> 2019-07-17T09:19:41
A93: 84 | B93: ='Dati Generali CER 1 Sem. 2019'!C81 -> S. STEF. DI CAMASTRA | C93: =IF('Dati Generali CER 1 Sem. 2019'!E81="","",'Dati Generali CER 1 Sem. 2019'!E81) -> 352660 | D93: =IF(C93="","",'Dati Generali CER 1 Sem. 2019'!BI81) -> 667712 | E93: ='Dati Generali CER 1 Sem. 2019'!W81 -> 0.6543809513 | F93: =IF('Dati Generali CER 1 Sem. 2019'!BJ81="","",'Dati Generali CER 1 Sem. 2019'!BJ81) -> 1.229266107 | G93: =IF('Dati Generali CER 1 Sem. 2019'!BK81="","",'Dati Generali CER 1 Sem. 2019'!BK81) -> 0.4248577824 | H93: =IF('Dati Generali CER 1 Sem. 2019'!BL81="","",'Dati Generali CER 1 Sem. 2019'!BL81) -> 0.8044083242 | I93: ='Dati Generali CER 1 Sem. 2019'!D81 -> 4586 | J93: =IF('Dati Generali CER 1 Sem. 2019'!BN81="","",'Dati Generali CER 1 Sem. 2019'!BN81) -> 2020-02-24T11:34:01
A94: 85 | B94: ='Dati Generali CER 1 Sem. 2019'!C84 -> S. TERESA DI RIVA | C94: =IF('Dati Generali CER 1 Sem. 2019'!E84="","",'Dati Generali CER 1 Sem. 2019'!E84) -> 365700 | D94: =IF(C94="","",'Dati Generali CER 1 Sem. 2019'!BI84) -> 1270980 | E94: ='Dati Generali CER 1 Sem. 2019'!W84 -> 0.7765598651 | F94: =IF('Dati Generali CER 1 Sem. 2019'!BJ84="","",'Dati Generali CER 1 Sem. 2019'!BJ84) -> 0.9573775478 | G94: =IF('Dati Generali CER 1 Sem. 2019'!BK84="","",'Dati Generali CER 1 Sem. 2019'!BK84) -> 0.2139165684 | H94: =IF('Dati Generali CER 1 Sem. 2019'!BL84="","",'Dati Generali CER 1 Sem. 2019'!BL84) -> 0.7434609794 | I94: ='Dati Generali CER 1 Sem. 2019'!D84 -> 9445 | J94: =IF('Dati Generali CER 1 Sem. 2019'!BN84="","",'Dati Generali CER 1 Sem. 2019'!BN84) -> 2019-10-04T15:09:53
A95: 86 | B95: ='Dati Generali CER 1 Sem. 2019'!C86 -> SAN FRATELLO | C95: =IF('Dati Generali CER 1 Sem. 2019'!E86="","",'Dati Generali CER 1 Sem. 2019'!E86) -> 258440 | D95: =IF(C95="","",'Dati Generali CER 1 Sem. 2019'!BI86) -> 175020 | E95: ='Dati Generali CER 1 Sem. 2019'!W86 -> 0.4037742814 | F95: =IF('Dati Generali CER 1 Sem. 2019'!BJ86="","",'Dati Generali CER 1 Sem. 2019'!BJ86) -> 0.6935437677 | G95: =IF('Dati Generali CER 1 Sem. 2019'!BK86="","",'Dati Generali CER 1 Sem. 2019'!BK86) -> 0.4135086313 | H95: =IF('Dati Generali CER 1 Sem. 2019'!BL86="","",'Dati Generali CER 1 Sem. 2019'!BL86) -> 0.2800351364 | I95: ='Dati Generali CER 1 Sem. 2019'!D86 -> 3453 | J95: =IF('Dati Generali CER 1 Sem. 2019'!BN86="","",'Dati Generali CER 1 Sem. 2019'!BN86) -> 2019-10-04T09:41:19
A96: 87 | B96: ='Dati Generali CER 1 Sem. 2019'!C87 -> SAN MARCO D'ALUNZIO | C96: =IF('Dati Generali CER 1 Sem. 2019'!E87="","",'Dati Generali CER 1 Sem. 2019'!E87) -> 87820 | D96: =IF(C96="","",'Dati Generali CER 1 Sem. 2019'!BI87) -> 187195 | E96: ='Dati Generali CER 1 Sem. 2019'!W87 -> 0.6806719633 | F96: =IF('Dati Generali CER 1 Sem. 2019'!BJ87="","",'Dati Generali CER 1 Sem. 2019'!BJ87) -> 0.8177717382 | G96: =IF('Dati Generali CER 1 Sem. 2019'!BK87="","",'Dati Generali CER 1 Sem. 2019'!BK87) -> 0.2611374436 | H96: =IF('Dati Generali CER 1 Sem. 2019'!BL87="","",'Dati Generali CER 1 Sem. 2019'!BL87) -> 0.5566342946 | I96: ='Dati Generali CER 1 Sem. 2019'!D87 -> 1858 | J96: =IF('Dati Generali CER 1 Sem. 2019'!BN87="","",'Dati Generali CER 1 Sem. 2019'!BN87) -> 2019-08-08T10:12:14
A97: 88 | B97: ='Dati Generali CER 1 Sem. 2019'!C88 -> SAN PIER NICETO | C97: =IF('Dati Generali CER 1 Sem. 2019'!E88="","",'Dati Generali CER 1 Sem. 2019'!E88) -> 225660 | D97: =IF(C97="","",'Dati Generali CER 1 Sem. 2019'!BI88) -> 337133 | E97: ='Dati Generali CER 1 Sem. 2019'!W88 -> 0.5802703303 | F97: =IF('Dati Generali CER 1 Sem. 2019'!BJ88="","",'Dati Generali CER 1 Sem. 2019'!BJ88) -> 1.184030276 | G97: =IF('Dati Generali CER 1 Sem. 2019'!BK88="","",'Dati Generali CER 1 Sem. 2019'!BK88) -> 0.4598820847 | H97: =IF('Dati Generali CER 1 Sem. 2019'!BL88="","",'Dati Generali CER 1 Sem. 2019'!BL88) -> 0.6870576391 | I97: ='Dati Generali CER 1 Sem. 2019'!D88 -> 2711 | J97: =IF('Dati Generali CER 1 Sem. 2019'!BN88="","",'Dati Generali CER 1 Sem. 2019'!BN88) -> 2019-07-23T10:17:54
A98: 89 | B98: ='Dati Generali CER 1 Sem. 2019'!C89 -> SAN PIERO PATTI | C98: =IF('Dati Generali CER 1 Sem. 2019'!E89="","",'Dati Generali CER 1 Sem. 2019'!E89) -> 225600 | D98: =IF(C98="","",'Dati Generali CER 1 Sem. 2019'!BI89) -> 236750 | E98: ='Dati Generali CER 1 Sem. 2019'!W89 -> 0.5120579647 | F98: =IF('Dati Generali CER 1 Sem. 2019'!BJ89="","",'Dati Generali CER 1 Sem. 2019'!BJ89) -> 0.9384349337 | G98: =IF('Dati Generali CER 1 Sem. 2019'!BK89="","",'Dati Generali CER 1 Sem. 2019'!BK89) -> 0.4579018515 | H98: =IF('Dati Generali CER 1 Sem. 2019'!BL89="","",'Dati Generali CER 1 Sem. 2019'!BL89) -> 0.4805330822 | I98: ='Dati Generali CER 1 Sem. 2019'!D89 -> 2722 | J98: =IF('Dati Generali CER 1 Sem. 2019'!BN89="","",'Dati Generali CER 1 Sem. 2019'!BN89) -> 2019-07-16T10:33:50
A99: 90 | B99: ='Dati Generali CER 1 Sem. 2019'!C91 -> SAN TEODORO | C99: =IF('Dati Generali CER 1 Sem. 2019'!E91="","",'Dati Generali CER 1 Sem. 2019'!E91) -> 123140 | D99: =IF(C99="","",'Dati Generali CER 1 Sem. 2019'!BI91) -> 56110 | E99: ='Dati Generali CER 1 Sem. 2019'!W91 -> 0.3130264993 | F99: =IF('Dati Generali CER 1 Sem. 2019'!BJ91="","",'Dati Generali CER 1 Sem. 2019'!BJ91) -> 0.7468563286 | G99: =IF('Dati Generali CER 1 Sem. 2019'!BK91="","",'Dati Generali CER 1 Sem. 2019'!BK91) -> 0.5130705066 | H99: =IF('Dati Generali CER 1 Sem. 2019'!BL91="","",'Dati Generali CER 1 Sem. 2019'!BL91) -> 0.233785822 | I99: ='Dati Generali CER 1 Sem. 2019'!D91 -> 1326 | J99: =IF('Dati Generali CER 1 Sem. 2019'!BN91="","",'Dati Generali CER 1 Sem. 2019'!BN91) -> 2019-07-18T08:04:19
A100: 91 | B100: ='Dati Generali CER 1 Sem. 2019'!C83 -> SANTA LUCIA DEL MELA | C100: =IF('Dati Generali CER 1 Sem. 2019'!E83="","",'Dati Generali CER 1 Sem. 2019'!E83) -> 461200 | D100: =IF(C100="","",'Dati Generali CER 1 Sem. 2019'!BI83) -> 363736 | E100: ='Dati Generali CER 1 Sem. 2019'!W83 -> 0.437006209 | F100: =IF('Dati Generali CER 1 Sem. 2019'!BJ83="","",'Dati Generali CER 1 Sem. 2019'!BJ83) -> 1.012002957 | G100: =IF('Dati Generali CER 1 Sem. 2019'!BK83="","",'Dati Generali CER 1 Sem. 2019'!BK83) -> 0.5607540269 | H100: =IF('Dati Generali CER 1 Sem. 2019'!BL83="","",'Dati Generali CER 1 Sem. 2019'!BL83) -> 0.4422515758 | I100: ='Dati Generali CER 1 Sem. 2019'!D83 -> 4544 | J100: =IF('Dati Generali CER 1 Sem. 2019'!BN83="","",'Dati Generali CER 1 Sem. 2019'!BN83) -> 2019-10-15T11:59:10
A101: 92 | B101: ='Dati Generali CER 1 Sem. 2019'!C94 -> SANTA MARINA SALINA | C101: =IF('Dati Generali CER 1 Sem. 2019'!E94="","",'Dati Generali CER 1 Sem. 2019'!E94) -> 110820 | D101: =IF(C101="","",'Dati Generali CER 1 Sem. 2019'!BI94) -> 68760 | E101: ='Dati Generali CER 1 Sem. 2019'!W94 -> 0.382893418 | F101: =IF('Dati Generali CER 1 Sem. 2019'!BJ94="","",'Dati Generali CER 1 Sem. 2019'!BJ94) -> 1.121078753 | G101: =IF('Dati Generali CER 1 Sem. 2019'!BK94="","",'Dati Generali CER 1 Sem. 2019'!BK94) -> 0.6918250773 | H101: =IF('Dati Generali CER 1 Sem. 2019'!BL94="","",'Dati Generali CER 1 Sem. 2019'!BL94) -> 0.4292536754 | I101: ='Dati Generali CER 1 Sem. 2019'!D94 -> 885 | J101: =IF('Dati Generali CER 1 Sem. 2019'!BN94="","",'Dati Generali CER 1 Sem. 2019'!BN94) -> 2019-08-06T09:17:48
A102: 93 | B102: ='Dati Generali CER 1 Sem. 2019'!C95 -> SAPONARA | C102: =IF('Dati Generali CER 1 Sem. 2019'!E95="","",'Dati Generali CER 1 Sem. 2019'!E95) -> 277840 | D102: =IF(C102="","",'Dati Generali CER 1 Sem. 2019'!BI95) -> 328945 | E102: ='Dati Generali CER 1 Sem. 2019'!W95 -> 0.5421112915 | F102: =IF('Dati Generali CER 1 Sem. 2019'!BJ95="","",'Dati Generali CER 1 Sem. 2019'!BJ95) -> 0.8755297244 | G102: =IF('Dati Generali CER 1 Sem. 2019'!BK95="","",'Dati Generali CER 1 Sem. 2019'!BK95) -> 0.4008951748 | H102: =IF('Dati Generali CER 1 Sem. 2019'!BL95="","",'Dati Generali CER 1 Sem. 2019'!BL95) -> 0.4746345496 | I102: ='Dati Generali CER 1 Sem. 2019'!D95 -> 3829 | J102: =IF('Dati Generali CER 1 Sem. 2019'!BN95="","",'Dati Generali CER 1 Sem. 2019'!BN95) -> 2019-10-17T11:11:42
A103: 94 | B103: ='Dati Generali CER 1 Sem. 2019'!C96 -> SAVOCA | C103: =IF('Dati Generali CER 1 Sem. 2019'!E96="","",'Dati Generali CER 1 Sem. 2019'!E96) -> 137050 | D103: =IF(C103="","",'Dati Generali CER 1 Sem. 2019'!BI96) -> 97720 | E103: ='Dati Generali CER 1 Sem. 2019'!W96 -> 0.4162371683 | F103: =IF('Dati Generali CER 1 Sem. 2019'!BJ96="","",'Dati Generali CER 1 Sem. 2019'!BJ96) -> 0.7428819148 | G103: =IF('Dati Generali CER 1 Sem. 2019'!BK96="","",'Dati Generali CER 1 Sem. 2019'!BK96) -> 0.4336668502 | H103: =IF('Dati Generali CER 1 Sem. 2019'!BL96="","",'Dati Generali CER 1 Sem. 2019'!BL96) -> 0.3092150646 | I103: ='Dati Generali CER 1 Sem. 2019'!D96 -> 1746 | J103: =IF('Dati Generali CER 1 Sem. 2019'!BN96="","",'Dati Generali CER 1 Sem. 2019'!BN96) -> 2019-07-17T07:54:40
A104: 95 | B104: ='Dati Generali CER 1 Sem. 2019'!C97 -> SCALETTA ZANCLEA | C104: =IF('Dati Generali CER 1 Sem. 2019'!E97="","",'Dati Generali CER 1 Sem. 2019'!E97) -> 184940 | D104: =IF(C104="","",'Dati Generali CER 1 Sem. 2019'!BI97) -> 90920 | E104: ='Dati Generali CER 1 Sem. 2019'!W97 -> 0.3295874719 | F104: =IF('Dati Generali CER 1 Sem. 2019'!BJ97="","",'Dati Generali CER 1 Sem. 2019'!BJ97) -> 0.7791862974 | G104: =IF('Dati Generali CER 1 Sem. 2019'!BK97="","",'Dati Generali CER 1 Sem. 2019'!BK97) -> 0.5223762555 | H104: =IF('Dati Generali CER 1 Sem. 2019'!BL97="","",'Dati Generali CER 1 Sem. 2019'!BL97) -> 0.2568100419 | I104: ='Dati Generali CER 1 Sem. 2019'!D97 -> 1956 | J104: =IF('Dati Generali CER 1 Sem. 2019'!BN97="","",'Dati Generali CER 1 Sem. 2019'!BN97) -> 2019-07-24T08:22:01
A105: 96 | B105: ='Dati Generali CER 1 Sem. 2019'!C98 -> SINAGRA | C105: =IF('Dati Generali CER 1 Sem. 2019'!E98="","",'Dati Generali CER 1 Sem. 2019'!E98) -> 129880 | D105: =IF(C105="","",'Dati Generali CER 1 Sem. 2019'!BI98) -> 281505 | E105: ='Dati Generali CER 1 Sem. 2019'!W98 -> 0.6842860095 | F105: =IF('Dati Generali CER 1 Sem. 2019'!BJ98="","",'Dati Generali CER 1 Sem. 2019'!BJ98) -> 0.8748442278 | G105: =IF('Dati Generali CER 1 Sem. 2019'!BK98="","",'Dati Generali CER 1 Sem. 2019'!BK98) -> 0.2762005623 | H105: =IF('Dati Generali CER 1 Sem. 2019'!BL98="","",'Dati Generali CER 1 Sem. 2019'!BL98) -> 0.5986436655 | I105: ='Dati Generali CER 1 Sem. 2019'!D98 -> 2598 | J105: =IF('Dati Generali CER 1 Sem. 2019'!BN98="","",'Dati Generali CER 1 Sem. 2019'!BN98) -> 2019-07-17T10:19:43
A106: 97 | B106: ='Dati Generali CER 1 Sem. 2019'!C99 -> SPADAFORA | C106: =IF('Dati Generali CER 1 Sem. 2019'!E99="","",'Dati Generali CER 1 Sem. 2019'!E99) -> 498328 | D106: =IF(C106="","",'Dati Generali CER 1 Sem. 2019'!BI99) -> 348472 | E106: ='Dati Generali CER 1 Sem. 2019'!W99 -> 0.4106395415 | F106: =IF('Dati Generali CER 1 Sem. 2019'!BJ99="","",'Dati Generali CER 1 Sem. 2019'!BJ99) -> 0.9643031651 | G106: =IF('Dati Generali CER 1 Sem. 2019'!BK99="","",'Dati Generali CER 1 Sem. 2019'!BK99) -> 0.5662676615 | H106: =IF('Dati Generali CER 1 Sem. 2019'!BL99="","",'Dati Generali CER 1 Sem. 2019'!BL99) -> 0.3959810096 | I106: ='Dati Generali CER 1 Sem. 2019'!D99 -> 4862 | J106: =IF('Dati Generali CER 1 Sem. 2019'!BN99="","",'Dati Generali CER 1 Sem. 2019'!BN99) -> 2019-09-23T13:57:35
A107: 98 | B107: ='Dati Generali CER 1 Sem. 2019'!C100 -> TAORMINA | C107: =IF('Dati Generali CER 1 Sem. 2019'!E100="","",'Dati Generali CER 1 Sem. 2019'!E100) -> 1543320 | D107: =IF(C107="","",'Dati Generali CER 1 Sem. 2019'!BI100) -> 2057898 | E107: ='Dati Generali CER 1 Sem. 2019'!W100 -> 0.5714449944 | F107: =IF('Dati Generali CER 1 Sem. 2019'!BJ100="","",'Dati Generali CER 1 Sem. 2019'!BJ100) -> 1.839688585 | G107: =IF('Dati Generali CER 1 Sem. 2019'!BK100="","",'Dati Generali CER 1 Sem. 2019'!BK100) -> 0.7884077517 | H107: =IF('Dati Generali CER 1 Sem. 2019'!BL100="","",'Dati Generali CER 1 Sem. 2019'!BL100) -> 1.051280833 | I107: ='Dati Generali CER 1 Sem. 2019'!D100 -> 10815 | J107: =IF('Dati Generali CER 1 Sem. 2019'!BN100="","",'Dati Generali CER 1 Sem. 2019'!BN100) -> 2019-10-21T12:08:43
A108: 99 | B108: ='Dati Generali CER 1 Sem. 2019'!C101 -> TERME VIGLIATORE | C108: =IF('Dati Generali CER 1 Sem. 2019'!E101="","",'Dati Generali CER 1 Sem. 2019'!E101) -> 360840 | D108: =IF(C108="","",'Dati Generali CER 1 Sem. 2019'!BI101) -> 875850 | E108: ='Dati Generali CER 1 Sem. 2019'!W101 -> 0.6877340934 | F108: =IF('Dati Generali CER 1 Sem. 2019'!BJ101="","",'Dati Generali CER 1 Sem. 2019'!BJ101) -> 0.9554694932 | G108: =IF('Dati Generali CER 1 Sem. 2019'!BK101="","",'Dati Generali CER 1 Sem. 2019'!BK101) -> 0.2707212331 | H108: =IF('Dati Generali CER 1 Sem. 2019'!BL101="","",'Dati Generali CER 1 Sem. 2019'!BL101) -> 0.6571089457 | I108: ='Dati Generali CER 1 Sem. 2019'!D101 -> 7364 | J108: =IF('Dati Generali CER 1 Sem. 2019'!BN101="","",'Dati Generali CER 1 Sem. 2019'!BN101) -> 2019-07-11T11:24:23
A109: 100 | B109: ='Dati Generali CER 1 Sem. 2019'!C102 -> TORREGROTTA | C109: =IF('Dati Generali CER 1 Sem. 2019'!E102="","",'Dati Generali CER 1 Sem. 2019'!E102) -> 401080 | D109: =IF(C109="","",'Dati Generali CER 1 Sem. 2019'!BI102) -> 1052647 | E109: ='Dati Generali CER 1 Sem. 2019'!W102 -> 0.7148745121 | F109: =IF('Dati Generali CER 1 Sem. 2019'!BJ102="","",'Dati Generali CER 1 Sem. 2019'!BJ102) -> 1.105942757 | G109: =IF('Dati Generali CER 1 Sem. 2019'!BK102="","",'Dati Generali CER 1 Sem. 2019'!BK102) -> 0.3012386626 | H109: =IF('Dati Generali CER 1 Sem. 2019'!BL102="","",'Dati Generali CER 1 Sem. 2019'!BL102) -> 0.7906102884 | I109: ='Dati Generali CER 1 Sem. 2019'!D102 -> 7356 | J109: =IF('Dati Generali CER 1 Sem. 2019'!BN102="","",'Dati Generali CER 1 Sem. 2019'!BN102) -> 2019-08-06T09:09:59
A110: 101 | B110: ='Dati Generali CER 1 Sem. 2019'!C103 -> TORRENOVA | C110: =IF('Dati Generali CER 1 Sem. 2019'!E103="","",'Dati Generali CER 1 Sem. 2019'!E103) -> 246260 | D110: =IF(C110="","",'Dati Generali CER 1 Sem. 2019'!BI103) -> 555960 | E110: ='Dati Generali CER 1 Sem. 2019'!W103 -> 0.6930268505 | F110: =IF('Dati Generali CER 1 Sem. 2019'!BJ103="","",'Dati Generali CER 1 Sem. 2019'!BJ103) -> 0.9879970344 | G110: =IF('Dati Generali CER 1 Sem. 2019'!BK103="","",'Dati Generali CER 1 Sem. 2019'!BK103) -> 0.3032885613 | H110: =IF('Dati Generali CER 1 Sem. 2019'!BL103="","",'Dati Generali CER 1 Sem. 2019'!BL103) -> 0.684708473 | I110: ='Dati Generali CER 1 Sem. 2019'!D103 -> 4486 | J110: =IF('Dati Generali CER 1 Sem. 2019'!BN103="","",'Dati Generali CER 1 Sem. 2019'!BN103) -> 2019-10-15T11:57:07
A111: 102 | B111: ='Dati Generali CER 1 Sem. 2019'!C104 -> TORTORICI | C111: =IF('Dati Generali CER 1 Sem. 2019'!E104="","",'Dati Generali CER 1 Sem. 2019'!E104) -> 318940 | D111: =IF(C111="","",'Dati Generali CER 1 Sem. 2019'!BI104) -> 277090 | E111: ='Dati Generali CER 1 Sem. 2019'!W104 -> 0.4648927067 | F111: =IF('Dati Generali CER 1 Sem. 2019'!BJ104="","",'Dati Generali CER 1 Sem. 2019'!BJ104) -> 0.5430381638 | G111: =IF('Dati Generali CER 1 Sem. 2019'!BK104="","",'Dati Generali CER 1 Sem. 2019'!BK104) -> 0.290583682 | H111: =IF('Dati Generali CER 1 Sem. 2019'!BL104="","",'Dati Generali CER 1 Sem. 2019'!BL104) -> 0.2524544818 | I111: ='Dati Generali CER 1 Sem. 2019'!D104 -> 6064 | J111: =IF('Dati Generali CER 1 Sem. 2019'!BN104="","",'Dati Generali CER 1 Sem. 2019'!BN104) -> 2019-10-09T15:04:39
A112: 103 | B112: ='Dati Generali CER 1 Sem. 2019'!C105 -> TRIPI | C112: =IF('Dati Generali CER 1 Sem. 2019'!E105="","",'Dati Generali CER 1 Sem. 2019'!E105) -> 56020 | D112: =IF(C112="","",'Dati Generali CER 1 Sem. 2019'!BI105) -> 83578 | E112: ='Dati Generali CER 1 Sem. 2019'!W105 -> 0.5987048525 | F112: =IF('Dati Generali CER 1 Sem. 2019'!BJ105="","",'Dati Generali CER 1 Sem. 2019'!BJ105) -> 0.9348602043 | G112: =IF('Dati Generali CER 1 Sem. 2019'!BK105="","",'Dati Generali CER 1 Sem. 2019'!BK105) -> 0.3751548636 | H112: =IF('Dati Generali CER 1 Sem. 2019'!BL105="","",'Dati Generali CER 1 Sem. 2019'!BL105) -> 0.5597053407 | I112: ='Dati Generali CER 1 Sem. 2019'!D105 -> 825 | J112: =IF('Dati Generali CER 1 Sem. 2019'!BN105="","",'Dati Generali CER 1 Sem. 2019'!BN105) -> 2019-10-17T11:12:00
A113: 104 | B113: ='Dati Generali CER 1 Sem. 2019'!C106 -> TUSA | C113: =IF('Dati Generali CER 1 Sem. 2019'!E106="","",'Dati Generali CER 1 Sem. 2019'!E106) -> 143140 | D113: =IF(C113="","",'Dati Generali CER 1 Sem. 2019'!BI106) -> 282230 | E113: ='Dati Generali CER 1 Sem. 2019'!W106 -> 0.6634929591 | F113: =IF('Dati Generali CER 1 Sem. 2019'!BJ106="","",'Dati Generali CER 1 Sem. 2019'!BJ106) -> 0.8640112122 | G113: =IF('Dati Generali CER 1 Sem. 2019'!BK106="","",'Dati Generali CER 1 Sem. 2019'!BK106) -> 0.2907458564 | H113: =IF('Dati Generali CER 1 Sem. 2019'!BL106="","",'Dati Generali CER 1 Sem. 2019'!BL106) -> 0.5732653559 | I113: ='Dati Generali CER 1 Sem. 2019'!D106 -> 2720 | J113: =IF('Dati Generali CER 1 Sem. 2019'!BN106="","",'Dati Generali CER 1 Sem. 2019'!BN106) -> 2019-08-06T09:02:54
A114: 105 | B114: ='Dati Generali CER 1 Sem. 2019'!C107 -> UCRIA | C114: =IF('Dati Generali CER 1 Sem. 2019'!E107="","",'Dati Generali CER 1 Sem. 2019'!E107) -> 57800 | D114: =IF(C114="","",'Dati Generali CER 1 Sem. 2019'!BI107) -> 75373 | E114: ='Dati Generali CER 1 Sem. 2019'!W107 -> 0.5659780887 | F114: =IF('Dati Generali CER 1 Sem. 2019'!BJ107="","",'Dati Generali CER 1 Sem. 2019'!BJ107) -> 0.746966935 | G114: =IF('Dati Generali CER 1 Sem. 2019'!BK107="","",'Dati Generali CER 1 Sem. 2019'!BK107) -> 0.3242000168 | H114: =IF('Dati Generali CER 1 Sem. 2019'!BL107="","",'Dati Generali CER 1 Sem. 2019'!BL107) -> 0.4227669181 | I114: ='Dati Generali CER 1 Sem. 2019'!D107 -> 985 | J114: =IF('Dati Generali CER 1 Sem. 2019'!BN107="","",'Dati Generali CER 1 Sem. 2019'!BN107) -> 2019-07-30T09:56:31
A115: 106 | B115: ='Dati Generali CER 1 Sem. 2019'!C108 -> VALDINA | C115: =IF('Dati Generali CER 1 Sem. 2019'!E108="","",'Dati Generali CER 1 Sem. 2019'!E108) -> 62560 | D115: =IF(C115="","",'Dati Generali CER 1 Sem. 2019'!BI108) -> 150404 | E115: ='Dati Generali CER 1 Sem. 2019'!W108 -> 0.7062414305 | F115: =IF('Dati Generali CER 1 Sem. 2019'!BJ108="","",'Dati Generali CER 1 Sem. 2019'!BJ108) -> 0.8947503309 | G115: =IF('Dati Generali CER 1 Sem. 2019'!BK108="","",'Dati Generali CER 1 Sem. 2019'!BK108) -> 0.2628405773 | H115: =IF('Dati Generali CER 1 Sem. 2019'!BL108="","",'Dati Generali CER 1 Sem. 2019'!BL108) -> 0.6319097536 | I115: ='Dati Generali CER 1 Sem. 2019'!D108 -> 1315 | J115: =IF('Dati Generali CER 1 Sem. 2019'!BN108="","",'Dati Generali CER 1 Sem. 2019'!BN108) -> 2019-10-03T12:29:01
A116: 107 | B116: ='Dati Generali CER 1 Sem. 2019'!C109 -> VENETICO | C116: =IF('Dati Generali CER 1 Sem. 2019'!E109="","",'Dati Generali CER 1 Sem. 2019'!E109) -> 230320 | D116: =IF(C116="","",'Dati Generali CER 1 Sem. 2019'!BI109) -> 433540 | E116: ='Dati Generali CER 1 Sem. 2019'!W109 -> 0.6403840473 | F116: =IF('Dati Generali CER 1 Sem. 2019'!BJ109="","",'Dati Generali CER 1 Sem. 2019'!BJ109) -> 0.9306622273 | G116: =IF('Dati Generali CER 1 Sem. 2019'!BK109="","",'Dati Generali CER 1 Sem. 2019'!BK109) -> 0.3166176133 | H116: =IF('Dati Generali CER 1 Sem. 2019'!BL109="","",'Dati Generali CER 1 Sem. 2019'!BL109) -> 0.5959812438 | I116: ='Dati Generali CER 1 Sem. 2019'!D109 -> 4019 | J116: =IF('Dati Generali CER 1 Sem. 2019'!BN109="","",'Dati Generali CER 1 Sem. 2019'!BN109) -> 2019-10-15T15:28:23
A117: 108 | B117: ='Dati Generali CER 1 Sem. 2019'!C110 -> VILLAFRANCA TIRRENA | C117: =IF('Dati Generali CER 1 Sem. 2019'!E110="","",'Dati Generali CER 1 Sem. 2019'!E110) -> 317260 | D117: =IF(C117="","",'Dati Generali CER 1 Sem. 2019'!BI110) -> 926813 | E117: ='Dati Generali CER 1 Sem. 2019'!W110 -> 0.7449828105 | F117: =IF('Dati Generali CER 1 Sem. 2019'!BJ110="","",'Dati Generali CER 1 Sem. 2019'!BJ110) -> 0.8304133734 | G117: =IF('Dati Generali CER 1 Sem. 2019'!BK110="","",'Dati Generali CER 1 Sem. 2019'!BK110) -> 0.2117696846 | H117: =IF('Dati Generali CER 1 Sem. 2019'!BL110="","",'Dati Generali CER 1 Sem. 2019'!BL110) -> 0.6186436888 | I117: ='Dati Generali CER 1 Sem. 2019'!D110 -> 8277 | J117: =IF('Dati Generali CER 1 Sem. 2019'!BN110="","",'Dati Generali CER 1 Sem. 2019'!BN110) -> 2019-07-11T11:34:40
B118: Percentuale media dei 108 Comuni: | F118: ='Dati Generali CER 1 Sem. 2019'!W111 -> 0.3537905712

Sheet Grafico 1 Semestre 2019

Sheet Dati Generali CER 2 Sem. 2019
A1: Produzione di Rifiuti Urbani e Raccolta Differenziata 2° Semestre 2019.
A2: =COUNTA(E3:E110) -> 108 | B2: ID COMUNE | C2: COMUNE | D2: ='Dati Generali CER 1 Sem. 2019'!D2 -> ABITANTI al 30/11/2019 | E2: R.S.U. + R.S.A. (Kg/2°Sem.) 200301 | F2: Toner per stampa esauriti, contenenti sostanze pericolose 080317* | G2: Altri oli per motori, ingranaggi e lubrificazione 130208* | H2: Legno da demolizione 170201 | I2: Miscele bituminose (diverse da quelle 170301*) 170302 | J2: Alluminio 170402 | K2: Ferro e acciaio 170405 | L2: Materiali da costruzione contenenti amianto 170605* | M2: percolato di discarica,(diverso dalla voce 190702) 190703 | N2: Residui di vagliatura 190801 | O2: FANGHI DI DEPURAZIONE (Kg/anno) prodotti dal trattamento delle acque reflue urbane 190805 | P2: Altri rifiuti (compresi materiali misti) prodotti dal trattamento meccanico dei rifiuti,(diversi dalla voce 191211) 191212 | Q2: Rifiuti della pulizia delle fognature 200306 | R2: Residui della pulizia stradale 200303 Smaltimento | S2: Ingombranti - 200307 Smaltimento | T2: Rifiuti urbani non specificati altrimenti 200399 | U2: RACCOL. DIFFEREN. (Kg/2°Sem.) | V2: R.S.U. + R.S.A. + RACC. DIFF. (Kg/2°Sem.) | W2: % RACC. DIFF. (2°Sem.) | X2: Compostaggio Domestico | Y2: Toner per stampa esauriti,(diversi dalla voce 080317) 080318 | Z2: Imballaggi Carta e Cartone (Raccolta Selettiva) 150101 | AA2: Imballaggi in Plastica 150102 | AB2: Imballaggi in Legno 150103 | AC2: Imballaaggi in metallo 150104 | AD2: Imball. in materiali misti 150106 | AE2: Imballaggi in Vetro 150107 | AF2: Imballaggi contenenti residui di sostanze pericolose o contaminati da tali sostanze 150110* | AG2: Imballaggi metallici contenenti matrici solide porose pericolose (ad esempio amianto) 150111* | AH2: Pneumatici usati 160103 | AI2: Filtri dell'olio 160107* | AJ2: Apparecchiature fuori uso, contenenti clorofluorocarburi, HCFC, HFC 160211* | AK2: Componenti rimossi da apparecchiature fuori uso,(diversi dalla voce 160215) 160216 | AL2: Miscugli o frazioni separate di cemento, mattoni, mattonelle e ceramiche(diverse dalla voce 170106) 170107 | AM2: Rifiuti misti dell'attività di costruzione e demolizione, (diversi dalle voci 170901, 170902 e 170903) 170904 | AN2: Carta e Cartone (Raccolta Congiunta) 200101 | AO2: Vetro 200102 | AP2: Rifiuti biodegradabili di cucine e mense 200108 | AQ2: Abbigliamento 200110 | AR2: Prodotti tessili 200111 | AS2: Tubi fluorescenti ed altri rifiuti contenenti Mercurio 200121* | AT2: Apparec. Fuori uso conten. CFC e mat. peric. 200123* | AU2: Oli e Grassi commestibili 200125 | AV2: Oli e grassi (diversi dalla voce 200125) 200126* | AW2: Medicinali citotossici e citostatici 200131* | AX2: Medicinali (diversi dlla voce 200131*) 200132 | AY2: Batterie ed Accumulatori (diversi dalle voci 160601, 160602 e 160603) 200133* | AZ2: Batterie ed accumulatori (diversi dlla voce 200133*) 200134 | BA2: Apparecc. elettr. ed elettroniche fuori uso contenenti Mat. Peric. 200135* | BB2: Apparecc. eletr. ed elettroniche fuori uso(diverse da 200121, 200123 e 200135) 200136 | BC2: Legno 200138 | BD2: Plastica 200139 | BE2: Metallo 200140 | BF2: Rifiuti biodegradabili 200201 | BG2: Residui della pulizia stradale - 200303 Recupero | BH2: Ingombranti - 200307 Recupero | BI2: TOTALE RD (Kg/2°Sem.) | BJ2: R.S.U. + R.S.A.+ R.D. - (R.T. Kg. pro capite/g) | BK2: R.S.U. + R.S.A. 200301 - (R.I. Kg. pro capite/g) | BL2: R.D. - (Kg. pro capite/g)
A3: 1 | B3: M211 | C3: ='Dati Generali CER 1 Sem. 2019'!C3 -> ACQUEDOLCI | D3: ='Dati Generali CER 1 Sem. 2019'!D3 -> 5560 | E3: 281320 | U3: =IF(BI3=0,"",BI3) -> 605440 | V3: =IF(E3=0,"",SUM(U3,E3,R3,S3,T3)) -> 886760 | W3: =IFERROR(IF(E3<>0,IF(U3=0,0,(U3/V3*100)/100),IF(U3=0,"","")),0) -> 0.6827551987 | Z3: 1130 | AA3: 94360 | AE3: 130220 | AN3: 113270 | AP3: 230640 | AT3: 5820 | BA3: 3000 | BB3: 1300 | BH3: 25700 | BI3: =IF(SUM(X3:BH3)=0,"",SUM(X3:BH3)) -> 605440 | BJ3: =IF(SUM(E3)=0,"",V3/D3/184) -> 0.8667891774 | BK3: =IF(E3=0,"",E3/D3/184) -> 0.2749843603 | BL3: =IF(SUM(Y3:BH3)=0,"",BI3/D3/184) -> 0.591804817 | BN3: 2020-02-17T12:24:46
A4: 2 | B4: A177 | C4: ='Dati Generali CER 1 Sem. 2019'!C4 -> ALCARA LI FUSI | D4: ='Dati Generali CER 1 Sem. 2019'!D4 -> 1822 | E4: 53600 | U4: =IF(BI4=0,"",BI4) -> 192520 | V4: 246120 | W4: 0.7822200553 | AA4: 21040 | AE4: 42780 | AM4: 9180 | AN4: 25770 | AP4: 73360 | AT4: 1180 | BA4: 1800 | BB4: 1840 | BD4: 8050 | BE4: 2500 | BH4: 5020 | BI4: 192520 | BJ4: 0.7341430821 | BK4: =IF(E4=0,"",E4/D4/184) -> 0.1598816399 | BL4: 0.5742614423 | BN4: 2020-05-12T14:52:23
A5: 3 | B5: A194 | C5: ='Dati Generali CER 1 Sem. 2019'!C5 -> ALI' | D5: ='Dati Generali CER 1 Sem. 2019'!D5 -> 717 | E5: 56460 | U5: =IF(BI5=0,"",BI5) -> 34260 | V5: 90720 | W5: 0.3776455026 | Z5: 90 | AD5: 10360 | AE5: 9250 | AN5: 10110 | AP5: 1370 | BH5: 3080 | BI5: 34260 | BJ5: 0.6876478079 | BK5: 0.4279607058 | BL5: 0.2596871021 | BN5: 2020-05-06T15:25:24
A6: 4 | B6: A201 | C6: ='Dati Generali CER 1 Sem. 2019'!C6 -> ALI' TERME | D6: ='Dati Generali CER 1 Sem. 2019'!D6 -> 2426 | E6: 308490 | U6: =IF(BI6=0,"",BI6) -> 220155 | V6: 528645 | W6: 0.4164514939 | Z6: 11245 | AD6: 56850 | AE6: 42780 | AN6: 57720 | AP6: 7590 | AX6: 80 | BF6: 9780 | BH6: 34110 | BI6: 220155 | BJ6: 1.184283039 | BK6: 0.6910865981 | BL6: 0.4931964407 | BN6: 2020-02-26T08:27:47
A7: 5 | B7: A313 | C7: ='Dati Generali CER 1 Sem. 2019'!C7 -> ANTILLO | D7: ='Dati Generali CER 1 Sem. 2019'!D7 -> 853 | E7: 29310 | U7: 65420 | V7: 94730 | W7: 0.6905943207 | Z7: 350 | AD7: 10830 | AE7: 7400 | AN7: 9870 | AP7: 30100 | AT7: 240 | BA7: 400 | BB7: 2040 | BC7: 40 | BH7: 4150 | BI7: 65420 | BJ7: 0.6035603242 | BK7: 0.1867449921 | BL7: 0.4168153321 | BN7: 2020-02-28T09:36:43
A8: 6 | B8: A638 | C8: ='Dati Generali CER 1 Sem. 2019'!C8 -> BARCELLONA P.G. | D8: ='Dati Generali CER 1 Sem. 2019'!D8 -> 41155 | E8: 6179500 | U8: 2323111 | V8: 8502611 | W8: 0.2732232487 | X8: 288281 | Z8: 244910 | AA8: 388590 | AC8: 12460 | AE8: 361920 | AG8: 640 | AH8: 10740 | AK8: 1320 | AN8: 508130 | AQ8: 37330 | AS8: 180 | AT8: 21020 | AU8: 1540 | AX8: 200 | AY8: 4020 | AZ8: 820 | BA8: 34300 | BB8: 37420 | BC8: 100260 | BD8: 11290 | BE8: 40360 | BF8: 118800 | BH8: 98580 | BI8: 2323111 | BJ8: 1.122824502 | BK8: 0.816042744 | BL8: 0.3067817583 | BN8: 2020-02-20T14:33:09
A9: 7 | B9: A698 | C9: ='Dati Generali CER 1 Sem. 2019'!C9 -> BASICO' | D9: ='Dati Generali CER 1 Sem. 2019'!D9 -> 580 | E9: 64400 | U9: 46218 | V9: 110618 | W9: 0.4178162686 | X9: 10848 | AA9: 12400 | AE9: 11390 | AN9: 11580 | BI9: 46218 | BJ9: 1.036525487 | BK9: 0.6034482759 | BL9: 0.4330772114 | BN9: 2020-02-17T12:27:05
A10: 8 | B10: B198 | C10: ='Dati Generali CER 1 Sem. 2019'!C10 -> BROLO | D10: ='Dati Generali CER 1 Sem. 2019'!D10 -> 5789 | E10: 772780 | R10: 53780 | U10: 617232 | V10: 1443792 | W10: 0.4275075634 | X10: 45570 | Z10: 114730 | AA10: 108700 | AE10: 114610 | AK10: 350 | AN10: 65170 | AQ10: 2590 | AT10: 6760 | AU10: 500 | AX10: 172 | AY10: 850 | AZ10: 120 | BA10: 20580 | BB10: 14960 | BC10: 21790 | BE10: 8710 | BF10: 73510 | BH10: 17560 | BI10: 617232 | BJ10: 1.35544924 | BK10: 0.7254951294 | BL10: 0.5794648021 | BN10: 2020-02-17T12:28:35
A11: 9 | B11: B660 | C11: ='Dati Generali CER 1 Sem. 2019'!C11 -> CAPIZZI | D11: ='Dati Generali CER 1 Sem. 2019'!D11 -> 2990 | E11: 177320 | U11: 292269 | V11: 469589 | W11: 0.6223931992 | X11: 96000 | AN11: 36119 | AO11: 38480 | AP11: 90870 | AQ11: 1300 | AU11: 300 | BB11: 1000 | BD11: 24860 | BH11: 3340 | BI11: 292269 | BJ11: 0.8535498764 | BK11: 0.3223062382 | BL11: 0.5312436382 | BN11: 2020-02-17T12:33:40
A12: 10 | B12: B666 | C12: ='Dati Generali CER 1 Sem. 2019'!C12 -> CAPO D'ORLANDO | D12: ='Dati Generali CER 1 Sem. 2019'!D12 -> 13286 | E12: 1510800 | K12: 6640 | N12: 582 | U12: 1907406 | V12: 3418206 | W12: 0.5580137651 | Y12: 180 | Z12: 89570 | AA12: 218726 | AB12: 21130 | AE12: 368360 | AF12: 120 | AN12: 382830 | AP12: 633920 | AQ12: 5100 | AS12: 360 | AT12: 27540 | AU12: 540 | AX12: 320 | AZ12: 220 | BA12: 12640 | BB12: 17040 | BF12: 48060 | BH12: 80750 | BI12: 1907406 | BJ12: 1.398254292 | BK12: 0.6180091499 | BL12: 0.780245142 | BN12: 2020-02-18T09:24:01
A13: 11 | B13: B695 | C13: ='Dati Generali CER 1 Sem. 2019'!C13 -> CAPRILEONE | D13: ='Dati Generali CER 1 Sem. 2019'!D13 -> 4391 | E13: 55290 | U13: 355610 | V13: 410900 | W13: 0.8654417133 | Z13: 14040 | AA13: 69080 | AE13: 102710 | AN13: 85470 | AP13: 58660 | BH13: 25650 | BI13: 355610 | BJ13: 0.5085748517 | BK13: 0.0684329607 | BL13: 0.440141891 | BN13: 2020-05-06T15:32:43
A14: 12 | B14: B804 | C14: ='Dati Generali CER 1 Sem. 2019'!C14 -> CARONIA | D14: ='Dati Generali CER 1 Sem. 2019'!D14 -> 3147 | E14: 236300 | U14: 449850 | V14: 686150 | W14: 0.6556146615 | Z14: 29530 | AA14: 22100 | AD14: 83400 | AE14: 64780 | AP14: 213780 | AQ14: 300 | BF14: 8220 | BH14: 27740 | BI14: 449850 | BJ14: 1.184962214 | BK14: 0.4080836131 | BL14: 0.7768786007 | BN14: 2020-05-08T12:46:34
A15: 13 | B15: B918 | C15: ='Dati Generali CER 1 Sem. 2019'!C15 -> CASALVECCHIO SICULO | D15: ='Dati Generali CER 1 Sem. 2019'!D15 -> 761 | E15: 57880 | K15: 3370 | U15: 28440 | V15: 86320 | W15: 0.3294717331 | AA15: 380 | AD15: 10400 | AE15: 11180 | AN15: 6120 | AQ15: 360 | BI15: 28440 | BJ15: 0.6164657487 | BK15: 0.4133577101 | BL15: 0.2031080386 | BN15: 2020-02-03T10:46:14
A16: 14 | B16: C094 | C16: ='Dati Generali CER 1 Sem. 2019'!C16 -> CASTEL DI LUCIO | D16: ='Dati Generali CER 1 Sem. 2019'!D16 -> 1252 | E16: 28740 | U16: 94420 | V16: 123160 | W16: 0.7666450146 | Z16: 15480 | AE16: 20960 | AN16: 19580 | AP16: 36340 | BH16: 2060 | BI16: 94420 | BJ16: 0.5346228643 | BK16: 0.1247569107 | BL16: 0.4098659536 | BN16: 2020-05-06T16:00:57
A17: 15 | B17: C051 | C17: ='Dati Generali CER 1 Sem. 2019'!C17 -> CASTELL'UMBERTO | D17: ='Dati Generali CER 1 Sem. 2019'!D17 -> 2966 | E17: 268320 | U17: 194920 | V17: 463240 | W17: 0.420775408 | AA17: 18710 | AE17: 48670 | AN17: 24460 | AP17: 78480 | AQ17: 200 | AT17: 1940 | BA17: 1800 | BC17: 15560 | BH17: 5100 | BI17: 194920 | BJ17: 0.8488228913 | BK17: 0.4916590929 | BL17: 0.3571637984 | BN17: 2020-01-27T08:17:17
A18: 16 | B18: C210 | C18: ='Dati Generali CER 1 Sem. 2019'!C18 -> CASTELMOLA | D18: ='Dati Generali CER 1 Sem. 2019'!D18 -> 1102 | E18: 133490 | U18: 55900 | V18: 189390 | W18: 0.2951581393 | AD18: 8010 | AE18: 20630 | AH18: 310 | AP18: 19340 | AT18: 310 | BA18: 340 | BB18: 280 | BC18: 280 | BF18: 5290 | BH18: 1110 | BI18: 55900 | BJ18: 0.93402312 | BK18: 0.6583385939 | BL18: 0.2756845262 | BN18: 2020-02-17T12:41:01
A19: 17 | B19: C347 | C19: ='Dati Generali CER 1 Sem. 2019'!C19 -> CASTROREALE | D19: ='Dati Generali CER 1 Sem. 2019'!D19 -> 2342 | E19: 143140 | U19: 106300 | V19: 249440 | W19: 0.4261545863 | Z19: 11780 | AA19: 40540 | AE19: 28570 | AN19: 17240 | AP19: 3240 | AQ19: 500 | AT19: 210 | AW19: 40 | AZ19: 50 | BA19: 610 | BB19: 820 | BH19: 2700 | BI19: 106300 | BJ19: 0.5788437976 | BK19: 0.3321668585 | BL19: 0.2466769391 | BN19: 2020-02-21T08:52:35
A20: 18 | B20: C568 | C20: ='Dati Generali CER 1 Sem. 2019'!C20 -> CESARO' | D20: ='Dati Generali CER 1 Sem. 2019'!D20 -> 2274 | E20: 172300 | U20: 151100 | V20: 323400 | W20: 0.4672232529 | AA20: 18120 | AE20: 24020 | AN20: 28160 | AP20: 76040 | AQ20: 2760 | BH20: 2000 | BI20: 151100 | BJ20: 0.7729149937 | BK20: 0.4117911361 | BL20: 0.3611238576 | BN20: 2020-04-28T12:46:34
A21: 19 | B21: C956 | C21: ='Dati Generali CER 1 Sem. 2019'!C21 -> CONDRO' | D21: ='Dati Generali CER 1 Sem. 2019'!D21 -> 478 | E21: 70360 | U21: 24090 | V21: 94450 | W21: 0.255055585 | AA21: 5560 | AE21: 5900 | AN21: 6380 | AT21: 530 | BB21: 400 | BG21: 3500 | BH21: 1820 | BI21: 24090 | BJ21: 1.073881208 | BK21: 0.7999818083 | BL21: 0.2738993997 | BN21: 2020-02-17T12:46:37
A22: 20 | B22: D474 | C22: ='Dati Generali CER 1 Sem. 2019'!C22 -> FALCONE | D22: ='Dati Generali CER 1 Sem. 2019'!D22 -> 2748 | E22: 486200 | U22: 142780 | V22: 628980 | W22: 0.2270024484 | AA22: 29640 | AE22: 41630 | AN22: 44600 | AQ22: 580 | AU22: 250 | BH22: 26080 | BI22: 142780 | BJ22: 1.243948168 | BK22: 0.961568888 | BL22: 0.2823792798 | BN22: 2020-03-17T10:32:05
A23: 21 | B23: D569 | C23: ='Dati Generali CER 1 Sem. 2019'!C23 -> FICARRA | D23: ='Dati Generali CER 1 Sem. 2019'!D23 -> 1375 | E23: 110420 | U23: 71795 | V23: 182215 | W23: 0.3940125676 | Z23: 4650 | AA23: 15840 | AE23: 31060 | AN23: 13770 | AQ23: 470 | AU23: 365 | BH23: 5640 | BI23: 71795 | BJ23: 0.7202173913 | BK23: 0.4364426877 | BL23: 0.2837747036 | BN23: 2020-01-10T08:09:43
A24: 22 | B24: D622 | C24: ='Dati Generali CER 1 Sem. 2019'!C24 -> FIUMEDINISI | D24: ='Dati Generali CER 1 Sem. 2019'!D24 -> 1340 | E24: 10220 | U24: 49828 | V24: 60048 | W24: 0.8298028244 | Z24: 2368 | AE24: 18400 | AN24: 20220 | AP24: 2590 | AX24: 30 | BH24: 6220 | BI24: 49828 | BJ24: 0.2435431538 | BK24: 0.04145035691 | BL24: 0.2020927969 | BN24: 2020-05-30T19:53:02
A25: 23 | B25: D635 | C25: ='Dati Generali CER 1 Sem. 2019'!C25 -> FLORESTA | D25: ='Dati Generali CER 1 Sem. 2019'!D25 -> 456 | E25: 85220 | U25: 26420 | V25: 111640 | W25: 0.2366535292 | Z25: 5790 | AA25: 7260 | AE25: 11650 | BC25: 980 | BH25: 740 | BI25: 26420 | BJ25: 1.330568268 | BK25: 1.015684592 | BL25: 0.3148836766 | BN25: 2020-02-17T12:49:41
A26: 24 | B26: D661 | C26: ='Dati Generali CER 1 Sem. 2019'!C26 -> FONDACHELLI FANTINA | D26: ='Dati Generali CER 1 Sem. 2019'!D26 -> 1048 | E26: 76420 | U26: 52570 | V26: 128990 | W26: 0.4075509729 | AA26: 6320 | AE26: 8600 | AN26: 9580 | AP26: 22000 | AT26: 750 | BH26: 5320 | BI26: 52570 | BJ26: 0.6689242449 | BK26: 0.3963035181 | BL26: 0.2726207269 | BN26: 2020-02-17T12:51:58
A27: 25 | B27: D733 | C27: ='Dati Generali CER 1 Sem. 2019'!C27 -> FORZA D'AGRO' | D27: ='Dati Generali CER 1 Sem. 2019'!D27 -> 887 | E27: 147910 | U27: 178630 | V27: 326540 | W27: 0.5470386476 | Z27: 15160 | AD27: 18620 | AE27: 28670 | AN27: 3380 | AP27: 104130 | AT27: 210 | BA27: 320 | BB27: 70 | BC27: 4180 | BH27: 3890 | BI27: 178630 | BJ27: 2.000759767 | BK27: 0.9062668497 | BL27: 1.094492917 | BN27: 2020-02-17T12:54:29
A28: 26 | B28: D765 | C28: ='Dati Generali CER 1 Sem. 2019'!C28 -> FRANCAVILLA DI SICILIA | D28: ='Dati Generali CER 1 Sem. 2019'!D28 -> 3744 | E28: 376740 | U28: 255010 | V28: 631750 | W28: 0.4036565097 | X28: 31950 | AD28: 79320 | AE28: 54840 | AN28: 61860 | AP28: 6320 | AQ28: 1480 | AU28: 200 | BH28: 19040 | BI28: 255010 | BJ28: 0.9170469853 | BK28: 0.546875 | BL28: 0.3701719853 | BN28: 2020-01-30T11:52:02
A29: 27 | B29: D793 | C29: ='Dati Generali CER 1 Sem. 2019'!C29 -> FRAZZANO' | D29: ='Dati Generali CER 1 Sem. 2019'!D29 -> 628 | E29: 34580 | U29: 39480 | V29: 74060 | W29: 0.5330812854 | Z29: 4590 | AA29: 3070 | AE29: 14740 | AN29: 1190 | AP29: 14010 | BH29: 1880 | BI29: 39480 | BJ29: 0.6409235669 | BK29: 0.299259208 | BL29: 0.3416643589 | BN29: 2020-02-17T13:01:53
A30: 28 | B30: D824 | C30: ='Dati Generali CER 1 Sem. 2019'!C30 -> FURCI SICULO | D30: ='Dati Generali CER 1 Sem. 2019'!D30 -> 3242 | E30: 188060 | U30: 445365 | V30: 633425 | W30: 0.7031061294 | Y30: 60 | Z30: 13690 | AD30: 62215 | AE30: 57610 | AM30: 3000 | AN30: 65970 | AP30: 201770 | AX30: 80 | BF30: 950 | BH30: 40020 | BI30: 445365 | BJ30: 1.061852922 | BK30: 0.3152576241 | BL30: 0.7465952981 | BN30: 2020-02-17T13:04:39
A31: 29 | B31: D825 | C31: ='Dati Generali CER 1 Sem. 2019'!C31 -> FURNARI | D31: ='Dati Generali CER 1 Sem. 2019'!D31 -> 3842 | E31: 750860 | U31: 436400 | V31: 1187260 | W31: 0.3675690245 | AA31: 83230 | AE31: 98660 | AN31: 81450 | AQ31: 150 | AU31: 200 | BE31: 580 | BF31: 99030 | BH31: 73100 | BI31: 436400 | BJ31: 1.679463821 | BK31: 1.062144943 | BL31: 0.6173188783 | BN31: 2020-05-11T09:58:12
A32: 30 | B32: D844 | C32: ='Dati Generali CER 1 Sem. 2019'!C32 -> GAGGI | D32: ='Dati Generali CER 1 Sem. 2019'!D32 -> 3182 | E32: 225470 | U32: 284380 | V32: 509850 | W32: 0.5577718937 | Z32: 12990 | AD32: 31870 | AE32: 39230 | AN32: 39330 | AP32: 143120 | AS32: 1860 | AT32: 1490 | BA32: 890 | BC32: 2120 | BH32: 11480 | BI32: 284380 | BJ32: 0.8708120406 | BK32: 0.3850975596 | BL32: 0.4857144809 | BN32: 2020-02-17T13:15:44
A33: 31 | B33: D861 | C33: ='Dati Generali CER 1 Sem. 2019'!C33 -> GALATI MAMERTINO | D33: ='Dati Generali CER 1 Sem. 2019'!D33 -> 2419 | E33: 223040 | U33: 162400 | V33: 385440 | W33: 0.4213366542 | Z33: 25860 | AA33: 18120 | AE33: 42980 | AP33: 66820 | BC33: 1760 | BH33: 6860 | BI33: 162400 | BJ33: 0.8659704873 | BK33: 0.5011053795 | BL33: 0.3648651078 | BN33: 2020-02-17T13:20:06
A34: 32 | B34: D885 | C34: ='Dati Generali CER 1 Sem. 2019'!C34 -> GALLODORO | D34: ='Dati Generali CER 1 Sem. 2019'!D34 -> 335 | E34: 29270 | U34: 15480 | V34: 44750 | W34: 0.3459217877 | Z34: 100 | AD34: 5070 | AE34: 4880 | AH34: 200 | AN34: 3420 | AP34: 260 | BB34: 340 | BC34: 610 | BH34: 600 | BI34: 15480 | BJ34: 0.7259896171 | BK34: 0.4748539909 | BL34: 0.2511356262 | BN34: 2020-05-07T10:20:42
A35: 33 | B35: E014 | C35: ='Dati Generali CER 1 Sem. 2019'!C35 -> GIARDINI NAXOS | D35: ='Dati Generali CER 1 Sem. 2019'!D35 -> 9166 | E35: 3185460 | U35: 1316240 | V35: =IF(E35=0,"",SUM(U35,E35,R35,S35,T35)) -> 4501700 | W35: =IFERROR(IF(E35<>0,IF(U35=0,0,(U35/V35*100)/100),IF(U35=0,"","")),0) -> 0.2923873203 | Z35: 7560 | AA35: 228220 | AE35: 436640 | AN35: 298760 | AP35: 133260 | AT35: 8520 | AX35: 180 | BC35: 6220 | BF35: 10980 | BG35: 25840 | BH35: 160060 | BI35: =IF(SUM(X35:BH35)=0,"",SUM(X35:BH35)) -> 1316240 | BJ35: 2.669186217 | BK35: 1.888750012 | BL35: =IF(SUM(Y35:BH35)=0,"",BI35/D35/184) -> 0.7804362056 | BN35: 2020-03-17T10:38:08
A36: 34 | B36: E043 | C36: ='Dati Generali CER 1 Sem. 2019'!C36 -> GIOIOSA MAREA | D36: ='Dati Generali CER 1 Sem. 2019'!D36 -> 6859 | E36: 1205940 | H36: 4380 | K36: 10 | U36: 492459 | V36: 1698399 | W36: 0.2899548339 | Y36: 140 | Z36: 88830 | AA36: 86944 | AB36: 4270 | AC36: 5591 | AE36: 125337 | AM36: 3480 | AN36: 73182 | AO36: 80 | AQ36: 2040 | AT36: 5050 | AU36: 570 | AZ36: 40 | BA36: 6940 | BB36: 14340 | BC36: 6970 | BD36: 1090 | BE36: 12175 | BF36: 38850 | BH36: 16540 | BI36: 492459 | BJ36: 1.345739809 | BK36: 0.9555360459 | BL36: 0.3902037627 | BN36: 2020-02-17T13:22:54
A37: 35 | B37: E142 | C37: ='Dati Generali CER 1 Sem. 2019'!C37 -> GRANITI | D37: ='Dati Generali CER 1 Sem. 2019'!D37 -> 1455 | E37: 135250 | U37: 105110 | V37: 240360 | W37: 0.4373023798 | Z37: 150 | AD37: 17190 | AE37: 23530 | AH37: 80 | AN37: 17370 | AP37: 34330 | AT37: 920 | BA37: 840 | BB37: 1380 | BC37: 2650 | BH37: 6670 | BI37: 105110 | BJ37: =IF(E37=0,"",V37/D37/184) -> 0.8978036755 | BK37: 0.5051919916 | BL37: 0.3926116838 | BN37: 2020-02-20T14:40:44
A38: 36 | B38: E233 | C38: ='Dati Generali CER 1 Sem. 2019'!C38 -> GUALTIERI SICAMINO | D38: ='Dati Generali CER 1 Sem. 2019'!D38 -> 1669 | E38: 109560 | U38: 127600 | V38: 237160 | W38: 0.5380333952 | X38: 50790 | AD38: 20380 | AE38: 33540 | AN38: 22480 | AQ38: 300 | AS38: 110 | BI38: 127600 | BJ38: =IF(SUM(E38)=0,"",V38/D38/184) -> 0.7722666528 | BK38: 0.3567614036 | BL38: 0.4155052492 | BN38: 2020-02-17T13:35:44
A39: 37 | B39: E374 | C39: ='Dati Generali CER 1 Sem. 2019'!C39 -> ITALA | D39: ='Dati Generali CER 1 Sem. 2019'!D39 -> 1504 | E39: 89370 | U39: 73670 | V39: 163040 | W39: 0.4518523062 | Z39: 5180 | AD39: 19640 | AE39: 20240 | AN39: 16390 | AT39: 330 | BA39: 140 | BB39: 1210 | BC39: 6820 | BH39: 3720 | BI39: 73670 | BJ39: 0.5891535615 | BK39: 0.322943166 | BL39: 0.2662103955 | BN39: 2020-02-17T13:48:57
A40: 38 | B40: E523 | C40: ='Dati Generali CER 1 Sem. 2019'!C40 -> LENI | D40: ='Dati Generali CER 1 Sem. 2019'!D40 -> 716 | E40: 90860 | U40: 57580 | V40: 148440 | W40: 0.3879008354 | Z40: 7880 | AA40: 7460 | AE40: 27200 | AN40: 2680 | AT40: 1000 | BA40: 700 | BB40: 1800 | BC40: 3280 | BE40: 3940 | BH40: 1640 | BI40: 57580 | BJ40: 1.126730629 | BK40: 0.6896708769 | BL40: 0.4370597522 | BN40: 2020-02-26T15:28:48
A41: 39 | B41: E555 | C41: ='Dati Generali CER 1 Sem. 2019'!C41 -> LETOJANNI | D41: ='Dati Generali CER 1 Sem. 2019'!D41 -> 2802 | E41: 979830 | U41: 392400 | V41: 1372230 | W41: 0.2859578934 | Z41: 14270 | AD41: 56950 | AE41: 102330 | AH41: 400 | AN41: 55670 | AP41: 132620 | AT41: 520 | BA41: 410 | BB41: 510 | BC41: 2530 | BF41: 5250 | BH41: 20940 | BI41: 392400 | BJ41: 2.661588772 | BK41: 1.900486454 | BL41: 0.7611023182 | BN41: 2020-01-24T10:46:12
A42: 40 | B42: E571 | C42: ='Dati Generali CER 1 Sem. 2019'!C42 -> LIBRIZZI | D42: ='Dati Generali CER 1 Sem. 2019'!D42 -> 1610 | E42: 177180 | U42: 125320 | V42: 302500 | W42: 0.4142809917 | X42: 58560 | Z42: 19120 | AA42: 17140 | AE42: 26740 | BB42: 600 | BH42: 3160 | BI42: 125320 | BJ42: 1.021131515 | BK42: 0.5980961383 | BL42: 0.4230353767 | BN42: 2020-02-19T08:08:53
A43: 41 | B43: E594 | C43: ='Dati Generali CER 1 Sem. 2019'!C43 -> LIMINA | D43: ='Dati Generali CER 1 Sem. 2019'!D43 -> 733 | E43: 39460 | U43: 50610 | V43: 90070 | W43: 0.5618963029 | AA43: 8560 | AE43: 8270 | AN43: 9140 | AP43: 13740 | AQ43: 300 | BA43: 2000 | BB43: 670 | BC43: 2940 | BH43: 4990 | BI43: 50610 | BJ43: 0.6678183759 | BK43: 0.2925736995 | BL43: 0.3752446764 | BN43: 2020-02-18T13:46:43
A44: 42 | B44: E606 | C44: ='Dati Generali CER 1 Sem. 2019'!C44 -> LIPARI | D44: ='Dati Generali CER 1 Sem. 2019'!D44 -> 12815 | E44: 4052660 | U44: 1303640 | V44: 5356300 | W44: 0.2433844258 | Z44: 322710 | AA44: 129130 | AE44: 362110 | AH44: 6420 | AT44: 36160 | BA44: 23580 | BB44: 41520 | BC44: 159050 | BE44: 88160 | BF44: 107380 | BH44: 27420 | BI44: 1303640 | BJ44: 2.271582215 | BK44: 1.718714482 | BL44: 0.5528677331 | BN44: 2020-02-17T13:52:14
A45: 43 | B45: E674 | C45: ='Dati Generali CER 1 Sem. 2019'!C45 -> LONGI | D45: ='Dati Generali CER 1 Sem. 2019'!D45 -> 1381 | E45: 17240 | K45: 3200 | U45: 169630 | V45: 186870 | W45: 0.907743351 | AA45: 20400 | AE45: 43550 | AN45: 23970 | AP45: 69440 | AQ45: 940 | BB45: 900 | BE45: 6460 | BH45: 3970 | BI45: 169630 | BJ45: 0.7354075497 | BK45: 0.06784623619 | BL45: 0.6675613135 | BN45: 2020-03-03T12:16:27
A46: 44 | B46: E855 | C46: ='Dati Generali CER 1 Sem. 2019'!C46 -> MALFA | D46: ='Dati Generali CER 1 Sem. 2019'!D46 -> 1007 | E46: 143320 | U46: 164660 | V46: 307980 | W46: 0.5346451068 | Z46: 16140 | AA46: 17440 | AC46: 1280 | AE46: 69160 | AN46: 15680 | AP46: 29780 | AT46: 2660 | BB46: 2400 | BC46: 6280 | BE46: 2580 | BH46: 1260 | BI46: 164660 | BJ46: 1.662169164 | BK46: 0.7734985536 | BL46: 0.8886706101 | BN46: 2020-02-24T10:01:38
A47: 45 | B47: E869 | C47: ='Dati Generali CER 1 Sem. 2019'!C47 -> MALVAGNA | D47: ='Dati Generali CER 1 Sem. 2019'!D47 -> 662 | E47: 78300 | U47: 22400 | V47: 100700 | W47: 0.2224428997 | AA47: 6040 | AE47: 8120 | AN47: 5920 | BH47: 2320 | BI47: 22400 | BJ47: 0.8267108893 | BK47: 0.6428149218 | BL47: 0.1838959674 | BN47: 2020-06-01T14:56:22
A48: 46 | B48: E876 | C48: ='Dati Generali CER 1 Sem. 2019'!C48 -> MANDANICI | D48: ='Dati Generali CER 1 Sem. 2019'!D48 -> 567 | E48: 35300 | U48: 51910 | V48: 87210 | W48: 0.5952299048 | AD48: 8010 | AE48: 7850 | AH48: 290 | AN48: 6960 | AP48: 23040 | AT48: 160 | BA48: 10 | BB48: 750 | BC48: 1310 | BH48: 3530 | BI48: 51910 | BJ48: 0.8359213251 | BK48: 0.3383559543 | BL48: 0.4975653708 | BN48: 2020-05-18T10:26:47
A49: 47 | B49: F066 | C49: ='Dati Generali CER 1 Sem. 2019'!C49 -> MAZZARRA' S. ANDREA | D49: ='Dati Generali CER 1 Sem. 2019'!D49 -> 1475 | E49: 46500 | U49: 130130 | V49: 176630 | W49: 0.7367378135 | Z49: 19270 | AA49: 20480 | AE49: 18880 | AP49: 69180 | AT49: 480 | BA49: 460 | BH49: 1380 | BI49: 130130 | BJ49: 0.6508106116 | BK49: 0.1713338246 | BL49: 0.479476787 | BN49: 2020-03-17T10:46:27
A50: 48 | B50: F147 | C50: ='Dati Generali CER 1 Sem. 2019'!C50 -> MERI' | D50: ='Dati Generali CER 1 Sem. 2019'!D50 -> 2354 | E50: 331400 | U50: 80830 | V50: 412230 | W50: 0.1960798583 | AA50: 27730 | AE50: 22420 | AN50: 27300 | BA50: 760 | BB50: 400 | BH50: 2220 | BI50: 80830 | BJ50: 0.9517334048 | BK50: 0.7651176536 | BL50: 0.1866157512 | BN50: 2020-02-18T13:04:22
A51: 49 | B51: F158 | C51: ='Dati Generali CER 1 Sem. 2019'!C51 -> MESSINA | D51: ='Dati Generali CER 1 Sem. 2019'!D51 -> 230282 | E51: 41906490 | L51: 4580 | U51: 13326522 | V51: 55233012 | W51: 0.2412782051 | X51: 510000 | Y51: 456 | Z51: 2626360 | AA51: 842405 | AC51: 18720 | AE51: 1501357 | AH51: 12413 | AM51: 43060 | AN51: 1054172 | AP51: 3388690 | AQ51: 64803 | AS51: 678 | AT51: 156645 | AU51: 10540 | AV51: 73 | AX51: 6826 | AY51: 2060 | AZ51: 3540 | BA51: 73057 | BB51: 130966 | BC51: 846423 | BE51: 58259 | BF51: 702605 | BH51: 1272414 | BI51: 13326522 | BJ51: 1.303529642 | BK51: 0.9890163497 | BL51: 0.3145132924 | BN51: 2020-03-24T12:48:18
A52: 50 | B52: F206 | C52: ='Dati Generali CER 1 Sem. 2019'!C52 -> MILAZZO | D52: ='Dati Generali CER 1 Sem. 2019'!D52 -> 30862 | E52: 6923180 | U52: 1171000 | V52: 8094180 | W52: 0.1446718506 | Z52: 195080 | AA52: 234420 | AE52: 214120 | AN52: 193480 | AP52: 123580 | AT52: 8880 | BA52: 6700 | BB52: 1200 | BC52: 16450 | BF52: 93710 | BH52: 83380 | BI52: 1171000 | BJ52: 1.425381009 | BK52: 1.2191685 | BL52: 0.2062125084 | BN52: 2020-05-07T10:28:52
A53: 51 | B53: F210 | C53: ='Dati Generali CER 1 Sem. 2019'!C53 -> MILITELLO ROSMARINO | D53: ='Dati Generali CER 1 Sem. 2019'!D53 -> 1239 | E53: 156200 | S53: 1434 | U53: 51056 | V53: 208690 | W53: 0.2446499593 | Z53: 5370 | AA53: 7320 | AE53: 14640 | AN53: 2570 | AP53: 20200 | BH53: 956 | BI53: 51056 | BJ53: 0.9154033758 | BK53: 0.6851598414 | BL53: 0.2239533986 | BN53: 2020-02-18T11:19:41
A54: 52 | B54: F242 | C54: ='Dati Generali CER 1 Sem. 2019'!C54 -> MIRTO | D54: ='Dati Generali CER 1 Sem. 2019'!D54 -> 937 | E54: 94940 | U54: 87060 | V54: 182000 | W54: 0.4783516484 | Z54: 6960 | AA54: 8410 | AE54: 24410 | AN54: 6910 | AP54: 36180 | BH54: 4190 | BI54: 87060 | BJ54: 1.055635469 | BK54: 0.5506705025 | BL54: 0.5049649668 | BN54: 2020-05-07T11:57:43
A55: 53 | B55: F251 | C55: ='Dati Generali CER 1 Sem. 2019'!C55 -> MISTRETTA | D55: ='Dati Generali CER 1 Sem. 2019'!D55 -> 4559 | E55: 618020 | U55: 245840 | V55: 863860 | W55: 0.28458315 | Z55: 34330 | AA55: 34820 | AE55: 81120 | AN55: 41860 | AT55: 5660 | AU55: 260 | BA55: 10720 | BB55: 5380 | BH55: 31690 | BI55: 245840 | BJ55: 1.029807261 | BK55: 0.736741467 | BL55: 0.2930657944 | BN55: 2020-02-17T13:54:59
A56: 54 | B56: F277 | C56: ='Dati Generali CER 1 Sem. 2019'!C56 -> MOJO ALCANTARA | D56: ='Dati Generali CER 1 Sem. 2019'!D56 -> 696 | E56: 99520 | U56: 21900 | V56: 121420 | W56: 0.1803656729 | AA56: 8480 | AE56: 6120 | AN56: 7300 | BI56: 21900 | BJ56: 0.9481196902 | BK56: 0.7771114443 | BL56: 0.1710082459 | BN56: 2020-03-17T11:03:47
A57: 55 | B57: F359 | C57: ='Dati Generali CER 1 Sem. 2019'!C57 -> MONFORTE S. GIORGIO | D57: ='Dati Generali CER 1 Sem. 2019'!D57 -> 2636 | E57: 320240 | R57: 7900 | U57: 205615 | V57: 533755 | W57: 0.3852235576 | X57: 83235 | AA57: 30900 | AE57: 39480 | AN57: 43820 | AT57: 960 | BA57: 1230 | BB57: 1140 | BD57: 300 | BH57: 4550 | BI57: 205615 | BJ57: 1.100471317 | BK57: 0.6602559873 | BL57: 0.4239274758 | BN57: 2020-05-14T09:43:21
A58: 56 | B58: F368 | C58: ='Dati Generali CER 1 Sem. 2019'!C58 -> MONGIUFFI MELIA | D58: ='Dati Generali CER 1 Sem. 2019'!D58 -> 567 | E58: 37130 | U58: 42890 | V58: 80020 | W58: 0.5359910022 | Z58: 280 | AD58: 7530 | AE58: 7630 | AH58: 200 | AN58: 5900 | AP58: 18990 | BA58: 150 | BB58: 230 | BC58: 1190 | BH58: 790 | BI58: 42890 | BJ58: 0.7670040641 | BK58: 0.3558967871 | BL58: 0.411107277 | BN58: 2020-05-19T23:44:32
A59: 57 | B59: F395 | C59: ='Dati Generali CER 1 Sem. 2019'!C59 -> MONTAGNAREALE | D59: ='Dati Generali CER 1 Sem. 2019'!D59 -> 1496 | E59: 204260 | U59: 102380 | V59: 306640 | W59: 0.3338768589 | AA59: 25900 | AE59: 37450 | AN59: 25890 | BB59: 1440 | BC59: 5050 | BH59: 6650 | BI59: 102380 | BJ59: 1.11398512 | BK59: 0.7420512671 | BL59: 0.3719338526 | BN59: 2020-05-12T10:01:22
A60: 58 | B60: F400 | C60: ='Dati Generali CER 1 Sem. 2019'!C60 -> MONTALBANO ELICONA | D60: ='Dati Generali CER 1 Sem. 2019'!D60 -> 2128 | E60: 103240 | U60: 240710 | V60: 343950 | W60: 0.699840093 | AA60: 32900 | AE60: 37590 | AK60: 10 | AN60: 34460 | AP60: 118400 | AQ60: 7600 | AT60: 1070 | AU60: 13 | AZ60: 7 | BA60: 1240 | BB60: 610 | BH60: 6810 | BI60: 240710 | BJ60: 0.8784273864 | BK60: 0.2636686826 | BL60: 0.6147587038 | BN60: 2020-05-08T12:52:16
A61: 59 | B61: F772 | C61: ='Dati Generali CER 1 Sem. 2019'!C61 -> MOTTA CAMASTRA | D61: ='Dati Generali CER 1 Sem. 2019'!D61 -> 817 | E61: 98090 | U61: 72630 | V61: 170720 | W61: 0.4254334583 | X61: 25150 | AD61: 13870 | AE61: 15230 | AH61: 1070 | AN61: 9460 | AT61: 180 | BA61: 100 | BC61: 890 | BH61: 6680 | BI61: 72630 | BJ61: 1.135650045 | BK61: 0.6525065191 | BL61: 0.4831435262 | BN61: 2020-05-21T10:18:13
A62: 60 | B62: F773 | C62: ='Dati Generali CER 1 Sem. 2019'!C62 -> MOTTA D'AFFERMO | D62: ='Dati Generali CER 1 Sem. 2019'!D62 -> 680 | E62: 42300 | U62: 51620 | V62: 93920 | W62: 0.5496166951 | AA62: 8140 | AE62: 9220 | AN62: 8240 | AP62: 26020 | BI62: 51620 | BJ62: 0.7506393862 | BK62: 0.3380754476 | BL62: 0.4125639386 | BN62: 2020-02-17T13:57:41
A63: 61 | B63: F848 | C63: ='Dati Generali CER 1 Sem. 2019'!C63 -> NASO | D63: ='Dati Generali CER 1 Sem. 2019'!D63 -> 3605 | E63: 278960 | U63: 301199 | V63: 580159 | W63: 0.5191662975 | X63: 32004 | AA63: 61690 | AE63: 81850 | AN63: 61085 | AP63: 51110 | AT63: 1340 | BE63: 3900 | BH63: 8220 | BI63: 301199 | BJ63: 0.8746291383 | BK63: 0.4205511669 | BL63: 0.4540779714 | BN63: 2020-02-28T12:53:19
A64: 62 | B64: F901 | C64: ='Dati Generali CER 1 Sem. 2019'!C64 -> NIZZA DI SICILIA | D64: ='Dati Generali CER 1 Sem. 2019'!D64 -> 3624 | E64: 435530 | U64: 214945 | V64: 650475 | W64: 0.3304431377 | Z64: 3005 | AD64: 47610 | AE64: 62660 | AN64: 70500 | AP64: 5630 | AX64: 70 | BH64: 25470 | BI64: 214945 | BJ64: 0.9754939893 | BK64: 0.6531486947 | BL64: 0.3223452947 | BN64: 2020-05-19T10:22:12
A65: 63 | B65: F951 | C65: ='Dati Generali CER 1 Sem. 2019'!C65 -> NOVARA DI SICILIA | D65: ='Dati Generali CER 1 Sem. 2019'!D65 -> 1255 | E65: 145220 | U65: 302521 | V65: 447741 | W65: 0.6756607056 | AA65: 21530 | AE65: 24420 | AN65: 223961 | AP65: 16000 | BH65: 16610 | BI65: 302521 | BJ65: 1.938944223 | BK65: 0.6288758011 | BL65: 1.310068422 | BN65: 2020-05-26T07:06:28
A66: 64 | B66: G036 | C66: ='Dati Generali CER 1 Sem. 2019'!C66 -> OLIVERI | D66: ='Dati Generali CER 1 Sem. 2019'!D66 -> 2115 | E66: 444780 | U66: 345578 | V66: 790358 | W66: 0.4372423636 | X66: 10710 | Z66: 104890 | AA66: 66590 | AB66: 11960 | AE66: 86600 | AN66: 35570 | BB66: 640 | BC66: 16538 | BH66: 12080 | BI66: 345578 | BJ66: 2.030933292 | BK66: 1.142923219 | BL66: 0.888010073 | BN66: 2020-05-07T10:39:05
A67: 65 | B67: G209 | C67: ='Dati Generali CER 1 Sem. 2019'!C67 -> PACE DEL MELA | D67: ='Dati Generali CER 1 Sem. 2019'!D67 -> 6230 | E67: 798300 | S67: 9520 | U67: 433715 | V67: =IF(E67=0,"",SUM(U67,E67,R67,S67,T67)) -> 1241535 | W67: =IFERROR(IF(E67<>0,IF(U67=0,0,(U67/V67*100)/100),IF(U67=0,"","")),0) -> 0.349337715 | AA67: 1140 | AD67: 111900 | AE67: 79220 | AN67: 163180 | AQ67: 5580 | AT67: 3640 | AU67: 805 | BA67: 11920 | BB67: 8120 | BC67: 11780 | BD67: 4440 | BE67: 5400 | BF67: 26590 | BI67: =IF(SUM(X67:BH67)=0,"",SUM(X67:BH67)) -> 433715 | BJ67: 1.083061449 | BK67: 0.6964024007 | BL67: =IF(SUM(Y67:BH67)=0,"",BI67/D67/184) -> 0.3783542117 | BN67: 2020-01-20T07:55:46
A68: 66 | B68: G234 | C68: ='Dati Generali CER 1 Sem. 2019'!C68 -> PAGLIARA | D68: ='Dati Generali CER 1 Sem. 2019'!D68 -> 1123 | E68: 51400 | U68: =IF(BI68=0,"",BI68) -> 102790 | V68: 154190 | W68: 0.6666450483 | Z68: 350 | AD68: 14880 | AE68: 12160 | AH68: 270 | AN68: 15040 | AP68: 52820 | AR68: 160 | AT68: 640 | BA68: 80 | BB68: 1110 | BC68: 2010 | BH68: 3270 | BI68: 102790 | BJ68: 0.7462058152 | BK68: =IF(E68=0,"",E68/D68/184) -> 0.2487514035 | BL68: 0.4974544117 | BN68: 2020-01-27T10:18:11
A69: 67 | B69: G377 | C69: ='Dati Generali CER 1 Sem. 2019'!C69 -> PATTI | D69: ='Dati Generali CER 1 Sem. 2019'!D69 -> 13121 | E69: 1981340 | U69: 2070336 | V69: 4051676 | W69: 0.5109826156 | Y69: 30 | Z69: 311590 | AB69: 20530 | AD69: 268510 | AE69: 255140 | AH69: 120 | AN69: 454300 | AP69: 609236 | BB69: 18600 | BC69: 22030 | BF69: 60470 | BH69: 49780 | BI69: 2070336 | BJ69: 1.678224088 | BK69: 0.8206807541 | BL69: 0.8575433341 | BN69: 2020-02-17T14:01:02
A70: 68 | B70: G522 | C70: ='Dati Generali CER 1 Sem. 2019'!C70 -> PETTINEO | D70: ='Dati Generali CER 1 Sem. 2019'!D70 -> 1257 | E70: 32900 | U70: 123535 | V70: 156435 | W70: 0.7896890082 | Z70: 18665 | AA70: 17580 | AE70: 20160 | AP70: 64940 | AU70: 150 | BH70: 2040 | BI70: 123535 | BJ70: =IF(SUM(E70)=0,"",V70/D70/184) -> 0.6763645325 | BK70: 0.1422468956 | BL70: 0.5341176369 | BN70: 2020-01-14T14:12:56
A71: 69 | B71: G699 | C71: ='Dati Generali CER 1 Sem. 2019'!C71 -> PIRAINO | D71: ='Dati Generali CER 1 Sem. 2019'!D71 -> 3875 | E71: 669800 | U71: 256514 | V71: 926314 | W71: 0.2769190577 | X71: 22264 | Z71: 27300 | AA71: 62560 | AE71: 83410 | AN71: 41760 | AQ71: 1930 | AT71: 3400 | AU71: 790 | AX71: 170 | AZ71: 30 | BA71: 2880 | BB71: 1390 | BH71: 8630 | BI71: 256514 | BJ71: 1.299178121 | BK71: 0.9394109397 | BL71: 0.3597671809 | BN71: 2020-02-17T14:12:18
A72: 70 | B72: H151 | C72: ='Dati Generali CER 1 Sem. 2019'!C72 -> RACCUJA | D72: ='Dati Generali CER 1 Sem. 2019'!D72 -> 934 | E72: 96320 | U72: 31280 | V72: 127600 | W72: 0.2451410658 | Z72: 4020 | AA72: 6220 | AE72: 16320 | AN72: 2860 | BB72: 320 | BC72: 1540 | BI72: 31280 | BJ72: 0.742482078 | BK72: 0.5604692301 | BL72: 0.182012848 | BN72: 2020-05-11T09:38:00
A73: 71 | B73: H228 | C73: ='Dati Generali CER 1 Sem. 2019'!C73 -> REITANO | D73: ='Dati Generali CER 1 Sem. 2019'!D73 -> 760 | E73: 87200 | U73: 166110 | V73: 253310 | W73: 0.6557577672 | Z73: 14520 | AA73: 5590 | AD73: 40920 | AE73: 26020 | AP73: 63920 | AQ73: 300 | BH73: 14840 | BI73: 166110 | BJ73: 1.811427346 | BK73: 0.6235697941 | BL73: 1.187857551 | BN73: 2020-05-07T11:01:33
A74: 72 | B74: H405 | C74: ='Dati Generali CER 1 Sem. 2019'!C74 -> ROCCAFIORITA | D74: ='Dati Generali CER 1 Sem. 2019'!D74 -> 189 | E74: 7750 | U74: 19180 | V74: 26930 | W74: 0.7122168585 | AA74: 2480 | AE74: 2640 | AF74: 1400 | AN74: 2620 | AP74: 7500 | AQ74: 100 | BB74: 450 | BF74: 1600 | BH74: 390 | BI74: 19180 | BJ74: 0.7743846331 | BK74: 0.2228548424 | BL74: 0.5515297907 | BN74: 2020-05-18T10:05:37
A75: 73 | B75: H418 | C75: ='Dati Generali CER 1 Sem. 2019'!C75 -> ROCCALUMERA | D75: ='Dati Generali CER 1 Sem. 2019'!D75 -> 4124 | E75: 281570 | U75: 725765 | V75: 1007335 | W75: 0.7204802772 | Y75: 60 | Z75: 51400 | AD75: 85285 | AE75: 104260 | AN75: 83630 | AP75: 324860 | AQ75: 1770 | AT75: 2320 | AU75: 220 | AX75: 160 | BA75: 2120 | BB75: 7830 | BC75: 4000 | BF75: 11110 | BH75: 46740 | BI75: 725765 | BJ75: 1.327508909 | BK75: 0.3710649222 | BL75: 0.9564439864 | BN75: 2020-02-17T14:17:49
A76: 74 | B76: H380 | C76: ='Dati Generali CER 1 Sem. 2019'!C76 -> ROCCAVALDINA | D76: ='Dati Generali CER 1 Sem. 2019'!D76 -> 1052 | E76: 148340 | U76: 69600 | V76: 217940 | W76: 0.3193539506 | Z76: 1720 | AA76: 12300 | AE76: 10820 | AN76: 11420 | AP76: 28200 | AT76: 540 | AX76: 40 | BA76: 800 | BB76: 640 | BH76: 3120 | BI76: 69600 | BJ76: 1.125909241 | BK76: 0.766345677 | BL76: 0.3595635642 | BN76: 2020-02-17T14:21:57
A77: 75 | B77: H455 | C77: ='Dati Generali CER 1 Sem. 2019'!C77 -> ROCCELLA VALDEMONE | D77: ='Dati Generali CER 1 Sem. 2019'!D77 -> 600 | E77: 45630 | U77: 49340 | V77: 94970 | W77: 0.5195324839 | AD77: 6680 | AE77: 9190 | AN77: 6070 | AP77: 22940 | AT77: 230 | BA77: 320 | BB77: 350 | BH77: 3560 | BI77: 49340 | BJ77: 0.8602355072 | BK77: 0.4133152174 | BL77: 0.4469202899 | BN77: 2020-05-07T11:07:03
A78: 76 | B78: H479 | C78: ='Dati Generali CER 1 Sem. 2019'!C78 -> RODI' MILICI | D78: ='Dati Generali CER 1 Sem. 2019'!D78 -> 1994 | E78: 142500 | U78: 173190 | V78: 315690 | W78: 0.5486078115 | X78: 42780 | Z78: 3770 | AA78: 39490 | AE78: 30310 | AN78: 31630 | AP78: 16640 | AT78: 3300 | AX78: 70 | BA78: 2690 | BB78: 2420 | BH78: 90 | BI78: 173190 | BJ78: 0.8604345646 | BK78: 0.3883934412 | BL78: 0.4720411234 | BN78: 2020-02-17T14:24:30
A79: 77 | B79: H519 | C79: ='Dati Generali CER 1 Sem. 2019'!C79 -> ROMETTA | D79: ='Dati Generali CER 1 Sem. 2019'!D79 -> 6546 | E79: 195460 | U79: 1119648 | V79: 1315108 | W79: 0.8513734233 | X79: 327798 | Z79: 24620 | AA79: 97710 | AE79: 111910 | AK79: 30 | AN79: 118070 | AP79: 335840 | AQ79: 2140 | AT79: 1060 | AU79: 250 | BF79: 31960 | BH79: 68260 | BI79: 1119648 | BJ79: 1.091861608 | BK79: 0.162279653 | BL79: 0.9295819551 | BN79: 2020-03-17T11:34:11
A80: 78 | B80: I184 | C80: ='Dati Generali CER 1 Sem. 2019'!C80 -> S. DOMENICA VITTORIA | D80: ='Dati Generali CER 1 Sem. 2019'!D80 -> 901 | E80: 61510 | U80: 95400 | V80: 156910 | W80: 0.6079918425 | AD80: 14990 | AE80: 17990 | AN80: 14540 | AP80: 39590 | AT80: 610 | BA80: 680 | BB80: 1010 | BC80: 460 | BH80: 5530 | BI80: 95400 | BJ80: 0.9464725185 | BK80: 0.3710249481 | BL80: 0.5754475703 | BN80: 2020-02-17T14:40:39
A81: 79 | B81: I370 | C81: ='Dati Generali CER 1 Sem. 2019'!C81 -> S. STEF. DI CAMASTRA | D81: ='Dati Generali CER 1 Sem. 2019'!D81 -> 4586 | E81: 391220 | U81: 749768 | V81: 1140988 | W81: 0.6571217226 | Y81: 42 | Z81: 95890 | AA81: 34540 | AD81: 88890 | AE81: 105300 | AM81: 48280 | AN81: 13150 | AP81: 289040 | AQ81: 700 | AT81: 6940 | AU81: 50 | AX81: 420 | AZ81: 96 | BA81: 4610 | BF81: 22920 | BH81: 38900 | BI81: 749768 | BJ81: 1.352163484 | BK81: 0.4636274863 | BL81: 0.888535998 | BN81: 2020-02-24T11:25:13
A82: 80 | B82: I199 | C82: ='Dati Generali CER 1 Sem. 2019'!C82 -> S. AGATA DI MILITELLO | D82: ='Dati Generali CER 1 Sem. 2019'!D82 -> 12312 | E82: 1716540 | U82: 1141692 | V82: 2858232 | W82: 0.3994399335 | Z82: 149710 | AA82: 142850 | AB82: 2880 | AE82: 231820 | AN82: 238680 | AP82: 33010 | AQ82: 2780 | AT82: 17120 | AU82: 425 | BA82: 16280 | BB82: 13080 | BH82: 293057 | BI82: 1141692 | BJ82: 1.261685312 | BK82: 0.7577178151 | BL82: 0.5039674972 | BN82: 2020-02-24T09:59:07
A83: 81 | B83: I220 | C83: ='Dati Generali CER 1 Sem. 2019'!C83 -> SANTA LUCIA DEL MELA | D83: ='Dati Generali CER 1 Sem. 2019'!D83 -> 4544 | E83: 279080 | U83: 401736 | V83: 680816 | W83: 0.5900801391 | X83: 198396 | Z83: 24860 | AA83: 61790 | AE83: 45900 | AN83: 45870 | AT83: 1790 | BA83: 1870 | BB83: 1490 | BG83: 14800 | BH83: 4970 | BI83: 401736 | BJ83: 0.8142796999 | BK83: 0.3337894213 | BL83: 0.4804902786 | BN83: 2020-01-21T08:00:23
A84: 82 | B84: I311 | C84: ='Dati Generali CER 1 Sem. 2019'!C84 -> S. TERESA DI RIVA | D84: ='Dati Generali CER 1 Sem. 2019'!D84 -> 9445 | E84: 600060 | U84: 1499945 | V84: 2100005 | W84: 0.7142578232 | Y84: 180 | Z84: 132490 | AD84: 230940 | AE84: 174150 | AN84: 197310 | AP84: 600060 | AQ84: 6110 | AT84: 2960 | AU84: 205 | AX84: 340 | BA84: 2260 | BB84: 5140 | BD84: 10460 | BE84: 5000 | BF84: 41360 | BH84: 90980 | BI84: 1499945 | BJ84: 1.208371694 | BK84: 0.3452827583 | BL84: 0.8630889359 | BN84: 2020-05-14T09:34:08
A85: 83 | B85: H842 | C85: ='Dati Generali CER 1 Sem. 2019'!C85 -> S. FILIPPO DEL MELA | D85: ='Dati Generali CER 1 Sem. 2019'!D85 -> 6918 | E85: 943671 | U85: 614446 | V85: 1558117 | W85: 0.3943516437 | Z85: 128640 | AA85: 97450 | AE85: 69020 | AF85: 4693 | AI85: 105 | AM85: 203278 | AN85: 82410 | AQ85: 400 | AT85: 2360 | AU85: 390 | AX85: 140 | BA85: 1410 | BB85: 900 | BD85: 7270 | BG85: 12060 | BH85: 3920 | BI85: 614446 | BJ85: 1.224057123 | BK85: 0.7413481843 | BL85: 0.4827089382 | BN85: 2020-03-18T12:26:49
A86: 84 | B86: H8450 | C86: ='Dati Generali CER 1 Sem. 2019'!C86 -> SAN FRATELLO | D86: ='Dati Generali CER 1 Sem. 2019'!D86 -> 3453 | E86: 249400 | U86: 174780 | V86: 424180 | W86: 0.4120420576 | Z86: 33060 | AA86: 4740 | AD86: 16540 | AE86: 34980 | AP86: 77380 | BB86: 2460 | BH86: 5620 | BI86: 174780 | BJ86: 0.6676299122 | BK86: 0.3925383095 | BL86: 0.2750916028 | BN86: 2020-03-03T12:20:28
A87: 85 | B87: H982 | C87: ='Dati Generali CER 1 Sem. 2019'!C87 -> SAN MARCO D'ALUNZIO | D87: ='Dati Generali CER 1 Sem. 2019'!D87 -> 1858 | E87: 60920 | U87: 247155 | V87: 308075 | W87: 0.8022559442 | Z87: 16960 | AA87: 40380 | AB87: 1160 | AE87: 42000 | AN87: 25300 | AP87: 81390 | AQ87: 940 | AT87: 1480 | AU87: 295 | BA87: 2260 | BE87: 26870 | BH87: 8120 | BI87: 247155 | BJ87: 0.9011413628 | BK87: 0.178195348 | BL87: 0.7229460149 | BN87: 2020-02-17T14:48:40
A88: 86 | B88: I084 | C88: ='Dati Generali CER 1 Sem. 2019'!C88 -> SAN PIER NICETO | D88: ='Dati Generali CER 1 Sem. 2019'!D88 -> 2711 | E88: 289860 | R88: 5460 | U88: 371384 | V88: 666704 | W88: 0.5570448055 | X88: 248004 | AA88: 29560 | AE88: 31780 | AN88: 33660 | AQ88: 2750 | AT88: 1270 | AU88: 400 | BA88: 1190 | BB88: 870 | BD88: 1140 | BF88: 12340 | BH88: 8420 | BI88: 371384 | BJ88: 1.336551569 | BK88: 0.581086716 | BL88: 0.7445191089 | BN88: 2020-06-01T12:04:16
A89: 87 | B89: I086 | C89: ='Dati Generali CER 1 Sem. 2019'!C89 -> SAN PIERO PATTI | D89: ='Dati Generali CER 1 Sem. 2019'!D89 -> 2722 | E89: 293420 | U89: 196632 | V89: 490052 | W89: 0.4012472146 | X89: 67252 | AA89: 28450 | AB89: 6400 | AE89: 44970 | AN89: 37560 | AT89: 1460 | BA89: 200 | BB89: 220 | BH89: 10120 | BI89: 196632 | BJ89: 0.978444558 | BK89: 0.5858464045 | BL89: 0.3925981535 | BN89: 2020-02-27T12:36:53
A90: 88 | B90: I147 | C90: ='Dati Generali CER 1 Sem. 2019'!C90 -> S. SALVAT. DI FITALIA | D90: ='Dati Generali CER 1 Sem. 2019'!D90 -> 1219 | E90: 93420 | K90: 12340 | U90: 42970 | V90: 136390 | W90: 0.3150524232 | Z90: 270 | AA90: 10160 | AE90: 19890 | AN90: 12650 | BI90: 42970 | BJ90: 0.6080803938 | BK90: 0.4165031922 | BL90: 0.1915772016 | BN90: 2020-02-17T14:56:00
A91: 89 | B91: I328 | C91: ='Dati Generali CER 1 Sem. 2019'!C91 -> SAN TEODORO | D91: ='Dati Generali CER 1 Sem. 2019'!D91 -> 1326 | E91: 113280 | U91: 66420 | V91: 179700 | W91: 0.3696160267 | AA91: 11780 | AE91: 28900 | AN91: 24460 | AQ91: 1280 | BI91: 66420 | BJ91: 0.7365237065 | BK91: 0.4642927405 | BL91: 0.272230966 | BN91: 2020-02-17T15:04:25
A92: 90 | B92: I283 | C92: ='Dati Generali CER 1 Sem. 2019'!C92 -> S. ANGELO DI BROLO | D92: ='Dati Generali CER 1 Sem. 2019'!D92 -> 2917 | E92: 482820 | H92: 5140 | K92: 3520 | U92: 141820 | V92: 624640 | W92: 0.2270427766 | AA92: 23130 | AE92: 26310 | AN92: 55900 | BB92: 4660 | BC92: 3540 | BH92: 28280 | BI92: 141820 | BJ92: 1.163792461 | BK92: 0.8995617892 | BL92: 0.2642306718 | BN92: 2020-03-17T12:21:39
A93: 91 | B93: I215 | C93: ='Dati Generali CER 1 Sem. 2019'!C93 -> S. ALESSIO SICULO | D93: ='Dati Generali CER 1 Sem. 2019'!D93 -> 1510 | E93: 416040 | U93: 173510 | V93: 589550 | W93: 0.2943092189 | Z93: 450 | AD93: 26560 | AE93: 41580 | AH93: 560 | AN93: 25040 | AP93: 60720 | AT93: 790 | BA93: 110 | BB93: 2530 | BC93: 2690 | BF93: 4630 | BH93: 7850 | BI93: 173510 | BJ93: 2.121904693 | BK93: 1.49740858 | BL93: 0.6244961129 | BN93: 2020-01-21T08:15:02
A94: 92 | B94: I254 | C94: ='Dati Generali CER 1 Sem. 2019'!C94 -> SANTA MARINA SALINA | D94: ='Dati Generali CER 1 Sem. 2019'!D94 -> 885 | E94: 231760 | U94: 157140 | V94: 388900 | W94: 0.4040627411 | Z94: 15740 | AA94: 15680 | AE94: 67280 | AN94: 16440 | AT94: 2280 | BA94: 360 | BB94: 3840 | BC94: 28840 | BE94: 6680 | BI94: 157140 | BJ94: 2.388233849 | BK94: 1.423237534 | BL94: 0.9649963154 | BN94: 2020-03-05T08:05:46
A95: 93 | B95: I420 | C95: ='Dati Generali CER 1 Sem. 2019'!C95 -> SAPONARA | D95: ='Dati Generali CER 1 Sem. 2019'!D95 -> 3829 | E95: 436140 | U95: 223295 | V95: 659435 | W95: 0.3386156331 | Z95: 78070 | AA95: 48490 | AE95: 42190 | AQ95: 2110 | AT95: 1880 | AU95: 415 | AX95: 70 | BA95: 1350 | BC95: 11380 | BF95: 33640 | BH95: 3700 | BI95: 223295 | BJ95: 0.9359848184 | BK95: 0.6190457265 | BL95: 0.3169390918 | BN95: 2020-05-11T09:45:01
A96: 94 | B96: I477 | C96: ='Dati Generali CER 1 Sem. 2019'!C96 -> SAVOCA | D96: ='Dati Generali CER 1 Sem. 2019'!D96 -> 1746 | E96: 142220 | U96: 155960 | V96: 298180 | W96: 0.5230397746 | Z96: 250 | AD96: 24450 | AE96: 30760 | AH96: 200 | AN96: 24480 | AP96: 66330 | AT96: 820 | BA96: 400 | BB96: 640 | BC96: 1890 | BF96: 860 | BH96: 4880 | BI96: 155960 | BJ96: 0.928146322 | BK96: 0.4426888789 | BL96: 0.4854574431 | BN96: 2020-02-17T15:07:37
A97: 95 | B97: I492 | C97: ='Dati Generali CER 1 Sem. 2019'!C97 -> SCALETTA ZANCLEA | D97: ='Dati Generali CER 1 Sem. 2019'!D97 -> 1956 | E97: 157600 | U97: 191860 | V97: 349460 | W97: 0.5490184857 | AD97: 26170 | AE97: 25930 | AN97: 37240 | AP97: 89430 | AT97: 980 | BA97: 270 | BB97: 2080 | BC97: 2710 | BH97: 7050 | BI97: 191860 | BJ97: 0.9709811505 | BK97: 0.4378945497 | BL97: 0.5330866009 | BN97: 2020-05-07T11:12:23
A98: 96 | B98: I747 | C98: ='Dati Generali CER 1 Sem. 2019'!C98 -> SINAGRA | D98: ='Dati Generali CER 1 Sem. 2019'!D98 -> 2598 | E98: 133760 | U98: 314510 | V98: 448270 | W98: 0.7016084056 | Z98: 40200 | AA98: 27520 | AB98: 9400 | AE98: 62320 | AP98: 138350 | AQ98: 4480 | BB98: 5160 | BE98: 10240 | BH98: 16840 | BI98: 314510 | BJ98: 0.9377405697 | BK98: 0.2798139037 | BL98: 0.657926666 | BN98: 2020-01-28T13:42:53
A99: 97 | B99: I881 | C99: ='Dati Generali CER 1 Sem. 2019'!C99 -> SPADAFORA | D99: ='Dati Generali CER 1 Sem. 2019'!D99 -> 4862 | E99: 503489 | S99: 4512 | U99: 505277 | V99: =IF(E99=0,"",SUM(U99,E99,R99,S99,T99)) -> 1013278 | W99: =IFERROR(IF(E99<>0,IF(U99=0,0,(U99/V99*100)/100),IF(U99=0,"","")),0) -> 0.4986558477 | Z99: 14950 | AA99: 73913 | AE99: 76163 | AH99: 76163 | AN99: 86580 | AP99: 132000 | AQ99: 1830 | BF99: 19990 | BH99: 23688 | BI99: =IF(SUM(X99:BH99)=0,"",SUM(X99:BH99)) -> 505277 | BJ99: 1.132650278 | BK99: 0.5628040438 | BL99: =IF(SUM(Y99:BH99)=0,"",BI99/D99/184) -> 0.5648026845 | BN99: 2020-02-26T10:39:25
A100: 98 | B100: L042 | C100: ='Dati Generali CER 1 Sem. 2019'!C100 -> TAORMINA | D100: ='Dati Generali CER 1 Sem. 2019'!D100 -> 10815 | E100: 1643948 | U100: 3064130 | V100: 4708078 | W100: 0.6508239668 | Z100: 24350 | AD100: 375900 | AE100: 853460 | AN100: 496160 | AP100: 1193420 | BF100: 36820 | BH100: 84020 | BI100: 3064130 | BJ100: 2.365915898 | BK100: 0.8261211281 | BL100: 1.53979477 | BN100: 2020-05-12T09:32:23
A101: 99 | B101: M210 | C101: ='Dati Generali CER 1 Sem. 2019'!C101 -> TERME VIGLIATORE | D101: ='Dati Generali CER 1 Sem. 2019'!D101 -> 7364 | E101: 655860 | R101: 54080 | U101: 829282 | V101: 1539222 | W101: 0.5387669875 | X101: 77982 | Z101: 87420 | AA101: 133630 | AE101: 113150 | AN101: 82610 | AP101: 219320 | AQ101: 1000 | AT101: 7960 | AX101: 310 | AZ101: 40 | BA101: 5500 | BB101: 10940 | BC101: 23510 | BE101: 1920 | BF101: 51040 | BH101: 12950 | BI101: 829282 | BJ101: 1.135977316 | BK101: 0.4840380937 | BL101: 0.6120270765 | BN101: 2020-02-25T16:46:22
A102: 100 | B102: L271 | C102: ='Dati Generali CER 1 Sem. 2019'!C102 -> TORREGROTTA | D102: ='Dati Generali CER 1 Sem. 2019'!D102 -> 7356 | E102: 846900 | R102: 13400 | S102: 3610 | U102: 756475 | V102: 1620385 | W102: 0.4668489279 | X102: 281680 | Z102: 64760 | AA102: 105040 | AE102: 92560 | AN102: 132400 | AP102: 13740 | AQ102: 10100 | AT102: 3100 | AU102: 1205 | BA102: 2580 | BB102: 2780 | BF102: 27580 | BH102: 18950 | BI102: 756475 | BJ102: =IF(SUM(E102)=0,"",V102/D102/184) -> 1.197177844 | BK102: 0.6257092702 | BL102: 0.5589011928 | BN102: 2020-04-01T13:49:06
A103: 101 | B103: M286 | C103: ='Dati Generali CER 1 Sem. 2019'!C103 -> TORRENOVA | D103: ='Dati Generali CER 1 Sem. 2019'!D103 -> 4486 | E103: 191840 | U103: 678340 | V103: 870180 | W103: 0.7795398653 | Z103: 58950 | AA103: 119750 | AE103: 83830 | AH103: 210 | AM103: 15000 | AN103: 93900 | AP103: 283390 | BH103: 23310 | BI103: 678340 | BJ103: 1.05422183 | BK103: 0.2324138867 | BL103: 0.8218079436 | BN103: 2020-05-26T07:10:26
A104: 102 | B104: L308 | C104: ='Dati Generali CER 1 Sem. 2019'!C104 -> TORTORICI | D104: ='Dati Generali CER 1 Sem. 2019'!D104 -> 6064 | E104: 348320 | U104: 331620 | V104: 679940 | W104: 0.4877195047 | Z104: 2440 | AA104: 51650 | AE104: 97670 | AN104: 61710 | AP104: 101030 | AT104: 1720 | AX104: 40 | AZ104: 60 | BB104: 1660 | BH104: 13640 | BI104: 331620 | BJ104: 0.6093875473 | BK104: 0.3121773546 | BL104: 0.2972101927 | BN104: 2020-05-30T19:40:55
A105: 103 | B105: L431 | C105: ='Dati Generali CER 1 Sem. 2019'!C105 -> TRIPI | D105: ='Dati Generali CER 1 Sem. 2019'!D105 -> 825 | E105: 119660 | U105: 61428 | V105: 181088 | W105: 0.3392162926 | Z105: 420 | AA105: 7670 | AE105: 15370 | AN105: 7660 | AP105: 19298 | AQ105: 450 | BH105: 10560 | BI105: 61428 | BJ105: 1.192938076 | BK105: 0.7882740448 | BL105: 0.4046640316 | BN105: 2020-05-07T11:16:37
A106: 104 | B106: L478 | C106: ='Dati Generali CER 1 Sem. 2019'!C106 -> TUSA | D106: ='Dati Generali CER 1 Sem. 2019'!D106 -> 2720 | E106: 193280 | U106: 399260 | V106: 592540 | W106: 0.6738110507 | AA106: 36210 | AE106: 76940 | AN106: 52470 | AP106: 188900 | BF106: 5940 | BH106: 38800 | BI106: 399260 | BJ106: 1.183943414 | BK106: 0.3861892583 | BL106: 0.797754156 | BN106: 2020-02-17T15:13:23
A107: 105 | B107: L482 | C107: ='Dati Generali CER 1 Sem. 2019'!C107 -> UCRIA | D107: ='Dati Generali CER 1 Sem. 2019'!D107 -> 985 | E107: 97940 | U107: 66320 | V107: 164260 | W107: 0.4037501522 | X107: 22500 | AA107: 9980 | AE107: 19440 | AN107: 7460 | BB107: 1080 | BC107: 2280 | BH107: 3580 | BI107: 66320 | BJ107: 0.9063120724 | BK107: 0.5403884352 | BL107: 0.3659236372 | BN107: 2020-02-19T12:47:51
A108: 106 | B108: L561 | C108: ='Dati Generali CER 1 Sem. 2019'!C108 -> VALDINA | D108: ='Dati Generali CER 1 Sem. 2019'!D108 -> 1315 | E108: 154840 | U108: 79370 | V108: 234210 | W108: 0.3388839076 | Z108: 28920 | AA108: 19960 | AE108: 22240 | AX108: 30 | BA108: 4980 | BH108: 3240 | BI108: 79370 | BJ108: 0.9679699124 | BK108: 0.639940486 | BL108: 0.3280294264 | BN108: 2020-05-28T08:03:55
A109: 107 | B109: L735 | C109: ='Dati Generali CER 1 Sem. 2019'!C109 -> VENETICO | D109: ='Dati Generali CER 1 Sem. 2019'!D109 -> 4019 | E109: 544120 | U109: 339000 | V109: 883120 | W109: 0.3838662922 | Z109: 12960 | AA109: 73900 | AE109: 55700 | AM109: 78990 | AN109: 88480 | AT109: 20 | AX109: 30 | BA109: 800 | BB109: 120 | BF109: 2780 | BG109: 12700 | BH109: 12520 | BI109: 339000 | BJ109: 1.194218765 | BK109: 0.7357984357 | BL109: 0.4584203295 | BN109: 2020-02-17T15:15:50
A110: 108 | B110: L950 | C110: ='Dati Generali CER 1 Sem. 2019'!C110 -> VILLAFRANCA TIRRENA | D110: ='Dati Generali CER 1 Sem. 2019'!D110 -> 8277 | E110: 340420 | U110: 1148807 | V110: 1489227 | W110: 0.7714116115 | X110: 22292 | Z110: 100390 | AA110: 116422 | AE110: 147120 | AN110: 123310 | AP110: 480620 | AQ110: 31989 | AT110: 3020 | AU110: 2294 | AX110: 140 | BA110: 2780 | BC110: 35700 | BF110: 43720 | BH110: 39010 | BI110: 1148807 | BJ110: 0.9778452338 | BK110: 0.2235240662 | BL110: 0.7543211676 | BN110: 2020-02-24T11:47:47
C111: T O T A L I | D111: =SUM(D3:D110) -> 621739 | E111: 93241788 | F111: 0 | G111: 0 | H111: 9520 | I111: 0 | J111: 0 | K111: 29080 | L111: 4580 | M111: 0 | N111: 582 | O111: 0 | P111: 0 | Q111: 0 | R111: 134620 | S111: 19076 | T111: 0 | U111: 51933589 | V111: =SUM(U111,E111) -> 145175377 | W111: =IF(BI111=0,"",(U111/V111*100)/100) -> 0.3577300095 | X111: =SUM(X3:X110) -> 2554046 | Y111: =SUM(Y3:Y110) -> 1148 | Z111: =SUM(Z3:Z110) -> 5665543 | AA111: 4704550 | AB111: 77730 | AC111: 38051 | AD111: 1900740 | AE111: 9007167 | AF111: 6213 | AH111: =SUM(AH3:AH110) -> 109646 | AI111: 105 | AJ111: 0 | AK111: 1710 | AL111: =SUM(AL3:AL110) -> 0 | AM111: =SUM(AM3:AM110) -> 404268 | AN111: 7201439 | AO111: 38560 | AP111: 12058854 | AQ111: 207842 | AR111: 160 | AS111: 3188 | AT111: 372225 | AU111: 23172 | AV111: 73 | AW111: 40 | AX111: 9918 | AY111: 6930 | AZ111: 5023 | BA111: 276417 | BB111: 387486 | BC111: 1386531 | BD111: 68900 | BE111: 283734 | BF111: =SUM(BF3:BF110) -> 1757765 | BG111: =SUM(BG3:BG110) -> 68900 | BH111: 3304875 | BI111: =SUM(BI3:BI110) -> 51933589

Sheet Riep. Dati RSU e RD 2 Sem. 2019
B3: CITTA' METROPOLITANA DI MESSINA
B4: DATI RIFIUTI SOLIDI URBANI E RACCOLTA DIFFERENZIATA
B5: SECONDO SEMESTRE ANNO 2019
A6: ='Dati Generali CER 2 Sem. 2019'!A2 -> 108 | B6: COMUNE | C6: QUANTITA' (KG) | D6: QUANTITA' (KG) | E6: PERCENTUALE | F6: RSU+RSA+RD | G6: RSU+RSA | H6: R.D. | I6: ='Dati Generali CER 1 Sem. 2019'!D2 -> ABITANTI al 30/11/2019
C7: R.S.U. (Cod.200301) | D7: RACCOLTA | E7: RACCOLTA | F7: R.T. (Kg.) | G7: 200301 (kg.) | H7: (Kg.)
C8: PRODOTTI | D8: DIFFERENZIATA | E8: DIFFERENZIATA | F8: Pro Capite/g | G8: RI Pro Capite/g | H8: Pro Capite/g
B9: CTRL + "q" per ordinare in % | D9: CTRL + "w" per Alfabetico
A10: 1 | B10: ='Dati Generali CER 1 Sem. 2019'!C3 -> ACQUEDOLCI | C10: =IF('Dati Generali CER 2 Sem. 2019'!E3="","",'Dati Generali CER 2 Sem. 2019'!E3) -> 281320 | D10: =IF(C10="","",'Dati Generali CER 2 Sem. 2019'!BI3) -> 605440 | E10: ='Dati Generali CER 2 Sem. 2019'!W3 -> 0.6827551987 | F10: =IF('Dati Generali CER 2 Sem. 2019'!BJ3="","",'Dati Generali CER 2 Sem. 2019'!BJ3) -> 0.8667891774 | G10: =IF('Dati Generali CER 2 Sem. 2019'!BK3="","",'Dati Generali CER 2 Sem. 2019'!BK3) -> 0.2749843603 | H10: =IF('Dati Generali CER 2 Sem. 2019'!BL3="","",'Dati Generali CER 2 Sem. 2019'!BL3) -> 0.591804817 | I10: ='Dati Generali CER 1 Sem. 2019'!D3 -> 5560 | J10: =IF('Dati Generali CER 2 Sem. 2019'!BN3="","",'Dati Generali CER 2 Sem. 2019'!BN3) -> 2020-02-17T12:24:46
A11: 2 | B11: ='Dati Generali CER 1 Sem. 2019'!C4 -> ALCARA LI FUSI | C11: =IF('Dati Generali CER 2 Sem. 2019'!E4="","",'Dati Generali CER 2 Sem. 2019'!E4) -> 53600 | D11: =IF(C11="","",'Dati Generali CER 2 Sem. 2019'!BI4) -> 192520 | E11: ='Dati Generali CER 2 Sem. 2019'!W4 -> 0.7822200553 | F11: =IF('Dati Generali CER 2 Sem. 2019'!BJ4="","",'Dati Generali CER 2 Sem. 2019'!BJ4) -> 0.7341430821 | G11: =IF('Dati Generali CER 2 Sem. 2019'!BK4="","",'Dati Generali CER 2 Sem. 2019'!BK4) -> 0.1598816399 | H11: =IF('Dati Generali CER 2 Sem. 2019'!BL4="","",'Dati Generali CER 2 Sem. 2019'!BL4) -> 0.5742614423 | I11: ='Dati Generali CER 1 Sem. 2019'!D4 -> 1822 | J11: =IF('Dati Generali CER 2 Sem. 2019'!BN4="","",'Dati Generali CER 2 Sem. 2019'!BN4) -> 2020-05-12T14:52:23
A12: 3 | B12: ='Dati Generali CER 1 Sem. 2019'!C5 -> ALI' | C12: =IF('Dati Generali CER 2 Sem. 2019'!E5="","",'Dati Generali CER 2 Sem. 2019'!E5) -> 56460 | D12: =IF(C12="","",'Dati Generali CER 2 Sem. 2019'!BI5) -> 34260 | E12: ='Dati Generali CER 2 Sem. 2019'!W5 -> 0.3776455026 | F12: =IF('Dati Generali CER 2 Sem. 2019'!BJ5="","",'Dati Generali CER 2 Sem. 2019'!BJ5) -> 0.6876478079 | G12: =IF('Dati Generali CER 2 Sem. 2019'!BK5="","",'Dati Generali CER 2 Sem. 2019'!BK5) -> 0.4279607058 | H12: =IF('Dati Generali CER 2 Sem. 2019'!BL5="","",'Dati Generali CER 2 Sem. 2019'!BL5) -> 0.2596871021 | I12: ='Dati Generali CER 1 Sem. 2019'!D5 -> 717 | J12: =IF('Dati Generali CER 2 Sem. 2019'!BN5="","",'Dati Generali CER 2 Sem. 2019'!BN5) -> 2020-05-06T15:25:24
A13: 4 | B13: ='Dati Generali CER 1 Sem. 2019'!C6 -> ALI' TERME | C13: =IF('Dati Generali CER 2 Sem. 2019'!E6="","",'Dati Generali CER 2 Sem. 2019'!E6) -> 308490 | D13: =IF(C13="","",'Dati Generali CER 2 Sem. 2019'!BI6) -> 220155 | E13: ='Dati Generali CER 2 Sem. 2019'!W6 -> 0.4164514939 | F13: =IF('Dati Generali CER 2 Sem. 2019'!BJ6="","",'Dati Generali CER 2 Sem. 2019'!BJ6) -> 1.184283039 | G13: =IF('Dati Generali CER 2 Sem. 2019'!BK6="","",'Dati Generali CER 2 Sem. 2019'!BK6) -> 0.6910865981 | H13: =IF('Dati Generali CER 2 Sem. 2019'!BL6="","",'Dati Generali CER 2 Sem. 2019'!BL6) -> 0.4931964407 | I13: ='Dati Generali CER 1 Sem. 2019'!D6 -> 2426 | J13: =IF('Dati Generali CER 2 Sem. 2019'!BN6="","",'Dati Generali CER 2 Sem. 2019'!BN6) -> 2020-02-26T08:27:47
A14: 5 | B14: ='Dati Generali CER 1 Sem. 2019'!C7 -> ANTILLO | C14: =IF('Dati Generali CER 2 Sem. 2019'!E7="","",'Dati Generali CER 2 Sem. 2019'!E7) -> 29310 | D14: =IF(C14="","",'Dati Generali CER 2 Sem. 2019'!BI7) -> 65420 | E14: ='Dati Generali CER 2 Sem. 2019'!W7 -> 0.6905943207 | F14: =IF('Dati Generali CER 2 Sem. 2019'!BJ7="","",'Dati Generali CER 2 Sem. 2019'!BJ7) -> 0.6035603242 | G14: =IF('Dati Generali CER 2 Sem. 2019'!BK7="","",'Dati Generali CER 2 Sem. 2019'!BK7) -> 0.1867449921 | H14: =IF('Dati Generali CER 2 Sem. 2019'!BL7="","",'Dati Generali CER 2 Sem. 2019'!BL7) -> 0.4168153321 | I14: ='Dati Generali CER 1 Sem. 2019'!D7 -> 853 | J14: =IF('Dati Generali CER 2 Sem. 2019'!BN7="","",'Dati Generali CER 2 Sem. 2019'!BN7) -> 2020-02-28T09:36:43
A15: 6 | B15: ='Dati Generali CER 1 Sem. 2019'!C8 -> BARCELLONA P.G. | C15: =IF('Dati Generali CER 2 Sem. 2019'!E8="","",'Dati Generali CER 2 Sem. 2019'!E8) -> 6179500 | D15: =IF(C15="","",'Dati Generali CER 2 Sem. 2019'!BI8) -> 2323111 | E15: ='Dati Generali CER 2 Sem. 2019'!W8 -> 0.2732232487 | F15: =IF('Dati Generali CER 2 Sem. 2019'!BJ8="","",'Dati Generali CER 2 Sem. 2019'!BJ8) -> 1.122824502 | G15: =IF('Dati Generali CER 2 Sem. 2019'!BK8="","",'Dati Generali CER 2 Sem. 2019'!BK8) -> 0.816042744 | H15: =IF('Dati Generali CER 2 Sem. 2019'!BL8="","",'Dati Generali CER 2 Sem. 2019'!BL8) -> 0.3067817583 | I15: ='Dati Generali CER 1 Sem. 2019'!D8 -> 41155 | J15: =IF('Dati Generali CER 2 Sem. 2019'!BN8="","",'Dati Generali CER 2 Sem. 2019'!BN8) -> 2020-02-20T14:33:09
A16: 7 | B16: ='Dati Generali CER 1 Sem. 2019'!C9 -> BASICO' | C16: =IF('Dati Generali CER 2 Sem. 2019'!E9="","",'Dati Generali CER 2 Sem. 2019'!E9) -> 64400 | D16: =IF(C16="","",'Dati Generali CER 2 Sem. 2019'!BI9) -> 46218 | E16: ='Dati Generali CER 2 Sem. 2019'!W9 -> 0.4178162686 | F16: =IF('Dati Generali CER 2 Sem. 2019'!BJ9="","",'Dati Generali CER 2 Sem. 2019'!BJ9) -> 1.036525487 | G16: =IF('Dati Generali CER 2 Sem. 2019'!BK9="","",'Dati Generali CER 2 Sem. 2019'!BK9) -> 0.6034482759 | H16: =IF('Dati Generali CER 2 Sem. 2019'!BL9="","",'Dati Generali CER 2 Sem. 2019'!BL9) -> 0.4330772114 | I16: ='Dati Generali CER 1 Sem. 2019'!D9 -> 580 | J16: =IF('Dati Generali CER 2 Sem. 2019'!BN9="","",'Dati Generali CER 2 Sem. 2019'!BN9) -> 2020-02-17T12:27:05
A17: 8 | B17: ='Dati Generali CER 1 Sem. 2019'!C10 -> BROLO | C17: =IF('Dati Generali CER 2 Sem. 2019'!E10="","",'Dati Generali CER 2 Sem. 2019'!E10) -> 772780 | D17: =IF(C17="","",'Dati Generali CER 2 Sem. 2019'!BI10) -> 617232 | E17: ='Dati Generali CER 2 Sem. 2019'!W10 -> 0.4275075634 | F17: =IF('Dati Generali CER 2 Sem. 2019'!BJ10="","",'Dati Generali CER 2 Sem. 2019'!BJ10) -> 1.35544924 | G17: =IF('Dati Generali CER 2 Sem. 2019'!BK10="","",'Dati Generali CER 2 Sem. 2019'!BK10) -> 0.7254951294 | H17: =IF('Dati Generali CER 2 Sem. 2019'!BL10="","",'Dati Generali CER 2 Sem. 2019'!BL10) -> 0.5794648021 | I17: ='Dati Generali CER 1 Sem. 2019'!D10 -> 5789 | J17: =IF('Dati Generali CER 2 Sem. 2019'!BN10="","",'Dati Generali CER 2 Sem. 2019'!BN10) -> 2020-02-17T12:28:35
A18: 9 | B18: ='Dati Generali CER 1 Sem. 2019'!C11 -> CAPIZZI | C18: =IF('Dati Generali CER 2 Sem. 2019'!E11="","",'Dati Generali CER 2 Sem. 2019'!E11) -> 177320 | D18: =IF(C18="","",'Dati Generali CER 2 Sem. 2019'!BI11) -> 292269 | E18: ='Dati Generali CER 2 Sem. 2019'!W11 -> 0.6223931992 | F18: =IF('Dati Generali CER 2 Sem. 2019'!BJ11="","",'Dati Generali CER 2 Sem. 2019'!BJ11) -> 0.8535498764 | G18: =IF('Dati Generali CER 2 Sem. 2019'!BK11="","",'Dati Generali CER 2 Sem. 2019'!BK11) -> 0.3223062382 | H18: =IF('Dati Generali CER 2 Sem. 2019'!BL11="","",'Dati Generali CER 2 Sem. 2019'!BL11) -> 0.5312436382 | I18: ='Dati Generali CER 1 Sem. 2019'!D11 -> 2990 | J18: =IF('Dati Generali CER 2 Sem. 2019'!BN11="","",'Dati Generali CER 2 Sem. 2019'!BN11) -> 2020-02-17T12:33:40
A19: 10 | B19: ='Dati Generali CER 1 Sem. 2019'!C12 -> CAPO D'ORLANDO | C19: =IF('Dati Generali CER 2 Sem. 2019'!E12="","",'Dati Generali CER 2 Sem. 2019'!E12) -> 1510800 | D19: =IF(C19="","",'Dati Generali CER 2 Sem. 2019'!BI12) -> 1907406 | E19: ='Dati Generali CER 2 Sem. 2019'!W12 -> 0.5580137651 | F19: =IF('Dati Generali CER 2 Sem. 2019'!BJ12="","",'Dati Generali CER 2 Sem. 2019'!BJ12) -> 1.398254292 | G19: =IF('Dati Generali CER 2 Sem. 2019'!BK12="","",'Dati Generali CER 2 Sem. 2019'!BK12) -> 0.6180091499 | H19: =IF('Dati Generali CER 2 Sem. 2019'!BL12="","",'Dati Generali CER 2 Sem. 2019'!BL12) -> 0.780245142 | I19: ='Dati Generali CER 1 Sem. 2019'!D12 -> 13286 | J19: =IF('Dati Generali CER 2 Sem. 2019'!BN12="","",'Dati Generali CER 2 Sem. 2019'!BN12) -> 2020-02-18T09:24:01
A20: 11 | B20: ='Dati Generali CER 1 Sem. 2019'!C13 -> CAPRILEONE | C20: =IF('Dati Generali CER 2 Sem. 2019'!E13="","",'Dati Generali CER 2 Sem. 2019'!E13) -> 55290 | D20: =IF(C20="","",'Dati Generali CER 2 Sem. 2019'!BI13) -> 355610 | E20: ='Dati Generali CER 2 Sem. 2019'!W13 -> 0.8654417133 | F20: =IF('Dati Generali CER 2 Sem. 2019'!BJ13="","",'Dati Generali CER 2 Sem. 2019'!BJ13) -> 0.5085748517 | G20: =IF('Dati Generali CER 2 Sem. 2019'!BK13="","",'Dati Generali CER 2 Sem. 2019'!BK13) -> 0.0684329607 | H20: =IF('Dati Generali CER 2 Sem. 2019'!BL13="","",'Dati Generali CER 2 Sem. 2019'!BL13) -> 0.440141891 | I20: ='Dati Generali CER 1 Sem. 2019'!D13 -> 4391 | J20: =IF('Dati Generali CER 2 Sem. 2019'!BN13="","",'Dati Generali CER 2 Sem. 2019'!BN13) -> 2020-05-06T15:32:43
A21: 12 | B21: ='Dati Generali CER 1 Sem. 2019'!C14 -> CARONIA | C21: =IF('Dati Generali CER 2 Sem. 2019'!E14="","",'Dati Generali CER 2 Sem. 2019'!E14) -> 236300 | D21: =IF(C21="","",'Dati Generali CER 2 Sem. 2019'!BI14) -> 449850 | E21: ='Dati Generali CER 2 Sem. 2019'!W14 -> 0.6556146615 | F21: =IF('Dati Generali CER 2 Sem. 2019'!BJ14="","",'Dati Generali CER 2 Sem. 2019'!BJ14) -> 1.184962214 | G21: =IF('Dati Generali CER 2 Sem. 2019'!BK14="","",'Dati Generali CER 2 Sem. 2019'!BK14) -> 0.4080836131 | H21: =IF('Dati Generali CER 2 Sem. 2019'!BL14="","",'Dati Generali CER 2 Sem. 2019'!BL14) -> 0.7768786007 | I21: ='Dati Generali CER 1 Sem. 2019'!D14 -> 3147 | J21: =IF('Dati Generali CER 2 Sem. 2019'!BN14="","",'Dati Generali CER 2 Sem. 2019'!BN14) -> 2020-05-08T12:46:34
A22: 13 | B22: ='Dati Generali CER 1 Sem. 2019'!C15 -> CASALVECCHIO SICULO | C22: =IF('Dati Generali CER 2 Sem. 2019'!E15="","",'Dati Generali CER 2 Sem. 2019'!E15) -> 57880 | D22: =IF(C22="","",'Dati Generali CER 2 Sem. 2019'!BI15) -> 28440 | E22: ='Dati Generali CER 2 Sem. 2019'!W15 -> 0.3294717331 | F22: =IF('Dati Generali CER 2 Sem. 2019'!BJ15="","",'Dati Generali CER 2 Sem. 2019'!BJ15) -> 0.6164657487 | G22: =IF('Dati Generali CER 2 Sem. 2019'!BK15="","",'Dati Generali CER 2 Sem. 2019'!BK15) -> 0.4133577101 | H22: =IF('Dati Generali CER 2 Sem. 2019'!BL15="","",'Dati Generali CER 2 Sem. 2019'!BL15) -> 0.2031080386 | I22: ='Dati Generali CER 1 Sem. 2019'!D15 -> 761 | J22: =IF('Dati Generali CER 2 Sem. 2019'!BN15="","",'Dati Generali CER 2 Sem. 2019'!BN15) -> 2020-02-03T10:46:14
A23: 14 | B23: ='Dati Generali CER 1 Sem. 2019'!C16 -> CASTEL DI LUCIO | C23: =IF('Dati Generali CER 2 Sem. 2019'!E16="","",'Dati Generali CER 2 Sem. 2019'!E16) -> 28740 | D23: =IF(C23="","",'Dati Generali CER 2 Sem. 2019'!BI16) -> 94420 | E23: ='Dati Generali CER 2 Sem. 2019'!W16 -> 0.7666450146 | F23: =IF('Dati Generali CER 2 Sem. 2019'!BJ16="","",'Dati Generali CER 2 Sem. 2019'!BJ16) -> 0.5346228643 | G23: =IF('Dati Generali CER 2 Sem. 2019'!BK16="","",'Dati Generali CER 2 Sem. 2019'!BK16) -> 0.1247569107 | H23: =IF('Dati Generali CER 2 Sem. 2019'!BL16="","",'Dati Generali CER 2 Sem. 2019'!BL16) -> 0.4098659536 | I23: ='Dati Generali CER 1 Sem. 2019'!D16 -> 1252 | J23: =IF('Dati Generali CER 2 Sem. 2019'!BN16="","",'Dati Generali CER 2 Sem. 2019'!BN16) -> 2020-05-06T16:00:57
A24: 15 | B24: ='Dati Generali CER 1 Sem. 2019'!C17 -> CASTELL'UMBERTO | C24: =IF('Dati Generali CER 2 Sem. 2019'!E17="","",'Dati Generali CER 2 Sem. 2019'!E17) -> 268320 | D24: =IF(C24="","",'Dati Generali CER 2 Sem. 2019'!BI17) -> 194920 | E24: ='Dati Generali CER 2 Sem. 2019'!W17 -> 0.420775408 | F24: =IF('Dati Generali CER 2 Sem. 2019'!BJ17="","",'Dati Generali CER 2 Sem. 2019'!BJ17) -> 0.8488228913 | G24: =IF('Dati Generali CER 2 Sem. 2019'!BK17="","",'Dati Generali CER 2 Sem. 2019'!BK17) -> 0.4916590929 | H24: =IF('Dati Generali CER 2 Sem. 2019'!BL17="","",'Dati Generali CER 2 Sem. 2019'!BL17) -> 0.3571637984 | I24: ='Dati Generali CER 1 Sem. 2019'!D17 -> 2966 | J24: =IF('Dati Generali CER 2 Sem. 2019'!BN17="","",'Dati Generali CER 2 Sem. 2019'!BN17) -> 2020-01-27T08:17:17
A25: 16 | B25: ='Dati Generali CER 1 Sem. 2019'!C18 -> CASTELMOLA | C25: =IF('Dati Generali CER 2 Sem. 2019'!E18="","",'Dati Generali CER 2 Sem. 2019'!E18) -> 133490 | D25: =IF(C25="","",'Dati Generali CER 2 Sem. 2019'!BI18) -> 55900 | E25: ='Dati Generali CER 2 Sem. 2019'!W18 -> 0.2951581393 | F25: =IF('Dati Generali CER 2 Sem. 2019'!BJ18="","",'Dati Generali CER 2 Sem. 2019'!BJ18) -> 0.93402312 | G25: =IF('Dati Generali CER 2 Sem. 2019'!BK18="","",'Dati Generali CER 2 Sem. 2019'!BK18) -> 0.6583385939 | H25: =IF('Dati Generali CER 2 Sem. 2019'!BL18="","",'Dati Generali CER 2 Sem. 2019'!BL18) -> 0.2756845262 | I25: ='Dati Generali CER 1 Sem. 2019'!D18 -> 1102 | J25: =IF('Dati Generali CER 2 Sem. 2019'!BN18="","",'Dati Generali CER 2 Sem. 2019'!BN18) -> 2020-02-17T12:41:01
A26: 17 | B26: ='Dati Generali CER 1 Sem. 2019'!C19 -> CASTROREALE | C26: =IF('Dati Generali CER 2 Sem. 2019'!E19="","",'Dati Generali CER 2 Sem. 2019'!E19) -> 143140 | D26: =IF(C26="","",'Dati Generali CER 2 Sem. 2019'!BI19) -> 106300 | E26: ='Dati Generali CER 2 Sem. 2019'!W19 -> 0.4261545863 | F26: =IF('Dati Generali CER 2 Sem. 2019'!BJ19="","",'Dati Generali CER 2 Sem. 2019'!BJ19) -> 0.5788437976 | G26: =IF('Dati Generali CER 2 Sem. 2019'!BK19="","",'Dati Generali CER 2 Sem. 2019'!BK19) -> 0.3321668585 | H26: =IF('Dati Generali CER 2 Sem. 2019'!BL19="","",'Dati Generali CER 2 Sem. 2019'!BL19) -> 0.2466769391 | I26: ='Dati Generali CER 1 Sem. 2019'!D19 -> 2342 | J26: =IF('Dati Generali CER 2 Sem. 2019'!BN19="","",'Dati Generali CER 2 Sem. 2019'!BN19) -> 2020-02-21T08:52:35
A27: 18 | B27: ='Dati Generali CER 1 Sem. 2019'!C20 -> CESARO' | C27: =IF('Dati Generali CER 2 Sem. 2019'!E20="","",'Dati Generali CER 2 Sem. 2019'!E20) -> 172300 | D27: =IF(C27="","",'Dati Generali CER 2 Sem. 2019'!BI20) -> 151100 | E27: ='Dati Generali CER 2 Sem. 2019'!W20 -> 0.4672232529 | F27: =IF('Dati Generali CER 2 Sem. 2019'!BJ20="","",'Dati Generali CER 2 Sem. 2019'!BJ20) -> 0.7729149937 | G27: =IF('Dati Generali CER 2 Sem. 2019'!BK20="","",'Dati Generali CER 2 Sem. 2019'!BK20) -> 0.4117911361 | H27: =IF('Dati Generali CER 2 Sem. 2019'!BL20="","",'Dati Generali CER 2 Sem. 2019'!BL20) -> 0.3611238576 | I27: ='Dati Generali CER 1 Sem. 2019'!D20 -> 2274 | J27: =IF('Dati Generali CER 2 Sem. 2019'!BN20="","",'Dati Generali CER 2 Sem. 2019'!BN20) -> 2020-04-28T12:46:34
A28: 19 | B28: ='Dati Generali CER 1 Sem. 2019'!C21 -> CONDRO' | C28: =IF('Dati Generali CER 2 Sem. 2019'!E21="","",'Dati Generali CER 2 Sem. 2019'!E21) -> 70360 | D28: =IF(C28="","",'Dati Generali CER 2 Sem. 2019'!BI21) -> 24090 | E28: ='Dati Generali CER 2 Sem. 2019'!W21 -> 0.255055585 | F28: =IF('Dati Generali CER 2 Sem. 2019'!BJ21="","",'Dati Generali CER 2 Sem. 2019'!BJ21) -> 1.073881208 | G28: =IF('Dati Generali CER 2 Sem. 2019'!BK21="","",'Dati Generali CER 2 Sem. 2019'!BK21) -> 0.7999818083 | H28: =IF('Dati Generali CER 2 Sem. 2019'!BL21="","",'Dati Generali CER 2 Sem. 2019'!BL21) -> 0.2738993997 | I28: ='Dati Generali CER 1 Sem. 2019'!D21 -> 478 | J28: =IF('Dati Generali CER 2 Sem. 2019'!BN21="","",'Dati Generali CER 2 Sem. 2019'!BN21) -> 2020-02-17T12:46:37
A29: 20 | B29: ='Dati Generali CER 1 Sem. 2019'!C22 -> FALCONE | C29: =IF('Dati Generali CER 2 Sem. 2019'!E22="","",'Dati Generali CER 2 Sem. 2019'!E22) -> 486200 | D29: =IF(C29="","",'Dati Generali CER 2 Sem. 2019'!BI22) -> 142780 | E29: ='Dati Generali CER 2 Sem. 2019'!W22 -> 0.2270024484 | F29: =IF('Dati Generali CER 2 Sem. 2019'!BJ22="","",'Dati Generali CER 2 Sem. 2019'!BJ22) -> 1.243948168 | G29: =IF('Dati Generali CER 2 Sem. 2019'!BK22="","",'Dati Generali CER 2 Sem. 2019'!BK22) -> 0.961568888 | H29: =IF('Dati Generali CER 2 Sem. 2019'!BL22="","",'Dati Generali CER 2 Sem. 2019'!BL22) -> 0.2823792798 | I29: ='Dati Generali CER 1 Sem. 2019'!D22 -> 2748 | J29: =IF('Dati Generali CER 2 Sem. 2019'!BN22="","",'Dati Generali CER 2 Sem. 2019'!BN22) -> 2020-03-17T10:32:05
A30: 21 | B30: ='Dati Generali CER 1 Sem. 2019'!C23 -> FICARRA | C30: =IF('Dati Generali CER 2 Sem. 2019'!E23="","",'Dati Generali CER 2 Sem. 2019'!E23) -> 110420 | D30: =IF(C30="","",'Dati Generali CER 2 Sem. 2019'!BI23) -> 71795 | E30: ='Dati Generali CER 2 Sem. 2019'!W23 -> 0.3940125676 | F30: =IF('Dati Generali CER 2 Sem. 2019'!BJ23="","",'Dati Generali CER 2 Sem. 2019'!BJ23) -> 0.7202173913 | G30: =IF('Dati Generali CER 2 Sem. 2019'!BK23="","",'Dati Generali CER 2 Sem. 2019'!BK23) -> 0.4364426877 | H30: =IF('Dati Generali CER 2 Sem. 2019'!BL23="","",'Dati Generali CER 2 Sem. 2019'!BL23) -> 0.2837747036 | I30: ='Dati Generali CER 1 Sem. 2019'!D23 -> 1375 | J30: =IF('Dati Generali CER 2 Sem. 2019'!BN23="","",'Dati Generali CER 2 Sem. 2019'!BN23) -> 2020-01-10T08:09:43
A31: 22 | B31: ='Dati Generali CER 1 Sem. 2019'!C24 -> FIUMEDINISI | C31: =IF('Dati Generali CER 2 Sem. 2019'!E24="","",'Dati Generali CER 2 Sem. 2019'!E24) -> 10220 | D31: =IF(C31="","",'Dati Generali CER 2 Sem. 2019'!BI24) -> 49828 | E31: ='Dati Generali CER 2 Sem. 2019'!W24 -> 0.8298028244 | F31: =IF('Dati Generali CER 2 Sem. 2019'!BJ24="","",'Dati Generali CER 2 Sem. 2019'!BJ24) -> 0.2435431538 | G31: =IF('Dati Generali CER 2 Sem. 2019'!BK24="","",'Dati Generali CER 2 Sem. 2019'!BK24) -> 0.04145035691 | H31: =IF('Dati Generali CER 2 Sem. 2019'!BL24="","",'Dati Generali CER 2 Sem. 2019'!BL24) -> 0.2020927969 | I31: ='Dati Generali CER 1 Sem. 2019'!D24 -> 1340 | J31: =IF('Dati Generali CER 2 Sem. 2019'!BN24="","",'Dati Generali CER 2 Sem. 2019'!BN24) -> 2020-05-30T19:53:02
A32: 23 | B32: ='Dati Generali CER 1 Sem. 2019'!C25 -> FLORESTA | C32: =IF('Dati Generali CER 2 Sem. 2019'!E25="","",'Dati Generali CER 2 Sem. 2019'!E25) -> 85220 | D32: =IF(C32="","",'Dati Generali CER 2 Sem. 2019'!BI25) -> 26420 | E32: ='Dati Generali CER 2 Sem. 2019'!W25 -> 0.2366535292 | F32: =IF('Dati Generali CER 2 Sem. 2019'!BJ25="","",'Dati Generali CER 2 Sem. 2019'!BJ25) -> 1.330568268 | G32: =IF('Dati Generali CER 2 Sem. 2019'!BK25="","",'Dati Generali CER 2 Sem. 2019'!BK25) -> 1.015684592 | H32: =IF('Dati Generali CER 2 Sem. 2019'!BL25="","",'Dati Generali CER 2 Sem. 2019'!BL25) -> 0.3148836766 | I32: ='Dati Generali CER 1 Sem. 2019'!D25 -> 456 | J32: =IF('Dati Generali CER 2 Sem. 2019'!BN25="","",'Dati Generali CER 2 Sem. 2019'!BN25) -> 2020-02-17T12:49:41
A33: 24 | B33: ='Dati Generali CER 1 Sem. 2019'!C26 -> FONDACHELLI FANTINA | C33: =IF('Dati Generali CER 2 Sem. 2019'!E26="","",'Dati Generali CER 2 Sem. 2019'!E26) -> 76420 | D33: =IF(C33="","",'Dati Generali CER 2 Sem. 2019'!BI26) -> 52570 | E33: ='Dati Generali CER 2 Sem. 2019'!W26 -> 0.4075509729 | F33: =IF('Dati Generali CER 2 Sem. 2019'!BJ26="","",'Dati Generali CER 2 Sem. 2019'!BJ26) -> 0.6689242449 | G33: =IF('Dati Generali CER 2 Sem. 2019'!BK26="","",'Dati Generali CER 2 Sem. 2019'!BK26) -> 0.3963035181 | H33: =IF('Dati Generali CER 2 Sem. 2019'!BL26="","",'Dati Generali CER 2 Sem. 2019'!BL26) -> 0.2726207269 | I33: ='Dati Generali CER 1 Sem. 2019'!D26 -> 1048 | J33: =IF('Dati Generali CER 2 Sem. 2019'!BN26="","",'Dati Generali CER 2 Sem. 2019'!BN26) -> 2020-02-17T12:51:58
A34: 25 | B34: ='Dati Generali CER 1 Sem. 2019'!C27 -> FORZA D'AGRO' | C34: =IF('Dati Generali CER 2 Sem. 2019'!E27="","",'Dati Generali CER 2 Sem. 2019'!E27) -> 147910 | D34: =IF(C34="","",'Dati Generali CER 2 Sem. 2019'!BI27) -> 178630 | E34: ='Dati Generali CER 2 Sem. 2019'!W27 -> 0.5470386476 | F34: =IF('Dati Generali CER 2 Sem. 2019'!BJ27="","",'Dati Generali CER 2 Sem. 2019'!BJ27) -> 2.000759767 | G34: =IF('Dati Generali CER 2 Sem. 2019'!BK27="","",'Dati Generali CER 2 Sem. 2019'!BK27) -> 0.9062668497 | H34: =IF('Dati Generali CER 2 Sem. 2019'!BL27="","",'Dati Generali CER 2 Sem. 2019'!BL27) -> 1.094492917 | I34: ='Dati Generali CER 1 Sem. 2019'!D27 -> 887 | J34: =IF('Dati Generali CER 2 Sem. 2019'!BN27="","",'Dati Generali CER 2 Sem. 2019'!BN27) -> 2020-02-17T12:54:29
A35: 26 | B35: ='Dati Generali CER 1 Sem. 2019'!C28 -> FRANCAVILLA DI SICILIA | C35: =IF('Dati Generali CER 2 Sem. 2019'!E28="","",'Dati Generali CER 2 Sem. 2019'!E28) -> 376740 | D35: =IF(C35="","",'Dati Generali CER 2 Sem. 2019'!BI28) -> 255010 | E35: ='Dati Generali CER 2 Sem. 2019'!W28 -> 0.4036565097 | F35: =IF('Dati Generali CER 2 Sem. 2019'!BJ28="","",'Dati Generali CER 2 Sem. 2019'!BJ28) -> 0.9170469853 | G35: =IF('Dati Generali CER 2 Sem. 2019'!BK28="","",'Dati Generali CER 2 Sem. 2019'!BK28) -> 0.546875 | H35: =IF('Dati Generali CER 2 Sem. 2019'!BL28="","",'Dati Generali CER 2 Sem. 2019'!BL28) -> 0.3701719853 | I35: ='Dati Generali CER 1 Sem. 2019'!D28 -> 3744 | J35: =IF('Dati Generali CER 2 Sem. 2019'!BN28="","",'Dati Generali CER 2 Sem. 2019'!BN28) -> 2020-01-30T11:52:02
A36: 27 | B36: ='Dati Generali CER 1 Sem. 2019'!C29 -> FRAZZANO' | C36: =IF('Dati Generali CER 2 Sem. 2019'!E29="","",'Dati Generali CER 2 Sem. 2019'!E29) -> 34580 | D36: =IF(C36="","",'Dati Generali CER 2 Sem. 2019'!BI29) -> 39480 | E36: ='Dati Generali CER 2 Sem. 2019'!W29 -> 0.5330812854 | F36: =IF('Dati Generali CER 2 Sem. 2019'!BJ29="","",'Dati Generali CER 2 Sem. 2019'!BJ29) -> 0.6409235669 | G36: =IF('Dati Generali CER 2 Sem. 2019'!BK29="","",'Dati Generali CER 2 Sem. 2019'!BK29) -> 0.299259208 | H36: =IF('Dati Generali CER 2 Sem. 2019'!BL29="","",'Dati Generali CER 2 Sem. 2019'!BL29) -> 0.3416643589 | I36: ='Dati Generali CER 1 Sem. 2019'!D29 -> 628 | J36: =IF('Dati Generali CER 2 Sem. 2019'!BN29="","",'Dati Generali CER 2 Sem. 2019'!BN29) -> 2020-02-17T13:01:53
A37: 28 | B37: ='Dati Generali CER 1 Sem. 2019'!C30 -> FURCI SICULO | C37: =IF('Dati Generali CER 2 Sem. 2019'!E30="","",'Dati Generali CER 2 Sem. 2019'!E30) -> 188060 | D37: =IF(C37="","",'Dati Generali CER 2 Sem. 2019'!BI30) -> 445365 | E37: ='Dati Generali CER 2 Sem. 2019'!W30 -> 0.7031061294 | F37: =IF('Dati Generali CER 2 Sem. 2019'!BJ30="","",'Dati Generali CER 2 Sem. 2019'!BJ30) -> 1.061852922 | G37: =IF('Dati Generali CER 2 Sem. 2019'!BK30="","",'Dati Generali CER 2 Sem. 2019'!BK30) -> 0.3152576241 | H37: =IF('Dati Generali CER 2 Sem. 2019'!BL30="","",'Dati Generali CER 2 Sem. 2019'!BL30) -> 0.7465952981 | I37: ='Dati Generali CER 1 Sem. 2019'!D30 -> 3242 | J37: =IF('Dati Generali CER 2 Sem. 2019'!BN30="","",'Dati Generali CER 2 Sem. 2019'!BN30) -> 2020-02-17T13:04:39
A38: 29 | B38: ='Dati Generali CER 1 Sem. 2019'!C31 -> FURNARI | C38: =IF('Dati Generali CER 2 Sem. 2019'!E31="","",'Dati Generali CER 2 Sem. 2019'!E31) -> 750860 | D38: =IF(C38="","",'Dati Generali CER 2 Sem. 2019'!BI31) -> 436400 | E38: ='Dati Generali CER 2 Sem. 2019'!W31 -> 0.3675690245 | F38: =IF('Dati Generali CER 2 Sem. 2019'!BJ31="","",'Dati Generali CER 2 Sem. 2019'!BJ31) -> 1.679463821 | G38: =IF('Dati Generali CER 2 Sem. 2019'!BK31="","",'Dati Generali CER 2 Sem. 2019'!BK31) -> 1.062144943 | H38: =IF('Dati Generali CER 2 Sem. 2019'!BL31="","",'Dati Generali CER 2 Sem. 2019'!BL31) -> 0.6173188783 | I38: ='Dati Generali CER 1 Sem. 2019'!D31 -> 3842 | J38: =IF('Dati Generali CER 2 Sem. 2019'!BN31="","",'Dati Generali CER 2 Sem. 2019'!BN31) -> 2020-05-11T09:58:12
A39: 30 | B39: ='Dati Generali CER 1 Sem. 2019'!C32 -> GAGGI | C39: =IF('Dati Generali CER 2 Sem. 2019'!E32="","",'Dati Generali CER 2 Sem. 2019'!E32) -> 225470 | D39: =IF(C39="","",'Dati Generali CER 2 Sem. 2019'!BI32) -> 284380 | E39: ='Dati Generali CER 2 Sem. 2019'!W32 -> 0.5577718937 | F39: =IF('Dati Generali CER 2 Sem. 2019'!BJ32="","",'Dati Generali CER 2 Sem. 2019'!BJ32) -> 0.8708120406 | G39: =IF('Dati Generali CER 2 Sem. 2019'!BK32="","",'Dati Generali CER 2 Sem. 2019'!BK32) -> 0.3850975596 | H39: =IF('Dati Generali CER 2 Sem. 2019'!BL32="","",'Dati Generali CER 2 Sem. 2019'!BL32) -> 0.4857144809 | I39: ='Dati Generali CER 1 Sem. 2019'!D32 -> 3182 | J39: =IF('Dati Generali CER 2 Sem. 2019'!BN32="","",'Dati Generali CER 2 Sem. 2019'!BN32) -> 2020-02-17T13:15:44
A40: 31 | B40: ='Dati Generali CER 1 Sem. 2019'!C33 -> GALATI MAMERTINO | C40: =IF('Dati Generali CER 2 Sem. 2019'!E33="","",'Dati Generali CER 2 Sem. 2019'!E33) -> 223040 | D40: =IF(C40="","",'Dati Generali CER 2 Sem. 2019'!BI33) -> 162400 | E40: ='Dati Generali CER 2 Sem. 2019'!W33 -> 0.4213366542 | F40: =IF('Dati Generali CER 2 Sem. 2019'!BJ33="","",'Dati Generali CER 2 Sem. 2019'!BJ33) -> 0.8659704873 | G40: =IF('Dati Generali CER 2 Sem. 2019'!BK33="","",'Dati Generali CER 2 Sem. 2019'!BK33) -> 0.5011053795 | H40: =IF('Dati Generali CER 2 Sem. 2019'!BL33="","",'Dati Generali CER 2 Sem. 2019'!BL33) -> 0.3648651078 | I40: ='Dati Generali CER 1 Sem. 2019'!D33 -> 2419 | J40: =IF('Dati Generali CER 2 Sem. 2019'!BN33="","",'Dati Generali CER 2 Sem. 2019'!BN33) -> 2020-02-17T13:20:06
A41: 32 | B41: ='Dati Generali CER 1 Sem. 2019'!C34 -> GALLODORO | C41: =IF('Dati Generali CER 2 Sem. 2019'!E34="","",'Dati Generali CER 2 Sem. 2019'!E34) -> 29270 | D41: =IF(C41="","",'Dati Generali CER 2 Sem. 2019'!BI34) -> 15480 | E41: ='Dati Generali CER 2 Sem. 2019'!W34 -> 0.3459217877 | F41: =IF('Dati Generali CER 2 Sem. 2019'!BJ34="","",'Dati Generali CER 2 Sem. 2019'!BJ34) -> 0.7259896171 | G41: =IF('Dati Generali CER 2 Sem. 2019'!BK34="","",'Dati Generali CER 2 Sem. 2019'!BK34) -> 0.4748539909 | H41: =IF('Dati Generali CER 2 Sem. 2019'!BL34="","",'Dati Generali CER 2 Sem. 2019'!BL34) -> 0.2511356262 | I41: ='Dati Generali CER 1 Sem. 2019'!D34 -> 335 | J41: =IF('Dati Generali CER 2 Sem. 2019'!BN34="","",'Dati Generali CER 2 Sem. 2019'!BN34) -> 2020-05-07T10:20:42
A42: 33 | B42: ='Dati Generali CER 1 Sem. 2019'!C35 -> GIARDINI NAXOS | C42: =IF('Dati Generali CER 2 Sem. 2019'!E35="","",'Dati Generali CER 2 Sem. 2019'!E35) -> 3185460 | D42: =IF(C42="","",'Dati Generali CER 2 Sem. 2019'!BI35) -> 1316240 | E42: ='Dati Generali CER 2 Sem. 2019'!W35 -> 0.2923873203 | F42: =IF('Dati Generali CER 2 Sem. 2019'!BJ35="","",'Dati Generali CER 2 Sem. 2019'!BJ35) -> 2.669186217 | G42: =IF('Dati Generali CER 2 Sem. 2019'!BK35="","",'Dati Generali CER 2 Sem. 2019'!BK35) -> 1.888750012 | H42: =IF('Dati Generali CER 2 Sem. 2019'!BL35="","",'Dati Generali CER 2 Sem. 2019'!BL35) -> 0.7804362056 | I42: ='Dati Generali CER 1 Sem. 2019'!D35 -> 9166 | J42: =IF('Dati Generali CER 2 Sem. 2019'!BN35="","",'Dati Generali CER 2 Sem. 2019'!BN35) -> 2020-03-17T10:38:08
A43: 34 | B43: ='Dati Generali CER 1 Sem. 2019'!C36 -> GIOIOSA MAREA | C43: =IF('Dati Generali CER 2 Sem. 2019'!E36="","",'Dati Generali CER 2 Sem. 2019'!E36) -> 1205940 | D43: =IF(C43="","",'Dati Generali CER 2 Sem. 2019'!BI36) -> 492459 | E43: ='Dati Generali CER 2 Sem. 2019'!W36 -> 0.2899548339 | F43: =IF('Dati Generali CER 2 Sem. 2019'!BJ36="","",'Dati Generali CER 2 Sem. 2019'!BJ36) -> 1.345739809 | G43: =IF('Dati Generali CER 2 Sem. 2019'!BK36="","",'Dati Generali CER 2 Sem. 2019'!BK36) -> 0.9555360459 | H43: =IF('Dati Generali CER 2 Sem. 2019'!BL36="","",'Dati Generali CER 2 Sem. 2019'!BL36) -> 0.3902037627 | I43: ='Dati Generali CER 1 Sem. 2019'!D36 -> 6859 | J43: =IF('Dati Generali CER 2 Sem. 2019'!BN36="","",'Dati Generali CER 2 Sem. 2019'!BN36) -> 2020-02-17T13:22:54
A44: 35 | B44: ='Dati Generali CER 1 Sem. 2019'!C37 -> GRANITI | C44: =IF('Dati Generali CER 2 Sem. 2019'!E37="","",'Dati Generali CER 2 Sem. 2019'!E37) -> 135250 | D44: =IF(C44="","",'Dati Generali CER 2 Sem. 2019'!BI37) -> 105110 | E44: ='Dati Generali CER 2 Sem. 2019'!W37 -> 0.4373023798 | F44: =IF('Dati Generali CER 2 Sem. 2019'!BJ37="","",'Dati Generali CER 2 Sem. 2019'!BJ37) -> 0.8978036755 | G44: =IF('Dati Generali CER 2 Sem. 2019'!BK37="","",'Dati Generali CER 2 Sem. 2019'!BK37) -> 0.5051919916 | H44: =IF('Dati Generali CER 2 Sem. 2019'!BL37="","",'Dati Generali CER 2 Sem. 2019'!BL37) -> 0.3926116838 | I44: ='Dati Generali CER 1 Sem. 2019'!D37 -> 1455 | J44: =IF('Dati Generali CER 2 Sem. 2019'!BN37="","",'Dati Generali CER 2 Sem. 2019'!BN37) -> 2020-02-20T14:40:44
A45: 36 | B45: ='Dati Generali CER 1 Sem. 2019'!C38 -> GUALTIERI SICAMINO | C45: =IF('Dati Generali CER 2 Sem. 2019'!E38="","",'Dati Generali CER 2 Sem. 2019'!E38) -> 109560 | D45: =IF(C45="","",'Dati Generali CER 2 Sem. 2019'!BI38) -> 127600 | E45: ='Dati Generali CER 2 Sem. 2019'!W38 -> 0.5380333952 | F45: =IF('Dati Generali CER 2 Sem. 2019'!BJ38="","",'Dati Generali CER 2 Sem. 2019'!BJ38) -> 0.7722666528 | G45: =IF('Dati Generali CER 2 Sem. 2019'!BK38="","",'Dati Generali CER 2 Sem. 2019'!BK38) -> 0.3567614036 | H45: =IF('Dati Generali CER 2 Sem. 2019'!BL38="","",'Dati Generali CER 2 Sem. 2019'!BL38) -> 0.4155052492 | I45: ='Dati Generali CER 1 Sem. 2019'!D38 -> 1669 | J45: =IF('Dati Generali CER 2 Sem. 2019'!BN38="","",'Dati Generali CER 2 Sem. 2019'!BN38) -> 2020-02-17T13:35:44
A46: 37 | B46: ='Dati Generali CER 1 Sem. 2019'!C39 -> ITALA | C46: =IF('Dati Generali CER 2 Sem. 2019'!E39="","",'Dati Generali CER 2 Sem. 2019'!E39) -> 89370 | D46: =IF(C46="","",'Dati Generali CER 2 Sem. 2019'!BI39) -> 73670 | E46: ='Dati Generali CER 2 Sem. 2019'!W39 -> 0.4518523062 | F46: =IF('Dati Generali CER 2 Sem. 2019'!BJ39="","",'Dati Generali CER 2 Sem. 2019'!BJ39) -> 0.5891535615 | G46: =IF('Dati Generali CER 2 Sem. 2019'!BK39="","",'Dati Generali CER 2 Sem. 2019'!BK39) -> 0.322943166 | H46: =IF('Dati Generali CER 2 Sem. 2019'!BL39="","",'Dati Generali CER 2 Sem. 2019'!BL39) -> 0.2662103955 | I46: ='Dati Generali CER 1 Sem. 2019'!D39 -> 1504 | J46: =IF('Dati Generali CER 2 Sem. 2019'!BN39="","",'Dati Generali CER 2 Sem. 2019'!BN39) -> 2020-02-17T13:48:57
A47: 38 | B47: ='Dati Generali CER 1 Sem. 2019'!C40 -> LENI | C47: =IF('Dati Generali CER 2 Sem. 2019'!E40="","",'Dati Generali CER 2 Sem. 2019'!E40) -> 90860 | D47: =IF(C47="","",'Dati Generali CER 2 Sem. 2019'!BI40) -> 57580 | E47: ='Dati Generali CER 2 Sem. 2019'!W40 -> 0.3879008354 | F47: =IF('Dati Generali CER 2 Sem. 2019'!BJ40="","",'Dati Generali CER 2 Sem. 2019'!BJ40) -> 1.126730629 | G47: =IF('Dati Generali CER 2 Sem. 2019'!BK40="","",'Dati Generali CER 2 Sem. 2019'!BK40) -> 0.6896708769 | H47: =IF('Dati Generali CER 2 Sem. 2019'!BL40="","",'Dati Generali CER 2 Sem. 2019'!BL40) -> 0.4370597522 | I47: ='Dati Generali CER 1 Sem. 2019'!D40 -> 716 | J47: =IF('Dati Generali CER 2 Sem. 2019'!BN40="","",'Dati Generali CER 2 Sem. 2019'!BN40) -> 2020-02-26T15:28:48
A48: 39 | B48: ='Dati Generali CER 1 Sem. 2019'!C41 -> LETOJANNI | C48: =IF('Dati Generali CER 2 Sem. 2019'!E41="","",'Dati Generali CER 2 Sem. 2019'!E41) -> 979830 | D48: =IF(C48="","",'Dati Generali CER 2 Sem. 2019'!BI41) -> 392400 | E48: ='Dati Generali CER 2 Sem. 2019'!W41 -> 0.2859578934 | F48: =IF('Dati Generali CER 2 Sem. 2019'!BJ41="","",'Dati Generali CER 2 Sem. 2019'!BJ41) -> 2.661588772 | G48: =IF('Dati Generali CER 2 Sem. 2019'!BK41="","",'Dati Generali CER 2 Sem. 2019'!BK41) -> 1.900486454 | H48: =IF('Dati Generali CER 2 Sem. 2019'!BL41="","",'Dati Generali CER 2 Sem. 2019'!BL41) -> 0.7611023182 | I48: ='Dati Generali CER 1 Sem. 2019'!D41 -> 2802 | J48: =IF('Dati Generali CER 2 Sem. 2019'!BN41="","",'Dati Generali CER 2 Sem. 2019'!BN41) -> 2020-01-24T10:46:12
A49: 40 | B49: ='Dati Generali CER 1 Sem. 2019'!C42 -> LIBRIZZI | C49: =IF('Dati Generali CER 2 Sem. 2019'!E42="","",'Dati Generali CER 2 Sem. 2019'!E42) -> 177180 | D49: =IF(C49="","",'Dati Generali CER 2 Sem. 2019'!BI42) -> 125320 | E49: ='Dati Generali CER 2 Sem. 2019'!W42 -> 0.4142809917 | F49: =IF('Dati Generali CER 2 Sem. 2019'!BJ42="","",'Dati Generali CER 2 Sem. 2019'!BJ42) -> 1.021131515 | G49: =IF('Dati Generali CER 2 Sem. 2019'!BK42="","",'Dati Generali CER 2 Sem. 2019'!BK42) -> 0.5980961383 | H49: =IF('Dati Generali CER 2 Sem. 2019'!BL42="","",'Dati Generali CER 2 Sem. 2019'!BL42) -> 0.4230353767 | I49: ='Dati Generali CER 1 Sem. 2019'!D42 -> 1610 | J49: =IF('Dati Generali CER 2 Sem. 2019'!BN42="","",'Dati Generali CER 2 Sem. 2019'!BN42) -> 2020-02-19T08:08:53
A50: 41 | B50: ='Dati Generali CER 1 Sem. 2019'!C43 -> LIMINA | C50: =IF('Dati Generali CER 2 Sem. 2019'!E43="","",'Dati Generali CER 2 Sem. 2019'!E43) -> 39460 | D50: =IF(C50="","",'Dati Generali CER 2 Sem. 2019'!BI43) -> 50610 | E50: ='Dati Generali CER 2 Sem. 2019'!W43 -> 0.5618963029 | F50: =IF('Dati Generali CER 2 Sem. 2019'!BJ43="","",'Dati Generali CER 2 Sem. 2019'!BJ43) -> 0.6678183759 | G50: =IF('Dati Generali CER 2 Sem. 2019'!BK43="","",'Dati Generali CER 2 Sem. 2019'!BK43) -> 0.2925736995 | H50: =IF('Dati Generali CER 2 Sem. 2019'!BL43="","",'Dati Generali CER 2 Sem. 2019'!BL43) -> 0.3752446764 | I50: ='Dati Generali CER 1 Sem. 2019'!D43 -> 733 | J50: =IF('Dati Generali CER 2 Sem. 2019'!BN43="","",'Dati Generali CER 2 Sem. 2019'!BN43) -> 2020-02-18T13:46:43
A51: 42 | B51: ='Dati Generali CER 1 Sem. 2019'!C44 -> LIPARI | C51: =IF('Dati Generali CER 2 Sem. 2019'!E44="","",'Dati Generali CER 2 Sem. 2019'!E44) -> 4052660 | D51: =IF(C51="","",'Dati Generali CER 2 Sem. 2019'!BI44) -> 1303640 | E51: ='Dati Generali CER 2 Sem. 2019'!W44 -> 0.2433844258 | F51: =IF('Dati Generali CER 2 Sem. 2019'!BJ44="","",'Dati Generali CER 2 Sem. 2019'!BJ44) -> 2.271582215 | G51: =IF('Dati Generali CER 2 Sem. 2019'!BK44="","",'Dati Generali CER 2 Sem. 2019'!BK44) -> 1.718714482 | H51: =IF('Dati Generali CER 2 Sem. 2019'!BL44="","",'Dati Generali CER 2 Sem. 2019'!BL44) -> 0.5528677331 | I51: ='Dati Generali CER 1 Sem. 2019'!D44 -> 12815 | J51: =IF('Dati Generali CER 2 Sem. 2019'!BN44="","",'Dati Generali CER 2 Sem. 2019'!BN44) -> 2020-02-17T13:52:14
A52: 43 | B52: ='Dati Generali CER 1 Sem. 2019'!C45 -> LONGI | C52: =IF('Dati Generali CER 2 Sem. 2019'!E45="","",'Dati Generali CER 2 Sem. 2019'!E45) -> 17240 | D52: =IF(C52="","",'Dati Generali CER 2 Sem. 2019'!BI45) -> 169630 | E52: ='Dati Generali CER 2 Sem. 2019'!W45 -> 0.907743351 | F52: =IF('Dati Generali CER 2 Sem. 2019'!BJ45="","",'Dati Generali CER 2 Sem. 2019'!BJ45) -> 0.7354075497 | G52: =IF('Dati Generali CER 2 Sem. 2019'!BK45="","",'Dati Generali CER 2 Sem. 2019'!BK45) -> 0.06784623619 | H52: =IF('Dati Generali CER 2 Sem. 2019'!BL45="","",'Dati Generali CER 2 Sem. 2019'!BL45) -> 0.6675613135 | I52: ='Dati Generali CER 1 Sem. 2019'!D45 -> 1381 | J52: =IF('Dati Generali CER 2 Sem. 2019'!BN45="","",'Dati Generali CER 2 Sem. 2019'!BN45) -> 2020-03-03T12:16:27
A53: 44 | B53: ='Dati Generali CER 1 Sem. 2019'!C46 -> MALFA | C53: =IF('Dati Generali CER 2 Sem. 2019'!E46="","",'Dati Generali CER 2 Sem. 2019'!E46) -> 143320 | D53: =IF(C53="","",'Dati Generali CER 2 Sem. 2019'!BI46) -> 164660 | E53: ='Dati Generali CER 2 Sem. 2019'!W46 -> 0.5346451068 | F53: =IF('Dati Generali CER 2 Sem. 2019'!BJ46="","",'Dati Generali CER 2 Sem. 2019'!BJ46) -> 1.662169164 | G53: =IF('Dati Generali CER 2 Sem. 2019'!BK46="","",'Dati Generali CER 2 Sem. 2019'!BK46) -> 0.7734985536 | H53: =IF('Dati Generali CER 2 Sem. 2019'!BL46="","",'Dati Generali CER 2 Sem. 2019'!BL46) -> 0.8886706101 | I53: ='Dati Generali CER 1 Sem. 2019'!D46 -> 1007 | J53: =IF('Dati Generali CER 2 Sem. 2019'!BN46="","",'Dati Generali CER 2 Sem. 2019'!BN46) -> 2020-02-24T10:01:38
A54: 45 | B54: ='Dati Generali CER 1 Sem. 2019'!C47 -> MALVAGNA | C54: =IF('Dati Generali CER 2 Sem. 2019'!E47="","",'Dati Generali CER 2 Sem. 2019'!E47) -> 78300 | D54: =IF(C54="","",'Dati Generali CER 2 Sem. 2019'!BI47) -> 22400 | E54: ='Dati Generali CER 2 Sem. 2019'!W47 -> 0.2224428997 | F54: =IF('Dati Generali CER 2 Sem. 2019'!BJ47="","",'Dati Generali CER 2 Sem. 2019'!BJ47) -> 0.8267108893 | G54: =IF('Dati Generali CER 2 Sem. 2019'!BK47="","",'Dati Generali CER 2 Sem. 2019'!BK47) -> 0.6428149218 | H54: =IF('Dati Generali CER 2 Sem. 2019'!BL47="","",'Dati Generali CER 2 Sem. 2019'!BL47) -> 0.1838959674 | I54: ='Dati Generali CER 1 Sem. 2019'!D47 -> 662 | J54: =IF('Dati Generali CER 2 Sem. 2019'!BN47="","",'Dati Generali CER 2 Sem. 2019'!BN47) -> 2020-06-01T14:56:22
A55: 46 | B55: ='Dati Generali CER 1 Sem. 2019'!C48 -> MANDANICI | C55: =IF('Dati Generali CER 2 Sem. 2019'!E48="","",'Dati Generali CER 2 Sem. 2019'!E48) -> 35300 | D55: =IF(C55="","",'Dati Generali CER 2 Sem. 2019'!BI48) -> 51910 | E55: ='Dati Generali CER 2 Sem. 2019'!W48 -> 0.5952299048 | F55: =IF('Dati Generali CER 2 Sem. 2019'!BJ48="","",'Dati Generali CER 2 Sem. 2019'!BJ48) -> 0.8359213251 | G55: =IF('Dati Generali CER 2 Sem. 2019'!BK48="","",'Dati Generali CER 2 Sem. 2019'!BK48) -> 0.3383559543 | H55: =IF('Dati Generali CER 2 Sem. 2019'!BL48="","",'Dati Generali CER 2 Sem. 2019'!BL48) -> 0.4975653708 | I55: ='Dati Generali CER 1 Sem. 2019'!D48 -> 567 | J55: =IF('Dati Generali CER 2 Sem. 2019'!BN48="","",'Dati Generali CER 2 Sem. 2019'!BN48) -> 2020-05-18T10:26:47
A56: 47 | B56: ='Dati Generali CER 1 Sem. 2019'!C49 -> MAZZARRA' S. ANDREA | C56: =IF('Dati Generali CER 2 Sem. 2019'!E49="","",'Dati Generali CER 2 Sem. 2019'!E49) -> 46500 | D56: =IF(C56="","",'Dati Generali CER 2 Sem. 2019'!BI49) -> 130130 | E56: ='Dati Generali CER 2 Sem. 2019'!W49 -> 0.7367378135 | F56: =IF('Dati Generali CER 2 Sem. 2019'!BJ49="","",'Dati Generali CER 2 Sem. 2019'!BJ49) -> 0.6508106116 | G56: =IF('Dati Generali CER 2 Sem. 2019'!BK49="","",'Dati Generali CER 2 Sem. 2019'!BK49) -> 0.1713338246 | H56: =IF('Dati Generali CER 2 Sem. 2019'!BL49="","",'Dati Generali CER 2 Sem. 2019'!BL49) -> 0.479476787 | I56: ='Dati Generali CER 1 Sem. 2019'!D49 -> 1475 | J56: =IF('Dati Generali CER 2 Sem. 2019'!BN49="","",'Dati Generali CER 2 Sem. 2019'!BN49) -> 2020-03-17T10:46:27
A57: 48 | B57: ='Dati Generali CER 1 Sem. 2019'!C50 -> MERI' | C57: =IF('Dati Generali CER 2 Sem. 2019'!E50="","",'Dati Generali CER 2 Sem. 2019'!E50) -> 331400 | D57: =IF(C57="","",'Dati Generali CER 2 Sem. 2019'!BI50) -> 80830 | E57: ='Dati Generali CER 2 Sem. 2019'!W50 -> 0.1960798583 | F57: =IF('Dati Generali CER 2 Sem. 2019'!BJ50="","",'Dati Generali CER 2 Sem. 2019'!BJ50) -> 0.9517334048 | G57: =IF('Dati Generali CER 2 Sem. 2019'!BK50="","",'Dati Generali CER 2 Sem. 2019'!BK50) -> 0.7651176536 | H57: =IF('Dati Generali CER 2 Sem. 2019'!BL50="","",'Dati Generali CER 2 Sem. 2019'!BL50) -> 0.1866157512 | I57: ='Dati Generali CER 1 Sem. 2019'!D50 -> 2354 | J57: =IF('Dati Generali CER 2 Sem. 2019'!BN50="","",'Dati Generali CER 2 Sem. 2019'!BN50) -> 2020-02-18T13:04:22
A58: 49 | B58: ='Dati Generali CER 1 Sem. 2019'!C51 -> MESSINA | C58: =IF('Dati Generali CER 2 Sem. 2019'!E51="","",'Dati Generali CER 2 Sem. 2019'!E51) -> 41906490 | D58: =IF(C58="","",'Dati Generali CER 2 Sem. 2019'!BI51) -> 13326522 | E58: ='Dati Generali CER 2 Sem. 2019'!W51 -> 0.2412782051 | F58: =IF('Dati Generali CER 2 Sem. 2019'!BJ51="","",'Dati Generali CER 2 Sem. 2019'!BJ51) -> 1.303529642 | G58: =IF('Dati Generali CER 2 Sem. 2019'!BK51="","",'Dati Generali CER 2 Sem. 2019'!BK51) -> 0.9890163497 | H58: =IF('Dati Generali CER 2 Sem. 2019'!BL51="","",'Dati Generali CER 2 Sem. 2019'!BL51) -> 0.3145132924 | I58: ='Dati Generali CER 1 Sem. 2019'!D51 -> 230282 | J58: =IF('Dati Generali CER 2 Sem. 2019'!BN51="","",'Dati Generali CER 2 Sem. 2019'!BN51) -> 2020-03-24T12:48:18
A59: 50 | B59: ='Dati Generali CER 1 Sem. 2019'!C52 -> MILAZZO | C59: =IF('Dati Generali CER 2 Sem. 2019'!E52="","",'Dati Generali CER 2 Sem. 2019'!E52) -> 6923180 | D59: =IF(C59="","",'Dati Generali CER 2 Sem. 2019'!BI52) -> 1171000 | E59: ='Dati Generali CER 2 Sem. 2019'!W52 -> 0.1446718506 | F59: =IF('Dati Generali CER 2 Sem. 2019'!BJ52="","",'Dati Generali CER 2 Sem. 2019'!BJ52) -> 1.425381009 | G59: =IF('Dati Generali CER 2 Sem. 2019'!BK52="","",'Dati Generali CER 2 Sem. 2019'!BK52) -> 1.2191685 | H59: =IF('Dati Generali CER 2 Sem. 2019'!BL52="","",'Dati Generali CER 2 Sem. 2019'!BL52) -> 0.2062125084 | I59: ='Dati Generali CER 1 Sem. 2019'!D52 -> 30862 | J59: =IF('Dati Generali CER 2 Sem. 2019'!BN52="","",'Dati Generali CER 2 Sem. 2019'!BN52) -> 2020-05-07T10:28:52
A60: 51 | B60: ='Dati Generali CER 1 Sem. 2019'!C53 -> MILITELLO ROSMARINO | C60: =IF('Dati Generali CER 2 Sem. 2019'!E53="","",'Dati Generali CER 2 Sem. 2019'!E53) -> 156200 | D60: =IF(C60="","",'Dati Generali CER 2 Sem. 2019'!BI53) -> 51056 | E60: ='Dati Generali CER 2 Sem. 2019'!W53 -> 0.2446499593 | F60: =IF('Dati Generali CER 2 Sem. 2019'!BJ53="","",'Dati Generali CER 2 Sem. 2019'!BJ53) -> 0.9154033758 | G60: =IF('Dati Generali CER 2 Sem. 2019'!BK53="","",'Dati Generali CER 2 Sem. 2019'!BK53) -> 0.6851598414 | H60: =IF('Dati Generali CER 2 Sem. 2019'!BL53="","",'Dati Generali CER 2 Sem. 2019'!BL53) -> 0.2239533986 | I60: ='Dati Generali CER 1 Sem. 2019'!D53 -> 1239 | J60: =IF('Dati Generali CER 2 Sem. 2019'!BN53="","",'Dati Generali CER 2 Sem. 2019'!BN53) -> 2020-02-18T11:19:41
A61: 52 | B61: ='Dati Generali CER 1 Sem. 2019'!C54 -> MIRTO | C61: =IF('Dati Generali CER 2 Sem. 2019'!E54="","",'Dati Generali CER 2 Sem. 2019'!E54) -> 94940 | D61: =IF(C61="","",'Dati Generali CER 2 Sem. 2019'!BI54) -> 87060 | E61: ='Dati Generali CER 2 Sem. 2019'!W54 -> 0.4783516484 | F61: =IF('Dati Generali CER 2 Sem. 2019'!BJ54="","",'Dati Generali CER 2 Sem. 2019'!BJ54) -> 1.055635469 | G61: =IF('Dati Generali CER 2 Sem. 2019'!BK54="","",'Dati Generali CER 2 Sem. 2019'!BK54) -> 0.5506705025 | H61: =IF('Dati Generali CER 2 Sem. 2019'!BL54="","",'Dati Generali CER 2 Sem. 2019'!BL54) -> 0.5049649668 | I61: ='Dati Generali CER 1 Sem. 2019'!D54 -> 937 | J61: =IF('Dati Generali CER 2 Sem. 2019'!BN54="","",'Dati Generali CER 2 Sem. 2019'!BN54) -> 2020-05-07T11:57:43
A62: 53 | B62: ='Dati Generali CER 1 Sem. 2019'!C55 -> MISTRETTA | C62: =IF('Dati Generali CER 2 Sem. 2019'!E55="","",'Dati Generali CER 2 Sem. 2019'!E55) -> 618020 | D62: =IF(C62="","",'Dati Generali CER 2 Sem. 2019'!BI55) -> 245840 | E62: ='Dati Generali CER 2 Sem. 2019'!W55 -> 0.28458315 | F62: =IF('Dati Generali CER 2 Sem. 2019'!BJ55="","",'Dati Generali CER 2 Sem. 2019'!BJ55) -> 1.029807261 | G62: =IF('Dati Generali CER 2 Sem. 2019'!BK55="","",'Dati Generali CER 2 Sem. 2019'!BK55) -> 0.736741467 | H62: =IF('Dati Generali CER 2 Sem. 2019'!BL55="","",'Dati Generali CER 2 Sem. 2019'!BL55) -> 0.2930657944 | I62: ='Dati Generali CER 1 Sem. 2019'!D55 -> 4559 | J62: =IF('Dati Generali CER 2 Sem. 2019'!BN55="","",'Dati Generali CER 2 Sem. 2019'!BN55) -> 2020-02-17T13:54:59
A63: 54 | B63: ='Dati Generali CER 1 Sem. 2019'!C56 -> MOJO ALCANTARA | C63: =IF('Dati Generali CER 2 Sem. 2019'!E56="","",'Dati Generali CER 2 Sem. 2019'!E56) -> 99520 | D63: =IF(C63="","",'Dati Generali CER 2 Sem. 2019'!BI56) -> 21900 | E63: ='Dati Generali CER 2 Sem. 2019'!W56 -> 0.1803656729 | F63: =IF('Dati Generali CER 2 Sem. 2019'!BJ56="","",'Dati Generali CER 2 Sem. 2019'!BJ56) -> 0.9481196902 | G63: =IF('Dati Generali CER 2 Sem. 2019'!BK56="","",'Dati Generali CER 2 Sem. 2019'!BK56) -> 0.7771114443 | H63: =IF('Dati Generali CER 2 Sem. 2019'!BL56="","",'Dati Generali CER 2 Sem. 2019'!BL56) -> 0.1710082459 | I63: ='Dati Generali CER 1 Sem. 2019'!D56 -> 696 | J63: =IF('Dati Generali CER 2 Sem. 2019'!BN56="","",'Dati Generali CER 2 Sem. 2019'!BN56) -> 2020-03-17T11:03:47
A64: 55 | B64: ='Dati Generali CER 1 Sem. 2019'!C57 -> MONFORTE S. GIORGIO | C64: =IF('Dati Generali CER 2 Sem. 2019'!E57="","",'Dati Generali CER 2 Sem. 2019'!E57) -> 320240 | D64: =IF(C64="","",'Dati Generali CER 2 Sem. 2019'!BI57) -> 205615 | E64: ='Dati Generali CER 2 Sem. 2019'!W57 -> 0.3852235576 | F64: =IF('Dati Generali CER 2 Sem. 2019'!BJ57="","",'Dati Generali CER 2 Sem. 2019'!BJ57) -> 1.100471317 | G64: =IF('Dati Generali CER 2 Sem. 2019'!BK57="","",'Dati Generali CER 2 Sem. 2019'!BK57) -> 0.6602559873 | H64: =IF('Dati Generali CER 2 Sem. 2019'!BL57="","",'Dati Generali CER 2 Sem. 2019'!BL57) -> 0.4239274758 | I64: ='Dati Generali CER 1 Sem. 2019'!D57 -> 2636 | J64: =IF('Dati Generali CER 2 Sem. 2019'!BN57="","",'Dati Generali CER 2 Sem. 2019'!BN57) -> 2020-05-14T09:43:21
A65: 56 | B65: ='Dati Generali CER 1 Sem. 2019'!C58 -> MONGIUFFI MELIA | C65: =IF('Dati Generali CER 2 Sem. 2019'!E58="","",'Dati Generali CER 2 Sem. 2019'!E58) -> 37130 | D65: =IF(C65="","",'Dati Generali CER 2 Sem. 2019'!BI58) -> 42890 | E65: ='Dati Generali CER 2 Sem. 2019'!W58 -> 0.5359910022 | F65: =IF('Dati Generali CER 2 Sem. 2019'!BJ58="","",'Dati Generali CER 2 Sem. 2019'!BJ58) -> 0.7670040641 | G65: =IF('Dati Generali CER 2 Sem. 2019'!BK58="","",'Dati Generali CER 2 Sem. 2019'!BK58) -> 0.3558967871 | H65: =IF('Dati Generali CER 2 Sem. 2019'!BL58="","",'Dati Generali CER 2 Sem. 2019'!BL58) -> 0.411107277 | I65: ='Dati Generali CER 1 Sem. 2019'!D58 -> 567 | J65: =IF('Dati Generali CER 2 Sem. 2019'!BN58="","",'Dati Generali CER 2 Sem. 2019'!BN58) -> 2020-05-19T23:44:32
A66: 57 | B66: ='Dati Generali CER 1 Sem. 2019'!C59 -> MONTAGNAREALE | C66: =IF('Dati Generali CER 2 Sem. 2019'!E59="","",'Dati Generali CER 2 Sem. 2019'!E59) -> 204260 | D66: =IF(C66="","",'Dati Generali CER 2 Sem. 2019'!BI59) -> 102380 | E66: ='Dati Generali CER 2 Sem. 2019'!W59 -> 0.3338768589 | F66: =IF('Dati Generali CER 2 Sem. 2019'!BJ59="","",'Dati Generali CER 2 Sem. 2019'!BJ59) -> 1.11398512 | G66: =IF('Dati Generali CER 2 Sem. 2019'!BK59="","",'Dati Generali CER 2 Sem. 2019'!BK59) -> 0.7420512671 | H66: =IF('Dati Generali CER 2 Sem. 2019'!BL59="","",'Dati Generali CER 2 Sem. 2019'!BL59) -> 0.3719338526 | I66: ='Dati Generali CER 1 Sem. 2019'!D59 -> 1496 | J66: =IF('Dati Generali CER 2 Sem. 2019'!BN59="","",'Dati Generali CER 2 Sem. 2019'!BN59) -> 2020-05-12T10:01:22
A67: 58 | B67: ='Dati Generali CER 1 Sem. 2019'!C60 -> MONTALBANO ELICONA | C67: =IF('Dati Generali CER 2 Sem. 2019'!E60="","",'Dati Generali CER 2 Sem. 2019'!E60) -> 103240 | D67: =IF(C67="","",'Dati Generali CER 2 Sem. 2019'!BI60) -> 240710 | E67: ='Dati Generali CER 2 Sem. 2019'!W60 -> 0.699840093 | F67: =IF('Dati Generali CER 2 Sem. 2019'!BJ60="","",'Dati Generali CER 2 Sem. 2019'!BJ60) -> 0.8784273864 | G67: =IF('Dati Generali CER 2 Sem. 2019'!BK60="","",'Dati Generali CER 2 Sem. 2019'!BK60) -> 0.2636686826 | H67: =IF('Dati Generali CER 2 Sem. 2019'!BL60="","",'Dati Generali CER 2 Sem. 2019'!BL60) -> 0.6147587038 | I67: ='Dati Generali CER 1 Sem. 2019'!D60 -> 2128 | J67: =IF('Dati Generali CER 2 Sem. 2019'!BN60="","",'Dati Generali CER 2 Sem. 2019'!BN60) -> 2020-05-08T12:52:16
A68: 59 | B68: ='Dati Generali CER 1 Sem. 2019'!C61 -> MOTTA CAMASTRA | C68: =IF('Dati Generali CER 2 Sem. 2019'!E61="","",'Dati Generali CER 2 Sem. 2019'!E61) -> 98090 | D68: =IF(C68="","",'Dati Generali CER 2 Sem. 2019'!BI61) -> 72630 | E68: ='Dati Generali CER 2 Sem. 2019'!W61 -> 0.4254334583 | F68: =IF('Dati Generali CER 2 Sem. 2019'!BJ61="","",'Dati Generali CER 2 Sem. 2019'!BJ61) -> 1.135650045 | G68: =IF('Dati Generali CER 2 Sem. 2019'!BK61="","",'Dati Generali CER 2 Sem. 2019'!BK61) -> 0.6525065191 | H68: =IF('Dati Generali CER 2 Sem. 2019'!BL61="","",'Dati Generali CER 2 Sem. 2019'!BL61) -> 0.4831435262 | I68: ='Dati Generali CER 1 Sem. 2019'!D61 -> 817 | J68: =IF('Dati Generali CER 2 Sem. 2019'!BN61="","",'Dati Generali CER 2 Sem. 2019'!BN61) -> 2020-05-21T10:18:13
A69: 60 | B69: ='Dati Generali CER 1 Sem. 2019'!C62 -> MOTTA D'AFFERMO | C69: =IF('Dati Generali CER 2 Sem. 2019'!E62="","",'Dati Generali CER 2 Sem. 2019'!E62) -> 42300 | D69: =IF(C69="","",'Dati Generali CER 2 Sem. 2019'!BI62) -> 51620 | E69: ='Dati Generali CER 2 Sem. 2019'!W62 -> 0.5496166951 | F69: =IF('Dati Generali CER 2 Sem. 2019'!BJ62="","",'Dati Generali CER 2 Sem. 2019'!BJ62) -> 0.7506393862 | G69: =IF('Dati Generali CER 2 Sem. 2019'!BK62="","",'Dati Generali CER 2 Sem. 2019'!BK62) -> 0.3380754476 | H69: =IF('Dati Generali CER 2 Sem. 2019'!BL62="","",'Dati Generali CER 2 Sem. 2019'!BL62) -> 0.4125639386 | I69: ='Dati Generali CER 1 Sem. 2019'!D62 -> 680 | J69: =IF('Dati Generali CER 2 Sem. 2019'!BN62="","",'Dati Generali CER 2 Sem. 2019'!BN62) -> 2020-02-17T13:57:41
A70: 61 | B70: ='Dati Generali CER 1 Sem. 2019'!C63 -> NASO | C70: =IF('Dati Generali CER 2 Sem. 2019'!E63="","",'Dati Generali CER 2 Sem. 2019'!E63) -> 278960 | D70: =IF(C70="","",'Dati Generali CER 2 Sem. 2019'!BI63) -> 301199 | E70: ='Dati Generali CER 2 Sem. 2019'!W63 -> 0.5191662975 | F70: =IF('Dati Generali CER 2 Sem. 2019'!BJ63="","",'Dati Generali CER 2 Sem. 2019'!BJ63) -> 0.8746291383 | G70: =IF('Dati Generali CER 2 Sem. 2019'!BK63="","",'Dati Generali CER 2 Sem. 2019'!BK63) -> 0.4205511669 | H70: =IF('Dati Generali CER 2 Sem. 2019'!BL63="","",'Dati Generali CER 2 Sem. 2019'!BL63) -> 0.4540779714 | I70: ='Dati Generali CER 1 Sem. 2019'!D63 -> 3605 | J70: =IF('Dati Generali CER 2 Sem. 2019'!BN63="","",'Dati Generali CER 2 Sem. 2019'!BN63) -> 2020-02-28T12:53:19
A71: 62 | B71: ='Dati Generali CER 1 Sem. 2019'!C64 -> NIZZA DI SICILIA | C71: =IF('Dati Generali CER 2 Sem. 2019'!E64="","",'Dati Generali CER 2 Sem. 2019'!E64) -> 435530 | D71: =IF(C71="","",'Dati Generali CER 2 Sem. 2019'!BI64) -> 214945 | E71: ='Dati Generali CER 2 Sem. 2019'!W64 -> 0.3304431377 | F71: =IF('Dati Generali CER 2 Sem. 2019'!BJ64="","",'Dati Generali CER 2 Sem. 2019'!BJ64) -> 0.9754939893 | G71: =IF('Dati Generali CER 2 Sem. 2019'!BK64="","",'Dati Generali CER 2 Sem. 2019'!BK64) -> 0.6531486947 | H71: =IF('Dati Generali CER 2 Sem. 2019'!BL64="","",'Dati Generali CER 2 Sem. 2019'!BL64) -> 0.3223452947 | I71: ='Dati Generali CER 1 Sem. 2019'!D64 -> 3624 | J71: =IF('Dati Generali CER 2 Sem. 2019'!BN64="","",'Dati Generali CER 2 Sem. 2019'!BN64) -> 2020-05-19T10:22:12
A72: 63 | B72: ='Dati Generali CER 1 Sem. 2019'!C65 -> NOVARA DI SICILIA | C72: =IF('Dati Generali CER 2 Sem. 2019'!E65="","",'Dati Generali CER 2 Sem. 2019'!E65) -> 145220 | D72: =IF(C72="","",'Dati Generali CER 2 Sem. 2019'!BI65) -> 302521 | E72: ='Dati Generali CER 2 Sem. 2019'!W65 -> 0.6756607056 | F72: =IF('Dati Generali CER 2 Sem. 2019'!BJ65="","",'Dati Generali CER 2 Sem. 2019'!BJ65) -> 1.938944223 | G72: =IF('Dati Generali CER 2 Sem. 2019'!BK65="","",'Dati Generali CER 2 Sem. 2019'!BK65) -> 0.6288758011 | H72: =IF('Dati Generali CER 2 Sem. 2019'!BL65="","",'Dati Generali CER 2 Sem. 2019'!BL65) -> 1.310068422 | I72: ='Dati Generali CER 1 Sem. 2019'!D65 -> 1255 | J72: =IF('Dati Generali CER 2 Sem. 2019'!BN65="","",'Dati Generali CER 2 Sem. 2019'!BN65) -> 2020-05-26T07:06:28
A73: 64 | B73: ='Dati Generali CER 1 Sem. 2019'!C66 -> OLIVERI | C73: =IF('Dati Generali CER 2 Sem. 2019'!E66="","",'Dati Generali CER 2 Sem. 2019'!E66) -> 444780 | D73: =IF(C73="","",'Dati Generali CER 2 Sem. 2019'!BI66) -> 345578 | E73: ='Dati Generali CER 2 Sem. 2019'!W66 -> 0.4372423636 | F73: =IF('Dati Generali CER 2 Sem. 2019'!BJ66="","",'Dati Generali CER 2 Sem. 2019'!BJ66) -> 2.030933292 | G73: =IF('Dati Generali CER 2 Sem. 2019'!BK66="","",'Dati Generali CER 2 Sem. 2019'!BK66) -> 1.142923219 | H73: =IF('Dati Generali CER 2 Sem. 2019'!BL66="","",'Dati Generali CER 2 Sem. 2019'!BL66) -> 0.888010073 | I73: ='Dati Generali CER 1 Sem. 2019'!D66 -> 2115 | J73: =IF('Dati Generali CER 2 Sem. 2019'!BN66="","",'Dati Generali CER 2 Sem. 2019'!BN66) -> 2020-05-07T10:39:05
A74: 65 | B74: ='Dati Generali CER 1 Sem. 2019'!C67 -> PACE DEL MELA | C74: =IF('Dati Generali CER 2 Sem. 2019'!E67="","",'Dati Generali CER 2 Sem. 2019'!E67) -> 798300 | D74: =IF(C74="","",'Dati Generali CER 2 Sem. 2019'!BI67) -> 433715 | E74: ='Dati Generali CER 2 Sem. 2019'!W67 -> 0.349337715 | F74: =IF('Dati Generali CER 2 Sem. 2019'!BJ67="","",'Dati Generali CER 2 Sem. 2019'!BJ67) -> 1.083061449 | G74: =IF('Dati Generali CER 2 Sem. 2019'!BK67="","",'Dati Generali CER 2 Sem. 2019'!BK67) -> 0.6964024007 | H74: =IF('Dati Generali CER 2 Sem. 2019'!BL67="","",'Dati Generali CER 2 Sem. 2019'!BL67) -> 0.3783542117 | I74: ='Dati Generali CER 1 Sem. 2019'!D67 -> 6230 | J74: =IF('Dati Generali CER 2 Sem. 2019'!BN67="","",'Dati Generali CER 2 Sem. 2019'!BN67) -> 2020-01-20T07:55:46
A75: 66 | B75: ='Dati Generali CER 1 Sem. 2019'!C68 -> PAGLIARA | C75: =IF('Dati Generali CER 2 Sem. 2019'!E68="","",'Dati Generali CER 2 Sem. 2019'!E68) -> 51400 | D75: =IF(C75="","",'Dati Generali CER 2 Sem. 2019'!BI68) -> 102790 | E75: ='Dati Generali CER 2 Sem. 2019'!W68 -> 0.6666450483 | F75: =IF('Dati Generali CER 2 Sem. 2019'!BJ68="","",'Dati Generali CER 2 Sem. 2019'!BJ68) -> 0.7462058152 | G75: =IF('Dati Generali CER 2 Sem. 2019'!BK68="","",'Dati Generali CER 2 Sem. 2019'!BK68) -> 0.2487514035 | H75: =IF('Dati Generali CER 2 Sem. 2019'!BL68="","",'Dati Generali CER 2 Sem. 2019'!BL68) -> 0.4974544117 | I75: ='Dati Generali CER 1 Sem. 2019'!D68 -> 1123 | J75: =IF('Dati Generali CER 2 Sem. 2019'!BN68="","",'Dati Generali CER 2 Sem. 2019'!BN68) -> 2020-01-27T10:18:11
A76: 67 | B76: ='Dati Generali CER 1 Sem. 2019'!C69 -> PATTI | C76: =IF('Dati Generali CER 2 Sem. 2019'!E69="","",'Dati Generali CER 2 Sem. 2019'!E69) -> 1981340 | D76: =IF(C76="","",'Dati Generali CER 2 Sem. 2019'!BI69) -> 2070336 | E76: ='Dati Generali CER 2 Sem. 2019'!W69 -> 0.5109826156 | F76: =IF('Dati Generali CER 2 Sem. 2019'!BJ69="","",'Dati Generali CER 2 Sem. 2019'!BJ69) -> 1.678224088 | G76: =IF('Dati Generali CER 2 Sem. 2019'!BK69="","",'Dati Generali CER 2 Sem. 2019'!BK69) -> 0.8206807541 | H76: =IF('Dati Generali CER 2 Sem. 2019'!BL69="","",'Dati Generali CER 2 Sem. 2019'!BL69) -> 0.8575433341 | I76: ='Dati Generali CER 1 Sem. 2019'!D69 -> 13121 | J76: =IF('Dati Generali CER 2 Sem. 2019'!BN69="","",'Dati Generali CER 2 Sem. 2019'!BN69) -> 2020-02-17T14:01:02
A77: 68 | B77: ='Dati Generali CER 1 Sem. 2019'!C70 -> PETTINEO | C77: =IF('Dati Generali CER 2 Sem. 2019'!E70="","",'Dati Generali CER 2 Sem. 2019'!E70) -> 32900 | D77: =IF(C77="","",'Dati Generali CER 2 Sem. 2019'!BI70) -> 123535 | E77: ='Dati Generali CER 2 Sem. 2019'!W70 -> 0.7896890082 | F77: =IF('Dati Generali CER 2 Sem. 2019'!BJ70="","",'Dati Generali CER 2 Sem. 2019'!BJ70) -> 0.6763645325 | G77: =IF('Dati Generali CER 2 Sem. 2019'!BK70="","",'Dati Generali CER 2 Sem. 2019'!BK70) -> 0.1422468956 | H77: =IF('Dati Generali CER 2 Sem. 2019'!BL70="","",'Dati Generali CER 2 Sem. 2019'!BL70) -> 0.5341176369 | I77: ='Dati Generali CER 1 Sem. 2019'!D70 -> 1257 | J77: =IF('Dati Generali CER 2 Sem. 2019'!BN70="","",'Dati Generali CER 2 Sem. 2019'!BN70) -> 2020-01-14T14:12:56
A78: 69 | B78: ='Dati Generali CER 1 Sem. 2019'!C71 -> PIRAINO | C78: =IF('Dati Generali CER 2 Sem. 2019'!E71="","",'Dati Generali CER 2 Sem. 2019'!E71) -> 669800 | D78: =IF(C78="","",'Dati Generali CER 2 Sem. 2019'!BI71) -> 256514 | E78: ='Dati Generali CER 2 Sem. 2019'!W71 -> 0.2769190577 | F78: =IF('Dati Generali CER 2 Sem. 2019'!BJ71="","",'Dati Generali CER 2 Sem. 2019'!BJ71) -> 1.299178121 | G78: =IF('Dati Generali CER 2 Sem. 2019'!BK71="","",'Dati Generali CER 2 Sem. 2019'!BK71) -> 0.9394109397 | H78: =IF('Dati Generali CER 2 Sem. 2019'!BL71="","",'Dati Generali CER 2 Sem. 2019'!BL71) -> 0.3597671809 | I78: ='Dati Generali CER 1 Sem. 2019'!D71 -> 3875 | J78: =IF('Dati Generali CER 2 Sem. 2019'!BN71="","",'Dati Generali CER 2 Sem. 2019'!BN71) -> 2020-02-17T14:12:18
A79: 70 | B79: ='Dati Generali CER 1 Sem. 2019'!C72 -> RACCUJA | C79: =IF('Dati Generali CER 2 Sem. 2019'!E72="","",'Dati Generali CER 2 Sem. 2019'!E72) -> 96320 | D79: =IF(C79="","",'Dati Generali CER 2 Sem. 2019'!BI72) -> 31280 | E79: ='Dati Generali CER 2 Sem. 2019'!W72 -> 0.2451410658 | F79: =IF('Dati Generali CER 2 Sem. 2019'!BJ72="","",'Dati Generali CER 2 Sem. 2019'!BJ72) -> 0.742482078 | G79: =IF('Dati Generali CER 2 Sem. 2019'!BK72="","",'Dati Generali CER 2 Sem. 2019'!BK72) -> 0.5604692301 | H79: =IF('Dati Generali CER 2 Sem. 2019'!BL72="","",'Dati Generali CER 2 Sem. 2019'!BL72) -> 0.182012848 | I79: ='Dati Generali CER 1 Sem. 2019'!D72 -> 934 | J79: =IF('Dati Generali CER 2 Sem. 2019'!BN72="","",'Dati Generali CER 2 Sem. 2019'!BN72) -> 2020-05-11T09:38:00
A80: 71 | B80: ='Dati Generali CER 1 Sem. 2019'!C73 -> REITANO | C80: =IF('Dati Generali CER 2 Sem. 2019'!E73="","",'Dati Generali CER 2 Sem. 2019'!E73) -> 87200 | D80: =IF(C80="","",'Dati Generali CER 2 Sem. 2019'!BI73) -> 166110 | E80: ='Dati Generali CER 2 Sem. 2019'!W73 -> 0.6557577672 | F80: =IF('Dati Generali CER 2 Sem. 2019'!BJ73="","",'Dati Generali CER 2 Sem. 2019'!BJ73) -> 1.811427346 | G80: =IF('Dati Generali CER 2 Sem. 2019'!BK73="","",'Dati Generali CER 2 Sem. 2019'!BK73) -> 0.6235697941 | H80: =IF('Dati Generali CER 2 Sem. 2019'!BL73="","",'Dati Generali CER 2 Sem. 2019'!BL73) -> 1.187857551 | I80: ='Dati Generali CER 1 Sem. 2019'!D73 -> 760 | J80: =IF('Dati Generali CER 2 Sem. 2019'!BN73="","",'Dati Generali CER 2 Sem. 2019'!BN73) -> 2020-05-07T11:01:33
A81: 72 | B81: ='Dati Generali CER 1 Sem. 2019'!C74 -> ROCCAFIORITA | C81: =IF('Dati Generali CER 2 Sem. 2019'!E74="","",'Dati Generali CER 2 Sem. 2019'!E74) -> 7750 | D81: =IF(C81="","",'Dati Generali CER 2 Sem. 2019'!BI74) -> 19180 | E81: ='Dati Generali CER 2 Sem. 2019'!W74 -> 0.7122168585 | F81: =IF('Dati Generali CER 2 Sem. 2019'!BJ74="","",'Dati Generali CER 2 Sem. 2019'!BJ74) -> 0.7743846331 | G81: =IF('Dati Generali CER 2 Sem. 2019'!BK74="","",'Dati Generali CER 2 Sem. 2019'!BK74) -> 0.2228548424 | H81: =IF('Dati Generali CER 2 Sem. 2019'!BL74="","",'Dati Generali CER 2 Sem. 2019'!BL74) -> 0.5515297907 | I81: ='Dati Generali CER 1 Sem. 2019'!D74 -> 189 | J81: =IF('Dati Generali CER 2 Sem. 2019'!BN74="","",'Dati Generali CER 2 Sem. 2019'!BN74) -> 2020-05-18T10:05:37
A82: 73 | B82: ='Dati Generali CER 1 Sem. 2019'!C75 -> ROCCALUMERA | C82: =IF('Dati Generali CER 2 Sem. 2019'!E75="","",'Dati Generali CER 2 Sem. 2019'!E75) -> 281570 | D82: =IF(C82="","",'Dati Generali CER 2 Sem. 2019'!BI75) -> 725765 | E82: ='Dati Generali CER 2 Sem. 2019'!W75 -> 0.7204802772 | F82: =IF('Dati Generali CER 2 Sem. 2019'!BJ75="","",'Dati Generali CER 2 Sem. 2019'!BJ75) -> 1.327508909 | G82: =IF('Dati Generali CER 2 Sem. 2019'!BK75="","",'Dati Generali CER 2 Sem. 2019'!BK75) -> 0.3710649222 | H82: =IF('Dati Generali CER 2 Sem. 2019'!BL75="","",'Dati Generali CER 2 Sem. 2019'!BL75) -> 0.9564439864 | I82: ='Dati Generali CER 1 Sem. 2019'!D75 -> 4124 | J82: =IF('Dati Generali CER 2 Sem. 2019'!BN75="","",'Dati Generali CER 2 Sem. 2019'!BN75) -> 2020-02-17T14:17:49
A83: 74 | B83: ='Dati Generali CER 1 Sem. 2019'!C76 -> ROCCAVALDINA | C83: =IF('Dati Generali CER 2 Sem. 2019'!E76="","",'Dati Generali CER 2 Sem. 2019'!E76) -> 148340 | D83: =IF(C83="","",'Dati Generali CER 2 Sem. 2019'!BI76) -> 69600 | E83: ='Dati Generali CER 2 Sem. 2019'!W76 -> 0.3193539506 | F83: =IF('Dati Generali CER 2 Sem. 2019'!BJ76="","",'Dati Generali CER 2 Sem. 2019'!BJ76) -> 1.125909241 | G83: =IF('Dati Generali CER 2 Sem. 2019'!BK76="","",'Dati Generali CER 2 Sem. 2019'!BK76) -> 0.766345677 | H83: =IF('Dati Generali CER 2 Sem. 2019'!BL76="","",'Dati Generali CER 2 Sem. 2019'!BL76) -> 0.3595635642 | I83: ='Dati Generali CER 1 Sem. 2019'!D76 -> 1052 | J83: =IF('Dati Generali CER 2 Sem. 2019'!BN76="","",'Dati Generali CER 2 Sem. 2019'!BN76) -> 2020-02-17T14:21:57
A84: 75 | B84: ='Dati Generali CER 1 Sem. 2019'!C77 -> ROCCELLA VALDEMONE | C84: =IF('Dati Generali CER 2 Sem. 2019'!E77="","",'Dati Generali CER 2 Sem. 2019'!E77) -> 45630 | D84: =IF(C84="","",'Dati Generali CER 2 Sem. 2019'!BI77) -> 49340 | E84: ='Dati Generali CER 2 Sem. 2019'!W77 -> 0.5195324839 | F84: =IF('Dati Generali CER 2 Sem. 2019'!BJ77="","",'Dati Generali CER 2 Sem. 2019'!BJ77) -> 0.8602355072 | G84: =IF('Dati Generali CER 2 Sem. 2019'!BK77="","",'Dati Generali CER 2 Sem. 2019'!BK77) -> 0.4133152174 | H84: =IF('Dati Generali CER 2 Sem. 2019'!BL77="","",'Dati Generali CER 2 Sem. 2019'!BL77) -> 0.4469202899 | I84: ='Dati Generali CER 1 Sem. 2019'!D77 -> 600 | J84: =IF('Dati Generali CER 2 Sem. 2019'!BN77="","",'Dati Generali CER 2 Sem. 2019'!BN77) -> 2020-05-07T11:07:03
A85: 76 | B85: ='Dati Generali CER 1 Sem. 2019'!C78 -> RODI' MILICI | C85: =IF('Dati Generali CER 2 Sem. 2019'!E78="","",'Dati Generali CER 2 Sem. 2019'!E78) -> 142500 | D85: =IF(C85="","",'Dati Generali CER 2 Sem. 2019'!BI78) -> 173190 | E85: ='Dati Generali CER 2 Sem. 2019'!W78 -> 0.5486078115 | F85: =IF('Dati Generali CER 2 Sem. 2019'!BJ78="","",'Dati Generali CER 2 Sem. 2019'!BJ78) -> 0.8604345646 | G85: =IF('Dati Generali CER 2 Sem. 2019'!BK78="","",'Dati Generali CER 2 Sem. 2019'!BK78) -> 0.3883934412 | H85: =IF('Dati Generali CER 2 Sem. 2019'!BL78="","",'Dati Generali CER 2 Sem. 2019'!BL78) -> 0.4720411234 | I85: ='Dati Generali CER 1 Sem. 2019'!D78 -> 1994 | J85: =IF('Dati Generali CER 2 Sem. 2019'!BN78="","",'Dati Generali CER 2 Sem. 2019'!BN78) -> 2020-02-17T14:24:30
A86: 77 | B86: ='Dati Generali CER 1 Sem. 2019'!C79 -> ROMETTA | C86: =IF('Dati Generali CER 2 Sem. 2019'!E79="","",'Dati Generali CER 2 Sem. 2019'!E79) -> 195460 | D86: =IF(C86="","",'Dati Generali CER 2 Sem. 2019'!BI79) -> 1119648 | E86: ='Dati Generali CER 2 Sem. 2019'!W79 -> 0.8513734233 | F86: =IF('Dati Generali CER 2 Sem. 2019'!BJ79="","",'Dati Generali CER 2 Sem. 2019'!BJ79) -> 1.091861608 | G86: =IF('Dati Generali CER 2 Sem. 2019'!BK79="","",'Dati Generali CER 2 Sem. 2019'!BK79) -> 0.162279653 | H86: =IF('Dati Generali CER 2 Sem. 2019'!BL79="","",'Dati Generali CER 2 Sem. 2019'!BL79) -> 0.9295819551 | I86: ='Dati Generali CER 1 Sem. 2019'!D79 -> 6546 | J86: =IF('Dati Generali CER 2 Sem. 2019'!BN79="","",'Dati Generali CER 2 Sem. 2019'!BN79) -> 2020-03-17T11:34:11
A87: 78 | B87: ='Dati Generali CER 1 Sem. 2019'!C82 -> S. AGATA DI MILITELLO | C87: =IF('Dati Generali CER 2 Sem. 2019'!E82="","",'Dati Generali CER 2 Sem. 2019'!E82) -> 1716540 | D87: =IF(C87="","",'Dati Generali CER 2 Sem. 2019'!BI82) -> 1141692 | E87: ='Dati Generali CER 2 Sem. 2019'!W82 -> 0.3994399335 | F87: =IF('Dati Generali CER 2 Sem. 2019'!BJ82="","",'Dati Generali CER 2 Sem. 2019'!BJ82) -> 1.261685312 | G87: =IF('Dati Generali CER 2 Sem. 2019'!BK82="","",'Dati Generali CER 2 Sem. 2019'!BK82) -> 0.7577178151 | H87: =IF('Dati Generali CER 2 Sem. 2019'!BL82="","",'Dati Generali CER 2 Sem. 2019'!BL82) -> 0.5039674972 | I87: ='Dati Generali CER 1 Sem. 2019'!D82 -> 12312 | J87: =IF('Dati Generali CER 2 Sem. 2019'!BN80="","",'Dati Generali CER 2 Sem. 2019'!BN80) -> 2020-02-17T14:40:39
A88: 79 | B88: ='Dati Generali CER 1 Sem. 2019'!C93 -> S. ALESSIO SICULO | C88: =IF('Dati Generali CER 2 Sem. 2019'!E93="","",'Dati Generali CER 2 Sem. 2019'!E93) -> 416040 | D88: =IF(C88="","",'Dati Generali CER 2 Sem. 2019'!BI93) -> 173510 | E88: ='Dati Generali CER 2 Sem. 2019'!W93 -> 0.2943092189 | F88: =IF('Dati Generali CER 2 Sem. 2019'!BJ93="","",'Dati Generali CER 2 Sem. 2019'!BJ93) -> 2.121904693 | G88: =IF('Dati Generali CER 2 Sem. 2019'!BK93="","",'Dati Generali CER 2 Sem. 2019'!BK93) -> 1.49740858 | H88: =IF('Dati Generali CER 2 Sem. 2019'!BL93="","",'Dati Generali CER 2 Sem. 2019'!BL93) -> 0.6244961129 | I88: ='Dati Generali CER 1 Sem. 2019'!D93 -> 1510 | J88: =IF('Dati Generali CER 2 Sem. 2019'!BN81="","",'Dati Generali CER 2 Sem. 2019'!BN81) -> 2020-02-24T11:25:13
A89: 80 | B89: ='Dati Generali CER 1 Sem. 2019'!C92 -> S. ANGELO DI BROLO | C89: =IF('Dati Generali CER 2 Sem. 2019'!E92="","",'Dati Generali CER 2 Sem. 2019'!E92) -> 482820 | D89: =IF(C89="","",'Dati Generali CER 2 Sem. 2019'!BI92) -> 141820 | E89: ='Dati Generali CER 2 Sem. 2019'!W92 -> 0.2270427766 | F89: =IF('Dati Generali CER 2 Sem. 2019'!BJ92="","",'Dati Generali CER 2 Sem. 2019'!BJ92) -> 1.163792461 | G89: =IF('Dati Generali CER 2 Sem. 2019'!BK92="","",'Dati Generali CER 2 Sem. 2019'!BK92) -> 0.8995617892 | H89: =IF('Dati Generali CER 2 Sem. 2019'!BL92="","",'Dati Generali CER 2 Sem. 2019'!BL92) -> 0.2642306718 | I89: ='Dati Generali CER 1 Sem. 2019'!D92 -> 2917 | J89: =IF('Dati Generali CER 2 Sem. 2019'!BN82="","",'Dati Generali CER 2 Sem. 2019'!BN82) -> 2020-02-24T09:59:07
A90: 81 | B90: ='Dati Generali CER 1 Sem. 2019'!C80 -> S. DOMENICA VITTORIA | C90: =IF('Dati Generali CER 2 Sem. 2019'!E80="","",'Dati Generali CER 2 Sem. 2019'!E80) -> 61510 | D90: =IF(C90="","",'Dati Generali CER 2 Sem. 2019'!BI80) -> 95400 | E90: ='Dati Generali CER 2 Sem. 2019'!W80 -> 0.6079918425 | F90: =IF('Dati Generali CER 2 Sem. 2019'!BJ80="","",'Dati Generali CER 2 Sem. 2019'!BJ80) -> 0.9464725185 | G90: =IF('Dati Generali CER 2 Sem. 2019'!BK80="","",'Dati Generali CER 2 Sem. 2019'!BK80) -> 0.3710249481 | H90: =IF('Dati Generali CER 2 Sem. 2019'!BL80="","",'Dati Generali CER 2 Sem. 2019'!BL80) -> 0.5754475703 | I90: ='Dati Generali CER 1 Sem. 2019'!D80 -> 901 | J90: =IF('Dati Generali CER 2 Sem. 2019'!BN83="","",'Dati Generali CER 2 Sem. 2019'!BN83) -> 2020-01-21T08:00:23
A91: 82 | B91: ='Dati Generali CER 1 Sem. 2019'!C85 -> S. FILIPPO DEL MELA | C91: =IF('Dati Generali CER 2 Sem. 2019'!E85="","",'Dati Generali CER 2 Sem. 2019'!E85) -> 943671 | D91: =IF(C91="","",'Dati Generali CER 2 Sem. 2019'!BI85) -> 614446 | E91: ='Dati Generali CER 2 Sem. 2019'!W85 -> 0.3943516437 | F91: =IF('Dati Generali CER 2 Sem. 2019'!BJ85="","",'Dati Generali CER 2 Sem. 2019'!BJ85) -> 1.224057123 | G91: =IF('Dati Generali CER 2 Sem. 2019'!BK85="","",'Dati Generali CER 2 Sem. 2019'!BK85) -> 0.7413481843 | H91: =IF('Dati Generali CER 2 Sem. 2019'!BL85="","",'Dati Generali CER 2 Sem. 2019'!BL85) -> 0.4827089382 | I91: ='Dati Generali CER 1 Sem. 2019'!D85 -> 6918 | J91: =IF('Dati Generali CER 2 Sem. 2019'!BN84="","",'Dati Generali CER 2 Sem. 2019'!BN84) -> 2020-05-14T09:34:08
A92: 83 | B92: ='Dati Generali CER 1 Sem. 2019'!C90 -> S. SALVAT. DI FITALIA | C92: =IF('Dati Generali CER 2 Sem. 2019'!E90="","",'Dati Generali CER 2 Sem. 2019'!E90) -> 93420 | D92: =IF(C92="","",'Dati Generali CER 2 Sem. 2019'!BI90) -> 42970 | E92: ='Dati Generali CER 2 Sem. 2019'!W90 -> 0.3150524232 | F92: =IF('Dati Generali CER 2 Sem. 2019'!BJ90="","",'Dati Generali CER 2 Sem. 2019'!BJ90) -> 0.6080803938 | G92: =IF('Dati Generali CER 2 Sem. 2019'!BK90="","",'Dati Generali CER 2 Sem. 2019'!BK90) -> 0.4165031922 | H92: =IF('Dati Generali CER 2 Sem. 2019'!BL90="","",'Dati Generali CER 2 Sem. 2019'!BL90) -> 0.1915772016 | I92: ='Dati Generali CER 1 Sem. 2019'!D90 -> 1219 | J92: =IF('Dati Generali CER 2 Sem. 2019'!BN85="","",'Dati Generali CER 2 Sem. 2019'!BN85) -> 2020-03-18T12:26:49
A93: 84 | B93: ='Dati Generali CER 1 Sem. 2019'!C81 -> S. STEF. DI CAMASTRA | C93: =IF('Dati Generali CER 2 Sem. 2019'!E81="","",'Dati Generali CER 2 Sem. 2019'!E81) -> 391220 | D93: =IF(C93="","",'Dati Generali CER 2 Sem. 2019'!BI81) -> 749768 | E93: ='Dati Generali CER 2 Sem. 2019'!W81 -> 0.6571217226 | F93: =IF('Dati Generali CER 2 Sem. 2019'!BJ81="","",'Dati Generali CER 2 Sem. 2019'!BJ81) -> 1.352163484 | G93: =IF('Dati Generali CER 2 Sem. 2019'!BK81="","",'Dati Generali CER 2 Sem. 2019'!BK81) -> 0.4636274863 | H93: =IF('Dati Generali CER 2 Sem. 2019'!BL81="","",'Dati Generali CER 2 Sem. 2019'!BL81) -> 0.888535998 | I93: ='Dati Generali CER 1 Sem. 2019'!D81 -> 4586 | J93: =IF('Dati Generali CER 2 Sem. 2019'!BN86="","",'Dati Generali CER 2 Sem. 2019'!BN86) -> 2020-03-03T12:20:28
A94: 85 | B94: ='Dati Generali CER 1 Sem. 2019'!C84 -> S. TERESA DI RIVA | C94: =IF('Dati Generali CER 2 Sem. 2019'!E84="","",'Dati Generali CER 2 Sem. 2019'!E84) -> 600060 | D94: =IF(C94="","",'Dati Generali CER 2 Sem. 2019'!BI84) -> 1499945 | E94: ='Dati Generali CER 2 Sem. 2019'!W84 -> 0.7142578232 | F94: =IF('Dati Generali CER 2 Sem. 2019'!BJ84="","",'Dati Generali CER 2 Sem. 2019'!BJ84) -> 1.208371694 | G94: =IF('Dati Generali CER 2 Sem. 2019'!BK84="","",'Dati Generali CER 2 Sem. 2019'!BK84) -> 0.3452827583 | H94: =IF('Dati Generali CER 2 Sem. 2019'!BL84="","",'Dati Generali CER 2 Sem. 2019'!BL84) -> 0.8630889359 | I94: ='Dati Generali CER 1 Sem. 2019'!D84 -> 9445 | J94: =IF('Dati Generali CER 2 Sem. 2019'!BN87="","",'Dati Generali CER 2 Sem. 2019'!BN87) -> 2020-02-17T14:48:40
A95: 86 | B95: ='Dati Generali CER 1 Sem. 2019'!C86 -> SAN FRATELLO | C95: =IF('Dati Generali CER 2 Sem. 2019'!E86="","",'Dati Generali CER 2 Sem. 2019'!E86) -> 249400 | D95: =IF(C95="","",'Dati Generali CER 2 Sem. 2019'!BI86) -> 174780 | E95: ='Dati Generali CER 2 Sem. 2019'!W86 -> 0.4120420576 | F95: =IF('Dati Generali CER 2 Sem. 2019'!BJ86="","",'Dati Generali CER 2 Sem. 2019'!BJ86) -> 0.6676299122 | G95: =IF('Dati Generali CER 2 Sem. 2019'!BK86="","",'Dati Generali CER 2 Sem. 2019'!BK86) -> 0.3925383095 | H95: =IF('Dati Generali CER 2 Sem. 2019'!BL86="","",'Dati Generali CER 2 Sem. 2019'!BL86) -> 0.2750916028 | I95: ='Dati Generali CER 1 Sem. 2019'!D86 -> 3453 | J95: =IF('Dati Generali CER 2 Sem. 2019'!BN88="","",'Dati Generali CER 2 Sem. 2019'!BN88) -> 2020-06-01T12:04:16
A96: 87 | B96: ='Dati Generali CER 1 Sem. 2019'!C87 -> SAN MARCO D'ALUNZIO | C96: =IF('Dati Generali CER 2 Sem. 2019'!E87="","",'Dati Generali CER 2 Sem. 2019'!E87) -> 60920 | D96: =IF(C96="","",'Dati Generali CER 2 Sem. 2019'!BI87) -> 247155 | E96: ='Dati Generali CER 2 Sem. 2019'!W87 -> 0.8022559442 | F96: =IF('Dati Generali CER 2 Sem. 2019'!BJ87="","",'Dati Generali CER 2 Sem. 2019'!BJ87) -> 0.9011413628 | G96: =IF('Dati Generali CER 2 Sem. 2019'!BK87="","",'Dati Generali CER 2 Sem. 2019'!BK87) -> 0.178195348 | H96: =IF('Dati Generali CER 2 Sem. 2019'!BL87="","",'Dati Generali CER 2 Sem. 2019'!BL87) -> 0.7229460149 | I96: ='Dati Generali CER 1 Sem. 2019'!D87 -> 1858 | J96: =IF('Dati Generali CER 2 Sem. 2019'!BN89="","",'Dati Generali CER 2 Sem. 2019'!BN89) -> 2020-02-27T12:36:53
A97: 88 | B97: ='Dati Generali CER 1 Sem. 2019'!C88 -> SAN PIER NICETO | C97: =IF('Dati Generali CER 2 Sem. 2019'!E88="","",'Dati Generali CER 2 Sem. 2019'!E88) -> 289860 | D97: =IF(C97="","",'Dati Generali CER 2 Sem. 2019'!BI88) -> 371384 | E97: ='Dati Generali CER 2 Sem. 2019'!W88 -> 0.5570448055 | F97: =IF('Dati Generali CER 2 Sem. 2019'!BJ88="","",'Dati Generali CER 2 Sem. 2019'!BJ88) -> 1.336551569 | G97: =IF('Dati Generali CER 2 Sem. 2019'!BK88="","",'Dati Generali CER 2 Sem. 2019'!BK88) -> 0.581086716 | H97: =IF('Dati Generali CER 2 Sem. 2019'!BL88="","",'Dati Generali CER 2 Sem. 2019'!BL88) -> 0.7445191089 | I97: ='Dati Generali CER 1 Sem. 2019'!D88 -> 2711 | J97: =IF('Dati Generali CER 2 Sem. 2019'!BN90="","",'Dati Generali CER 2 Sem. 2019'!BN90) -> 2020-02-17T14:56:00
A98: 89 | B98: ='Dati Generali CER 1 Sem. 2019'!C89 -> SAN PIERO PATTI | C98: =IF('Dati Generali CER 2 Sem. 2019'!E89="","",'Dati Generali CER 2 Sem. 2019'!E89) -> 293420 | D98: =IF(C98="","",'Dati Generali CER 2 Sem. 2019'!BI89) -> 196632 | E98: ='Dati Generali CER 2 Sem. 2019'!W89 -> 0.4012472146 | F98: =IF('Dati Generali CER 2 Sem. 2019'!BJ89="","",'Dati Generali CER 2 Sem. 2019'!BJ89) -> 0.978444558 | G98: =IF('Dati Generali CER 2 Sem. 2019'!BK89="","",'Dati Generali CER 2 Sem. 2019'!BK89) -> 0.5858464045 | H98: =IF('Dati Generali CER 2 Sem. 2019'!BL89="","",'Dati Generali CER 2 Sem. 2019'!BL89) -> 0.3925981535 | I98: ='Dati Generali CER 1 Sem. 2019'!D89 -> 2722 | J98: =IF('Dati Generali CER 2 Sem. 2019'!BN91="","",'Dati Generali CER 2 Sem. 2019'!BN91) -> 2020-02-17T15:04:25
A99: 90 | B99: ='Dati Generali CER 1 Sem. 2019'!C91 -> SAN TEODORO | C99: =IF('Dati Generali CER 2 Sem. 2019'!E91="","",'Dati Generali CER 2 Sem. 2019'!E91) -> 113280 | D99: =IF(C99="","",'Dati Generali CER 2 Sem. 2019'!BI91) -> 66420 | E99: ='Dati Generali CER 2 Sem. 2019'!W91 -> 0.3696160267 | F99: =IF('Dati Generali CER 2 Sem. 2019'!BJ91="","",'Dati Generali CER 2 Sem. 2019'!BJ91) -> 0.7365237065 | G99: =IF('Dati Generali CER 2 Sem. 2019'!BK91="","",'Dati Generali CER 2 Sem. 2019'!BK91) -> 0.4642927405 | H99: =IF('Dati Generali CER 2 Sem. 2019'!BL91="","",'Dati Generali CER 2 Sem. 2019'!BL91) -> 0.272230966 | I99: ='Dati Generali CER 1 Sem. 2019'!D91 -> 1326 | J99: =IF('Dati Generali CER 2 Sem. 2019'!BN92="","",'Dati Generali CER 2 Sem. 2019'!BN92) -> 2020-03-17T12:21:39
A100: 91 | B100: ='Dati Generali CER 1 Sem. 2019'!C83 -> SANTA LUCIA DEL MELA | C100: =IF('Dati Generali CER 2 Sem. 2019'!E83="","",'Dati Generali CER 2 Sem. 2019'!E83) -> 279080 | D100: =IF(C100="","",'Dati Generali CER 2 Sem. 2019'!BI83) -> 401736 | E100: ='Dati Generali CER 2 Sem. 2019'!W83 -> 0.5900801391 | F100: =IF('Dati Generali CER 2 Sem. 2019'!BJ83="","",'Dati Generali CER 2 Sem. 2019'!BJ83) -> 0.8142796999 | G100: =IF('Dati Generali CER 2 Sem. 2019'!BK83="","",'Dati Generali CER 2 Sem. 2019'!BK83) -> 0.3337894213 | H100: =IF('Dati Generali CER 2 Sem. 2019'!BL83="","",'Dati Generali CER 2 Sem. 2019'!BL83) -> 0.4804902786 | I100: ='Dati Generali CER 1 Sem. 2019'!D83 -> 4544 | J100: =IF('Dati Generali CER 2 Sem. 2019'!BN93="","",'Dati Generali CER 2 Sem. 2019'!BN93) -> 2020-01-21T08:15:02
A101: 92 | B101: ='Dati Generali CER 1 Sem. 2019'!C94 -> SANTA MARINA SALINA | C101: =IF('Dati Generali CER 2 Sem. 2019'!E94="","",'Dati Generali CER 2 Sem. 2019'!E94) -> 231760 | D101: =IF(C101="","",'Dati Generali CER 2 Sem. 2019'!BI94) -> 157140 | E101: ='Dati Generali CER 2 Sem. 2019'!W94 -> 0.4040627411 | F101: =IF('Dati Generali CER 2 Sem. 2019'!BJ94="","",'Dati Generali CER 2 Sem. 2019'!BJ94) -> 2.388233849 | G101: =IF('Dati Generali CER 2 Sem. 2019'!BK94="","",'Dati Generali CER 2 Sem. 2019'!BK94) -> 1.423237534 | H101: =IF('Dati Generali CER 2 Sem. 2019'!BL94="","",'Dati Generali CER 2 Sem. 2019'!BL94) -> 0.9649963154 | I101: ='Dati Generali CER 1 Sem. 2019'!D94 -> 885 | J101: =IF('Dati Generali CER 2 Sem. 2019'!BN94="","",'Dati Generali CER 2 Sem. 2019'!BN94) -> 2020-03-05T08:05:46
A102: 93 | B102: ='Dati Generali CER 1 Sem. 2019'!C95 -> SAPONARA | C102: =IF('Dati Generali CER 2 Sem. 2019'!E95="","",'Dati Generali CER 2 Sem. 2019'!E95) -> 436140 | D102: =IF(C102="","",'Dati Generali CER 2 Sem. 2019'!BI95) -> 223295 | E102: ='Dati Generali CER 2 Sem. 2019'!W95 -> 0.3386156331 | F102: =IF('Dati Generali CER 2 Sem. 2019'!BJ95="","",'Dati Generali CER 2 Sem. 2019'!BJ95) -> 0.9359848184 | G102: =IF('Dati Generali CER 2 Sem. 2019'!BK95="","",'Dati Generali CER 2 Sem. 2019'!BK95) -> 0.6190457265 | H102: =IF('Dati Generali CER 2 Sem. 2019'!BL95="","",'Dati Generali CER 2 Sem. 2019'!BL95) -> 0.3169390918 | I102: ='Dati Generali CER 1 Sem. 2019'!D95 -> 3829 | J102: =IF('Dati Generali CER 2 Sem. 2019'!BN95="","",'Dati Generali CER 2 Sem. 2019'!BN95) -> 2020-05-11T09:45:01
A103: 94 | B103: ='Dati Generali CER 1 Sem. 2019'!C96 -> SAVOCA | C103: =IF('Dati Generali CER 2 Sem. 2019'!E96="","",'Dati Generali CER 2 Sem. 2019'!E96) -> 142220 | D103: =IF(C103="","",'Dati Generali CER 2 Sem. 2019'!BI96) -> 155960 | E103: ='Dati Generali CER 2 Sem. 2019'!W96 -> 0.5230397746 | F103: =IF('Dati Generali CER 2 Sem. 2019'!BJ96="","",'Dati Generali CER 2 Sem. 2019'!BJ96) -> 0.928146322 | G103: =IF('Dati Generali CER 2 Sem. 2019'!BK96="","",'Dati Generali CER 2 Sem. 2019'!BK96) -> 0.4426888789 | H103: =IF('Dati Generali CER 2 Sem. 2019'!BL96="","",'Dati Generali CER 2 Sem. 2019'!BL96) -> 0.4854574431 | I103: ='Dati Generali CER 1 Sem. 2019'!D96 -> 1746 | J103: =IF('Dati Generali CER 2 Sem. 2019'!BN96="","",'Dati Generali CER 2 Sem. 2019'!BN96) -> 2020-02-17T15:07:37
A104: 95 | B104: ='Dati Generali CER 1 Sem. 2019'!C97 -> SCALETTA ZANCLEA | C104: =IF('Dati Generali CER 2 Sem. 2019'!E97="","",'Dati Generali CER 2 Sem. 2019'!E97) -> 157600 | D104: =IF(C104="","",'Dati Generali CER 2 Sem. 2019'!BI97) -> 191860 | E104: ='Dati Generali CER 2 Sem. 2019'!W97 -> 0.5490184857 | F104: =IF('Dati Generali CER 2 Sem. 2019'!BJ97="","",'Dati Generali CER 2 Sem. 2019'!BJ97) -> 0.9709811505 | G104: =IF('Dati Generali CER 2 Sem. 2019'!BK97="","",'Dati Generali CER 2 Sem. 2019'!BK97) -> 0.4378945497 | H104: =IF('Dati Generali CER 2 Sem. 2019'!BL97="","",'Dati Generali CER 2 Sem. 2019'!BL97) -> 0.5330866009 | I104: ='Dati Generali CER 1 Sem. 2019'!D97 -> 1956 | J104: =IF('Dati Generali CER 2 Sem. 2019'!BN97="","",'Dati Generali CER 2 Sem. 2019'!BN97) -> 2020-05-07T11:12:23
A105: 96 | B105: ='Dati Generali CER 1 Sem. 2019'!C98 -> SINAGRA | C105: =IF('Dati Generali CER 2 Sem. 2019'!E98="","",'Dati Generali CER 2 Sem. 2019'!E98) -> 133760 | D105: =IF(C105="","",'Dati Generali CER 2 Sem. 2019'!BI98) -> 314510 | E105: ='Dati Generali CER 2 Sem. 2019'!W98 -> 0.7016084056 | F105: =IF('Dati Generali CER 2 Sem. 2019'!BJ98="","",'Dati Generali CER 2 Sem. 2019'!BJ98) -> 0.9377405697 | G105: =IF('Dati Generali CER 2 Sem. 2019'!BK98="","",'Dati Generali CER 2 Sem. 2019'!BK98) -> 0.2798139037 | H105: =IF('Dati Generali CER 2 Sem. 2019'!BL98="","",'Dati Generali CER 2 Sem. 2019'!BL98) -> 0.657926666 | I105: ='Dati Generali CER 1 Sem. 2019'!D98 -> 2598 | J105: =IF('Dati Generali CER 2 Sem. 2019'!BN98="","",'Dati Generali CER 2 Sem. 2019'!BN98) -> 2020-01-28T13:42:53
A106: 97 | B106: ='Dati Generali CER 1 Sem. 2019'!C99 -> SPADAFORA | C106: =IF('Dati Generali CER 2 Sem. 2019'!E99="","",'Dati Generali CER 2 Sem. 2019'!E99) -> 503489 | D106: =IF(C106="","",'Dati Generali CER 2 Sem. 2019'!BI99) -> 505277 | E106: ='Dati Generali CER 2 Sem. 2019'!W99 -> 0.4986558477 | F106: =IF('Dati Generali CER 2 Sem. 2019'!BJ99="","",'Dati Generali CER 2 Sem. 2019'!BJ99) -> 1.132650278 | G106: =IF('Dati Generali CER 2 Sem. 2019'!BK99="","",'Dati Generali CER 2 Sem. 2019'!BK99) -> 0.5628040438 | H106: =IF('Dati Generali CER 2 Sem. 2019'!BL99="","",'Dati Generali CER 2 Sem. 2019'!BL99) -> 0.5648026845 | I106: ='Dati Generali CER 1 Sem. 2019'!D99 -> 4862 | J106: =IF('Dati Generali CER 2 Sem. 2019'!BN99="","",'Dati Generali CER 2 Sem. 2019'!BN99) -> 2020-02-26T10:39:25
A107: 98 | B107: ='Dati Generali CER 1 Sem. 2019'!C100 -> TAORMINA | C107: =IF('Dati Generali CER 2 Sem. 2019'!E100="","",'Dati Generali CER 2 Sem. 2019'!E100) -> 1643948 | D107: =IF(C107="","",'Dati Generali CER 2 Sem. 2019'!BI100) -> 3064130 | E107: ='Dati Generali CER 2 Sem. 2019'!W100 -> 0.6508239668 | F107: =IF('Dati Generali CER 2 Sem. 2019'!BJ100="","",'Dati Generali CER 2 Sem. 2019'!BJ100) -> 2.365915898 | G107: =IF('Dati Generali CER 2 Sem. 2019'!BK100="","",'Dati Generali CER 2 Sem. 2019'!BK100) -> 0.8261211281 | H107: =IF('Dati Generali CER 2 Sem. 2019'!BL100="","",'Dati Generali CER 2 Sem. 2019'!BL100) -> 1.53979477 | I107: ='Dati Generali CER 1 Sem. 2019'!D100 -> 10815 | J107: =IF('Dati Generali CER 2 Sem. 2019'!BN100="","",'Dati Generali CER 2 Sem. 2019'!BN100) -> 2020-05-12T09:32:23
A108: 99 | B108: ='Dati Generali CER 1 Sem. 2019'!C101 -> TERME VIGLIATORE | C108: =IF('Dati Generali CER 2 Sem. 2019'!E101="","",'Dati Generali CER 2 Sem. 2019'!E101) -> 655860 | D108: =IF(C108="","",'Dati Generali CER 2 Sem. 2019'!BI101) -> 829282 | E108: ='Dati Generali CER 2 Sem. 2019'!W101 -> 0.5387669875 | F108: =IF('Dati Generali CER 2 Sem. 2019'!BJ101="","",'Dati Generali CER 2 Sem. 2019'!BJ101) -> 1.135977316 | G108: =IF('Dati Generali CER 2 Sem. 2019'!BK101="","",'Dati Generali CER 2 Sem. 2019'!BK101) -> 0.4840380937 | H108: =IF('Dati Generali CER 2 Sem. 2019'!BL101="","",'Dati Generali CER 2 Sem. 2019'!BL101) -> 0.6120270765 | I108: ='Dati Generali CER 1 Sem. 2019'!D101 -> 7364 | J108: =IF('Dati Generali CER 2 Sem. 2019'!BN101="","",'Dati Generali CER 2 Sem. 2019'!BN101) -> 2020-02-25T16:46:22
A109: 100 | B109: ='Dati Generali CER 1 Sem. 2019'!C102 -> TORREGROTTA | C109: =IF('Dati Generali CER 2 Sem. 2019'!E102="","",'Dati Generali CER 2 Sem. 2019'!E102) -> 846900 | D109: =IF(C109="","",'Dati Generali CER 2 Sem. 2019'!BI102) -> 756475 | E109: ='Dati Generali CER 2 Sem. 2019'!W102 -> 0.4668489279 | F109: =IF('Dati Generali CER 2 Sem. 2019'!BJ102="","",'Dati Generali CER 2 Sem. 2019'!BJ102) -> 1.197177844 | G109: =IF('Dati Generali CER 2 Sem. 2019'!BK102="","",'Dati Generali CER 2 Sem. 2019'!BK102) -> 0.6257092702 | H109: =IF('Dati Generali CER 2 Sem. 2019'!BL102="","",'Dati Generali CER 2 Sem. 2019'!BL102) -> 0.5589011928 | I109: ='Dati Generali CER 1 Sem. 2019'!D102 -> 7356 | J109: =IF('Dati Generali CER 2 Sem. 2019'!BN102="","",'Dati Generali CER 2 Sem. 2019'!BN102) -> 2020-04-01T13:49:06
A110: 101 | B110: ='Dati Generali CER 1 Sem. 2019'!C103 -> TORRENOVA | C110: =IF('Dati Generali CER 2 Sem. 2019'!E103="","",'Dati Generali CER 2 Sem. 2019'!E103) -> 191840 | D110: =IF(C110="","",'Dati Generali CER 2 Sem. 2019'!BI103) -> 678340 | E110: ='Dati Generali CER 2 Sem. 2019'!W103 -> 0.7795398653 | F110: =IF('Dati Generali CER 2 Sem. 2019'!BJ103="","",'Dati Generali CER 2 Sem. 2019'!BJ103) -> 1.05422183 | G110: =IF('Dati Generali CER 2 Sem. 2019'!BK103="","",'Dati Generali CER 2 Sem. 2019'!BK103) -> 0.2324138867 | H110: =IF('Dati Generali CER 2 Sem. 2019'!BL103="","",'Dati Generali CER 2 Sem. 2019'!BL103) -> 0.8218079436 | I110: ='Dati Generali CER 1 Sem. 2019'!D103 -> 4486 | J110: =IF('Dati Generali CER 2 Sem. 2019'!BN103="","",'Dati Generali CER 2 Sem. 2019'!BN103) -> 2020-05-26T07:10:26
A111: 102 | B111: ='Dati Generali CER 1 Sem. 2019'!C104 -> TORTORICI | C111: =IF('Dati Generali CER 2 Sem. 2019'!E104="","",'Dati Generali CER 2 Sem. 2019'!E104) -> 348320 | D111: =IF(C111="","",'Dati Generali CER 2 Sem. 2019'!BI104) -> 331620 | E111: ='Dati Generali CER 2 Sem. 2019'!W104 -> 0.4877195047 | F111: =IF('Dati Generali CER 2 Sem. 2019'!BJ104="","",'Dati Generali CER 2 Sem. 2019'!BJ104) -> 0.6093875473 | G111: =IF('Dati Generali CER 2 Sem. 2019'!BK104="","",'Dati Generali CER 2 Sem. 2019'!BK104) -> 0.3121773546 | H111: =IF('Dati Generali CER 2 Sem. 2019'!BL104="","",'Dati Generali CER 2 Sem. 2019'!BL104) -> 0.2972101927 | I111: ='Dati Generali CER 1 Sem. 2019'!D104 -> 6064 | J111: =IF('Dati Generali CER 2 Sem. 2019'!BN104="","",'Dati Generali CER 2 Sem. 2019'!BN104) -> 2020-05-30T19:40:55
A112: 103 | B112: ='Dati Generali CER 1 Sem. 2019'!C105 -> TRIPI | C112: =IF('Dati Generali CER 2 Sem. 2019'!E105="","",'Dati Generali CER 2 Sem. 2019'!E105) -> 119660 | D112: =IF(C112="","",'Dati Generali CER 2 Sem. 2019'!BI105) -> 61428 | E112: ='Dati Generali CER 2 Sem. 2019'!W105 -> 0.3392162926 | F112: =IF('Dati Generali CER 2 Sem. 2019'!BJ105="","",'Dati Generali CER 2 Sem. 2019'!BJ105) -> 1.192938076 | G112: =IF('Dati Generali CER 2 Sem. 2019'!BK105="","",'Dati Generali CER 2 Sem. 2019'!BK105) -> 0.7882740448 | H112: =IF('Dati Generali CER 2 Sem. 2019'!BL105="","",'Dati Generali CER 2 Sem. 2019'!BL105) -> 0.4046640316 | I112: ='Dati Generali CER 1 Sem. 2019'!D105 -> 825 | J112: =IF('Dati Generali CER 2 Sem. 2019'!BN105="","",'Dati Generali CER 2 Sem. 2019'!BN105) -> 2020-05-07T11:16:37
A113: 104 | B113: ='Dati Generali CER 1 Sem. 2019'!C106 -> TUSA | C113: =IF('Dati Generali CER 2 Sem. 2019'!E106="","",'Dati Generali CER 2 Sem. 2019'!E106) -> 193280 | D113: =IF(C113="","",'Dati Generali CER 2 Sem. 2019'!BI106) -> 399260 | E113: ='Dati Generali CER 2 Sem. 2019'!W106 -> 0.6738110507 | F113: =IF('Dati Generali CER 2 Sem. 2019'!BJ106="","",'Dati Generali CER 2 Sem. 2019'!BJ106) -> 1.183943414 | G113: =IF('Dati Generali CER 2 Sem. 2019'!BK106="","",'Dati Generali CER 2 Sem. 2019'!BK106) -> 0.3861892583 | H113: =IF('Dati Generali CER 2 Sem. 2019'!BL106="","",'Dati Generali CER 2 Sem. 2019'!BL106) -> 0.797754156 | I113: ='Dati Generali CER 1 Sem. 2019'!D106 -> 2720 | J113: =IF('Dati Generali CER 2 Sem. 2019'!BN106="","",'Dati Generali CER 2 Sem. 2019'!BN106) -> 2020-02-17T15:13:23
A114: 105 | B114: ='Dati Generali CER 1 Sem. 2019'!C107 -> UCRIA | C114: =IF('Dati Generali CER 2 Sem. 2019'!E107="","",'Dati Generali CER 2 Sem. 2019'!E107) -> 97940 | D114: =IF(C114="","",'Dati Generali CER 2 Sem. 2019'!BI107) -> 66320 | E114: ='Dati Generali CER 2 Sem. 2019'!W107 -> 0.4037501522 | F114: =IF('Dati Generali CER 2 Sem. 2019'!BJ107="","",'Dati Generali CER 2 Sem. 2019'!BJ107) -> 0.9063120724 | G114: =IF('Dati Generali CER 2 Sem. 2019'!BK107="","",'Dati Generali CER 2 Sem. 2019'!BK107) -> 0.5403884352 | H114: =IF('Dati Generali CER 2 Sem. 2019'!BL107="","",'Dati Generali CER 2 Sem. 2019'!BL107) -> 0.3659236372 | I114: ='Dati Generali CER 1 Sem. 2019'!D107 -> 985 | J114: =IF('Dati Generali CER 2 Sem. 2019'!BN107="","",'Dati Generali CER 2 Sem. 2019'!BN107) -> 2020-02-19T12:47:51
A115: 106 | B115: ='Dati Generali CER 1 Sem. 2019'!C108 -> VALDINA | C115: =IF('Dati Generali CER 2 Sem. 2019'!E108="","",'Dati Generali CER 2 Sem. 2019'!E108) -> 154840 | D115: =IF(C115="","",'Dati Generali CER 2 Sem. 2019'!BI108) -> 79370 | E115: ='Dati Generali CER 2 Sem. 2019'!W108 -> 0.3388839076 | F115: =IF('Dati Generali CER 2 Sem. 2019'!BJ108="","",'Dati Generali CER 2 Sem. 2019'!BJ108) -> 0.9679699124 | G115: =IF('Dati Generali CER 2 Sem. 2019'!BK108="","",'Dati Generali CER 2 Sem. 2019'!BK108) -> 0.639940486 | H115: =IF('Dati Generali CER 2 Sem. 2019'!BL108="","",'Dati Generali CER 2 Sem. 2019'!BL108) -> 0.3280294264 | I115: ='Dati Generali CER 1 Sem. 2019'!D108 -> 1315 | J115: =IF('Dati Generali CER 2 Sem. 2019'!BN108="","",'Dati Generali CER 2 Sem. 2019'!BN108) -> 2020-05-28T08:03:55
A116: 107 | B116: ='Dati Generali CER 1 Sem. 2019'!C109 -> VENETICO | C116: =IF('Dati Generali CER 2 Sem. 2019'!E109="","",'Dati Generali CER 2 Sem. 2019'!E109) -> 544120 | D116: =IF(C116="","",'Dati Generali CER 2 Sem. 2019'!BI109) -> 339000 | E116: ='Dati Generali CER 2 Sem. 2019'!W109 -> 0.3838662922 | F116: =IF('Dati Generali CER 2 Sem. 2019'!BJ109="","",'Dati Generali CER 2 Sem. 2019'!BJ109) -> 1.194218765 | G116: =IF('Dati Generali CER 2 Sem. 2019'!BK109="","",'Dati Generali CER 2 Sem. 2019'!BK109) -> 0.7357984357 | H116: =IF('Dati Generali CER 2 Sem. 2019'!BL109="","",'Dati Generali CER 2 Sem. 2019'!BL109) -> 0.4584203295 | I116: ='Dati Generali CER 1 Sem. 2019'!D109 -> 4019 | J116: =IF('Dati Generali CER 2 Sem. 2019'!BN109="","",'Dati Generali CER 2 Sem. 2019'!BN109) -> 2020-02-17T15:15:50
A117: 108 | B117: ='Dati Generali CER 1 Sem. 2019'!C110 -> VILLAFRANCA TIRRENA | C117: =IF('Dati Generali CER 2 Sem. 2019'!E110="","",'Dati Generali CER 2 Sem. 2019'!E110) -> 340420 | D117: =IF(C117="","",'Dati Generali CER 2 Sem. 2019'!BI110) -> 1148807 | E117: ='Dati Generali CER 2 Sem. 2019'!W110 -> 0.7714116115 | F117: =IF('Dati Generali CER 2 Sem. 2019'!BJ110="","",'Dati Generali CER 2 Sem. 2019'!BJ110) -> 0.9778452338 | G117: =IF('Dati Generali CER 2 Sem. 2019'!BK110="","",'Dati Generali CER 2 Sem. 2019'!BK110) -> 0.2235240662 | H117: =IF('Dati Generali CER 2 Sem. 2019'!BL110="","",'Dati Generali CER 2 Sem. 2019'!BL110) -> 0.7543211676 | I117: ='Dati Generali CER 1 Sem. 2019'!D110 -> 8277 | J117: =IF('Dati Generali CER 2 Sem. 2019'!BN110="","",'Dati Generali CER 2 Sem. 2019'!BN110) -> 2020-02-24T11:47:47
B118: Percentuale media dei 108 Comuni: | F118: ='Dati Generali CER 2 Sem. 2019'!W111 -> 0.3577300095

Sheet Grafico 2 Semestre 2019

Sheet Dati Generali anno 2019
A1: Produzione di Rifiuti Urbani e Raccolta Differenziata ANNO 2019.
A2: =COUNT(E3:E110) -> 108 | B2: ID COMUNE | C2: COMUNE | D2: ='Dati Generali CER 1 Sem. 2019'!D2 -> ABITANTI al 30/11/2019 | E2: R.S.U. + R.S.A. (Ton/anno) 200301 | F2: Toner per stampa esauriti, contenenti sostanze pericolose (Ton/anno) 080317* | G2: Altri oli per motori, ingranaggi e lubrificazione (Ton/anno) 130208* | H2: Legno da demolizione (Ton/anno) 170201 | I2: Miscele bituminose (diverse da quelle 170301*) (Ton/anno) 170302 | J2: Alluminio (Ton/anno) 170402 | K2: Ferro e acciaio (Ton/anno) 170405 | L2: Materiali da costruzione contenenti amianto (Ton/anno) 170605* | M2: percolato di discarica,(diverso dalla voce 190702) (Ton/anno) 190703 | N2: Residui di vagliatura (Ton/anno) 190801 | O2: FANGHI DI DEPURAZIONE prodotti dal trattamento delle acque reflue urbane (Ton/anno) 190805 | P2: Altri rifiuti (compresi materiali misti) prodotti dal trattamento meccanico dei rifiuti,(diversi dalla voce 191211) (Ton/anno) 191212 | Q2: Rifiuti della pulizia delle fognature (Ton/anno) 200306 | R2: Residui della pulizia stradale (Ton/anno) 200303 Smaltimento | S2: Ingombranti (Ton/anno) - 200307 Smaltimento | T2: Rifiuti urbani non specificati altrimenti 200399 | U2: RACCOL. DIFFEREN. (Kg/anno) | V2: R.S.U. + R.S.A. + RACC. DIFF. (Kg/anno) | W2: % RACC. DIFF. | X2: Compostaggio Domestico | Y2: Toner per stampa esauriti,(diversi dalla voce 080317) (Ton/anno) 080318 | Z2: Imballaggi Carta e Cartone (Raccolta Selettiva) (Ton/anno) 150101 | AA2: Imballaggi in Plastica (Ton/anno) 150102 | AB2: Imballaggi in Legno (Ton/anno) 150103 | AC2: Imballaaggi in metallo (Ton/anno) 150104 | AD2: Imball. in materiali misti (Ton/anno) 150106 | AE2: Imballaggi in Vetro (Ton/anno) 150107 | AF2: Imballaggi contenenti residui di sostanze pericolose o contaminati da tali sostanze (Ton/anno) 150110* | AG2: Imballaggi metallici contenenti matrici solide porose pericolose (ad esempio amianto) 150111* | AH2: Pneumatici usati (Ton/anno) 160103 | AI2: Filtri dell'olio (Ton/anno) 160107* | AJ2: Apparecchiature fuori uso, contenenti clorofluorocarburi, HCFC, HFC (Ton/anno) 160211* | AK2: Componenti rimossi da apparecchiature fuori uso,(diversi dalla voce 160215) (Ton/anno) 160216 | AL2: Miscugli o frazioni separate di cemento, mattoni, mattonelle e ceramiche(diverse dalla voce 170106) (Ton/anno) 170107 | AM2: Rifiuti misti dell'attività di costruzione e demolizione, (diversi dalle voci 170901, 170902 e 170903) (Ton/anno) 170904 | AN2: Carta e Cartone (Raccolta Congiunta) (Ton/anno) 200101 | AO2: Vetro (Ton/anno) 200102 | AP2: Rifiuti biodegradabili di cucine e mense (Ton/anno) 200108 | AQ2: Abbigliamento (Ton/anno) 200110 | AR2: Prodotti tessili (Ton/anno) 200111 | AS2: Tubi fluorescenti ed altri rifiuti contenenti Mercurio (Ton/anno) 200121* | AT2: Apparec. Fuori uso conten. CFC e mat. peric. (Ton/anno) 200123* | AU2: Oli e Grassi commestibili (Ton/anno) 200125 | AV2: Oli e grassi (diversi dalla voce 200125) (Ton/anno) 200126* | AW2: Medicinali citotossici e citostatici 200131* | AX2: Medicinali (diversi dlla voce 200131*) (Ton/anno) 200132 | AY2: Batterie ed Accumulatori (diversi dalle voci 160601, 160602 e 160603) (Ton/anno) 200133* | AZ2: Batterie ed accumulatori (diversi dlla voce 200133*) (Ton/anno) 200134 | BA2: Apparecc. elettr. ed elettroniche fuori uso contenenti Mat. Peric. (Ton/anno) 200135* | BB2: Apparecc. eletr. ed elettroniche fuori uso(diverse da 200121, 200123 e 200135 (Ton/anno) 200136 | BC2: Legno (Ton/anno) 200138 | BD2: Plastica (Ton/anno) 200139 | BE2: Metallo (Ton/anno) 200140 | BF2: Rifiuti biodegradabili (Ton/anno) 200201 | BG2: Residui della pulizia stradale (Ton/anno) - 200303 Recupero | BH2: Ingombranti (Ton/anno) - 200307 Recupero | BI2: TOTALE RD | BJ2: CER R.D. utilizzati x Comune | BK2: R.S.U. + R.S.A.+ R.D. - (R.T. Kg. pro capite/g) | BL2: R.S.U. + R.S.A. 200301 - (R.I. Kg. pro capite/g) | BM2: R.D. - (Kg. pro capite/g)
A3: ='Dati Generali CER 1 Sem. 2019'!A3 -> 1 | B3: ='Dati Generali CER 1 Sem. 2019'!B3 -> M211 | C3: ='Dati Generali CER 1 Sem. 2019'!C3 -> ACQUEDOLCI | D3: ='Dati Generali CER 1 Sem. 2019'!D3 -> 5560 | E3: =IF(SUM('Dati Generali CER 1 Sem. 2019'!E3,'Dati Generali CER 2 Sem. 2019'!E3)=0,"",SUM('Dati Generali CER 1 Sem. 2019'!E3,'Dati Generali CER 2 Sem. 2019'!E3)/1000) -> 486.98 | F3: =IF(SUM('Dati Generali CER 1 Sem. 2019'!F3,'Dati Generali CER 2 Sem. 2019'!F3)=0,"",SUM('Dati Generali CER 1 Sem. 2019'!F3,'Dati Generali CER 2 Sem. 2019'!F3)/1000) ->  | G3: =IF(SUM('Dati Generali CER 1 Sem. 2019'!G3,'Dati Generali CER 2 Sem. 2019'!G3)=0,"",SUM('Dati Generali CER 1 Sem. 2019'!G3,'Dati Generali CER 2 Sem. 2019'!G3)/1000) ->  | H3: =IF(SUM('Dati Generali CER 1 Sem. 2019'!H3,'Dati Generali CER 2 Sem. 2019'!H3)=0,"",SUM('Dati Generali CER 1 Sem. 2019'!H3,'Dati Generali CER 2 Sem. 2019'!H3)/1000) ->  | I3: =IF(SUM('Dati Generali CER 1 Sem. 2019'!I3,'Dati Generali CER 2 Sem. 2019'!I3)=0,"",SUM('Dati Generali CER 1 Sem. 2019'!I3,'Dati Generali CER 2 Sem. 2019'!I3)/1000) ->  | J3: =IF(SUM('Dati Generali CER 1 Sem. 2019'!J3,'Dati Generali CER 2 Sem. 2019'!J3)=0,"",SUM('Dati Generali CER 1 Sem. 2019'!J3,'Dati Generali CER 2 Sem. 2019'!J3)/1000) ->  | K3: =IF(SUM('Dati Generali CER 1 Sem. 2019'!K3,'Dati Generali CER 2 Sem. 2019'!K3)=0,"",SUM('Dati Generali CER 1 Sem. 2019'!K3,'Dati Generali CER 2 Sem. 2019'!K3)/1000) ->  | L3: =IF(SUM('Dati Generali CER 1 Sem. 2019'!L3,'Dati Generali CER 2 Sem. 2019'!L3)=0,"",SUM('Dati Generali CER 1 Sem. 2019'!L3,'Dati Generali CER 2 Sem. 2019'!L3)/1000) ->  | M3: =IF(SUM('Dati Generali CER 1 Sem. 2019'!M3,'Dati Generali CER 2 Sem. 2019'!M3)=0,"",SUM('Dati Generali CER 1 Sem. 2019'!M3,'Dati Generali CER 2 Sem. 2019'!M3)/1000) ->  | N3: =IF(SUM('Dati Generali CER 1 Sem. 2019'!N3,'Dati Generali CER 2 Sem. 2019'!N3)=0,"",SUM('Dati Generali CER 1 Sem. 2019'!N3,'Dati Generali CER 2 Sem. 2019'!N3)/1000) ->  | O3: =IF(SUM('Dati Generali CER 1 Sem. 2019'!O3,'Dati Generali CER 2 Sem. 2019'!O3)=0,"",SUM('Dati Generali CER 1 Sem. 2019'!O3,'Dati Generali CER 2 Sem. 2019'!O3)/1000) ->  | P3: =IF(SUM('Dati Generali CER 1 Sem. 2019'!P3,'Dati Generali CER 2 Sem. 2019'!P3)=0,"",SUM('Dati Generali CER 1 Sem. 2019'!P3,'Dati Generali CER 2 Sem. 2019'!P3)/1000) ->  | Q3: =IF(SUM('Dati Generali CER 1 Sem. 2019'!Q3,'Dati Generali CER 2 Sem. 2019'!Q3)=0,"",SUM('Dati Generali CER 1 Sem. 2019'!Q3,'Dati Generali CER 2 Sem. 2019'!Q3)/1000) ->  | R3: =IF(SUM('Dati Generali CER 1 Sem. 2019'!R3,'Dati Generali CER 2 Sem. 2019'!R3)=0,"",SUM('Dati Generali CER 1 Sem. 2019'!R3,'Dati Generali CER 2 Sem. 2019'!R3)/1000) ->  | S3: =IF(SUM('Dati Generali CER 1 Sem. 2019'!S3,'Dati Generali CER 2 Sem. 2019'!S3)=0,"",SUM('Dati Generali CER 1 Sem. 2019'!S3,'Dati Generali CER 2 Sem. 2019'!S3)/1000) ->  | T3: =IF(SUM('Dati Generali CER 1 Sem. 2019'!T3,'Dati Generali CER 2 Sem. 2019'!T3)=0,"",SUM('Dati Generali CER 1 Sem. 2019'!T3,'Dati Generali CER 2 Sem. 2019'!T3)/1000) ->  | U3: =IF(E3="","",SUM('Dati Generali CER 1 Sem. 2019'!BI3,'Dati Generali CER 2 Sem. 2019'!BI3)/1000) -> 1119.36 | V3: =IF(SUM('Dati Generali CER 1 Sem. 2019'!V3,'Dati Generali CER 2 Sem. 2019'!V3)=0,"",SUM('Dati Generali CER 1 Sem. 2019'!V3,'Dati Generali CER 2 Sem. 2019'!V3)/1000) -> 1606.34 | W3: =IF(E3="","",U3/V3) -> 0.6968387763 | X3: =IF(SUM('Dati Generali CER 1 Sem. 2019'!X3,'Dati Generali CER 2 Sem. 2019'!X3)=0,"",SUM('Dati Generali CER 1 Sem. 2019'!X3,'Dati Generali CER 2 Sem. 2019'!X3)/1000) ->  | Y3: =IF(SUM('Dati Generali CER 1 Sem. 2019'!Y3,'Dati Generali CER 2 Sem. 2019'!Y3)=0,"",SUM('Dati Generali CER 1 Sem. 2019'!Y3,'Dati Generali CER 2 Sem. 2019'!Y3)/1000) ->  | Z3: =IF(SUM('Dati Generali CER 1 Sem. 2019'!Z3,'Dati Generali CER 2 Sem. 2019'!Z3)=0,"",SUM('Dati Generali CER 1 Sem. 2019'!Z3,'Dati Generali CER 2 Sem. 2019'!Z3)/1000) -> 1.13 | AA3: =IF(SUM('Dati Generali CER 1 Sem. 2019'!AA3,'Dati Generali CER 2 Sem. 2019'!AA3)=0,"",SUM('Dati Generali CER 1 Sem. 2019'!AA3,'Dati Generali CER 2 Sem. 2019'!AA3)/1000) -> 176.55 | AB3: =IF(SUM('Dati Generali CER 1 Sem. 2019'!AB3,'Dati Generali CER 2 Sem. 2019'!AB3)=0,"",SUM('Dati Generali CER 1 Sem. 2019'!AB3,'Dati Generali CER 2 Sem. 2019'!AB3)/1000) ->  | AC3: =IF(SUM('Dati Generali CER 1 Sem. 2019'!AC3,'Dati Generali CER 2 Sem. 2019'!AC3)=0,"",SUM('Dati Generali CER 1 Sem. 2019'!AC3,'Dati Generali CER 2 Sem. 2019'!AC3)/1000) ->  | AD3: =IF(SUM('Dati Generali CER 1 Sem. 2019'!AD3,'Dati Generali CER 2 Sem. 2019'!AD3)=0,"",SUM('Dati Generali CER 1 Sem. 2019'!AD3,'Dati Generali CER 2 Sem. 2019'!AD3)/1000) ->  | AE3: =IF(SUM('Dati Generali CER 1 Sem. 2019'!AE3,'Dati Generali CER 2 Sem. 2019'!AE3)=0,"",SUM('Dati Generali CER 1 Sem. 2019'!AE3,'Dati Generali CER 2 Sem. 2019'!AE3)/1000) -> 221.85 | AF3: =IF(SUM('Dati Generali CER 1 Sem. 2019'!AF3,'Dati Generali CER 2 Sem. 2019'!AF3)=0,"",SUM('Dati Generali CER 1 Sem. 2019'!AF3,'Dati Generali CER 2 Sem. 2019'!AF3)/1000) ->  | AG3: =IF(SUM('Dati Generali CER 1 Sem. 2019'!AG3,'Dati Generali CER 2 Sem. 2019'!AG3)=0,"",SUM('Dati Generali CER 1 Sem. 2019'!AG3,'Dati Generali CER 2 Sem. 2019'!AG3)/1000) ->  | AH3: =IF(SUM('Dati Generali CER 1 Sem. 2019'!AH3,'Dati Generali CER 2 Sem. 2019'!AH3)=0,"",SUM('Dati Generali CER 1 Sem. 2019'!AH3,'Dati Generali CER 2 Sem. 2019'!AH3)/1000) ->  | AI3: =IF(SUM('Dati Generali CER 1 Sem. 2019'!AI3,'Dati Generali CER 2 Sem. 2019'!AI3)=0,"",SUM('Dati Generali CER 1 Sem. 2019'!AI3,'Dati Generali CER 2 Sem. 2019'!AI3)/1000) ->  | AJ3: =IF(SUM('Dati Generali CER 1 Sem. 2019'!AJ3,'Dati Generali CER 2 Sem. 2019'!AJ3)=0,"",SUM('Dati Generali CER 1 Sem. 2019'!AJ3,'Dati Generali CER 2 Sem. 2019'!AJ3)/1000) ->  | AK3: =IF(SUM('Dati Generali CER 1 Sem. 2019'!AK3,'Dati Generali CER 2 Sem. 2019'!AK3)=0,"",SUM('Dati Generali CER 1 Sem. 2019'!AK3,'Dati Generali CER 2 Sem. 2019'!AK3)/1000) ->  | AL3: =IF(SUM('Dati Generali CER 1 Sem. 2019'!AL3,'Dati Generali CER 2 Sem. 2019'!AL3)=0,"",SUM('Dati Generali CER 1 Sem. 2019'!AL3,'Dati Generali CER 2 Sem. 2019'!AL3)/1000) ->  | AM3: =IF(SUM('Dati Generali CER 1 Sem. 2019'!AM3,'Dati Generali CER 2 Sem. 2019'!AM3)=0,"",SUM('Dati Generali CER 1 Sem. 2019'!AM3,'Dati Generali CER 2 Sem. 2019'!AM3)/1000) ->  | AN3: =IF(SUM('Dati Generali CER 1 Sem. 2019'!AN3,'Dati Generali CER 2 Sem. 2019'!AN3)=0,"",SUM('Dati Generali CER 1 Sem. 2019'!AN3,'Dati Generali CER 2 Sem. 2019'!AN3)/1000) -> 207.19 | AO3: =IF(SUM('Dati Generali CER 1 Sem. 2019'!AO3,'Dati Generali CER 2 Sem. 2019'!AO3)=0,"",SUM('Dati Generali CER 1 Sem. 2019'!AO3,'Dati Generali CER 2 Sem. 2019'!AO3)/1000) ->  | AP3: =IF(SUM('Dati Generali CER 1 Sem. 2019'!AP3,'Dati Generali CER 2 Sem. 2019'!AP3)=0,"",SUM('Dati Generali CER 1 Sem. 2019'!AP3,'Dati Generali CER 2 Sem. 2019'!AP3)/1000) -> 463.45 | AQ3: =IF(SUM('Dati Generali CER 1 Sem. 2019'!AQ3,'Dati Generali CER 2 Sem. 2019'!AQ3)=0,"",SUM('Dati Generali CER 1 Sem. 2019'!AQ3,'Dati Generali CER 2 Sem. 2019'!AQ3)/1000) ->  | AR3: =IF(SUM('Dati Generali CER 1 Sem. 2019'!AR3,'Dati Generali CER 2 Sem. 2019'!AR3)=0,"",SUM('Dati Generali CER 1 Sem. 2019'!AR3,'Dati Generali CER 2 Sem. 2019'!AR3)/1000) ->  | AS3: =IF(SUM('Dati Generali CER 1 Sem. 2019'!AS3,'Dati Generali CER 2 Sem. 2019'!AS3)=0,"",SUM('Dati Generali CER 1 Sem. 2019'!AS3,'Dati Generali CER 2 Sem. 2019'!AS3)/1000) ->  | AT3: =IF(SUM('Dati Generali CER 1 Sem. 2019'!AT3,'Dati Generali CER 2 Sem. 2019'!AT3)=0,"",SUM('Dati Generali CER 1 Sem. 2019'!AT3,'Dati Generali CER 2 Sem. 2019'!AT3)/1000) -> 5.82 | AU3: =IF(SUM('Dati Generali CER 1 Sem. 2019'!AU3,'Dati Generali CER 2 Sem. 2019'!AU3)=0,"",SUM('Dati Generali CER 1 Sem. 2019'!AU3,'Dati Generali CER 2 Sem. 2019'!AU3)/1000) ->  | AV3: =IF(SUM('Dati Generali CER 1 Sem. 2019'!AV3,'Dati Generali CER 2 Sem. 2019'!AV3)=0,"",SUM('Dati Generali CER 1 Sem. 2019'!AV3,'Dati Generali CER 2 Sem. 2019'!AV3)/1000) ->  | AW3: =IF(SUM('Dati Generali CER 1 Sem. 2019'!AW3,'Dati Generali CER 2 Sem. 2019'!AW3)=0,"",SUM('Dati Generali CER 1 Sem. 2019'!AW3,'Dati Generali CER 2 Sem. 2019'!AW3)/1000) ->  | AX3: =IF(SUM('Dati Generali CER 1 Sem. 2019'!AX3,'Dati Generali CER 2 Sem. 2019'!AX3)=0,"",SUM('Dati Generali CER 1 Sem. 2019'!AX3,'Dati Generali CER 2 Sem. 2019'!AX3)/1000) ->  | AY3: =IF(SUM('Dati Generali CER 1 Sem. 2019'!AY3,'Dati Generali CER 2 Sem. 2019'!AY3)=0,"",SUM('Dati Generali CER 1 Sem. 2019'!AY3,'Dati Generali CER 2 Sem. 2019'!AY3)/1000) ->  | AZ3: =IF(SUM('Dati Generali CER 1 Sem. 2019'!AZ3,'Dati Generali CER 2 Sem. 2019'!AZ3)=0,"",SUM('Dati Generali CER 1 Sem. 2019'!AZ3,'Dati Generali CER 2 Sem. 2019'!AZ3)/1000) ->  | BA3: =IF(SUM('Dati Generali CER 1 Sem. 2019'!BA3,'Dati Generali CER 2 Sem. 2019'!BA3)=0,"",SUM('Dati Generali CER 1 Sem. 2019'!BA3,'Dati Generali CER 2 Sem. 2019'!BA3)/1000) -> 3 | BB3: =IF(SUM('Dati Generali CER 1 Sem. 2019'!BB3,'Dati Generali CER 2 Sem. 2019'!BB3)=0,"",SUM('Dati Generali CER 1 Sem. 2019'!BB3,'Dati Generali CER 2 Sem. 2019'!BB3)/1000) -> 1.3 | BC3: =IF(SUM('Dati Generali CER 1 Sem. 2019'!BC3,'Dati Generali CER 2 Sem. 2019'!BC3)=0,"",SUM('Dati Generali CER 1 Sem. 2019'!BC3,'Dati Generali CER 2 Sem. 2019'!BC3)/1000) ->  | BD3: =IF(SUM('Dati Generali CER 1 Sem. 2019'!BD3,'Dati Generali CER 2 Sem. 2019'!BD3)=0,"",SUM('Dati Generali CER 1 Sem. 2019'!BD3,'Dati Generali CER 2 Sem. 2019'!BD3)/1000) ->  | BE3: =IF(SUM('Dati Generali CER 1 Sem. 2019'!BE3,'Dati Generali CER 2 Sem. 2019'!BE3)=0,"",SUM('Dati Generali CER 1 Sem. 2019'!BE3,'Dati Generali CER 2 Sem. 2019'!BE3)/1000) ->  | BF3: =IF(SUM('Dati Generali CER 1 Sem. 2019'!BF3,'Dati Generali CER 2 Sem. 2019'!BF3)=0,"",SUM('Dati Generali CER 1 Sem. 2019'!BF3,'Dati Generali CER 2 Sem. 2019'!BF3)/1000) ->  | BG3: =IF(SUM('Dati Generali CER 1 Sem. 2019'!BG3,'Dati Generali CER 2 Sem. 2019'!BG3)=0,"",SUM('Dati Generali CER 1 Sem. 2019'!BG3,'Dati Generali CER 2 Sem. 2019'!BG3)/1000) ->  | BH3: =IF(SUM('Dati Generali CER 1 Sem. 2019'!BH3,'Dati Generali CER 2 Sem. 2019'!BH3)=0,"",SUM('Dati Generali CER 1 Sem. 2019'!BH3,'Dati Generali CER 2 Sem. 2019'!BH3)/1000) -> 39.07 | BI3: =IF(SUM('Dati Generali CER 1 Sem. 2019'!BI3,'Dati Generali CER 2 Sem. 2019'!BI3)=0,"",SUM('Dati Generali CER 1 Sem. 2019'!BI3,'Dati Generali CER 2 Sem. 2019'!BI3)/1000) -> 1119.36 | BJ3: =IF(COUNT(X3:BH3,E3,R3,S3,T3)=0,"",COUNT(X3:BH3,E3,R3,S3,T3)) -> 10 | BK3: =IF(E3="","",V3/D3/0.365) -> 0.7915344437 | BL3: =IF(E3="","",E3/D3/0.365) -> 0.2399625505 | BM3: =IF(SUM(X3:BH3)=0,"",BI3/D3/0.365) -> 0.5515718932 | BN3: =SUM(E3,R3,S3,T3,X3:BH3) -> 1606.34
A4: ='Dati Generali CER 1 Sem. 2019'!A4 -> 2 | B4: ='Dati Generali CER 1 Sem. 2019'!B4 -> A177 | C4: ='Dati Generali CER 1 Sem. 2019'!C4 -> ALCARA LI FUSI | D4: ='Dati Generali CER 1 Sem. 2019'!D4 -> 1822 | E4: =IF(SUM('Dati Generali CER 1 Sem. 2019'!E4,'Dati Generali CER 2 Sem. 2019'!E4)=0,"",SUM('Dati Generali CER 1 Sem. 2019'!E4,'Dati Generali CER 2 Sem. 2019'!E4)/1000) -> 117.2 | F4: =IF(SUM('Dati Generali CER 1 Sem. 2019'!F4,'Dati Generali CER 2 Sem. 2019'!F4)=0,"",SUM('Dati Generali CER 1 Sem. 2019'!F4,'Dati Generali CER 2 Sem. 2019'!F4)/1000) ->  | G4: =IF(SUM('Dati Generali CER 1 Sem. 2019'!G4,'Dati Generali CER 2 Sem. 2019'!G4)=0,"",SUM('Dati Generali CER 1 Sem. 2019'!G4,'Dati Generali CER 2 Sem. 2019'!G4)/1000) ->  | H4: =IF(SUM('Dati Generali CER 1 Sem. 2019'!H4,'Dati Generali CER 2 Sem. 2019'!H4)=0,"",SUM('Dati Generali CER 1 Sem. 2019'!H4,'Dati Generali CER 2 Sem. 2019'!H4)/1000) ->  | I4: =IF(SUM('Dati Generali CER 1 Sem. 2019'!I4,'Dati Generali CER 2 Sem. 2019'!I4)=0,"",SUM('Dati Generali CER 1 Sem. 2019'!I4,'Dati Generali CER 2 Sem. 2019'!I4)/1000) ->  | J4: =IF(SUM('Dati Generali CER 1 Sem. 2019'!J4,'Dati Generali CER 2 Sem. 2019'!J4)=0,"",SUM('Dati Generali CER 1 Sem. 2019'!J4,'Dati Generali CER 2 Sem. 2019'!J4)/1000) ->  | K4: =IF(SUM('Dati Generali CER 1 Sem. 2019'!K4,'Dati Generali CER 2 Sem. 2019'!K4)=0,"",SUM('Dati Generali CER 1 Sem. 2019'!K4,'Dati Generali CER 2 Sem. 2019'!K4)/1000) ->  | L4: =IF(SUM('Dati Generali CER 1 Sem. 2019'!L4,'Dati Generali CER 2 Sem. 2019'!L4)=0,"",SUM('Dati Generali CER 1 Sem. 2019'!L4,'Dati Generali CER 2 Sem. 2019'!L4)/1000) ->  | M4: =IF(SUM('Dati Generali CER 1 Sem. 2019'!M4,'Dati Generali CER 2 Sem. 2019'!M4)=0,"",SUM('Dati Generali CER 1 Sem. 2019'!M4,'Dati Generali CER 2 Sem. 2019'!M4)/1000) ->  | N4: =IF(SUM('Dati Generali CER 1 Sem. 2019'!N4,'Dati Generali CER 2 Sem. 2019'!N4)=0,"",SUM('Dati Generali CER 1 Sem. 2019'!N4,'Dati Generali CER 2 Sem. 2019'!N4)/1000) ->  | O4: =IF(SUM('Dati Generali CER 1 Sem. 2019'!O4,'Dati Generali CER 2 Sem. 2019'!O4)=0,"",SUM('Dati Generali CER 1 Sem. 2019'!O4,'Dati Generali CER 2 Sem. 2019'!O4)/1000) ->  | P4: =IF(SUM('Dati Generali CER 1 Sem. 2019'!P4,'Dati Generali CER 2 Sem. 2019'!P4)=0,"",SUM('Dati Generali CER 1 Sem. 2019'!P4,'Dati Generali CER 2 Sem. 2019'!P4)/1000) ->  | Q4: =IF(SUM('Dati Generali CER 1 Sem. 2019'!Q4,'Dati Generali CER 2 Sem. 2019'!Q4)=0,"",SUM('Dati Generali CER 1 Sem. 2019'!Q4,'Dati Generali CER 2 Sem. 2019'!Q4)/1000) ->  | R4: =IF(SUM('Dati Generali CER 1 Sem. 2019'!R4,'Dati Generali CER 2 Sem. 2019'!R4)=0,"",SUM('Dati Generali CER 1 Sem. 2019'!R4,'Dati Generali CER 2 Sem. 2019'!R4)/1000) ->  | S4: =IF(SUM('Dati Generali CER 1 Sem. 2019'!S4,'Dati Generali CER 2 Sem. 2019'!S4)=0,"",SUM('Dati Generali CER 1 Sem. 2019'!S4,'Dati Generali CER 2 Sem. 2019'!S4)/1000) ->  | T4: =IF(SUM('Dati Generali CER 1 Sem. 2019'!T4,'Dati Generali CER 2 Sem. 2019'!T4)=0,"",SUM('Dati Generali CER 1 Sem. 2019'!T4,'Dati Generali CER 2 Sem. 2019'!T4)/1000) ->  | U4: =IF(E4="","",SUM('Dati Generali CER 1 Sem. 2019'!BI4,'Dati Generali CER 2 Sem. 2019'!BI4)/1000) -> 339.61 | V4: =IF(SUM('Dati Generali CER 1 Sem. 2019'!V4,'Dati Generali CER 2 Sem. 2019'!V4)=0,"",SUM('Dati Generali CER 1 Sem. 2019'!V4,'Dati Generali CER 2 Sem. 2019'!V4)/1000) -> 456.81 | W4: 0.7434381909 | X4: =IF(SUM('Dati Generali CER 1 Sem. 2019'!X4,'Dati Generali CER 2 Sem. 2019'!X4)=0,"",SUM('Dati Generali CER 1 Sem. 2019'!X4,'Dati Generali CER 2 Sem. 2019'!X4)/1000) ->  | Y4: =IF(SUM('Dati Generali CER 1 Sem. 2019'!Y4,'Dati Generali CER 2 Sem. 2019'!Y4)=0,"",SUM('Dati Generali CER 1 Sem. 2019'!Y4,'Dati Generali CER 2 Sem. 2019'!Y4)/1000) ->  | Z4: =IF(SUM('Dati Generali CER 1 Sem. 2019'!Z4,'Dati Generali CER 2 Sem. 2019'!Z4)=0,"",SUM('Dati Generali CER 1 Sem. 2019'!Z4,'Dati Generali CER 2 Sem. 2019'!Z4)/1000) -> 3.04 | AA4: =IF(SUM('Dati Generali CER 1 Sem. 2019'!AA4,'Dati Generali CER 2 Sem. 2019'!AA4)=0,"",SUM('Dati Generali CER 1 Sem. 2019'!AA4,'Dati Generali CER 2 Sem. 2019'!AA4)/1000) -> 35.85 | AB4: =IF(SUM('Dati Generali CER 1 Sem. 2019'!AB4,'Dati Generali CER 2 Sem. 2019'!AB4)=0,"",SUM('Dati Generali CER 1 Sem. 2019'!AB4,'Dati Generali CER 2 Sem. 2019'!AB4)/1000) ->  | AC4: =IF(SUM('Dati Generali CER 1 Sem. 2019'!AC4,'Dati Generali CER 2 Sem. 2019'!AC4)=0,"",SUM('Dati Generali CER 1 Sem. 2019'!AC4,'Dati Generali CER 2 Sem. 2019'!AC4)/1000) ->  | AD4: =IF(SUM('Dati Generali CER 1 Sem. 2019'!AD4,'Dati Generali CER 2 Sem. 2019'!AD4)=0,"",SUM('Dati Generali CER 1 Sem. 2019'!AD4,'Dati Generali CER 2 Sem. 2019'!AD4)/1000) ->  | AE4: =IF(SUM('Dati Generali CER 1 Sem. 2019'!AE4,'Dati Generali CER 2 Sem. 2019'!AE4)=0,"",SUM('Dati Generali CER 1 Sem. 2019'!AE4,'Dati Generali CER 2 Sem. 2019'!AE4)/1000) -> 69.44 | AF4: =IF(SUM('Dati Generali CER 1 Sem. 2019'!AF4,'Dati Generali CER 2 Sem. 2019'!AF4)=0,"",SUM('Dati Generali CER 1 Sem. 2019'!AF4,'Dati Generali CER 2 Sem. 2019'!AF4)/1000) ->  | AG4: =IF(SUM('Dati Generali CER 1 Sem. 2019'!AG4,'Dati Generali CER 2 Sem. 2019'!AG4)=0,"",SUM('Dati Generali CER 1 Sem. 2019'!AG4,'Dati Generali CER 2 Sem. 2019'!AG4)/1000) ->  | AH4: =IF(SUM('Dati Generali CER 1 Sem. 2019'!AH4,'Dati Generali CER 2 Sem. 2019'!AH4)=0,"",SUM('Dati Generali CER 1 Sem. 2019'!AH4,'Dati Generali CER 2 Sem. 2019'!AH4)/1000) ->  | AI4: =IF(SUM('Dati Generali CER 1 Sem. 2019'!AI4,'Dati Generali CER 2 Sem. 2019'!AI4)=0,"",SUM('Dati Generali CER 1 Sem. 2019'!AI4,'Dati Generali CER 2 Sem. 2019'!AI4)/1000) ->  | AJ4: =IF(SUM('Dati Generali CER 1 Sem. 2019'!AJ4,'Dati Generali CER 2 Sem. 2019'!AJ4)=0,"",SUM('Dati Generali CER 1 Sem. 2019'!AJ4,'Dati Generali CER 2 Sem. 2019'!AJ4)/1000) ->  | AK4: =IF(SUM('Dati Generali CER 1 Sem. 2019'!AK4,'Dati Generali CER 2 Sem. 2019'!AK4)=0,"",SUM('Dati Generali CER 1 Sem. 2019'!AK4,'Dati Generali CER 2 Sem. 2019'!AK4)/1000) ->  | AL4: =IF(SUM('Dati Generali CER 1 Sem. 2019'!AL4,'Dati Generali CER 2 Sem. 2019'!AL4)=0,"",SUM('Dati Generali CER 1 Sem. 2019'!AL4,'Dati Generali CER 2 Sem. 2019'!AL4)/1000) ->  | AM4: =IF(SUM('Dati Generali CER 1 Sem. 2019'!AM4,'Dati Generali CER 2 Sem. 2019'!AM4)=0,"",SUM('Dati Generali CER 1 Sem. 2019'!AM4,'Dati Generali CER 2 Sem. 2019'!AM4)/1000) -> 9.18 | AN4: =IF(SUM('Dati Generali CER 1 Sem. 2019'!AN4,'Dati Generali CER 2 Sem. 2019'!AN4)=0,"",SUM('Dati Generali CER 1 Sem. 2019'!AN4,'Dati Generali CER 2 Sem. 2019'!AN4)/1000) -> 42.87 | AO4: =IF(SUM('Dati Generali CER 1 Sem. 2019'!AO4,'Dati Generali CER 2 Sem. 2019'!AO4)=0,"",SUM('Dati Generali CER 1 Sem. 2019'!AO4,'Dati Generali CER 2 Sem. 2019'!AO4)/1000) ->  | AP4: =IF(SUM('Dati Generali CER 1 Sem. 2019'!AP4,'Dati Generali CER 2 Sem. 2019'!AP4)=0,"",SUM('Dati Generali CER 1 Sem. 2019'!AP4,'Dati Generali CER 2 Sem. 2019'!AP4)/1000) -> 137.02 | AQ4: =IF(SUM('Dati Generali CER 1 Sem. 2019'!AQ4,'Dati Generali CER 2 Sem. 2019'!AQ4)=0,"",SUM('Dati Generali CER 1 Sem. 2019'!AQ4,'Dati Generali CER 2 Sem. 2019'!AQ4)/1000) -> 0.77 | AR4: =IF(SUM('Dati Generali CER 1 Sem. 2019'!AR4,'Dati Generali CER 2 Sem. 2019'!AR4)=0,"",SUM('Dati Generali CER 1 Sem. 2019'!AR4,'Dati Generali CER 2 Sem. 2019'!AR4)/1000) ->  | AS4: =IF(SUM('Dati Generali CER 1 Sem. 2019'!AS4,'Dati Generali CER 2 Sem. 2019'!AS4)=0,"",SUM('Dati Generali CER 1 Sem. 2019'!AS4,'Dati Generali CER 2 Sem. 2019'!AS4)/1000) ->  | AT4: =IF(SUM('Dati Generali CER 1 Sem. 2019'!AT4,'Dati Generali CER 2 Sem. 2019'!AT4)=0,"",SUM('Dati Generali CER 1 Sem. 2019'!AT4,'Dati Generali CER 2 Sem. 2019'!AT4)/1000) -> 1.59 | AU4: =IF(SUM('Dati Generali CER 1 Sem. 2019'!AU4,'Dati Generali CER 2 Sem. 2019'!AU4)=0,"",SUM('Dati Generali CER 1 Sem. 2019'!AU4,'Dati Generali CER 2 Sem. 2019'!AU4)/1000) ->  | AV4: =IF(SUM('Dati Generali CER 1 Sem. 2019'!AV4,'Dati Generali CER 2 Sem. 2019'!AV4)=0,"",SUM('Dati Generali CER 1 Sem. 2019'!AV4,'Dati Generali CER 2 Sem. 2019'!AV4)/1000) ->  | AW4: =IF(SUM('Dati Generali CER 1 Sem. 2019'!AW4,'Dati Generali CER 2 Sem. 2019'!AW4)=0,"",SUM('Dati Generali CER 1 Sem. 2019'!AW4,'Dati Generali CER 2 Sem. 2019'!AW4)/1000) ->  | AX4: =IF(SUM('Dati Generali CER 1 Sem. 2019'!AX4,'Dati Generali CER 2 Sem. 2019'!AX4)=0,"",SUM('Dati Generali CER 1 Sem. 2019'!AX4,'Dati Generali CER 2 Sem. 2019'!AX4)/1000) ->  | AY4: =IF(SUM('Dati Generali CER 1 Sem. 2019'!AY4,'Dati Generali CER 2 Sem. 2019'!AY4)=0,"",SUM('Dati Generali CER 1 Sem. 2019'!AY4,'Dati Generali CER 2 Sem. 2019'!AY4)/1000) ->  | AZ4: =IF(SUM('Dati Generali CER 1 Sem. 2019'!AZ4,'Dati Generali CER 2 Sem. 2019'!AZ4)=0,"",SUM('Dati Generali CER 1 Sem. 2019'!AZ4,'Dati Generali CER 2 Sem. 2019'!AZ4)/1000) ->  | BA4: =IF(SUM('Dati Generali CER 1 Sem. 2019'!BA4,'Dati Generali CER 2 Sem. 2019'!BA4)=0,"",SUM('Dati Generali CER 1 Sem. 2019'!BA4,'Dati Generali CER 2 Sem. 2019'!BA4)/1000) -> 2.86 | BB4: =IF(SUM('Dati Generali CER 1 Sem. 2019'!BB4,'Dati Generali CER 2 Sem. 2019'!BB4)=0,"",SUM('Dati Generali CER 1 Sem. 2019'!BB4,'Dati Generali CER 2 Sem. 2019'!BB4)/1000) -> 2.65 | BC4: =IF(SUM('Dati Generali CER 1 Sem. 2019'!BC4,'Dati Generali CER 2 Sem. 2019'!BC4)=0,"",SUM('Dati Generali CER 1 Sem. 2019'!BC4,'Dati Generali CER 2 Sem. 2019'!BC4)/1000) ->  | BD4: =IF(SUM('Dati Generali CER 1 Sem. 2019'!BD4,'Dati Generali CER 2 Sem. 2019'!BD4)=0,"",SUM('Dati Generali CER 1 Sem. 2019'!BD4,'Dati Generali CER 2 Sem. 2019'!BD4)/1000) -> 8.05 | BE4: =IF(SUM('Dati Generali CER 1 Sem. 2019'!BE4,'Dati Generali CER 2 Sem. 2019'!BE4)=0,"",SUM('Dati Generali CER 1 Sem. 2019'!BE4,'Dati Generali CER 2 Sem. 2019'!BE4)/1000) -> 19.54 | BF4: =IF(SUM('Dati Generali CER 1 Sem. 2019'!BF4,'Dati Generali CER 2 Sem. 2019'!BF4)=0,"",SUM('Dati Generali CER 1 Sem. 2019'!BF4,'Dati Generali CER 2 Sem. 2019'!BF4)/1000) ->  | BG4: =IF(SUM('Dati Generali CER 1 Sem. 2019'!BG4,'Dati Generali CER 2 Sem. 2019'!BG4)=0,"",SUM('Dati Generali CER 1 Sem. 2019'!BG4,'Dati Generali CER 2 Sem. 2019'!BG4)/1000) ->  | BH4: =IF(SUM('Dati Generali CER 1 Sem. 2019'!BH4,'Dati Generali CER 2 Sem. 2019'!BH4)=0,"",SUM('Dati Generali CER 1 Sem. 2019'!BH4,'Dati Generali CER 2 Sem. 2019'!BH4)/1000) -> 6.75 | BI4: =IF(SUM('Dati Generali CER 1 Sem. 2019'!BI4,'Dati Generali CER 2 Sem. 2019'!BI4)=0,"",SUM('Dati Generali CER 1 Sem. 2019'!BI4,'Dati Generali CER 2 Sem. 2019'!BI4)/1000) -> 339.61 | BJ4: =IF(COUNT(X4:BH4,E4,R4,S4,T4)=0,"",COUNT(X4:BH4,E4,R4,S4,T4)) -> 14 | BK4: 0.6869013428 | BL4: =IF(E4="","",E4/D4/0.365) -> 0.1762326512 | BM4: =IF(SUM(X4:BH4)=0,"",BI4/D4/0.365) -> 0.5106686916 | BN4: =SUM(E4,R4,S4,T4,X4:BH4) -> 456.81
